Workbook

Sheet Index
A1: Index | C1: Note/kommentar | F1: Note/kommentar (PlanEnergi-intern) | G1: Til script (AP)
A2: Index | B2: Nærværende fane (intet link) | G2: Slet kolonner F:Z
A3: Grafer | B3: Grafer-energi
B4: Grafer-klima ->VÆLG GWP og NIR<-
A5: NIR faktorer samlet | B5: NIR faktorer | F5: SKEP#1983 | G5: Beskyt fane
A6: Sammenfatning | B6: Sammenfatning | F6: Mangler opdateringer MGAG | G6: Slet fane
B7: Reduktionsstiberegner | F7: Mangler opdateringer MGAG | G7: Slet fane
B8: K-tiltag | F8: SKAL LÅSES | G8: Slet fane
B9: E-Tiltag | F9: SKAL LÅSES Mangler opdateringer MGAG | G9: Slet fane
B10: BAU tiltag | F10: Mangler opdateringer MGAG | G10: Slet fane
B11: ESTI2050 | F11: Mangler opdateringer MGAG | G11: Slet fane
B12: ESTI2030 | F12: Mangler opdateringer MGAG | G12: Slet fane
B13: EBAU2050 | F13: Mangler opdateringer MGAG | G13: Slet fane
B14: EBAU2030 | F14: Mangler opdateringer MGAG | G14: Slet fane
B15: E2018
A16: Energy accounts | B16: E2020
B17: E1990
A18: Samlede klimaregnskaber 2018 | B18: Dyrehold 2018
B19: Planteavl 2018
B20: Arealanvendelse 2018
B21: Affald og spildevand 2018
B22: Industrielle processer 2018
A23: Samlede klimaregnskaber W2018 | B23: Dyrehold W2018
B24: Planteavl W2018
B25: Arealanvendelse W2018
B26: Affald og spildevand W2018
B27: Industrielle processer W2018
A28: Klimabilag 2018 | B28: K1 2018 | G28: Grøn/Pink | J28: *Generelt - grønne celler beholder farven, pink celler ændres til hvid
B29: K2 2018 | J29: Signatur: | K29: Grøn | M29: Hardcode, beholder den grønne farve.
B30: K2a 2018 | G30: Grøn/Pink | K30: Pink | M30: Hardcode, ændres til hvid/gennemsigtig baggrund.
B31: K3 2018 | K31: Pivot-tabeller | M31: Forslag MGAG: Lad dem stå.
B32: K4 2018 | G32: Grøn/Pink
B33: K5 2018 | G33: Grøn/Pink
B34: K5a 2018 | G34: Grøn/Pink
B35: K6 2018 | G35: Grøn/Pink
B36: K7 2018 | G36: Grøn/Pink
B37: K8 2018 | G37: Grøn/Pink
B38: K9 2018 | G38: Grøn/Pink
B39: K10 2018 | G39: Grøn/Pink
B40: K11 2018 | G40: Grøn/Pink
B41: K12 2018 | G41: Grøn/Pink
B42: K13 2018 | G42: Grøn/Pink
B43: K14 2018 | G43: Grøn/Pink
B44: K15 2018 | G44: Grøn/Pink
A45: Klimabilag Workshop 2018 | B45: WK1 2018 | G45: Grøn/Pink
B46: WK2 2018
B47: WK2a 2018 | G47: Grøn/Pink
B48: WK3 2018
B49: WK4 2018 | G49: Grøn/Pink
B50: WK5 2018 | G50: Grøn/Pink
B51: WK5a 2018 | G51: Grøn/Pink
B52: WK6 2018 | G52: Grøn/Pink
B53: WK7 2018 | G53: Grøn/Pink
B54: WK8 2018 | G54: Grøn/Pink
B55: WK9 2018 | G55: Grøn/Pink
B56: WK10 2018 | G56: Grøn/Pink
B57: WK11 2018 | G57: Grøn/Pink
B58: WK12 2018 | G58: Grøn/Pink
B59: WK13 2018 | G59: Grøn/Pink
B60: WK14 2018 | G60: Grøn/Pink
B61: WK15 2018 | G61: Grøn/Pink
A62: Registerdata fra AU 2018 | B62: Dataark til bilag 2_18 | F62: "Stald+dyr" havde jeg nok lavet som "stald&dyr" | G62: Grøn/Pink
B63: Dataark til bilag 3_18 | F63: Stald+dyr havde jeg nok lavet som "stald&dyr" | G63: Grøn/Pink
B64: biogas_18
B65: staldtype_total_18
B66: planteavl_18
B67: Planteavl_EA_18
B68: gødning_mv_18
B69: 1990-2018 ha_18
B70: 2005-2018 ha_18
B71: draeninfo_18
B72: rewetinfo_18
B73: ArealFordelingPaaKulstof_Ha 18
A74: Registerdata fra AU 2020 | B74: Dataark til bilag 2_20 | G74: Grøn/Pink
B75: Dataark til bilag 3_20 | G75: Grøn/Pink
B76: biogas_20
B77: staldtype_total_20
B78: planteavl_20
B79: Planteavl_EA_20
B80: gødning_mv_20
B81: 1990-2020 ha_20 | F81: Mangler opdateret data fra AU
B82: 2005-2020 ha_20 | F82: Mangler opdateret data fra AU
B83: draeninfo_20 | F83: Mangler opdateret data fra AU
B84: rewetinfo_20 | F84: Mangler opdateret data fra AU
B85: ArealFordelingPaaKulstof_Ha 20 | F85: Mangler opdateret data fra AU
A86: Data fra andre kilder for flere år | B86: BYGB34 | G86: Skjul fane
B87: FOLK1A | G87: Skjul fane
B88: HST77 | G88: Skjul fane
B89: ARE207 | G89: Skjul fane
B90: Fodermiddeltabel | G90: Skjul fane
B91: BNP | G91: Skjul fane
B92: NST | G92: Skjul fane
B93: PUNKTKILDELISTE pr værk 18 | F93: Formatering? | G93: Skjul fane
B94: PUNKTKILDELISTE pr værk 20 | F94: Formatering? | G94: Skjul fane
A95: NIR tabeller | B95: Table2(I)s2_2018 | G95: Skjul fane
B96: Table2(I).A-Hs1_2018 | G96: Skjul fane
B97: Table2(I).A-Hs2_2018 | G97: Skjul fane
B98: Table2(II)_2018 | G98: Skjul fane
B99: Table3.As1_2018 | G99: Skjul fane
B100: Table3.D_2018 | G100: Skjul fane
B101: Table3.G-I_2018 | G101: Skjul fane
B102: Table4.A_2018 | G102: Skjul fane
B103: Table4.B_2018 | G103: Skjul fane
B104: Table4.C_2018 | G104: Skjul fane
B105: Table4.D_2018 | G105: Skjul fane
B106: Table4.E_2018 | G106: Skjul fane
B107: Table4.F_2018 | G107: Skjul fane
B108: Table4(II)_2018 | G108: Skjul fane
B109: Table4(III)_2018 | G109: Skjul fane
B110: Table4(V)_2018 | G110: Skjul fane
B111: Table4.Gs2_2018 | G111: Skjul fane
B112: Table5.A_2018 | G112: Skjul fane
B113: Table5.B_2018 | G113: Skjul fane
B114: Table5.C_2018 | G114: Skjul fane
B115: Table5.D_2018 | G115: Skjul fane
B116: Table2(I)s2_2019 | G116: Skjul fane
B117: Table2(I).A-Hs1_2019 | G117: Skjul fane
B118: Table2(I).A-Hs2_2019 | G118: Skjul fane
B119: Table2(II)_2019 | G119: Skjul fane
B120: Table3.As1_2019 | G120: Skjul fane
B121: Table3.D_2019 | G121: Skjul fane
B122: Table3.G-I_2019 | G122: Skjul fane
B123: Table4.A_2019 | G123: Skjul fane
B124: Table4.B_2019 | G124: Skjul fane
B125: Table4.C_2019 | G125: Skjul fane
B126: Table4.D_2019 | G126: Skjul fane
B127: Table4.E_2019 | G127: Skjul fane
B128: Table4.F_2019 | G128: Skjul fane
B129: Table4(II)_2019 | G129: Skjul fane
B130: Table4(III)_2019 | G130: Skjul fane
B131: Table4(V)_2019 | G131: Skjul fane
B132: Table4.Gs2_2019 | G132: Skjul fane
B133: Table5.A_2019 | G133: Skjul fane
B134: Table5.B_2019 | G134: Skjul fane
B135: Table5.C_2019 | G135: Skjul fane
B136: Table5.D_2019 | G136: Skjul fane
B137: Table2(I)s2_2020 | G137: Skjul fane
B138: Table2(I).A-Hs1_2020 | G138: Skjul fane
B139: Table2(I).A-Hs2_2020 | G139: Skjul fane
B140: Table2(II)_2020 | G140: Skjul fane
B141: Table3.As1_2020 | G141: Skjul fane
B142: Table3.D_2020 | G142: Skjul fane
B143: Table3.G-I_2020 | G143: Skjul fane
B144: Table4.A_2020 | G144: Skjul fane
B145: Table4.B_2020 | G145: Skjul fane
B146: Table4.C_2020 | G146: Skjul fane
B147: Table4.D_2020 | G147: Skjul fane
B148: Table4.E_2020 | G148: Skjul fane
B149: Table4.F_2020 | G149: Skjul fane
B150: Table4(II)_2020 | G150: Skjul fane
B151: Table4(III)_2020 | G151: Skjul fane
B152: Table4(V)_2020 | G152: Skjul fane
B153: Table4.Gs2_2020 | G153: Skjul fane
B154: Table5.A_2020 | G154: Skjul fane
B155: Table5.B_2020 | G155: Skjul fane
B156: Table5.C_2020 | G156: Skjul fane
B157: Table5.D_2020 | G157: Skjul fane
B158: Summary2_1990 | G158: Skjul fane
B159: Summary2_2018 | G159: Skjul fane
B160: Summary2_2020 | G160: Skjul fane
A161: NIR annexer | B161: Annex 3F-6.2 20 | G161: Skjul fane
B162: Annex 3F-6.1 20 | G162: Skjul fane
B163: Annex 3D-9 20 | G163: Skjul fane
B164: Annex 3D-11 20 | G164: Skjul fane
B165: Annex 3D-20 20 | G165: Skjul fane
A166: Dataark til reduktionssti | B166: Table LULUCF_arealer | G166: Skjul fane
B167: Table 6 Gødningsmængder | G167: Skjul fane
B168: Table 7 Miljøteknologi | G168: Skjul fane
B169: Table 9 Gylle afsat til biogas | G169: Skjul fane
B170: Table 12 Handelsgødning | G170: Skjul fane

Sheet Graphs-energy
A2: Til index
A4: Click to get to the desired graph:
B47: Share of renewable energy
C56: 1990 | D56: 2018 | E56: W2018
B57: VE% Global | C57: ='E1990'!$AC$83 -> 8.387642968 | D57: ='E2018'!$AC$84 -> 54.79807009 | E57: ='WE2018'!$AC$84 -> 54.79807009
B58: VE% Loсal | C58: ='E1990'!$AC$84 -> 8.347632138 | D58: ='E2018'!$AC$85 -> 58.68814808 | E58: ='WE2018'!$AC$85 -> 58.68814808
B86: Gross energy consumption
B96: Gross energy consumption by fuel type | C96: TJ/year | D96: TJ/year | E96: TJ/year | F96: TJ/year
C97: 1990 | D97: =D56 -> 2018 | E97: =E56 -> W2018 | F97: Local biomass potential
A98: Fossil | B98: Electricity imports (fossil-based) | C98: ='E1990'!$A$81*(1-'E1990'!$A$87%) -> 21030.20046 | D98: ='E2018'!$A$82*(1-'E2018'!$A$88%) -> -1329.767721 | E98: ='WE2018'!$A$82*(1-'WE2018'!$A$88%) -> -1329.767721
B99: Coal | C99: ='E1990'!$C$81 -> 19738.12 | D99: ='E2018'!$C$82 -> 558.1 | E99: ='WE2018'!$C$82 -> 558.1
B100: Natural gas and LPG | C100: ='E1990'!$I$81+'E1990'!$B$81 -> 12423.91 | D100: ='E2018'!$I$82+'E2018'!$B$82 -> 5015.921664 | E100: ='WE2018'!$I$82+'WE2018'!$B$82 -> 5015.921664
B101: Fuel oil | C101: ='E1990'!$D$81 -> 6535.81 | D101: ='E2018'!$D$82 -> 0 | E101: ='WE2018'!$D$82 -> 0
B102: Fuel oil/diesel | C102: ='E1990'!$E$81+'E1990'!$F$81 -> 44450.30678 | D102: ='E2018'!$E$82+'E2018'!$F$82 -> 6495.760425 | E102: ='WE2018'!$E$82+'WE2018'!$F$82 -> 6495.760425
B103: JP1 | C103: ='E1990'!$G$81 -> 6340.94 | D103: ='E2018'!$G$82 -> 1573.9 | E103: ='WE2018'!$G$82 -> 1573.9
B104: Petrol | C104: ='E1990'!$H$81 -> 16573.64865 | D104: ='E2018'!$H$82 -> 1924.894501 | E104: ='WE2018'!$H$82 -> 1924.894501
B105: Waste, not biodegradable | C105: ='E1990'!$Z$81 -> 1083.74 | D105: ='E2018'!$Z$82 -> 904.86 | E105: ='WE2018'!$Z$82 -> 904.86
A106: Renewables | B106: Waste, biodegradable | C106: ='E1990'!$X$81+SUM('E1990'!$W$16:$W$25) -> 1009.25 | D106: ='E2018'!$X$82+SUM('E2018'!$W$13:$W$22) -> 740.34 | E106: ='WE2018'!$X$82+SUM('WE2018'!$W$13:$W$22) -> 740.34 | F106: ='WE2018'!$X$84 -> 0
B107: Biomass | C107: ='E1990'!$S$81+'E1990'!$T$81+'E1990'!$U$81+'E1990'!$V$81 -> 9679.89 | D107: ='E2018'!$S$82+'E2018'!$T$82+'E2018'!$U$82+'E2018'!$V$82 -> 7005.282376 | E107: ='WE2018'!$S$82+'WE2018'!$T$82+'WE2018'!$U$82+'WE2018'!$V$82 -> 7005.282376 | F107: ='WE2018'!$S$84+'WE2018'!$T$84+'WE2018'!$U$84+'WE2018'!$V$84 -> 31804
B108: Wind energy | C108: ='E1990'!$M$81 -> 663.22 | D108: ='E2018'!$M$82 -> 9127.65 | E108: ='WE2018'!$M$82 -> 9127.65 | F108: ='WE2018'!$M$84 -> 0
B109: Biogas | C109: ='E1990'!$R$81+'E1990'!$Y$81+SUM('E1990'!$W$30:$W$69) -> 203.5108 | D109: ='E2018'!$R$82+'E2018'!$Y$82+SUM('E2018'!$W$27:$W$56) -> 2399.0454 | E109: ='WE2018'!$R$82+'WE2018'!$Y$82+SUM('WE2018'!$W$27:$W$56) -> 2399.0454 | F109: ='WE2018'!$R$84+'WE2018'!$W$84+'WE2018'!$Y$84 -> 6418
B110: Solar energy | C110: ='E1990'!$O$81 -> 21.4 | D110: ='E2018'!$O$82 -> 505.9898 | E110: ='WE2018'!$O$82 -> 505.9898 | F110: ='WE2018'!$O$84 -> 0
B111: Earth heat, geothermal energy, hydropower etc. | C111: ='E1990'!$N$81+'E1990'!$P$81+'E1990'!$Q$81 -> 77 | D111: ='E2018'!$N$82+'E2018'!$P$82+'E2018'!$Q$82 -> 109.5435 | E111: ='WE2018'!$N$82+'WE2018'!$P$82+'WE2018'!$Q$82 -> 109.5435 | F111: ='WE2018'!$N$84+'WE2018'!$P$84+'WE2018'!$Q$84 -> 0
B112: Electricity import (RE-based) | C112: ='E1990'!$A$81*'E1990'!$A$87% -> 0 | D112: ='E2018'!$A$82*'E2018'!$A$88% -> -1044.817495 | E112: ='WE2018'!$A$82*'WE2018'!$A$88% -> -1044.817495
B113: Total | C113: =SUM(C98:C112) -> 139830.9467 | D113: 33986.70245 | E113: 33986.70245 | F113: 38222
B114: Total fossil | C114: =SUM(C98:C105) -> 128176.6759 | D114: =SUM(D98:D105) -> 15143.66887 | E114: =SUM(E98:E105) -> 15143.66887 | F114: -
B115: Total renewables | C115: =SUM(C106:C112) -> 11654.2708 | D115: =SUM(D106:D112) -> 18843.03358 | E115: =SUM(E106:E112) -> 18843.03358 | F115: -
B118: Gross energy consumption by fuel type
B146: Gross energy consumption by fuel type (simplified) | C146: TJ/year | D146: TJ/year | E146: TJ/year
C147: =C97 -> 1990 | D147: =D97 -> 2018 | E147: =E97 -> W2018
B148: Import of electricity | C148: =C98+C112 -> 21030.20046 | D148: =D98+D112 -> -2374.585216 | E148: =E98+E112 -> -2374.585216
B149: Coal | C149: =C99 -> 19738.12 | D149: =D99 -> 558.1 | E149: =E99 -> 558.1
B150: Oil and gas products | C150: =C100+C101+C102+C103+C104 -> 86324.61543 | D150: =D100+D101+D102+D103+D104 -> 15010.47659 | E150: =E100+E101+E102+E103+E104 -> 15010.47659
B151: Waste, not biodegradable | C151: =C105 -> 1083.74 | D151: =D105 -> 904.86 | E151: =E105 -> 904.86
B152: Waste, biodegradable | C152: =C106 -> 1009.25 | D152: =D106 -> 740.34 | E152: 740.34
B153: RE sources (Solar, wind, biogas, geothermal energy) | C153: =C108+C109+C110+C111 -> 965.1308 | D153: =D108+D109+D110+D111 -> 12142.2287 | E153: =E108+E109+E110+E111 -> 12142.2287
B154: Biomass | C154: =C107 -> 9679.89 | D154: =D107 -> 7005.282376 | E154: =E107 -> 7005.282376
B155: Total | C155: =SUM(C148:C154) -> 139830.9467 | D155: =SUM(D148:D154) -> 33986.70245 | E155: =SUM(E148:E154) -> 33986.70245
B157: Gross energy consumption by fuel type (simplified)
B185: Gross energy consumption by fuel per capita | C185: GJ/year per inhab. | D185: GJ/year per inhab. | E185: GJ/year per inhab.
C186: =C147 -> 1990 | D186: =D147 -> 2018 | E186: =E147 -> W2018
B187: Import of electricity | C187: =C148/'E1990'!$D$1*1000 -> 18.61789803 | D187: =E148/'E2018'!$D$1*1000 -> -11.67302552 | E187: =E148/'WE2018'!$D$1*1000 -> -11.67302552
B188: Coal | C188: =C149/'E1990'!$D$1*1000 -> 17.4740277 | D188: =E149/'E2018'!$D$1*1000 -> 2.743517267 | E188: =E149/'WE2018'!$D$1*1000 -> 2.743517267
B189: Oil and gas products | C189: =C150/'E1990'!$D$1*1000 -> 76.42261378 | D189: =E150/'E2018'!$D$1*1000 -> 73.7887506 | E189: =E150/'WE2018'!$D$1*1000 -> 73.7887506
B190: Waste, not biodegradable | C190: =C151/'E1990'!$D$1*1000 -> 0.959427888 | D190: =E151/'E2018'!$D$1*1000 -> 4.448125845 | E190: =E151/'WE2018'!$D$1*1000 -> 4.448125845
B191: Waste, biodegradable | C191: =C152/'E1990'!$D$1*1000 -> 0.8934823813 | D191: =E152/'E2018'!$D$1*1000 -> 3.639375691 | E191: =E152/'WE2018'!$D$1*1000 -> 3.639375691
B192: RE sources (Solar, wind, biogas, geothermal energy) | C192: =C153/'E1990'!$D$1*1000 -> 0.854423944 | D192: =E153/'E2018'!$D$1*1000 -> 59.68896989 | E192: =E153/'WE2018'!$D$1*1000 -> 59.68896989
B193: Biomass | C193: =C154/'E1990'!$D$1*1000 -> 8.569542896 | D193: =E154/'E2018'!$D$1*1000 -> 34.43668367 | E193: =E154/'WE2018'!$D$1*1000 -> 34.43668367
B194: Total | C194: =SUM(C187:C193) -> 123.7914166 | D194: =SUM(D187:D193) -> 167.0723974 | E194: =SUM(E187:E193) -> 167.0723974
B196: Gross energy consumption by fuel per capita
B223: Gross energy consumption by fuel base 1990
B253: Gross energy consumption compared renewable energy and fossil fuels, base 1990
B282: Gross energy consumption divided by renewable energy and fossil fuels
B311: Renewable energy by resource type
B340: Renewable energy by resource type, base 1990
B369: Gross energy consumption by main consumption type
B371: Gross energy consumption divided by main consuption type | C371: All energy | F371: Renewable | I371: Fossil
C372: TJ/year | F372: TJ/year | I372: TJ/year
C373: =C56 -> 1990 | D373: =D56 -> 2018 | E373: =E56 -> W2018 | F373: =C373 -> 1990 | G373: =D373 -> 2018 | H373: =E373 -> W2018 | I373: =C373 -> 1990 | J373: =D373 -> 2018 | K373: =E373 -> W2018
B374: Individual heating | C374: ='E1990'!$AA$11+'E1990'!$AA$14+'E1990'!$AA$15+'E1990'!$AA$16+'E1990'!$AA$17+'E1990'!$AA$18+'E1990'!$AA$19 -> 29681.92 | D374: ='E2018'!$AA$11+'E2018'!$AA$14+'E2018'!$AA$15+'E2018'!$AA$16+'E2018'!$AA$17+'E2018'!$AA$18+'E2018'!$AA$19 -> 4304.6 | E374: ='WE2018'!$AA$11+'WE2018'!$AA$14+'WE2018'!$AA$15+'WE2018'!$AA$16+'WE2018'!$AA$17+'WE2018'!$AA$18+'WE2018'!$AA$19 -> 4304.6 | F374: =SUM('E1990'!$O$11:$Y$19)+('E1990'!$I$13+'E1990'!$I$15)/('E1990'!$I$13+'E1990'!$I$15+'E1990'!$I$21+SUM('E1990'!$I$29:$I$60))*SUM('E1990'!$O$27:$Y$27) -> 5322.64 | G374: =SUM('E2018'!$O$11:$Y$19)+('E2018'!$I$13+'E2018'!$I$15)/('E2018'!$I$13+'E2018'!$I$15+'E2018'!$I$21+SUM('E2018'!$I$29:$I$61))*SUM('E2018'!$O$27:$Y$27) -> 3331.673841 | H374: =SUM('WE2018'!$O$11:$Y$19)+('WE2018'!$I$13+'WE2018'!$I$15)/('WE2018'!$I$13+'WE2018'!$I$15+'WE2018'!$I$21+SUM('WE2018'!$I$29:$I$61))*SUM('WE2018'!$O$27:$Y$27) -> 3331.673841 | I374: =C374-F374 -> 24359.28 | J374: 972.9261594 | K374: 972.9261594
B375: Collective electricity and heat supply | C375: =SUM('E1990'!$AA$28:$AA$51) -> 33342.08 | D375: =SUM('E2018'!$AA$28:$AA$51) -> 6792.9483 | E375: =SUM('WE2018'!$AA$28:$AA$51) -> 6792.9483 | F375: =SUM('E1990'!$O$28:$Y$51)+SUM('E1990'!$I$28:$I$60)/('E1990'!$I$13+'E1990'!$I$15+'E1990'!$I$21+SUM('E1990'!$I$28:$I$60))*SUM('E1990'!$O$27:$Y$27) -> 3552.33 | G375: =SUM('E2018'!$O$28:$Y$51)+SUM('E2018'!$I$28:$I$61)/('E2018'!$I$13+'E2018'!$I$15+'E2018'!$I$21+SUM('E2018'!$I$28:$I$61))*SUM('E2018'!$O$27:$Y$27) -> 5130.666945 | H375: =SUM('WE2018'!$O$28:$Y$51)+SUM('WE2018'!$I$28:$I$61)/('WE2018'!$I$13+'WE2018'!$I$15+'WE2018'!$I$21+SUM('WE2018'!$I$28:$I$61))*SUM('WE2018'!$O$27:$Y$27) -> 5130.666945 | I375: 29789.75 | J375: 1662.281355 | K375: 1662.281355
B376: Industry | C376: ='E1990'!$AA$13+'E1990'!$AA$20+'E1990'!$AA$21+'E1990'!$AA$22+SUM('E1990'!$AA$52:$AA$60) -> 15809.91 | D376: ='E2018'!$AA$13+'E2018'!$AA$20+'E2018'!$AA$21+'E2018'!$AA$22+SUM('E2018'!$AA$52:$AA$61) -> 6072.91 | E376: ='WE2018'!$AA$13+'WE2018'!$AA$20+'WE2018'!$AA$21+'WE2018'!$AA$22+SUM('WE2018'!$AA$52:$AA$61) -> 6072.91 | F376: =SUM('E1990'!$O$22:$Y$22)+SUM('E1990'!$P$52:$Y$60)+('E1990'!$I$21)/('E1990'!$I$13+'E1990'!$I$15+'E1990'!$I$21+SUM('E1990'!$I$28:$I$60))*SUM('E1990'!$O$27:$Y$27) -> 2059.05 | G376: =SUM('E2018'!$O$22:$Y$22)+SUM('E2018'!$P$52:$Y$61)+('E2018'!$I$21)/('E2018'!$I$13+'E2018'!$I$15+'E2018'!$I$21+SUM('E2018'!$I$28:$I$61))*SUM('E2018'!$O$27:$Y$27) -> 1563.545915 | H376: =SUM('WE2018'!$O$22:$Y$22)+SUM('WE2018'!$P$52:$Y$61)+('WE2018'!$I$21)/('WE2018'!$I$13+'WE2018'!$I$15+'WE2018'!$I$21+SUM('WE2018'!$I$28:$I$61))*SUM('WE2018'!$O$27:$Y$27) -> 1563.545915 | I376: 13750.86 | J376: 4509.364085 | K376: 4509.364085
B377: Transport | C377: =SUM('E1990'!$AA$61:$AA$80) -> 39246.58543 | D377: =SUM('E2018'!$AA$62:$AA$81) -> 9607.714866 | E377: =SUM('WE2018'!$AA$62:$AA$81) -> 9607.714866 | F377: =SUM('E1990'!$S$61:$S$80) -> 0 | G377: =SUM('E2018'!$S$62:$S$81) -> 378.2143758 | H377: =SUM('WE2018'!$S$62:$S$81) -> 378.2143758 | I377: 39246.58543 | J377: 9229.50049 | K377: 9229.50049
B378: Wind power etc. | C378: =SUM('E1990'!$AA$23:$AA$26) -> 740.22 | D378: =SUM('E2018'!$AA$23:$AA$26) -> 9483.75 | E378: =SUM('WE2018'!$AA$23:$AA$26) -> 9483.75 | F378: =SUM('E1990'!$AA$23:$AA$26) -> 740.22 | G378: =SUM('E2018'!$AA$23:$AA$26) -> 9483.75 | H378: =SUM('WE2018'!$AA$23:$AA$26) -> 9483.75 | I378: 0 | J378: 0 | K378: 0
B379: Electricity import | C379: ='E1990'!$AA$12 -> 21030.20046 | D379: ='E2018'!$AA$12 -> -2374.585216 | E379: ='WE2018'!$AA$12 -> -2374.585216 | F379: =C379*'E1990'!$A$87% -> 0 | G379: =E379*'E2018'!$A$88% -> -1044.817495 | H379: =E379*'WE2018'!$A$88% -> -1044.817495 | I379: 21030.20046 | J379: -1329.767721 | K379: -1329.767721
B380: Total | C380: =SUM(C374:C379) -> 139850.9159 | D380: 33887.33795 | E380: 33887.33795 | F380: 11674.24 | G380: 18843.03358 | H380: 18843.03358 | I380: 128176.6759 | J380: 15044.30437 | K380: 15044.30437
B383: Fuel consumption main consumption type
B412: Fuel consumption by main consumption types, base 1990
B441: Gross energy consumption by main consumption types, for renewable energy and fossil fuels
B471: Use of renewable energy by main consuption types
B473: Use of renewable energy divided by revenue units | D473: TJ/year | E473: TJ/year | F473: TJ/year | G473: Share | H473: Share
D474: Renewables | E474: Fossil | F474: Total | G474: Renewables | H474: Fossil
B475: Individual heating | C475: =F373 -> 1990 | D475: =TRANSPOSE(F374:H374) -> 5322.64 | E475: =TRANSPOSE('Graphs-energy'!I374:K374) -> 24359.28 | F475: =SUM(D475:E475) -> 29681.92 | G475: =D475/$F475 -> 0.1793226314 | H475: =E475/$F475 -> 0.8206773686
C476: =G373 -> 2018 | D476: 3331.673841 | E476: 972.9261594 | F476: =SUM(D476:E476) -> 4304.6 | G476: =D476/$F476 -> 0.7739798914 | H476: =E476/$F476 -> 0.2260201086
C477: =H373 -> W2018 | D477: 3331.673841 | E477: 972.9261594 | F477: 4304.6 | G477: =D477/$F477 -> 0.7739798914 | H477: 0.2260201086
B478: Collective electricity and heat supply | C478: =C475 -> 1990 | D478: =TRANSPOSE('Graphs-energy'!F375:H375) -> 3552.33 | E478: =TRANSPOSE('Graphs-energy'!I375:K375) -> 29789.75 | F478: 33342.08 | G478: 0.1065419434 | H478: 0.8934580566
C479: 2018 | D479: 5130.666945 | E479: 1662.281355 | F479: 6792.9483 | G479: 0.7552930949 | H479: 0.2447069051
C480: W2018 | D480: 5130.666945 | E480: 1662.281355 | F480: 6792.9483 | G480: 0.7552930949 | H480: 0.2447069051
B481: Industry | C481: 1990 | D481: =TRANSPOSE('Graphs-energy'!F376:H376) -> 2059.05 | E481: =TRANSPOSE('Graphs-energy'!I376:K376) -> 13750.86 | F481: 15809.91 | G481: 0.130237933 | H481: 0.869762067
C482: 2018 | D482: 1563.545915 | E482: 4509.364085 | F482: 6072.91 | G482: 0.2574623886 | H482: 0.7425376114
C483: W2018 | D483: 1563.545915 | E483: 4509.364085 | F483: 6072.91 | G483: 0.2574623886 | H483: 0.7425376114
B484: Transport | C484: 1990 | D484: =TRANSPOSE('Graphs-energy'!F377:H377) -> 0 | E484: =TRANSPOSE('Graphs-energy'!I377:K377) -> 39246.58543 | F484: 39246.58543 | G484: 0 | H484: 1
C485: 2018 | D485: 378.2143758 | E485: 9229.50049 | F485: 9607.714866 | G485: 0.03936569529 | H485: 0.9606343047
C486: W2018 | D486: 378.2143758 | E486: 9229.50049 | F486: 9607.714866 | G486: 0.03936569529 | H486: 0.9606343047
B487: Wind power etc. | C487: 1990 | D487: =TRANSPOSE('Graphs-energy'!F378:H378) -> 740.22 | E487: =TRANSPOSE(('Graphs-energy'!I378:K378)) -> 0 | F487: 740.22 | G487: 1 | H487: 0
C488: 2018 | D488: 9483.75 | E488: 0 | F488: 9483.75 | G488: 1 | H488: 0
C489: W2018 | D489: 9483.75 | E489: 0 | F489: 9483.75 | G489: 1 | H489: 0
B490: Electricity import | C490: 1990 | D490: =TRANSPOSE('Graphs-energy'!F379:H379) -> 0 | E490: =TRANSPOSE('Graphs-energy'!I379:K379) -> 21030.20046 | F490: 21030.20046 | G490: 0 | H490: 1
C491: =C488 -> 2018 | D491: -1044.817495 | E491: -1329.767721 | F491: -2374.585216 | G491: 0.44 | H491: 0.56
C492: W2018 | D492: -1044.817495 | E492: -1329.767721 | F492: -2374.585216 | G492: 0.44 | H492: 0.56
B495: Use of renewable energy by main consumption types, base 1990
B523: Renewables shares by main consumption type
B552: Gross energy consumption of collective electricity and heat supply divided into renewable energy and fossil energy
D554: TJ/year | E554: TJ/year | F554: Share | G554: Share
B555: Gross energy consumption of collective electricity and heat supply divided into renewable energy and fossil energy | D555: Renewables | E555: Fossil | F555: Renewables | G555: Fossil
B556: Collective electricity and heat supply | C556: =$F$373 -> 1990 | D556: =$F$375 -> 3552.33 | E556: =$I$375 -> 29789.75 | F556: =D556/($D556+$E556) -> 0.1065419434 | G556: 0.8934580566
C557: =$G$373 -> 2018 | D557: =$G$375 -> 5130.666945 | E557: =$J$375 -> 1662.281355 | F557: =D557/($D557+$E557) -> 0.7552930949 | G557: =E557/($D557+$E557) -> 0.2447069051
C558: =$H$373 -> W2018 | D558: =$H$375 -> 5130.666945 | E558: =$K$375 -> 1662.281355 | F558: 0.7552930949 | G558: 0.2447069051
B587: Transport
B589: Gross energy consumption for transport
B591: Gross energy consumption for transport | C591: TJ/year | D591: TJ/year | E591: TJ/year
C592: =C56 -> 1990 | D592: =D56 -> 2018 | E592: =E56 -> W2018
B593: Cars and vans, petrol (incl. mild hybrid) | C593: ='E1990'!$AA$61 -> 16539.60865 | D593: ='E2018'!$AA$62 -> 1981.147318 | E593: ='WE2018'!$AA$62 -> 1981.147318
B594: Cars and vans, diesel, gas | C594: ='E1990'!$AA$62+'E1990'!$AA$63 -> 4359.879353 | D594: ='E2018'!$AA$63+'E2018'!$AA$64 -> 2735.900355 | E594: ='WE2018'!$AA$63+'WE2018'!$AA$64 -> 2735.900355
B595: Cars and vans, electric, plug-in hybrid, hydrogen | C595: ='E1990'!$AH$64+'E1990'!$AH$65+'E1990'!$AA$65+'E1990'!$AA$66 -> 0 | D595: ='E2018'!$AH$65+'E2018'!$AH$66+'E2018'!$AA$66+'E2018'!$AA$67 -> 24.1081714 | E595: ='WE2018'!$AH$65+'WE2018'!$AH$66+'WE2018'!$AA$66+'WE2018'!$AA$67 -> 24.1081714
B596: Buses, diesel, gas | C596: ='E1990'!$AA$67+'E1990'!$AA$68 -> 575.247519 | D596: ='E2018'!$AA$68+'E2018'!$AA$69 -> 284.1762282 | E596: ='WE2018'!$AA$68+'WE2018'!$AA$69 -> 284.1762282
B597: Buses, electricity, hydrogen | C597: ='E1990'!$AA$69+'E1990'!$AH$70 -> 0 | D597: ='E2018'!$AA$70+'E2018'!$AH$71 -> 0 | E597: ='WE2018'!$AA$70+'WE2018'!$AH$71 -> 0
B598: Trucks, etc., diesel, gas | C598: ='E1990'!$AA$71+'E1990'!$AA$72 -> 5502.869906 | D598: ='E2018'!$AA$72+'E2018'!$AA$73 -> 1606.199679 | E598: ='WE2018'!$AA$72+'WE2018'!$AA$73 -> 1606.199679
B599: Trucks etc., electricity, hydrogen | C599: ='E1990'!$AA$73+'E1990'!$AH$74 -> 0 | D599: ='E2018'!$AA$74+'E2018'!$AH$75 -> 0 | E599: ='WE2018'!$AA$74+'WE2018'!$AH$75 -> 0
B600: Tractors | C600: =+'E1990'!$AA$75 -> 3616.95 | D600: =+'E2018'!$AA$76 -> 1089.787052 | E600: =+'WE2018'!$AA$76 -> 1089.787052
B601: Took | C601: =+'E1990'!$AA$76+'E1990'!$AA$77+'E1990'!$AA$78 -> 882.03 | D601: =+'E2018'!$AA$77+'E2018'!$AA$78+'E2018'!$AA$79 -> 106.5 | E601: =+'WE2018'!$AA$77+'WE2018'!$AA$78+'WE2018'!$AA$79 -> 106.5
B602: Airplane | C602: =+'E1990'!$AA$79 -> 6374.98 | D602: =+'E2018'!$AA$80 -> 1575.7 | E602: =+'WE2018'!$AA$80 -> 1575.7
B603: Ships | C603: =+'E1990'!$AA$80 -> 1395.02 | D603: =+'E2018'!$AA$81 -> 224.7 | E603: =+'WE2018'!$AA$81 -> 224.7
B604: Total | C604: =SUM(C593:C603) -> 39246.58543 | D604: =SUM(D593:D603) -> 9628.218804 | E604: =SUM(E593:E603) -> 9628.218804
B607: Gross Energy consumption for transport by mode of transport
B637: Gross energy consumption for transport by mode of transport, base 1990
B667: Gross energy consumption for transport 2018
B697: CO2 emission
B707: CO2 emissions divided by fuel (source) | C707: 1.000 tons CO2 | D707: 1.000 tons CO2 | E707: 1.000 tons CO2
C708: =C56 -> 1990 | D708: =D56 -> 2018 | E708: =E56 -> W2018
B709: Import of electricity | C709: ='E1990'!$A$82 -> 5005.187709 | D709: ='E2018'!$A$83 -> -294.733517 | E709: ='WE2018'!$A$83 -> -294.733517
A710: FOSSIL | B710: Coal | C710: ='E1990'!$C$82 -> 1859.330904 | D710: ='E2018'!$C$83 -> 52.57302 | E710: ='WE2018'!$C$83 -> 52.57302
B711: Natural gas and LPG | C711: ='E1990'!$I$82+'E1990'!$B$82 -> 723.163827 | D711: ='E2018'!$I$83+'E2018'!$B$83 -> 286.6009549 | E711: ='WE2018'!$I$83+'WE2018'!$B$83 -> 286.6009549
B712: Fuel oil | C712: ='E1990'!$D$82 -> 516.5250643 | D712: ='E2018'!$D$83 -> 0 | E712: ='WE2018'!$D$83 -> 0
B713: Fuel oil/diesel | C713: ='E1990'!$E$82+'E1990'!$F$82 -> 3293.767732 | D713: ='E2018'!$E$83+'E2018'!$F$83 -> 481.3358475 | E713: ='WE2018'!$E$83+'WE2018'!$F$83 -> 481.3358475
B714: JP1 | C714: ='E1990'!$G$82 -> 456.54768 | D714: ='E2018'!$G$83 -> 113.3208 | E714: ='WE2018'!$G$83 -> 113.3208
B715: Petrol | C715: ='E1990'!$H$82 -> 1209.876351 | D715: ='E2018'!$H$83 -> 140.5172986 | E715: ='WE2018'!$H$83 -> 140.5172986
B716: Waste, not biodegradable | C716: ='E1990'!$Z$82 -> 89.1051028 | D716: ='E2018'!$Z$83 -> 85.4549784 | E716: ='WE2018'!$Z$83 -> 85.4549784
A717: Renewables | B717: Waste, biodegradable | C717: ='E1990'!$X$82 -> 0 | D717: ='E2018'!$X$83 -> 0 | E717: ='WE2018'!$X$83 -> 0
B718: Biomass | C718: ='E1990'!$S$82+'E1990'!$T$82+'E1990'!$U$82+'E1990'!$V$82 -> 0 | D718: ='E2018'!$S$83+'E2018'!$T$83+'E2018'!$U$83+'E2018'!$V$83 -> 0 | E718: ='WE2018'!$S$83+'WE2018'!$T$83+'WE2018'!$U$83+'WE2018'!$V$83 -> 0
B719: Wind energy | C719: ='E1990'!$M$82 -> 0 | D719: ='E2018'!$M$83 -> 0 | E719: ='WE2018'!$M$83 -> 0
B720: Biogas | C720: ='E1990'!$R$82+'E1990'!$W$82+'E1990'!$Y$82 -> 0 | D720: ='E2018'!$R$83+'E2018'!$W$83+'E2018'!$Y$83 -> 0 | E720: ='WE2018'!$R$83+'WE2018'!$W$83+'WE2018'!$Y$83 -> 0
B721: Solar energy | C721: ='E1990'!$O$82 -> 0 | D721: ='E2018'!$O$83 -> 0 | E721: ='WE2018'!$O$83 -> 0
B722: Other renewables | C722: ='E1990'!$N$82+'E1990'!$P$82+'E1990'!$Q$82+'E1990'!$J$82+'E1990'!$K$82+'E1990'!$L$82 -> 0 | D722: ='E2018'!$N$83+'E2018'!$P$83+'E2018'!$Q$83+'E2018'!$J$83+'E2018'!$K$83+'E2018'!$L$83 -> 0 | E722: ='WE2018'!$N$83+'WE2018'!$P$83+'WE2018'!$Q$83+'WE2018'!$J$83+'WE2018'!$K$83+'WE2018'!$L$83 -> 0
B723: Export of renewable fuels | C723: =IF('E1990'!$I$81<0,'E1990'!$I$81*'E1990'!$I$89,0)/1000 -> 0 | D723: =IF('E2018'!$I$82<0,'E2018'!$I$82*'E2018'!$I$90,0)/1000 -> 0 | E723: =IF('WE2018'!$I$82<0,'WE2018'!$I$82*'WE2018'!$I$90,0)/1000 -> 0
B724: Total | C724: =SUM(C709:C722) -> 13153.50437 | D724: =SUM(D709:D722) -> 865.0693823 | E724: =SUM(E709:E722) -> 865.0693823
B727: CO2 emissions divided by fuels - simplified | C727: 1.000 tons CO2 | D727: 1.000 tons CO2 | E727: 1.000 tons CO2
C728: =C708 -> 1990 | D728: =D708 -> 2018 | E728: W2018
B729: Import of electricity | C729: 5005.187709 | D729: =D709 -> -294.733517 | E729: -294.733517
B730: Coal | C730: 1859.330904 | D730: =D710 -> 52.57302 | E730: 52.57302
B731: Oil and gas products | C731: =C711+C712+C713+C714+C715 -> 6199.880655 | D731: =D711+D712+D713+D714+D715 -> 1021.774901 | E731: =E711+E712+E713+E714+E715 -> 1021.774901
B732: Waste, not biodegradable | C732: =C716 -> 89.1051028 | D732: =D716 -> 85.4549784 | E732: 85.4549784
B733: Waste, biodegradable | C733: 0 | D733: =D717 -> 0 | E733: 0
B734: Biomass | C734: 0 | D734: =D718 -> 0 | E734: 0
B735: RE sources (Solar, wind, biogas, geothermal energy) | C735: =C719+C720+C721+C722 -> 0 | D735: =D719+D720+D721+D722 -> 0 | E735: =E719+E720+E721+E722 -> 0
B736: Export of renewable fuels | C736: =IF('E1990'!$I$81<0,'E1990'!$I$81*'E1990'!$I$89,0)/1000 -> 0 | D736: =IF('E2018'!$I$82<0,'E2018'!$I$82*'E2018'!$I$90,0)/1000 -> 0 | E736: =IF('WE2018'!$I$82<0,'WE2018'!$I$82*'WE2018'!$I$90,0)/1000 -> 0
B737: Total | C737: =SUM(C729:C735) -> 13153.50437 | D737: =SUM(D729:D735) -> 865.0693823 | E737: 865.0693823
B739: CO2 emissions by fuel
B768: CO2 emissions by fuel - Simplified
B796: CO2 emission by fuels per capita - Simplified
B798: CO2 emissions divided by fuel | C798: tons CO2 | D798: tons CO2 | E798: tons CO2
C799: =C728 -> 1990 | D799: =D728 -> 2018 | E799: W2018
B800: Import of electricity | C800: =C729/'E1990'!$D$1*1000 -> 4.43105973 | D800: =E729/'E2018'!$D$1*1000 -> -1.448855927 | E800: =E729/'WE2018'!$D$1*1000 -> -1.448855927
B801: Coal | C801: =C730/'E1990'!$D$1*1000 -> 1.64605341 | D801: =E730/'E2018'!$D$1*1000 -> 0.2584393265 | E801: =E730/'WE2018'!$D$1*1000 -> 0.2584393265
B802: Oil and gas products | C802: =C731/'E1990'!$D$1*1000 -> 5.488713531 | D802: =E731/'E2018'!$D$1*1000 -> 5.02285806 | E802: =E731/'WE2018'!$D$1*1000 -> 5.02285806
B803: Waste, not biodegradable | C803: =C732/'E1990'!$D$1*1000 -> 0.07888416095 | D803: =E732/'E2018'!$D$1*1000 -> 0.4200810048 | E803: =E732/'WE2018'!$D$1*1000 -> 0.4200810048
B804: Waste, biodegradable | C804: =C733/'E1990'!$D$1*1000 -> 0 | D804: =E733/'E2018'!$D$1*1000 -> 0 | E804: =E733/'WE2018'!$D$1*1000 -> 0
B805: Biomass | C805: =C734/'E1990'!$D$1*1000 -> 0 | D805: =E734/'E2018'!$D$1*1000 -> 0 | E805: =E734/'WE2018'!$D$1*1000 -> 0
B806: RE sources (Solar, wind, biogas, geothermal energy) | C806: =C735/'E1990'!$D$1*1000 -> 0 | D806: =E735/'E2018'!$D$1*1000 -> 0 | E806: =E735/'WE2018'!$D$1*1000 -> 0
B807: Total | C807: =SUM(C800:C806) -> 11.64471083 | D807: =SUM(D800:D806) -> 4.252522465 | E807: =SUM(E800:E806) -> 4.252522465
B835: CO2 emissions by fuels, base 1990
B865: CO2 emissions divided by turnover units | C865: 1.000 tons CO2 | D865: 1.000 tons CO2 | E865: 1.000 tons CO2
C866: =C56 -> 1990 | D866: =D56 -> 2018 | E866: =E56 -> W2018
B867: Individual heating | C867: =('E1990'!$AA$14*'E1990'!$E$89+'E1990'!$I$15*'E1990'!$I$89)/1000 -> 1787.424296 | D867: =('E2018'!$AA$14*'E2018'!$E$90+'E2018'!$I$15*'E2018'!$I$90)/1000 -> 69.35988 | E867: =('WE2018'!$AA$14*'WE2018'!$E$90+'WE2018'!$I$15*'WE2018'!$I$90)/1000 -> 69.35988
B868: Collective electricity and heat supply | C868: =(SUM('E1990'!$B$29:$B$51)*'E1990'!$B$89+SUM('E1990'!$C$29:$C$51)*'E1990'!$C$89+SUM('E1990'!$D$29:$D$51)*'E1990'!$D$89+SUM('E1990'!$E$29:$E$51)*'E1990'!$E$89+SUM('E1990'!$F$29:$F$51)*'E1990'!$F$89+SUM('E1990'!$G$29:$G$51)*'E1990'!$G$89+SUM('E1990'!$H$29:$H$51)*'E1990'!$H$89+SUM('E1990'!$I$29:$I$51)*'E1990'!$I$89+SUM('E1990'!$Z$29:$Z$51)*'E1990'!$Z$89)/1000 -> 2540.033255 | D868: =(SUM('E2018'!$B$29:$B$51)*'E2018'!$B$90+SUM('E2018'!$C$29:$C$51)*'E2018'!$C$90+SUM('E2018'!$D$29:$D$51)*'E2018'!$D$90+SUM('E2018'!$E$29:$E$51)*'E2018'!$E$90+SUM('E2018'!$F$29:$F$51)*'E2018'!$F$90+SUM('E2018'!$G$29:$G$51)*'E2018'!$G$90+SUM('E2018'!$H$29:$H$51)*'E2018'!$H$90+SUM('E2018'!$I$29:$I$51)*'E2018'!$I$90+SUM('E2018'!$Z$29:$Z$51)*'E2018'!$Z$90)/1000 -> 149.9680116 | E868: =(SUM('WE2018'!$B$29:$B$51)*'WE2018'!$B$90+SUM('WE2018'!$C$29:$C$51)*'WE2018'!$C$90+SUM('WE2018'!$D$29:$D$51)*'WE2018'!$D$90+SUM('WE2018'!$E$29:$E$51)*'WE2018'!$E$90+SUM('WE2018'!$F$29:$F$51)*'WE2018'!$F$90+SUM('WE2018'!$G$29:$G$51)*'WE2018'!$G$90+SUM('WE2018'!$H$29:$H$51)*'WE2018'!$H$90+SUM('WE2018'!$I$29:$I$51)*'WE2018'!$I$90+SUM('WE2018'!$Z$29:$Z$51)*'WE2018'!$Z$90)/1000 -> 149.9680116
B869: Industry | C869: =( SUM('E1990'!$B$52:$B$60,'E1990'!$B$21:$B$22,'E1990'!$B$20,'E1990'!$B$13)*'E1990'!$B$89+ SUM('E1990'!$C$52:$C$60,'E1990'!$C$21:$C$22,'E1990'!$C$20,'E1990'!$C$13)*'E1990'!$C$89+ SUM('E1990'!$D$52:$D$60,'E1990'!$D$21:$D$22,'E1990'!$D$20,'E1990'!$D$13)*'E1990'!$D$89+ SUM('E1990'!$E$52:$E$60,'E1990'!$E$21:$E$22,'E1990'!$E$20,'E1990'!$E$13)*'E1990'!$E$89+ SUM('E1990'!$F$52:$F$60,'E1990'!$F$21:$F$22,'E1990'!$F$20,'E1990'!$F$13)*'E1990'!$F$89+ SUM('E1990'!$G$52:$G$60,'E1990'!$G$21:$G$22,'E1990'!$G$20,'E1990'!$G$13)*'E1990'!$G$89+ SUM('E1990'!$H$52:$H$60,'E1990'!$H$21:$H$22,'E1990'!$H$20,'E1990'!$H$13)*'E1990'!$H$89+ SUM('E1990'!$I$13+'E1990'!$I$21+'E1990'!$I$22+SUM('E1990'!$I$52:$I$60))*'E1990'!$I$89+ SUM('E1990'!$Z$52:$Z$60,'E1990'!$Z$21:$Z$22,'E1990'!$Z$20,'E1990'!$Z$13)*'E1990'!$Z$89 )/1000 -> 940.3738788 | D869: =(SUM('E2018'!$B$52:$B$61,'E2018'!$B$21:$B$22,'E2018'!$B$20,'E2018'!$B$13)*'E2018'!$B$90+ SUM('E2018'!$C$52:$C$61,'E2018'!$C$21:$C$22,'E2018'!$C$20,'E2018'!$C$13)*'E2018'!$C$90+ SUM('E2018'!$D$52:$D$61,'E2018'!$D$21:$D$22,'E2018'!$D$20,'E2018'!$D$13)*'E2018'!$D$90+ SUM('E2018'!$E$52:$E$61,'E2018'!$E$21:$E$22,'E2018'!$E$20,'E2018'!$E$13)*'E2018'!$E$90+ SUM('E2018'!$F$52:$F$61,'E2018'!$F$21:$F$22,'E2018'!$F$20,'E2018'!$F$13)*'E2018'!$F$90+ SUM('E2018'!$G$52:$G$61,'E2018'!$G$21:$G$22,'E2018'!$G$20,'E2018'!$G$13)*'E2018'!$G$90+ SUM('E2018'!$H$52:$H$61,'E2018'!$H$21:$H$22,'E2018'!$H$20,'E2018'!$H$13)*'E2018'!$H$90+ SUM('E2018'!$I$13+'E2018'!$I$21+'E2018'!$I$22+SUM('E2018'!$I$52:$I$61))*'E2018'!$I$90+ SUM('E2018'!$Z$52:$Z$61,'E2018'!$Z$21:$Z$22,'E2018'!$Z$20,'E2018'!$Z$13)*'E2018'!$Z$90 )/1000 -> 306.328371 | E869: =( SUM('WE2018'!$B$52:$B$61,'WE2018'!$B$21:$B$22,'WE2018'!$B$20,'WE2018'!$B$13)*'WE2018'!$B$90+ SUM('WE2018'!$C$52:$C$61,'WE2018'!$C$21:$C$22,'WE2018'!$C$20,'WE2018'!$C$13)*'WE2018'!$C$90+ SUM('WE2018'!$D$52:$D$61,'WE2018'!$D$21:$D$22,'WE2018'!$D$20,'WE2018'!$D$13)*'WE2018'!$D$90+ SUM('WE2018'!$E$52:$E$61,'WE2018'!$E$21:$E$22,'WE2018'!$E$20,'WE2018'!$E$13)*'WE2018'!$E$90+ SUM('WE2018'!$F$52:$F$61,'WE2018'!$F$21:$F$22,'WE2018'!$F$20,'WE2018'!$F$13)*'WE2018'!$F$90+ SUM('WE2018'!$G$52:$G$61,'WE2018'!$G$21:$G$22,'WE2018'!$G$20,'WE2018'!$G$13)*'WE2018'!$G$90+ SUM('WE2018'!$H$52:$H$61,'WE2018'!$H$21:$H$22,'WE2018'!$H$20,'WE2018'!$H$13)*'WE2018'!$H$90+ SUM('WE2018'!$I$13+'WE2018'!$I$21+'WE2018'!$I$22+SUM('WE2018'!$I$52:$I$61))*'WE2018'!$I$90+ SUM('WE2018'!$Z$52:$Z$61,'WE2018'!$Z$21:$Z$22,'WE2018'!$Z$20,'WE2018'!$Z$13)*'WE2018'!$Z$90 )/1000 -> 
B870: Transport | C870: =(SUM('E1990'!$D$61:$D$80)*'E1990'!$D$89+ SUM('E1990'!$F$61:$F$80)*'E1990'!$F$89+ SUM('E1990'!$G$61:$G$80)*'E1990'!$G$89+ SUM('E1990'!$H$61:$H$80)*'E1990'!$H$89+ SUM('E1990'!$I$61:$I$78)*'E1990'!$I$89 )/1000 -> 2880.485232 | D870: =(SUM('E2018'!$D$62:$D$81)*'E2018'!$D$90+ SUM('E2018'!$F$62:$F$81)*'E2018'!$F$90+ SUM('E2018'!$G$62:$G$81)*'E2018'!$G$90+ SUM('E2018'!$H$62:$H$81)*'E2018'!$H$90+ SUM('E2018'!$I$62:$I$79)*'E2018'!$I$90 )/1000 -> 685.7088367 | E870: =(SUM('WE2018'!$D$62:$D$81)*'WE2018'!$D$90+ SUM('WE2018'!$F$62:$F$81)*'WE2018'!$F$90+ SUM('WE2018'!$G$62:$G$81)*'WE2018'!$G$90+ SUM('WE2018'!$H$62:$H$81)*'WE2018'!$H$90+ SUM('WE2018'!$I$62:$I$79)*'WE2018'!$I$90 )/1000 -> 685.7088367
B871: Export of renewable fuels | C871: ='E1990'!$I$27*'E1990'!$I$89/1000 -> 0 | D871: ='E2018'!$I$27*'E2018'!$I$90/1000 -> -51.5622 | E871: ='WE2018'!$I$27*'WE2018'!$I$90/1000 -> -51.5622
B872: Electricity import | C872: ='E1990'!$A$82 -> 5005.187709 | D872: ='E2018'!$A$83 -> -294.733517 | E872: ='WE2018'!$A$83 -> -294.733517
B873: Total | C873: =SUM(C867:C872) -> 13153.50437 | D873: =SUM(D867:D872) -> 865.0693823 | E873: =SUM(E867:E872) -> 
B876: CO2 emissions divided by turnover units
B906: CO2 emissions divided by revenue units for the base year
B936: Net energy consumption
B945: Net energy consumption divided by category
B947: Net energy consumption | C947: TJ/år
C948: =D56 -> 2018 | D948: =E56 -> W2018 | E948: =D56 -> 2018 | F948: =E56 -> W2018 | G948: =D56 -> 2018 | H948: =E56 -> W2018 | I948: =D56 -> 2018 | J948: =E56 -> W2018 | K948: =D56 -> 2018 | L948: =E56 -> W2018 | M948: =D56 -> 2018 | N948: =E56 -> W2018 | O948: =D56 -> 2018 | P948: =E56 -> W2018 | Q948: =D56 -> 2018 | R948: =E56 -> W2018 | S948: =D56 -> 2018 | T948: =E56 -> W2018
C949: Residences and vacation houses (cottages, weekend residence) | D949: Residences and vacation houses (cottages, weekend residence) | E949: Public service | F949: Public service | G949: Private service | H949: Private service | I949: Retail and wholesale trade | J949: Retail and wholesale trade | K949: Building and construction business | L949: Building and construction business | M949: Manufacturing business | N949: Manufacturing business | O949: Gardening | P949: Gardening | Q949: Agriculture | R949: Agriculture | S949: Transport | T949: Transport
B950: Electricity | C950: =SUM('E2018'!$AL$8:$AL$10)+'E2018'!$AH$11 -> 1381.236534 | D950: =SUM('WE2018'!$AL$8:$AL$10)+'WE2018'!$AH$11 -> 1381.236534 | E950: =SUM('E2018'!$AM$8:$AM$10) -> 590.1220649 | F950: =SUM('WE2018'!$AM$8:$AM$10) -> 590.1220649 | G950: =SUM('E2018'!$AN$8:$AN$10) -> 345.5490475 | H950: =SUM('WE2018'!$AN$8:$AN$10) -> 345.5490475 | I950: =SUM('E2018'!$AO$8:$AO$10) -> 543.4024936 | J950: =SUM('WE2018'!$AO$8:$AO$10) -> 543.4024936 | K950: =SUM('E2018'!$AP$8:$AP$10) -> 55.82410475 | L950: =SUM('WE2018'!$AP$8:$AP$10) -> 55.82410475 | M950: =SUM('E2018'!$AQ$8:$AQ$10)+'E2018'!$AH$55 -> 2677.687326 | N950: =SUM('WE2018'!$AQ$8:$AQ$10)+'WE2018'!$AH$55 -> 2677.687326 | O950: =SUM('E2018'!$AR$8:$AR$10) -> 115.4359959 | P950: =SUM('WE2018'!$AR$8:$AR$10) -> 115.4359959 | Q950: =SUM('E2018'!$AS$8:$AS$10) -> 814.2215263 | R950: =SUM('WE2018'!$AS$8:$AS$10) -> 814.2215263 | S950: ='E2018'!$AH$79*'E2018'!$AD$79/100+'E2018'!AT8 -> 9.4 | T950: ='WE2018'!$AH$79*'WE2018'!$AD$79/100+'WE2018'!AT8 -> 9.4
B951: Coal | M951: ='E2018'!$C$22*'E2018'!$AD$22/100 -> 502.29 | N951: ='WE2018'!$C$22*'WE2018'!$AD$22/100 -> 502.29
B952: Natural gas and LPG | C952: ='E2018'!$AL$13+'E2018'!$AL$15 -> 422.4914 | D952: ='WE2018'!$AL$13+'WE2018'!$AL$15 -> 422.4914 | E952: ='E2018'!$AM$13 -> 0 | F952: ='WE2018'!$AM$13 -> 0 | G952: ='E2018'!$AN$13 -> 0 | H952: ='WE2018'!$AN$13 -> 0 | I952: ='E2018'!$AO$13 -> 0 | J952: ='WE2018'!$AO$13 -> 0 | K952: ='E2018'!$AP$13 -> 0 | L952: ='WE2018'!$AP$13 -> 0 | M952: ='E2018'!$AQ$13+'E2018'!$I$21*'E2018'!$AD$21/100+'E2018'!$I$22*'E2018'!$AD$22/100 -> 2667.7992 | N952: ='WE2018'!$AQ$13+'WE2018'!$I$21*'WE2018'!$AD$21/100+'WE2018'!$I$22*'WE2018'!$AD$22/100 ->  | O952: ='E2018'!$AR$13 -> 0 | P952: ='WE2018'!$AR$13 -> 0 | Q952: ='E2018'!$AS$13 -> 0 | R952: ='WE2018'!$AS$13 -> 0 | S952: ='E2018'!$AT$13 -> 6.7564 | T952: ='WE2018'!$AT$13 -> 6.7564
B953: Fuel oil | M953: ='E2018'!$D$22*'E2018'!$AD$22/100 -> 0 | N953: ='WE2018'!$D$22*'WE2018'!$AD$22/100 ->  | S953: ='E2018'!$D$81*'E2018'!$AD$81/100 -> 0 | T953: ='WE2018'!$D$81*'WE2018'!$AD$81/100 -> 
B954: Fuel oil/diesel | C954: ='E2018'!$AL$14 -> 447.84 | D954: ='WE2018'!$AL$14 -> 447.84 | M954: =SUM('E2018'!$E$20:$F$20)*'E2018'!$AD$20/100+SUM('E2018'!$E$22:$F$22)*'E2018'!$AD$22/100 -> 94.32 | N954: =SUM('WE2018'!$E$20:$F$20)*'WE2018'!$AD$20/100+SUM('WE2018'!$E$22:$F$22)*'WE2018'!$AD$22/100 -> 94.32 | Q954: ='E2018'!$AS$76 -> 397.7722738 | R954: ='WE2018'!$AS$76 -> 397.7722738 | S954: ='E2018'!$F$63*'E2018'!$AD$63%+'E2018'!$F$66*'E2018'!$AD$66%+'E2018'!$F$68*'E2018'!$AD$68%+ 'E2018'!$F$72*'E2018'!$AD$72%+'E2018'!$F$77*'E2018'!$AD$77%+'E2018'!$F$78*'E2018'!$AD$78%+'E2018'!$F$81*'E2018'!$AD$81% -> 1325.206875 | T954: ='WE2018'!$F$63*'WE2018'!$AD$63%+'WE2018'!$F$66*'WE2018'!$AD$66%+'WE2018'!$F$68*'WE2018'!$AD$68%+ 'WE2018'!$F$72*'WE2018'!$AD$72%+'WE2018'!$F$77*'WE2018'!$AD$77%+'WE2018'!$F$78*'WE2018'!$AD$78%+'WE2018'!$F$81*'WE2018'!$AD$81% -> 
B955: Petrol | M955: ='E2018'!$H$22*'E2018'!$AD$22/100 -> 0 | N955: ='WE2018'!$H$22*'WE2018'!$AD$22/100 ->  | S955: ='E2018'!$H$62*'E2018'!$AD$62%+'E2018'!$H$66*'E2018'!$AD$66%+'E2018'!$H$80*'E2018'!$AD$80% -> 365.6309552 | T955: ='WE2018'!$H$62*'WE2018'!$AD$62%+'WE2018'!$H$66*'WE2018'!$AD$66%+'WE2018'!$H$80*'WE2018'!$AD$80% -> 365.6309552
B956: JP1 | S956: ='E2018'!$G$80*'E2018'!$AD$80/100 -> 212.4765 | T956: ='WE2018'!$G$80*'WE2018'!$AD$80/100 -> 212.4765
B957: Waste, not biodegradable | M957: ='E2018'!$Z$22*'E2018'!$AD$22/100 -> 0 | N957: ='WE2018'!$Z$22*'WE2018'!$AD$22/100 -> 
B958: Biofuel | Q958: ='E2018'!$S$76*'E2018'!$AD$76/100 ->  | R958: ='WE2018'!$S$76*'WE2018'!$AD$76/100 ->  | S958: ='E2018'!$S$62*'E2018'!$AD$62%+'E2018'!$S$63*'E2018'!$AD$63%+'E2018'!$S$66*'E2018'!$AD$66%+'E2018'!$S$68*'E2018'!$AD$68% +'E2018'!$S$72*'E2018'!$AD$72%+'E2018'!$S$77*'E2018'!$AD$77%+'E2018'!$S$78*'E2018'!$AD$78% -> 102.7962866 | T958: ='WE2018'!$S$62*'WE2018'!$AD$62%+'WE2018'!$S$63*'WE2018'!$AD$63%+'WE2018'!$S$66*'WE2018'!$AD$66%+'WE2018'!$S$68*'WE2018'!$AD$68% +'WE2018'!$S$72*'WE2018'!$AD$72%+'WE2018'!$S$77*'WE2018'!$AD$77%+'WE2018'!$S$78*'WE2018'!$AD$78% -> 102.7962866
B959: Biomass | C959: =SUM('E2018'!$AL$16:$AL$18) -> 2226.445 | D959: =SUM('WE2018'!$AL$16:$AL$18) -> 2226.445 | M959: =SUM('E2018'!$S$22:$V$22)*'E2018'!$AD$22/100 -> 47.7 | N959: =SUM('WE2018'!$S$22:$V$22)*'WE2018'!$AD$22/100 -> 47.7
B960: District heating | C960: ='E2018'!$AL$33+'E2018'!$AL$36+'E2018'!$AL$43+'E2018'!$AL$51+'E2018'!$AL$61 -> 2531.95301 | D960: ='WE2018'!$AL$33+'WE2018'!$AL$36+'WE2018'!$AL$43+'WE2018'!$AL$51+'WE2018'!$AL$61 -> 2531.95301 | E960: ='E2018'!$AM$33+'E2018'!$AM$36+'E2018'!$AM$43+'E2018'!$AM$51+'E2018'!$AM$61 -> 384.4529878 | F960: ='WE2018'!$AM$33+'WE2018'!$AM$36+'WE2018'!$AM$43+'WE2018'!$AM$51+'WE2018'!$AM$61 -> 384.4529878 | G960: ='E2018'!$AN$33+'E2018'!$AN$36+'E2018'!$AN$43+'E2018'!$AN$51+'E2018'!$AN$61 -> 512.6039837 | H960: ='WE2018'!$AN$33+'WE2018'!$AN$36+'WE2018'!$AN$43+'WE2018'!$AN$51+'WE2018'!$AN$61 -> 512.6039837 | I960: ='E2018'!$AO$33+'E2018'!$AO$36+'E2018'!$AO$43+'E2018'!$AO$51+'E2018'!$AO$61 -> 271.8354459 | J960: ='WE2018'!$AO$33+'WE2018'!$AO$36+'WE2018'!$AO$43+'WE2018'!$AO$51+'WE2018'!$AO$61 -> 271.8354459 | K960: ='E2018'!$AP$33+'E2018'!$AP$36+'E2018'!$AP$43+'E2018'!$AP$51+'E2018'!$AP$61 -> 0 | L960: ='WE2018'!$AP$33+'WE2018'!$AP$36+'WE2018'!$AP$43+'WE2018'!$AP$51+'WE2018'!$AP$61 -> 0 | M960: ='E2018'!$AQ$33+'E2018'!$AQ$36+'E2018'!$AQ$43+'E2018'!$AQ$51+'E2018'!$AQ$61 -> 124.2676324 | N960: ='WE2018'!$AQ$33+'WE2018'!$AQ$36+'WE2018'!$AQ$43+'WE2018'!$AQ$51+'WE2018'!$AQ$61 -> 124.2676324 | O960: ='E2018'!$AR$33+'E2018'!$AR$36+'E2018'!$AR$43+'E2018'!$AR$51+'E2018'!$AR$61 -> 58.25045269 | P960: ='WE2018'!$AR$33+'WE2018'!$AR$36+'WE2018'!$AR$43+'WE2018'!$AR$51+'WE2018'!$AR$61 -> 58.25045269 | Q960: ='E2018'!$AS$33+'E2018'!$AS$36+'E2018'!$AS$43+'E2018'!$AS$51+'E2018'!$AS$61 -> 0 | R960: ='WE2018'!$AS$33+'WE2018'!$AS$36+'WE2018'!$AS$43+'WE2018'!$AS$51+'WE2018'!$AS$61 -> 0
B961: Processed heat from KV production | M961: =(-'E2018'!$AI$56) -> 2028.6 | N961: =(-'WE2018'!$AI$56) -> 2028.6
B962: Biogas | M962: =('E2018'!$R$22+'E2018'!$S$22+'E2018'!$T$22+'E2018'!$W$22+'E2018'!$X$22+'E2018'!$Y$22)*'E2018'!$AD$22/100 -> 0 | N962: =('WE2018'!$R$22+'WE2018'!$S$22+'WE2018'!$T$22+'WE2018'!$W$22+'WE2018'!$X$22+'WE2018'!$Y$22)*'WE2018'!$AD$22/100 -> 
B963: Solar energy and geothermal energy | C963: ='E2018'!$AL$19+'E2018'!$Q$11 -> 65.2 | D963: ='WE2018'!$AL$19+'WE2018'!$Q$11 -> 65.2
B964: Total | C964: =SUM(C950:C963) -> 7075.165944 | D964: =SUM(D950:D963) -> 7075.165944 | E964: 974.5750527 | F964: 974.5750527 | G964: 858.1530312 | H964: 858.1530312 | I964: 815.2379395 | J964: 815.2379395 | K964: 55.82410475 | L964: 55.82410475 | M964: 8142.664158 | O964: 173.6864486 | P964: 173.6864486 | S964: 2022.267017
B1006: Net energy consumption of heat divided by plant type
B1008: Net energy consumption of heat divided by plant type | C1008: TJ/year | D1008: TJ/year | E1008: TJ/year
C1009: =C56 -> 1990 | D1009: =D56 -> 2018 | E1009: =E56 -> W2018
B1010: District heating | C1010: =SUM('E1990'!$AL$33:$AS$33,'E1990'!$AL$36:$AS$36,'E1990'!$AL$43:$AS$43,'E1990'!$AL$51:$AS$51,'E1990'!$AL$60:$AS$60) -> 17900.0054 | D1010: =SUM('E2018'!$AL$33:$AS$33,'E2018'!$AL$36:$AS$36,'E2018'!$AL$43:$AS$43,'E2018'!$AL$51:$AS$51,'E2018'!$AL$61:$AS$61) -> 3883.363513 | E1010: =SUM('WE2018'!$AL$33:$AS$33,'WE2018'!$AL$36:$AS$36,'WE2018'!$AL$43:$AS$43,'WE2018'!$AL$51:$AS$51,'WE2018'!$AL$61:$AS$61) -> 3883.363513
B1011: Natural gas furnace (boiler) | C1011: ='E1990'!$AL$15 -> 869.686 | D1011: ='E2018'!$AL$15 -> 415.735 | E1011: ='WE2018'!$AL$15 -> 415.735
B1012: Oil boiler | C1012: ='E1990'!$AL$14 -> 18668.896 | D1012: ='E2018'!$AL$14 -> 447.84 | E1012: ='WE2018'!$AL$14 -> 447.84
B1013: Wood pellet and stoker stove | C1013: ='E1990'!$AL$16 -> 44.6775 | D1013: ='E2018'!$AL$16 -> 1144.65 | E1013: ='WE2018'!$AL$16 -> 1144.65
B1014: Wood boiler (stove) and oven | C1014: ='E1990'!$AL$17 -> 1530.4705 | D1014: ='E2018'!$AL$17 -> 869.635 | E1014: ='WE2018'!$AL$17 -> 869.635
... 74 more rows

Sheet Graphs-climate + GWP og NIR
A2: Til index
B4: Choose IPCC-evaluation report: | D4: GWP-values compared to CO2 in 100-year time-horizon: | H4: Choose NIR factors:
B5: AR5 | E5: Methane | F5: Dinitrogenoxide | H5: 2018
D6: AR4 | E6: 25 | F6: 298 | H6: Details about NIR factors are found in the sheet:
D7: AR5 | E7: 28 | F7: 265 | H7: NIR factors
D8: Valgt GWP-værdi | E8: =IF(B5="AR4",E6,E7) -> 28 | F8: =IF(B5="AR4",F6,F7) -> 265
A10: click to access the chosen graph:
B31: Key figures - locally (Municipality or region) | M31: Key figure - national (DK)
C33: =C39 -> 1990 | D33: =D39 -> 2018 | E33: =E39 -> W2018 | G33: Specific emissions [ton CO2-e] | H33: =D39 -> 2018 | I33: =E39 -> W2018 | N33: =N39 -> 1990 | O33: =O39 -> 2018 | P33: =P39 -> 2020 | R33: Specific emissions [ton CO2-e] | S33: =D39 -> 2018 | T33: =P33 -> 2020
B34: Inhabitants locally: | C34: ='E1990'!D1 -> 1129569 | D34: ='E2018'!D1 -> 203425 | E34: ='WE2018'!D1 -> 203425 | G34: per inhabitant | H34: =D47/D34 -> 13.70355724 | I34: =E47/E34 -> 13.62194362 | M34: Inhabitants nationally: | N34: - | O34: =FOLK1A!M4 -> 5806081 | P34: =FOLK1A!N4 -> 5822763 | R34: per inhabitant | S34: =O47*1000/O34 -> 9.392962959 | T34: =P47*1000/P34 -> 7.662363355
B35: Local area | C35: - | D35: ='ARE207'!M6 -> 3701.9 | E35: ='ARE207'!O6 -> 3702.5 | F35: km2 | G35: per km2 | H35: =D47/D35 -> 753.0311815 | I35: =E47/E35 -> 748.4250862 | M35: National area | N35: - | O35: ='ARE207'!N4 -> 42937.8 | P35: ='ARE207'!O4 -> 42943.9 | Q35: km2 | R35: per km2 | S35: =(O47*1000)/O35 -> 1270.123382 | T35: =(P47*1000)/P35 -> 1038.939776
B36: Local BNP | C36: - | D36: =SUM(BNP!C88,BNP!C91,BNP!C95,BNP!C99,BNP!C100)*1000000 -> 74885621086 | E36: =BNP!E11*1000000 -> 4.955261636e+11 | F36: kr. | G36: per BNP/inhabitant | H36: =(H34)/(D37) -> 3.722538573e-05 | I36: =(I34)/(E37) -> 5.592124262e-06 | M36: National BNP | N36: - | O36: =BNP!D14*1000000 -> 2335002123001 | P36: =BNP!E14*1000000 -> 2.333196473e+12 | Q36: kr. | R36: per BNP/inhabitant | S36: =S34/O37 -> 2.335599751e-05 | T36: =T34/P37 -> 1.912231839e-05 | AD36: Reduktionsmål lokalt 2030
B37: BNP per inhabitant locally: | C37: - | D37: =D36/D34 -> 368123.9822 | E37: =E36/E34 -> 2435915.76 | F37: kr. | M37: BNP per inhabitant nationally: | N37: - | O37: =O36/O34 -> 402164.9238 | P37: =P36/P34 -> 400702.6344 | Q37: kr. | AD37: =H40 -> 4846482.643 | AE37: =H40 -> 4846482.643 | AF37: =H40 -> 4846482.643
B39: Total emission [ton CO2-e] | C39: 1990 | D39: 2018 | E39: ='Husbandry W2018'!G2 -> W2018 | G39: Reduction needed in 2030 to reach 70 % reduction of emissions | M39: Total emissions nationally [kton CO2-e] | N39: 1990 | O39: 2018 | P39: 2020 | Q39: Diff. in %, from 1990 to 2020 | AD39: Reduktionmål nationalt 2030
B40: Plant production | C40: =IF(E40<0,E40/(1+Q40),E40/(1-Q40)) -> 493400.3827 | D40: ='Plant Production 2018'!$AG$24 -> 375976.0687 | E40: ='Plant Production W2018'!$AH$25 -> 359373.8196 | G40: 2030 Emission goal | H40: =C47*30% -> 4846482.643 | I40: ton CO2-e | M40: Plant production | N40: =(Summary2_1990!J32+Summary2_1990!J34+Summary2_1990!J35+Summary2_1990!J36+Summary2_1990!J37) -> 6476.516563 | O40: =Summary2_2018!J32+Summary2_2018!J34+Summary2_2018!J35+Summary2_2018!J36+Summary2_2018!J37 -> 4321.506836 | P40: =Summary2_2020!J32+Summary2_2020!J34+Summary2_2020!J35+Summary2_2020!J36+Summary2_2020!J37 -> 4717.245014 | Q40: =(N40-P40)/N40 -> 0.271638547 | AD40: =N47*30% -> 23062.58827 | AE40: =AD40 -> 23062.58827
B41: Husbandry | C41: =IF(E41<0,E41/(1+Q41),E41/(1-Q41)) -> 771527.5344 | D41: ='Husbandry 2018'!$Z$18 -> 736583.0235 | E41: ='Husbandry W2018'!$Z$18 -> 736583.0235 | G41: Missing reduction W2018 | H41: =E47-H40 -> -2075438.761 | I41: ton CO2-e | M41: Husbandry | N41: =Summary2_1990!J29+Summary2_1990!J30 -> 6861.157217 | O41: =Summary2_2018!J29+Summary2_2018!J30 -> 6719.753299 | P41: =Summary2_2020!J29+Summary2_2020!J30 -> 6550.397364 | Q41: 0.04529262963
B42: Industrial processes | C42: =IF(E42<0,E42/(1+Q42),E42/(1-Q42)) -> 30836.03944 | D42: ='Industrial processes 2018'!$O$43 -> 25340.9523 | E42: ='Industrial processes W2018'!$O$43 -> 25340.9523 | G42: Reduction per inhabitant to reach 70 % | H42: =H41/E34 -> -10.2024764 | I42: ton CO2-e/inhabitant | M42: Industrial processes | N42: =Summary2_1990!J19 -> 2343.008747 | O42: =Summary2_2018!J19 -> 2043.611848 | P42: =Summary2_2020!J19 -> 1925.476616 | Q42: 0.1782034023
B43: Transportation | C43: =('E1990'!$F$82+'E1990'!$G$82+'E1990'!$H$82)*1000 -> 2818603.952 | D43: =('E2018'!$F$83+'E2018'!$G$83+'E2018'!$H$83)*1000 -> 685250.5531 | E43: =('WE2018'!$F$83+'WE2018'!$G$83+'WE2018'!$H$83)*1000 -> 685250.5531 | M43: Transportation | N43: =Summary2_1990!J12 -> 10786.94567 | O43: =Summary2_2018!J12 -> 13436.52073 | P43: =Summary2_2020!J12 -> 12031.51703 | Q43: -0.1153775496
B44: Energy | C44: =('E1990'!$A$82+'E1990'!$B$82+'E1990'!$C$82+'E1990'!$D$82+'E1990'!$E$82+'E1990'!$I$82+'E1990'!$Z$82)*1000 -> 10334900.42 | D44: =('E2018'!$A$83+'E2018'!$B$83+'E2018'!$C$83+'E2018'!$D$83+'E2018'!$E$83+'E2018'!$I$83+'E2018'!$Z$83)*1000 -> 179818.8293 | E44: =('WE2018'!$A$83+'WE2018'!$B$83+'WE2018'!$C$83+'WE2018'!$D$83+'WE2018'!$E$83+'WE2018'!$I$83+'WE2018'!$Z$83)*1000 -> 179818.8293 | M44: Energy | N44: =Summary2_1990!J8-Summary2_1990!J12 -> 41638.35742 | O44: =Summary2_2018!J8-Summary2_2018!J12 -> 20282.05107 | P44: =Summary2_2020!J8-Summary2_2020!J12 -> 15074.66013 | Q44: 0.6379621804
B45: LULUCF | C45: =IF(E45<0,E45/(1+Q45),E45/(1-Q45)) -> 1632328.096 | D45: ='LULUCF 2018'!$Q$40 -> 737872.5286 | E45: ='LULUCF W2018'!$Q$40 -> 737872.5286 | M45: LULUCF | N45: =Summary2_1990!J39 -> 6873.608197 | O45: =Summary2_2018!J39 -> 6593.559496 | P45: =Summary2_2020!J39 -> 3107.124526 | Q45: 0.5479631023
B46: Waste, wastewater and accidental fires | C46: =IF(E46<0,E46/(1+Q46),E46/(1-Q46)) -> 73345.71907 | D46: ='Waste and wastewater 2018'!$L$26 -> 46804.17537 | E46: ='Waste and wastewater W2018'!$L$26 -> 46804.17537 | M46: Waste, wastewater and accidental fires | N46: =Summary2_1990!J48 -> 1895.700404 | O46: =Summary2_2018!J48 -> 1139.300492 | P46: =Summary2_2020!J48 -> 1209.705151 | Q46: 0.361869023
B47: Total | C47: =SUM(C40:C46) -> 16154942.14 | D47: =SUM(D40:D46) -> 2787646.131 | E47: =SUM(E40:E46) -> 2771043.882 | M47: Total | N47: =SUM(N40:N46) -> 76875.29422 | O47: =SUM(O40:O46) -> 54536.30377 | P47: =SUM(P40:P46) -> 44616.12583 | Q47: 0.4196298527
B53: Emissions locally divided by sector
M54: Emissions nationally divided by sectors
B84: Emissions in total locally | M84: Emissions total nationally
B109: Emissions divided by sectors | M109: Emissions nationally divided by sectors
B156: Distribution of emissions from agriculture and land use locally (municipality or region)
B158: Distribution of emissions from agriculture
B160: Distribution of emissions from agriculture [tons of CO2 eq.] | C160: =D39 -> 2018 | D160: =E39 -> W2018
B161: Rumen gasses | C161: ='Husbandry 2018'!$Z$8 -> 530393.4523 | D161: ='Husbandry W2018'!$Z$8 -> 530393.4523
B162: Manure in stables** | C162: =SUBTOTAL(9,'Husbandry 2018'!$Z$9:$Z$17) -> 206189.5713 | D162: =SUBTOTAL(9,'Husbandry W2018'!$Z$9:$Z$17) -> 206189.5713
B163: Organic soils (humus soil) | C163: ='Plant Production 2018'!$AG$13 -> 55497.56533 | D163: ='Plant Production W2018'!$AH$14 -> 55497.56533
B164: Evaporation | C164: ='Plant Production 2018'!$AG$19 -> 16625.26559 | D164: ='Plant Production W2018'!$AH$20 -> 16625.26559
B165: Nitrogen leaching | C165: ='Plant Production 2018'!$AG$20 -> 36383.45464 | D165: ='Plant Production W2018'!$AH$21 -> 36383.45464
B166: Mineralization | C166: ='Plant Production 2018'!$AG$15 -> 9311.95503 | D166: ='Plant Production W2018'!$AH$16 -> 9311.95503
B167: Crop residues* | C167: ='Plant Production 2018'!$AG$11+'Plant Production 2018'!$AG$10 -> 42557.01187 | D167: ='Plant Production W2018'!$AH$11+'Plant Production W2018'!$AH$10 -> 25954.76277
B168: Chemical fertilizers | C168: ='Plant Production 2018'!$AG$16 -> 70342.73942 | D168: ='Plant Production W2018'!$AH$17 -> 70342.73942
B169: Organic fertilizers | C169: ='Plant Production 2018'!$AG$17 -> 120060.0798 | D169: ='Plant Production W2018'!$AH$18 -> 120060.0798
B170: Manure from grazing livestock | C170: ='Plant Production 2018'!$AG$18 -> 10491.16357 | D170: ='Plant Production W2018'!$AH$19 -> 10491.16357
B171: Lime consumption (incl. Urea and Calcium) | C171: ='Plant Production 2018'!$AG$21+'Plant Production 2018'!$AG$22+'Plant Production 2018'!$AG$23 -> 21246.5195 | D171: ='Plant Production W2018'!$AH$22+'Plant Production W2018'!$AH$23+'Plant Production W2018'!$AH$24 -> 21246.5195
B172: Total | C172: =SUM(C161:C171) -> 1119098.778 | D172: =SUM(D161:D171) -> 1102496.529
B173: * Inkluding straw removed
B174: ** Reduced by slurry for biogas
B222: Distribution of emissions from land use
B224: Land use [ha] | C224: =C160 -> 2018 | D224: =D160 -> W2018
B225: Forest | C225: ='LULUCF 2018'!$C$10+'LULUCF 2018'!$D$18+'LULUCF 2018'!$E$18+'LULUCF 2018'!$F$18+'LULUCF 2018'!$I$18 -> 55048.75 | D225: ='LULUCF W2018'!$C$10+'LULUCF W2018'!$D$18+'LULUCF W2018'!$E$18+'LULUCF W2018'!$F$18+'LULUCF W2018'!$I$18 -> 55048.75
B226: Agricultural area | C226: ='LULUCF 2018'!$D$11+'LULUCF 2018'!$C$19+'LULUCF 2018'!$E$19+'LULUCF 2018'!$F$19+'LULUCF 2018'!$I$19 -> 254438.625 | D226: ='LULUCF W2018'!$D$11+'LULUCF W2018'!$C$19+'LULUCF W2018'!$E$19+'LULUCF W2018'!$F$19+'LULUCF W2018'!$I$19 -> 254438.625
B227: Permanent grass | C227: ='LULUCF 2018'!$E$12+'LULUCF 2018'!$C$20+'LULUCF 2018'!$D$20+'LULUCF 2018'!$F$20+'LULUCF 2018'!$I$20 -> 19673.375 | D227: ='LULUCF W2018'!$E$12+'LULUCF W2018'!$C$20+'LULUCF W2018'!$D$20+'LULUCF W2018'!$F$20+'LULUCF W2018'!$I$20 -> 19673.375
B228: Wetland (periodically wet) | C228: ='LULUCF 2018'!$F$13+'LULUCF 2018'!$C$21+'LULUCF 2018'!$D$21+'LULUCF 2018'!$E$21+'LULUCF 2018'!$I$21 -> 7613.8125 | D228: ='LULUCF W2018'!$F$13+'LULUCF W2018'!$C$21+'LULUCF W2018'!$D$21+'LULUCF W2018'!$E$21+'LULUCF W2018'!$I$21 -> 7613.8125
B229: Wetland (lakes, streams etc.) | C229: ='LULUCF 2018'!$G$14+'LULUCF 2018'!$C$22+'LULUCF 2018'!$D$22+'LULUCF 2018'!$E$22+'LULUCF 2018'!$I$22 -> 6839.25 | D229: ='LULUCF W2018'!$G$14+'LULUCF W2018'!$C$22+'LULUCF W2018'!$D$22+'LULUCF W2018'!$E$22+'LULUCF W2018'!$I$22 -> 6839.25
B230: Settlement | C230: ='LULUCF 2018'!$H$15+'LULUCF 2018'!$C$23+'LULUCF 2018'!$D$23+'LULUCF 2018'!$E$23+'LULUCF 2018'!$F$23+'LULUCF 2018'!$I$23 -> 34508.25 | D230: ='LULUCF W2018'!$H$15+'LULUCF W2018'!$C$23+'LULUCF W2018'!$D$23+'LULUCF W2018'!$E$23+'LULUCF W2018'!$F$23+'LULUCF W2018'!$I$23 -> 34508.25
B231: Other areal | C231: ='LULUCF 2018'!$I$16+'LULUCF 2018'!$I$24 -> 2217.375 | D231: ='LULUCF W2018'!$I$16+'LULUCF W2018'!$I$24 -> 2217.375
B232: Totalt area | C232: =SUM(C225:C231) -> 380339.4375 | D232: =SUM(D225:D231) -> 380339.4375
B256: Carbon emissions and stocks from permanent land use
B258: Carbon emissions and stocks from permanent land use [ton CO2 eq.] | C258: =C224 -> 2018 | D258: =D224 -> W2018
B259: Forest | C259: ='LULUCF 2018'!$Q$10 -> 35607.72996 | D259: ='LULUCF W2018'!$Q$10 -> 35607.72996
B260: Agricultural area | C260: ='LULUCF 2018'!$Q$11 -> 562242.7371 | D260: ='LULUCF W2018'!$Q$11 -> 562242.7371
B261: Permanent grass | C261: ='LULUCF 2018'!$Q$12 -> 43387.02744 | D261: ='LULUCF W2018'!$Q$12 -> 43387.02744
B262: Periodically wet wetlands | C262: ='LULUCF 2018'!$Q$13 -> 0 | D262: ='LULUCF W2018'!$Q$13 -> 0
B283: Emission from drainage and rewetting
B285: Emissions from drainage and rewetting [ton CO2-e] | C285: =C258 -> 2018 | G285: =D258 -> W2018
C286: CO2-e | D286: CO2 | E286: CH4 | F286: N2O | G286: CO2-e | H286: CO2 | I286: CH4 | J286: N2O
B287: Drained organic soil (forest, agriculture, permanent grass) | C287: ='LULUCF 2018'!$Q$28+'LULUCF 2018'!$Q$29 -> 14697.9445 | D287: ='LULUCF 2018'!$L$28+'LULUCF 2018'!$L$29 -> 1734.795428 | E287: ='LULUCF 2018'!$M$28+'LULUCF 2018'!$M$29 -> 430.3572191 | F287: ='LULUCF 2018'!$N$28+'LULUCF 2018'!$N$29 -> 3.4458375 | G287: ='LULUCF W2018'!$Q$28+'LULUCF W2018'!$Q$29 -> 14697.9445 | H287: ='LULUCF W2018'!$L$28+'LULUCF W2018'!$L$29 -> 1734.795428 | I287: ='LULUCF W2018'!$M$28+'LULUCF W2018'!$M$29 -> 430.3572191 | J287: ='LULUCF W2018'!$N$28+'LULUCF W2018'!$N$29 -> 3.4458375
B288: Rewetted area (agriculture, permanent grass) | C288: ='LULUCF 2018'!$Q$30+'LULUCF 2018'!$Q$31 -> 216.386625 | D288: ='LULUCF 2018'!$L$30+'LULUCF 2018'!$L$31 -> 0 | E288: ='LULUCF 2018'!M30+'LULUCF 2018'!M31 -> 7.72809375 | F288: ='LULUCF 2018'!$N$30+'LULUCF 2018'!$N$31 -> 0 | G288: ='LULUCF W2018'!$Q$30+'LULUCF W2018'!$Q$31 -> 216.386625 | H288: ='LULUCF W2018'!$L$30+'LULUCF W2018'!$L$31 -> 0 | I288: ='LULUCF W2018'!M30+'LULUCF W2018'!M31 -> 7.72809375 | J288: ='LULUCF W2018'!$N$30+'LULUCF W2018'!$N$31 -> 0
B306: Emissions and sinks from changes in land use
B308: Emissions and sinks from changes in land use [ton CO2-e] | C308: =C258 -> 2018 | F308: =G285 -> W2018
C309: Conversion | D309: Mineralization | E309: Total | F309: Conversion | G309: Mineralization | H309: Total
B310: Conversion to forest (Afforestation) | C310: ='LULUCF 2018'!$Q$18 -> -25223.63606 | D310: NO | E310: =SUM(C310:D310) -> -25223.63606 | F310: ='LULUCF W2018'!$Q$18 -> -25223.63606 | G310: NO | H310: =SUM(F310:G310) -> -25223.63606
B311: Conversion to agriculture | C311: ='LULUCF 2018'!$Q$19 -> 0 | D311: ='LULUCF 2018'!$Q$25 -> 95.39700289 | E311: =SUM(C311:D311) -> 95.39700289 | F311: ='LULUCF W2018'!$Q$19 -> 0 | G311: ='LULUCF W2018'!$Q$25 -> 95.39700289 | H311: =SUM(F311:G311) -> 95.39700289
B312: Conversion to permanent grass | C312: ='LULUCF 2018'!$Q$20 -> 0 | D312: ='LULUCF 2018'!$Q$26 -> 51.63007393 | E312: =SUM(C312:D312) -> 51.63007393 | F312: ='LULUCF W2018'!$Q$20 -> 0 | G312: ='LULUCF W2018'!$Q$26 -> 51.63007393 | H312: =SUM(F312:G312) -> 51.63007393
B313: Conversion to periodic wetland | C313: ='LULUCF 2018'!$Q$21 -> 0 | D313: NO | E313: =SUM(C313:D313) -> 0 | F313: ='LULUCF W2018'!$Q$21 -> 0 | G313: NO | H313: =SUM(F313:G313) -> 0
B314: Conversion to settlements | C314: ='LULUCF 2018'!$Q$23 -> 10336.79065 | D314: ='LULUCF 2018'!$Q$27 -> 24319.62696 | E314: =SUM(C314:D314) -> 34656.41761 | F314: ='LULUCF W2018'!$Q$23 -> 10336.79065 | G314: ='LULUCF W2018'!$Q$27 -> 24319.62696 | H314: =SUM(F314:G314) -> 34656.41761
B335: Emissions from wetlands (periodic wetland) and controlled burning/wildfires
B337: Emissions from wetlands (periodic wetland) and controlled burning/wildfires [ton CO2-e] | C337: =C258 -> 2018 | D337: =F308 -> W2018
B338: Periodic wetland | C338: ='LULUCF 2018'!$Q$33 -> 61301.91639 | D338: ='LULUCF W2018'!$Q$33 -> 61301.91639
B339: Controlled burning of heathland/wildfires | C339: =IFERROR('LULUCF 2018'!$Q$35+'LULUCF 2018'!$Q$34,"NR") -> NR | D339: =IFERROR('LULUCF W2018'!$Q$35+'LULUCF W2018'!$Q$34,"NR") -> NR
B359: Note that emissions from periodic wet areas are more than offset by the reduction in CO2-e which stems from conversion of agricultural areas
B361: Emissions from husbandry
B363: Emissions from husbandry [ton CO2-e] | C363: 2018 | E363: W2018
C364: Husbandry | D364: Emission-reducing technologies | E364: Husbandry | F364: Emission-reducing technologies
B365: Rumen gasses | C365: ='Husbandry 2018'!$Z$8 -> 530393.4523 | E365: ='Husbandry W2018'!$Z$8 -> 530393.4523
B366: Nitous oxide from stables | C366: =('Husbandry 2018'!$X$9+'Husbandry 2018'!$X$10+'Husbandry 2018'!$X$11+'Husbandry 2018'!$X$12+'Husbandry 2018'!$X$13+'Husbandry 2018'!$X$14+'Husbandry 2018'!$X$15)*298 -> 55543.82096 | E366: =('Husbandry W2018'!$X$9+'Husbandry W2018'!$X$10+'Husbandry W2018'!$X$11+'Husbandry W2018'!$X$12+'Husbandry W2018'!$X$13+'Husbandry W2018'!$X$14+'Husbandry W2018'!$X$15)*298 -> 55543.82096
B367: Methane from stables | C367: =('Husbandry 2018'!$W$9+'Husbandry 2018'!$W$10+'Husbandry 2018'!$W$11+'Husbandry 2018'!$W$12+'Husbandry 2018'!$W$13+'Husbandry 2018'!$W$14+'Husbandry 2018'!$W$15)*25 -> 139996.943 | E367: =('Husbandry W2018'!$W$9+'Husbandry W2018'!$W$10+'Husbandry W2018'!$W$11+'Husbandry W2018'!$W$12+'Husbandry W2018'!$W$13+'Husbandry W2018'!$W$14+'Husbandry W2018'!$W$15)*25 -> 139996.943
B368: Cattle slurry for biogas (reduction) | D368: =('Husbandry 2018'!$Z$16) -> 0 | F368: =('Husbandry W2018'!$Z$16) -> 0
B369: Pigs slurry for biogas (reduction) | D369: =('Husbandry 2018'!$Z$17) -> 0 | F369: =('Husbandry W2018'!$Z$17) -> 0
B370: Note that methane reduction from new environmental technologies in stables and manure handling are not included here.
B394: Emissions from plant breeding
B396: Crop distribution [ha] | C396: =C337 -> 2018 | D396: =D337 -> W2018
B397: Winter wheat | C397: ='Plant Production 2018'!$C$10 -> 28021.12 | D397: ='Plant Production W2018'!$C$10 -> 28021.12
B398: Spring wheat | C398: ='Plant Production 2018'!$D$10 -> 2032.68 | D398: ='Plant Production W2018'!$D$10 -> 2032.68
B399: Rye | C399: ='Plant Production 2018'!$E$10 -> 11051.71 | D399: ='Plant Production W2018'!$E$10 -> 11051.71
B400: Winter barley | C400: ='Plant Production 2018'!$F$10 -> 6560.83 | D400: ='Plant Production W2018'!$F$10 -> 6560.83
B401: Spring barley | C401: ='Plant Production 2018'!$G$10 -> 67799.99 | D401: ='Plant Production W2018'!$G$10 -> 67799.99
B402: Oats | C402: ='Plant Production 2018'!$H$10 -> 8028.06 | D402: ='Plant Production W2018'!$H$10 -> 8028.06
B403: Triticale and other cereals to maturity | C403: ='Plant Production 2018'!$I$10 -> 589.22 | D403: ='Plant Production W2018'!$I$10 -> 589.22
B404: Maize to maturity | C404: ='Plant Production 2018'!$J$10 -> 858.05 | D404: ='Plant Production W2018'!$J$10 -> 858.05
B405: Fodder maize | C405: ='Plant Production 2018'!$K$10 -> IE | D405: ='Plant Production W2018'!$K$10 -> IE
B406: Potatoes | C406: ='Plant Production 2018'!$L$10 -> 6572.29 | D406: ='Plant Production W2018'!$L$10 -> 6572.29
B407: Lucerne | C407: ='Plant Production 2018'!$M$10 -> 101.45 | D407: ='Plant Production W2018'!$M$10 -> 101.45
B408: Leguminous seeds to maturity | C408: ='Plant Production 2018'!$N$10 -> 4638.66 | D408: ='Plant Production W2018'!$N$10 -> 4638.66
B409: Sugar beet for factory + Fodder beet | C409: ='Plant Production 2018'!$O$10 -> 362.88 | D409: ='Plant Production W2018'!$O$10 -> 362.88
B410: Cereals and pulses for ensiling (whole grain) | C410: ='Plant Production 2018'!$P$10 -> 24021.93 | D410: ='Plant Production W2018'!$P$10 -> 24021.93
B411: Grass and clover field in rotation + Seeds for sowing | C411: ='Plant Production 2018'!$Q$10 -> 36098.26 | D411: ='Plant Production W2018'!$Q$10 -> 36098.26
B412: Grasslands outside the rotation | C412: ='Plant Production 2018'!$R$10 -> 12883.55 | D412: ='Plant Production W2018'!$R$10 -> 12883.55
B413: Rapeseed in total + Flax + Other industrial seeds | C413: ='Plant Production 2018'!$S$10 -> 10693.85 | D413: ='Plant Production W2018'!$S$10 -> 10693.85
B414: Total, grass excluded | C414: =SUM(C397:C413)-C411-C412 -> 171332.72 | D414: =SUM(D397:D413)-D411-D412 -> 171332.72
B469: Emissions from plant production [ton CO2-e] | C469: =C396 -> 2018 | E469: =D396 -> W2018
C470: Crop cultivation | D470: Emission-reducing instruments | E470: Crop cultivation | F470: Emission-reducing instruments
B471: Crop residues | C471: ='Plant Production 2018'!$AG$10 -> 42557.01187 | E471: ='Plant Production W2018'!$AH$10 -> 42557.01187
B472: Cartch crops | D472: ='Plant Production 2018'!$AG$11 -> 0 | F472: ='Plant Production W2018'!$AH$11 -> -16602.2491
B473: Organic soils | C473: ='Plant Production 2018'!$AG$13 -> 55497.56533 | E473: ='Plant Production W2018'!$AH$14 -> 55497.56533
B474: Straw removed | D474: ='Plant Production 2018'!$AG$14 -> -6539.68599 | F474: ='Plant Production W2018'!$AH$15 -> -6539.68599
B475: Soil mineralization | C475: ='Plant Production 2018'!$AG$15 -> 9311.95503 | E475: ='Plant Production W2018'!$AH$16 -> 9311.95503
B476: Chemical fertilizers | C476: ='Plant Production 2018'!$AG$16 -> 70342.73942 | E476: ='Plant Production W2018'!$AH$17 -> 70342.73942
B477: Organic fertilizers | C477: ='Plant Production 2018'!$AG$17 -> 120060.0798 | E477: ='Plant Production W2018'!$AH$18 -> 120060.0798
B478: Manure from grazing animals | C478: ='Plant Production 2018'!$AG$18 -> 10491.16357 | E478: ='Plant Production W2018'!$AH$19 -> 10491.16357
B479: Evaporation | C479: ='Plant Production 2018'!$AG$19 -> 16625.26559 | E479: ='Plant Production W2018'!$AH$20 -> 16625.26559
B480: Leaching | C480: ='Plant Production 2018'!$AG$20 -> 36383.45464 | E480: ='Plant Production W2018'!$AH$21 -> 36383.45464
B481: Liming (CaCO3) | C481: ='Plant Production 2018'!$AG$21 -> 20875.47309 | E481: ='Plant Production W2018'!$AH$22 -> 20875.47309
B482: Urea (CH₄N₂O) | C482: ='Plant Production 2018'!$AG$22 -> 121.2361419 | E482: ='Plant Production W2018'!$AH$23 -> 121.2361419
B483: Calcium ammonium nitrate Ca(NO3)2 | C483: ='Plant Production 2018'!$AG$23 -> 249.8102608 | E483: ='Plant Production W2018'!$AH$24 -> 249.8102608
B508: Industrial processes distributed locally (municipalities or region)
B510: Emissions from different industrial sectors
B512: Emissions from industrial sectors [ton CO2-e] | C512: =C396 -> 2018 | D512: =D396 -> W2018
B513: Mineral industry | C513: =SUM('Industrial processes 2018'!$O$11:$O$19) -> 655.7422791 | D513: =SUM('Industrial processes W2018'!$O$11:$O$19) -> 655.7422791
B514: Chemical industry | C514: =SUM('Industrial processes 2018'!$O$20:$O$23) -> 50.28990188 | D514: =SUM('Industrial processes W2018'!$O$20:$O$23) -> 50.28990188
B515: Metalurgic industry | C515: =SUM('Industrial processes 2018'!$O$24) -> 4.208412109 | D515: =SUM('Industrial processes W2018'!$O$24) -> 4.208412109
B516: Use of fuels and solvents (non-related to energy) | C516: =SUM('Industrial processes 2018'!$O$25:$O$30) -> 5705.800951 | D516: =SUM('Industrial processes W2018'!$O$25:$O$30) -> 5705.800951
B517: Electronic industry | C517: =SUM('Industrial processes 2018'!$O$31:$O$32) -> 0 | D517: =SUM('Industrial processes W2018'!$O$31:$O$32) -> 0
B518: Ozon-replacing products | C518: =SUM('Industrial processes 2018'!$O$33:$O$35) -> 17148.44372 | D518: =SUM('Industrial processes W2018'!$O$33:$O$35) -> 17148.44372
B519: Other product manufacturing and use | C519: =SUM('Industrial processes 2018'!$O$36:$O$41) -> 1735.804071 | D519: =SUM('Industrial processes W2018'!$O$36:$O$41) -> 1735.804071
B520: Total from industrial processes | C520: =SUM(C513:C519) -> 25300.28934 | D520: =SUM(D513:D519) -> 25300.28934
B572: Distribution of emission types per industry
B574: Distribution of emission types per industry [ton CO2-e] | C574: =C469 -> 2018 | G574: =D512 -> W2018
C575: CO2 | D575: CH4 | E575: N2O | F575: F-gasses | G575: CO2 | H575: CH4 | I575: N2O | J575: F-gasses
B576: Mineral industry | C576: =SUM('Industrial processes 2018'!$K$11:$K$18) -> 655.7422791 | D576: =SUM('Industrial processes 2018'!$L$11:$L$19) -> 0 | E576: =SUM('Industrial processes 2018'!$M$11:$M$19) -> 0 | F576: =SUM('Industrial processes 2018'!$N$11:$N$19) -> 0 | G576: =SUM('Industrial processes W2018'!$K$11:$K$18) -> 655.7422791 | H576: =SUM('Industrial processes W2018'!$L$11:$L$19) -> 0 | I576: =SUM('Industrial processes W2018'!$M$11:$M$19) -> 0 | J576: =SUM('Industrial processes W2018'!$N$11:$N$19) -> 0
B577: Chemical industry | C577: =SUM('Industrial processes 2018'!$K$20:$K$23) -> 50.28990188 | D577: =SUM('Industrial processes 2018'!$L$20:$L$23) -> 0 | E577: =SUM('Industrial processes 2018'!$M$20:$M$23) -> 0 | F577: =SUM('Industrial processes 2018'!$N$20:$N$23) -> 0 | G577: =SUM('Industrial processes W2018'!$K$20:$K$23) -> 50.28990188 | H577: =SUM('Industrial processes W2018'!$L$20:$L$23) -> 0 | I577: =SUM('Industrial processes W2018'!$M$20:$M$23) -> 0 | J577: =SUM('Industrial processes W2018'!$N$20:$N$23) -> 0
B578: Metalurgic industry | C578: =SUM('Industrial processes 2018'!$K$24) -> 4.208412109 | D578: =SUM('Industrial processes 2018'!$L$24) -> 0 | E578: =SUM('Industrial processes 2018'!$M$24) -> 0 | F578: =SUM('Industrial processes 2018'!$N$24) -> 0 | G578: =SUM('Industrial processes W2018'!$K$24) -> 4.208412109 | H578: =SUM('Industrial processes W2018'!$L$24) -> 0 | I578: =SUM('Industrial processes W2018'!$M$24) -> 0 | J578: =SUM('Industrial processes W2018'!$N$24) -> 0
B579: Use of fuels and solvents (non-related to energy) | C579: =SUM('Industrial processes 2018'!$K$25:$K$30) -> 5681.197305 | D579: =SUM('Industrial processes 2018'!$L$25:$L$30) -> 0.717995135 | E579: =SUM('Industrial processes 2018'!$M$25:$M$30) -> 0.01698030949 | F579: =SUM('Industrial processes 2018'!$N$25:$N$30) -> 0 | G579: =SUM('Industrial processes W2018'!$K$25:$K$30) -> 5681.197305 | H579: =SUM('Industrial processes W2018'!$L$25:$L$30) -> 0.717995135 | I579: =SUM('Industrial processes W2018'!$M$25:$M$30) -> 0.01698030949 | J579: =SUM('Industrial processes W2018'!$N$25:$N$30) -> 0
B580: Electronic industry | C580: =SUM('Industrial processes 2018'!$K$31:$K$32) -> 0 | D580: =SUM('Industrial processes 2018'!$L$31:$L$32) -> 0 | E580: =SUM('Industrial processes 2018'!$M$31:$M$32) -> 0 | F580: =SUM('Industrial processes 2018'!$N$31:$N$32) -> 0 | G580: =SUM('Industrial processes W2018'!$K$31:$K$32) -> 0 | H580: =SUM('Industrial processes W2018'!$L$31:$L$32) -> 0 | I580: =SUM('Industrial processes W2018'!$M$31:$M$32) -> 0 | J580: =SUM('Industrial processes W2018'!$N$31:$N$32) -> 0
B581: Ozon-replacing products | C581: =SUM('Industrial processes 2018'!$K$33:$K$35) -> 0 | D581: =SUM('Industrial processes 2018'!$L$33:$L$35) -> 0 | E581: =SUM('Industrial processes 2018'!$M$33:$M$35) -> 0 | F581: =SUM('Industrial processes 2018'!$N$33:$N$35) -> 17148.44372 | G581: =SUM('Industrial processes W2018'!$K$33:$K$35) -> 0 | H581: =SUM('Industrial processes W2018'!$L$33:$L$35) -> 0 | I581: =SUM('Industrial processes W2018'!$M$33:$M$35) -> 0 | J581: =SUM('Industrial processes W2018'!$N$33:$N$35) -> 17148.44372
B582: Other product manufacturing and use | C582: =SUM('Industrial processes 2018'!$K$36:$K$41) -> 0.269616175 | D582: =SUM('Industrial processes 2018'!$L$36:$L$41) -> 0.0617904168 | E582: =SUM('Industrial processes 2018'!$M$36:$M$41) -> 6.542655716 | F582: =SUM('Industrial processes 2018'!$N$36:$N$41) -> 0.0005584905367 | G582: =SUM('Industrial processes W2018'!$K$36:$K$41) -> 0.269616175 | H582: =SUM('Industrial processes W2018'!$L$36:$L$41) -> 0.0617904168 | I582: =SUM('Industrial processes W2018'!$M$36:$M$41) -> 6.542655716 | J582: =SUM('Industrial processes W2018'!$N$36:$N$41) -> 0.0005584905367
B583: Total from industrial processes | C583: =SUM(C576:C582) -> 6391.707514 | D583: 0.7797855518 | E583: 6.559636026 | F583: =SUM(F576:F582) -> 17148.44428 | G583: 6391.707514 | H583: 0.7797855518 | I583: 6.559636026 | J583: 17148.44428
B608: Waste and wastewater distributed locally (municipality or region)
B610: Distribution of emissions from waste and wastewater
B612: Emissions from waste and wastewater [ton CO2-e] | C612: =C469 -> 2018 | D612: =G574 -> W2018
B613: Waste | C613: =SUBTOTAL(9,'Waste and wastewater 2018'!$L$12:$L$18) -> 38850.66571 | D613: =SUBTOTAL(9,'Waste and wastewater W2018'!$L$12:$L$18) -> 38850.66571
B614: Incineration of waste | C614: =SUBTOTAL(9,'Waste and wastewater 2018'!$L$17:$L$18) -> 9.56240533 | D614: =SUBTOTAL(9,'Waste and wastewater W2018'!$L$17:$L$18) -> 9.56240533
B615: Biological treatment of organic waste | C615: =SUBTOTAL(9,'Waste and wastewater 2018'!$L$15:$L$16) -> 16756.1636 | D615: =SUBTOTAL(9,'Waste and wastewater W2018'!$L$15:$L$16) -> 16756.1636
B616: Disposal of solid waste | C616: =SUBTOTAL(9,'Waste and wastewater 2018'!$L$12:$L$14) -> 22084.93971 | D616: =SUBTOTAL(9,'Waste and wastewater W2018'!$L$12:$L$14) -> 22084.93971
B617: Wastewater | C617: =SUBTOTAL(9,'Waste and wastewater 2018'!$L$20:$L$22) -> 4045.97799 | D617: =SUBTOTAL(9,'Waste and wastewater W2018'!$L$20:$L$22) -> 4045.97799
B618: Accidentasl fires | C618: =SUBTOTAL(9,'Waste and wastewater 2018'!$L$24:$L$25) -> 3907.531662 | D618: =SUBTOTAL(9,'Waste and wastewater W2018'!$L$24:$L$25) -> 3907.531662
B619: Total | C619: =C613+C617+C618 -> 46804.17537 | D619: =D613+D617+D618 -> 46804.17537
B643: Emissions from waste, wastewater and accidental fires [ton CO2-e] | C643: Incineration of waste | D643: Biological treatment of organic waste | E643: Disposal of solid waste | F643: Wastewater | G643: Fires
B644: 2018
B645: Waste | C645: =$C$614 -> 9.56240533 | D645: =$C$615 -> 16756.1636 | E645: =$C$616 -> 22084.93971
B646: Wastewater | F646: =$C$617 -> 4045.97799
B647: Accidental fires | G647: ='Waste and wastewater 2018'!$L$24+'Waste and wastewater 2018'!$L$25 -> 3907.531662
B648: W2018
B649: Waste | C649: =$D$614 -> 9.56240533 | D649: =$D$615 -> 16756.1636 | E649: =$D$616 -> 22084.93971
B650: Wastewater | F650: =$D$617 -> 4045.97799
B651: Accidental fires | G651: ='Waste and wastewater W2018'!$L$24+'Waste and wastewater W2018'!$L$25 -> 3907.531662

Sheet NIR factors
D1: NIR FACTORS
A2: Til index | D2: CHOSEN YEAR
B3: Årstal | D3: ='Graphs-climate + GWP og NIR'!H5 -> 2018 | E3: 2018 | F3: 2019 | G3: 2020 | H3: 2021
B4: Index
B5: Annex 1
B6: Annex 2
B7: Annex 2a
B8: Annex 3
B9: Annex 3a
B10: Annex 4
B11: Annex 5
B12: Annex 6
B13: Annex 7
B14: Annex 8
B15: Annex 9
B16: Annex 10
B17: Annex 11
B18: Annex 12
B19: Annex 13
B20: Bilag 14
B21: Bilag 15
B23: Annex 1
B25: Animal type | D25: Gross energy intake per day [MJ] | E25: Gross energy intake per day [MJ] | F25: Gross energy intake per day [MJ] | G25: Gross energy intake per day [MJ] | I25: Forskel 2018/2019 | J25: Forskel 2019/2020
B26: Dairy cows (avg.) | D26: =IF($D$3=$E$3,E26,IF($D$3=$F$3,F26,IF($D$3=$G$3,G26,"-"))) -> 415.4745577 | E26: ='Annex 3D-11 20'!AF8 -> 415.4745577 | F26: ='Annex 3D-11 20'!AF8 -> 415.4745577 | G26: ='Annex 3D-11 20'!AF8 -> 415.4745577 | I26: =IFERROR(ABS(F26-E26)/E26,"NO") -> 0 | J26: =IFERROR(ABS(G26-F26)/F26,"NO") -> 0
B27: Slagtekalve 0-6 mdr. | D27: =IF($D$3=$E$3,E27,IF($D$3=$F$3,F27,IF($D$3=$G$3,G27,"-"))) -> 66.39159689 | E27: ='Annex 3D-11 20'!AF9 -> 66.39159689 | F27: ='Annex 3D-11 20'!AF9 -> 66.39159689 | G27: ='Annex 3D-11 20'!AF9 -> 66.39159689 | I27: =IFERROR(ABS(F27-E27)/E27,"NO") -> 0 | J27: =IFERROR(ABS(G27-F27)/F27,"NO") -> 0
B28: Slagtekalve 6 mdr. | D28: 104.1766208 | E28: ='Annex 3D-11 20'!AF11 -> 104.1766208 | F28: ='Annex 3D-11 20'!AF11 -> 104.1766208 | G28: ='Annex 3D-11 20'!AF11 -> 104.1766208 | I28: 0 | J28: 0
B29: Breeding bulls | D29: 159.1709265 | E29: ='Annex 3D-11 20'!AF13 -> 159.1709265 | F29: ='Annex 3D-11 20'!AF13 -> 159.1709265 | G29: ='Annex 3D-11 20'!AF13 -> 159.1709265 | I29: 0 | J29: 0
B30: Småkalve | D30: 50.85143836 | E30: ='Annex 3D-11 20'!AF10 -> 50.85143836 | F30: ='Annex 3D-11 20'!AF10 -> 50.85143836 | G30: ='Annex 3D-11 20'!AF10 -> 50.85143836 | I30: 0 | J30: 0
B31: Kvier | D31: 129.7059805 | E31: ='Annex 3D-11 20'!AF12 -> 129.7059805 | F31: ='Annex 3D-11 20'!AF12 -> 129.7059805 | G31: ='Annex 3D-11 20'!AF12 -> 129.7059805 | I31: 0 | J31: 0
B32: Beef cattle, cows | D32: 159.1709265 | E32: ='Annex 3D-11 20'!AF13 -> 159.1709265 | F32: ='Annex 3D-11 20'!AF13 -> 159.1709265 | G32: ='Annex 3D-11 20'!AF13 -> 159.1709265 | I32: 0 | J32: 0
B33: Sows | D33: 71.89875452 | E33: ='Annex 3D-11 20'!AF16 -> 71.89875452 | F33: ='Annex 3D-11 20'!AF16 -> 71.89875452 | G33: ='Annex 3D-11 20'!AF16 -> 71.89875452 | I33: 0 | J33: 0
B34: Piglets | D34: 10.29232235 | E34: ='Annex 3D-11 20'!AF17 -> 10.29232235 | F34: ='Annex 3D-11 20'!AF17 -> 10.29232235 | G34: ='Annex 3D-11 20'!AF17 -> 10.29232235 | I34: 0 | J34: 0
B35: WTS-pigs | D35: 31.04595761 | E35: =+'Annex 3D-11 20'!AF17*0.241379310344828+'Annex 3D-11 20'!AF18*0.758620689655172 -> 31.04595761 | F35: =+'Annex 3D-11 20'!AF17*0.241379310344828+'Annex 3D-11 20'!AF18*0.758620689655172 -> 31.04595761 | G35: =+'Annex 3D-11 20'!AF17*0.241379310344828+'Annex 3D-11 20'!AF18*0.758620689655172 -> 31.04595761 | I35: 0 | J35: 0
B36: Sl. Pigs | D36: 37.64938701 | E36: ='Annex 3D-11 20'!AF18 -> 37.64938701 | F36: ='Annex 3D-11 20'!AF18 -> 37.64938701 | G36: ='Annex 3D-11 20'!AF18 -> 37.64938701 | I36: 0 | J36: 0
B37: Sheep | D37: 20.19237872 | E37: ='Annex 3D-11 20'!AF14 -> 20.19237872 | F37: ='Annex 3D-11 20'!AF14 -> 20.19237872 | G37: ='Annex 3D-11 20'!AF14 -> 20.19237872 | I37: 0 | J37: 0
B38: Deer | D38: 34.46147945 | E38: ='Annex 3D-11 20'!AF26 -> 34.46147945 | F38: ='Annex 3D-11 20'!AF26 -> 34.46147945 | G38: ='Annex 3D-11 20'!AF26 -> 34.46147945 | I38: 0 | J38: 0
B39: Goats | D39: 39.88585165 | E39: ='Annex 3D-11 20'!AF19 -> 39.88585165 | F39: ='Annex 3D-11 20'!AF19 -> 39.88585165 | G39: ='Annex 3D-11 20'!AF19 -> 39.88585165 | I39: 0 | J39: 0
B40: Fur animals | D40: 7.507350685 | E40: ='Annex 3D-11 20'!AF27 -> 7.507350685 | F40: ='Annex 3D-11 20'!AF27 -> 7.507350685 | G40: ='Annex 3D-11 20'!AF27 -> 7.507350685 | I40: 0 | J40: 0
B41: Horses | D41: 148.19403 | E41: ='Annex 3D-11 20'!AF20 -> 148.19403 | F41: ='Annex 3D-11 20'!AF20 -> 148.19403 | G41: ='Annex 3D-11 20'!AF20 -> 148.19403 | I41: 0 | J41: 0
B42: Poultry | D42: 0 | I42: NO | J42: NO
B43: Broilers | D43: 1.496336843 | E43: ='Annex 3D-11 20'!AF24 -> 1.496336843 | F43: ='Annex 3D-11 20'!AF24 -> 1.496336843 | G43: ='Annex 3D-11 20'!AF24 -> 1.496336843 | I43: 0 | J43: 0
B44: Hens | D44: 2.965901985 | E44: ='Annex 3D-11 20'!AF22 -> 2.965901985 | F44: ='Annex 3D-11 20'!AF22 -> 2.965901985 | G44: ='Annex 3D-11 20'!AF22 -> 2.965901985 | I44: 0 | J44: 0
B45: Young hens | D45: 0.4014163821 | E45: ='Annex 3D-11 20'!AF23 -> 0.4014163821 | F45: ='Annex 3D-11 20'!AF23 -> 0.4014163821 | G45: ='Annex 3D-11 20'!AF23 -> 0.4014163821 | I45: 0 | J45: 0
B46: Pheasants | D46: 1.496336843 | E46: ='Annex 3D-11 20'!AF24 -> 1.496336843 | F46: ='Annex 3D-11 20'!AF24 -> 1.496336843 | G46: ='Annex 3D-11 20'!AF24 -> 1.496336843 | I46: 0 | J46: 0
B47: Geese | D47: 5.120096498 | E47: ='Annex 3D-11 20'!AF25 -> 5.120096498 | F47: ='Annex 3D-11 20'!AF25 -> 5.120096498 | G47: ='Annex 3D-11 20'!AF25 -> 5.120096498 | I47: 0 | J47: 0
B48: Ducks | D48: 5.120096498 | E48: ='Annex 3D-11 20'!AF25 -> 5.120096498 | F48: ='Annex 3D-11 20'!AF25 -> 5.120096498 | G48: ='Annex 3D-11 20'!AF25 -> 5.120096498 | I48: 0 | J48: 0
B49: Total | D49: =""&IF($D$3=$E$3,E49,IF($D$3=$F$3,F49,IF($D$3=$G$3,G49,"-"))) ->  | I49: NO | J49: NO
I50: NO | J50: NO
B51: Source: | D51: NIR Tier II Annex 3D-11 NIR, 2022 (2020) | E51: NIR Tier II Annex 3D-11 NIR, 2022 (2020) | F51: NIR Tier II Annex 3D-11 NIR, 2022 (2020) | G51: NIR Tier II Annex 3D-11 NIR, 2022 (2020) | I51: NO | J51: NO
I52: NO | J52: NO
B53: Animal type | D53: CH4 conversion rate | E53: CH4 conversion rate | F53: CH4 conversion rate | G53: CH4 conversion rate | I53: NO | J53: NO
B54: Dairy cows (avg.) | D54: =""&IF($D$3=$E$3,E54,IF($D$3=$F$3,F54,IF($D$3=$G$3,G54,"-"))) -> 0,06 | E54: =Table3.As1_2018!D11/100 -> 0.06 | F54: =Table3.As1_2019!D11/100 -> 0.06 | G54: =Table3.As1_2020!D11/100 -> 0.0576 | I54: 0 | J54: 0.04
B55: Slagtekalve 0-6 mdr. | D55: 0,03 | E55: 0.03 | F55: 0.03 | G55: 0.03 | I55: 0 | J55: 0
B56: Slagtekalve 6 mdr. | D56: 0,03 | E56: 0.03 | F56: 0.03 | G56: 0.03 | I56: 0 | J56: 0
B57: Breeding bulls | D57: 0,03 | E57: 0.03 | F57: 0.03 | G57: 0.03 | I57: 0 | J57: 0
B58: Småkalve | D58: 0,065 | E58: =Table3.As1_2018!D12/100 -> 0.065 | F58: =Table3.As1_2019!D12/100 -> 0.065 | G58: =Table3.As1_2020!D12/100 -> 0.065 | I58: 0 | J58: 0
B59: Kvier | D59: 0,065 | E59: =Table3.As1_2018!D12/100 -> 0.065 | F59: =Table3.As1_2019!D12/100 -> 0.065 | G59: =Table3.As1_2020!D12/100 -> 0.065 | I59: 0 | J59: 0
B60: Beef cattle, cows | D60: 0,065 | E60: =Table3.As1_2018!D12/100 -> 0.065 | F60: =Table3.As1_2019!D12/100 -> 0.065 | G60: =Table3.As1_2020!D12/100 -> 0.065 | I60: 0 | J60: 0
B61: Sows | D61: 0,006 | E61: =Table3.As1_2018!D24/100 -> 0.006 | F61: =Table3.As1_2019!D24/100 -> 0.006 | G61: =Table3.As1_2020!D24/100 -> 0.006 | I61: 0 | J61: 0
B62: Piglets | D62: 0,006 | E62: =Table3.As1_2018!D24/100 -> 0.006 | F62: =Table3.As1_2019!D24/100 -> 0.006 | G62: =Table3.As1_2020!D24/100 -> 0.006 | I62: 0 | J62: 0
B63: WTS-pigs | D63: 0,006 | E63: =Table3.As1_2018!D24/100 -> 0.006 | F63: =Table3.As1_2019!D24/100 -> 0.006 | G63: =Table3.As1_2020!D24/100 -> 0.006 | I63: 0 | J63: 0
B64: Sl. Pigs | D64: 0,006 | E64: =Table3.As1_2018!D24/100 -> 0.006 | F64: =Table3.As1_2019!D24/100 -> 0.006 | G64: =Table3.As1_2020!D24/100 -> 0.006 | I64: 0 | J64: 0
B65: Sheep | D65: 0,065 | E65: =Table3.As1_2018!D21/100 -> 0.065 | F65: =Table3.As1_2019!D21/100 -> 0.065 | G65: =Table3.As1_2020!D21/100 -> 0.065 | I65: 0 | J65: 0
B66: Deer | D66: 0,05 | E66: =Table3.As1_2018!D26/100 -> 0.05 | F66: =Table3.As1_2019!D26/100 -> 0.05 | G66: =Table3.As1_2020!D26/100 -> 0.05 | I66: 0 | J66: 0
B67: Goats | D67: 0,05 | E67: =Table3.As1_2018!D27/100 -> 0.05 | F67: =Table3.As1_2019!D27/100 -> 0.05 | G67: =Table3.As1_2020!D27/100 -> 0.05 | I67: 0 | J67: 0
B68: Fur animals | D68: NA | E68: NA | F68: NA | G68: NA | I68: NO | J68: NO
B69: Horses | D69: 0,025 | E69: =Table3.As1_2018!D28/100 -> 0.025 | F69: =Table3.As1_2019!D28/100 -> 0.025 | G69: =Table3.As1_2020!D28/100 -> 0.025 | I69: 0 | J69: 0
B70: Poultry | D70: NA | E70: NA | F70: NA | G70: NA | I70: NO | J70: NO
B71: Total | I71: NO | J71: NO
I72: NO | J72: NO
B73: Kilde: | D73: NIR Tier II 2020 (2018) Tabel 5.7 og 5.8 og CRF Tabel 3.As1 2020 (2018) | E73: NIR Tier II 2020 (2018) Tabel 5.7 og 5.8 og CRF Tabel 3.As1 2020 (2018) | F73: NIR Tier II 2021 (2019) Tabel 5.7 og 5.8 og CRF Tabel 3.As1 2021 (2019) | G73: NIR Tier II 2022 (2020) Tabel 5.7 og 5.8 og CRF Tabel 3.As1 2022 (2020) | I73: NO | J73: NO
I74: NO | J74: NO
B75: Annex 2 (data sheet) | I75: NO | J75: NO
I76: NO | J76: NO
B77: No NIR table factors | I77: NO | J77: NO
I78: NO | J78: NO
B79: Annex 2a | I79: NO | J79: NO
I80: NO | J80: NO
B81: No NIR table factors | I81: NO | J81: NO
I82: NO | J82: NO
B83: Annex 3 | I83: NO | J83: NO
D84: =""&IF($D$3=$E$3,E84,IF($D$3=$F$3,F84,IF($D$3=$G$3,G84,"-"))) ->  | I84: NO | J84: NO
B85: No NIR table factors | I85: NO | J85: NO
I86: NO | J86: NO
B87: Annex 3a | I87: NO | J87: NO
I88: NO | J88: NO
B89: No NIR table factors | I89: NO | J89: NO
I90: NO | J90: NO
B91: Annex 4 | I91: =IFERROR(ABS(F91-E91)/E91,"NO") -> NO | J91: NO
I92: NO | J92: NO
B93: Crop type | D93: AGDM(T) Dry matter content in crop residues above ground | E93: AGDM(T) Dry matter content in crop residues above ground | F93: AGDM(T) Dry matter content in crop residues above ground | G93: AGDM(T) Dry matter content in crop residues above ground | I93: NO | J93: NO
B94: Winter wheat | D94: =IF($D$3=$E$3,E94,IF($D$3=$F$3,F94,IF($D$3=$G$3,G94,"-"))) -> 8491.159734 | E94: ='Annex 3D-20 20'!AD5 -> 8491.159734 | F94: ='Annex 3D-20 20'!AE5 -> 11326.1097 | G94: ='Annex 3D-20 20'!AF5 -> 11375.10353 | I94: 0.3338707616 | J94: 0.004325742377
B95: Spring wheat | D95: =IF($D$3=$E$3,E95,IF($D$3=$F$3,F95,IF($D$3=$G$3,G95,"-"))) -> 4380.998834 | E95: ='Annex 3D-20 20'!AD6 -> 4380.998834 | F95: ='Annex 3D-20 20'!AE6 -> 6072.207346 | G95: ='Annex 3D-20 20'!AF6 -> 5996.484908 | I95: 0.3860326324 | J95: 0.01247033138
B96: Rye | D96: 4965.909284 | E96: ='Annex 3D-20 20'!AD7 -> 4965.909284 | F96: ='Annex 3D-20 20'!AE7 -> 5716.297926 | G96: ='Annex 3D-20 20'!AF7 -> 5701.57564 | I96: 0.1511080044 | J96: 0.002575493128
B97: Winter barley | D97: 4455.809636 | E97: ='Annex 3D-20 20'!AD8 -> 4455.809636 | F97: ='Annex 3D-20 20'!AE8 -> 5849.469692 | G97: ='Annex 3D-20 20'!AF8 -> 5913.735497 | I97: 0.3127736977 | J97: 0.01098660362
B98: Spring barley | D98: 3587.707947 | E98: ='Annex 3D-20 20'!AD9 -> 3587.707947 | F98: ='Annex 3D-20 20'!AE9 -> 5035.050594 | G98: ='Annex 3D-20 20'!AF9 -> 5293.786413 | I98: 0.4034170752 | J98: 0.05138693527
B99: Oats | D99: 2984.760847 | E99: ='Annex 3D-20 20'!AD10 -> 2984.760847 | F99: ='Annex 3D-20 20'!AE10 -> 4280.387501 | G99: ='Annex 3D-20 20'!AF10 -> 4837.791237 | I99: 0.4340805581 | J99: 0.1302227275
B100: Triticale and other cereals to maturity | D100: 3266.959137 | E100: ='Annex 3D-20 20'!AD11 -> 3266.959137 | F100: ='Annex 3D-20 20'!AE11 -> 9771.205434 | G100: ='Annex 3D-20 20'!AF11 -> 11598.21755 | I100: 1.990917555 | J100: 0.1869791942
B101: Maize to maturity | D101: 1982.164076 | E101: ='Annex 3D-20 20'!AD12 -> 1982.164076 | F101: ='Annex 3D-20 20'!AE12 -> 2842.284089 | G101: ='Annex 3D-20 20'!AF12 -> 2151.389661 | I101: 0.4339297758 | J101: 0.2430771895
B102: Fodder maize | D102: 12081.65819 | E102: ='Annex 3D-20 20'!AD13 -> 12081.65819 | F102: ='Annex 3D-20 20'!AE13 -> 15159.41651 | G102: ='Annex 3D-20 20'!AF13 -> 11152.62291 | I102: 0.2547463496 | J102: 0.2643105423
B103: Potatoes | D103: =IF($D$3=$E$3,E103,IF($D$3=$F$3,F103,IF($D$3=$G$3,G103,"-"))) -> 892.6648113 | E103: ='Annex 3D-20 20'!AD14 -> 892.6648113 | F103: ='Annex 3D-20 20'!AE14 -> 1079.803772 | G103: ='Annex 3D-20 20'!AF14 -> 1058.983707 | I103: 0.209640795 | J103: 0.01928134174
B104: Lucerne | D104: =IF($D$3=$E$3,E104,IF($D$3=$F$3,F104,IF($D$3=$G$3,G104,"-"))) -> 1349.387755 | E104: ='Annex 3D-20 20'!AD15 -> 1349.387755 | F104: ='Annex 3D-20 20'!AE15 -> 3935.6625 | G104: ='Annex 3D-20 20'!AF15 -> 3474.020619 | I104: 1.916628289 | J104: 0.1172971212
B105: Leguminous seeds to maturity | D105: 2530.775786 | E105: ='Annex 3D-20 20'!AD16 -> 2530.775786 | F105: ='Annex 3D-20 20'!AE16 -> 3838.650037 | G105: ='Annex 3D-20 20'!AF16 -> 3943.954609 | I105: 0.5167878789 | J105: 0.02743270962
B106: Sugar beet for factory + Fodder beet | D106: 919.8989625 | E106: ='Annex 3D-20 20'!AD17 -> 919.8989625 | F106: ='Annex 3D-20 20'!AE17 -> 1312.679102 | G106: ='Annex 3D-20 20'!AF17 -> 1281.062151 | I106: 0.426981827 | J106: 0.02408581877
B107: Cereals and pulses for ensiling (whole grain) | D107: 1213.296513 | E107: ='Annex 3D-20 20'!AD18 -> 1213.296513 | F107: ='Annex 3D-20 20'!AE18 -> 1823.555539 | G107: ='Annex 3D-20 20'!AF18 -> 1535.676729 | I107: 0.5029759992 | J107: 0.157866763
B108: Grass and clover field in rotation + Seeds for sowing | D108: 2218.63667 | E108: ='Annex 3D-20 20'!AD21 -> 2218.63667 | F108: ='Annex 3D-20 20'!AE21 -> 2923.067324 | G108: ='Annex 3D-20 20'!AF21 -> 2627.745417 | I108: 0.3175060895 | J108: 0.1010315103
B109: Grasslands outside the rotation | D109: 1264.000245 | E109: ='Annex 3D-20 20'!AD22 -> 1264.000245 | F109: ='Annex 3D-20 20'!AE22 -> 1212.56828 | G109: ='Annex 3D-20 20'!AF22 -> 859.3309503 | I109: 0.04068983782 | J109: 0.2913133514
B110: Rapeseed in total + Flax + Other industrial seeds | D110: 3368.129174 | E110: ='Annex 3D-20 20'!AD23 -> 3368.129174 | F110: ='Annex 3D-20 20'!AE23 -> 4408.128029 | G110: ='Annex 3D-20 20'!AF23 -> 3842.844034 | I110: 0.308776416 | J110: 0.128236746
D111: =""&IF($D$3=$E$3,E111,IF($D$3=$F$3,F111,IF($D$3=$G$3,G111,"-"))) ->  | I111: NO | J111: NO
B112: Source: | D112: NIR Annex 3D-20 2022 (2018) | E112: NIR Annex 3D-20 2022 (2018) | F112: NIR Annex 3D-20 2022 (2019) | G112: NIR Annex 3D-20 2022 (2020) | I112: NO | J112: NO
I113: NO | J113: NO
B114: Livestock category | C114: Animal type | D114: Days grazing | E114: Days grazing | F114: Days grazing | G114: Days grazing | I114: NO | J114: NO
B115: Dairy cattle | C115: Heavy breed | D115: 18 | E115: ='Annex 3D-9 20'!AF5 -> 18 | F115: ='Annex 3D-9 20'!AF5 -> 18 | G115: ='Annex 3D-9 20'!AF5 -> 18 | I115: 0 | J115: 0
B116: Dairy cattle | C116: Jersey | D116: 18 | E116: ='Annex 3D-9 20'!AF5 -> 18 | F116: ='Annex 3D-9 20'!AF5 -> 18 | G116: ='Annex 3D-9 20'!AF5 -> 18 | I116: 0 | J116: 0
B117: Heifers > 1/2 years | C117: Heavy breed | D117: =IF($D$3=$E$3,E117,IF($D$3=$F$3,F117,IF($D$3=$G$3,G117,"-"))) -> 131.8545455 | E117: ='Annex 3D-9 20'!AF6 -> 131.8545455 | F117: ='Annex 3D-9 20'!AF6 -> 131.8545455 | G117: ='Annex 3D-9 20'!AF6 -> 131.8545455 | I117: 0 | J117: 0
B118: Heifers > 1/2 years | C118: Jersey | D118: =IF($D$3=$E$3,E118,IF($D$3=$F$3,F118,IF($D$3=$G$3,G118,"-"))) -> 131.8545455 | E118: ='Annex 3D-9 20'!AF6 -> 131.8545455 | F118: ='Annex 3D-9 20'!AF6 -> 131.8545455 | G118: ='Annex 3D-9 20'!AF6 -> 131.8545455 | I118: 0 | J118: 0
B119: Heifer calves/small calves | C119: Heavy breed | D119: 224 | E119: ='Annex 3D-9 20'!AF7 -> 224 | F119: ='Annex 3D-9 20'!AF7 -> 224 | G119: ='Annex 3D-9 20'!AF7 -> 224 | I119: 0 | J119: 0
B120: Heifer calves/small calves | C120: Jersey | D120: 224 | E120: ='Annex 3D-9 20'!AF7 -> 224 | F120: ='Annex 3D-9 20'!AF7 -> 224 | G120: ='Annex 3D-9 20'!AF7 -> 224 | I120: 0 | J120: 0
B121: Other cattle | C121: Slaughter calf 0-6 months Heavy breed | D121: 18 | E121: ='Annex 3D-9 20'!AF5 -> 18 | F121: ='Annex 3D-9 20'!AF5 -> 18 | G121: ='Annex 3D-9 20'!AF5 -> 18 | I121: 0 | J121: 0
B122: Other cattle | C122: Slaughter calf 0-6 months Jersey | D122: 18 | E122: ='Annex 3D-9 20'!AF5 -> 18 | F122: ='Annex 3D-9 20'!AF5 -> 18 | G122: ='Annex 3D-9 20'!AF5 -> 18 | I122: 0 | J122: 0
B123: Other cattle | C123: Slaughter calf > 6 months Jersey | D123: 18 | E123: ='Annex 3D-9 20'!AF5 -> 18 | F123: ='Annex 3D-9 20'!AF5 -> 18 | G123: ='Annex 3D-9 20'!AF5 -> 18 | I123: 0 | J123: 0
B124: Other cattle | C124: Slaughter calf > 6 months heavy breed | D124: 18 | E124: ='Annex 3D-9 20'!AF5 -> 18 | F124: ='Annex 3D-9 20'!AF5 -> 18 | G124: ='Annex 3D-9 20'!AF5 -> 18 | I124: 0 | J124: 0
B125: Other cattle | C125: Breeding bull Heavy breed | D125: 18 | E125: ='Annex 3D-9 20'!AF5 -> 18 | F125: ='Annex 3D-9 20'!AF5 -> 18 | G125: ='Annex 3D-9 20'!AF5 -> 18 | I125: 0 | J125: 0
B126: Other cattle | C126: Breeding bull Jersey | D126: 18 | E126: ='Annex 3D-9 20'!AF5 -> 18 | F126: ='Annex 3D-9 20'!AF5 -> 18 | G126: ='Annex 3D-9 20'!AF5 -> 18 | I126: 0 | J126: 0
B127: Other cattle | C127: Lactating cows <400 kg | D127: 18 | E127: ='Annex 3D-9 20'!AF5 -> 18 | F127: ='Annex 3D-9 20'!AF5 -> 18 | G127: ='Annex 3D-9 20'!AF5 -> 18 | I127: 0 | J127: 0
B128: Other cattle | C128: Lactating cow 4-600 kg | D128: 18 | E128: ='Annex 3D-9 20'!AF5 -> 18 | F128: ='Annex 3D-9 20'!AF5 -> 18 | G128: ='Annex 3D-9 20'!AF5 -> 18 | I128: 0 | J128: 0
B129: Other cattle | C129: Lactating cow > 600 kg | D129: 18 | E129: ='Annex 3D-9 20'!AF5 -> 18 | F129: ='Annex 3D-9 20'!AF5 -> 18 | G129: ='Annex 3D-9 20'!AF5 -> 18 | I129: 0 | J129: 0
B130: Sheep | D130: 195 | E130: ='Annex 3D-9 20'!AF8 -> 195 | F130: ='Annex 3D-9 20'!AF8 -> 195 | G130: ='Annex 3D-9 20'!AF8 -> 195 | I130: 0 | J130: 0
B131: Goats | D131: 195 | E131: ='Annex 3D-9 20'!AF8 -> 195 | F131: ='Annex 3D-9 20'!AF8 -> 195 | G131: ='Annex 3D-9 20'!AF8 -> 195 | I131: 0 | J131: 0
B132: Pigs | C132: Sows, annually | D132: 0 | E132: 0 | F132: 0 | G132: 0 | I132: NO | J132: NO
B133: Pigs | C133: Slaughter pigs incl. WTS pigs | D133: 0 | E133: 0 | F133: 0 | G133: 0 | I133: NO | J133: NO
B134: Pigs | C134: Piglets | D134: 0 | E134: 0 | F134: 0 | G134: 0 | I134: NO | J134: NO
B135: Horses | C135: Horses <300 kg | D135: 265 | E135: ='Annex 3D-9 20'!AF9 -> 265 | F135: ='Annex 3D-9 20'!AF9 -> 265 | G135: ='Annex 3D-9 20'!AF9 -> 265 | I135: 0 | J135: 0
B136: Horses | C136: Horses 3-500 kg | D136: 265 | E136: ='Annex 3D-9 20'!AF9 -> 265 | F136: ='Annex 3D-9 20'!AF9 -> 265 | G136: ='Annex 3D-9 20'!AF9 -> 265 | I136: 0 | J136: 0
B137: Horses | C137: Horses 5-700 kg | D137: 265 | E137: ='Annex 3D-9 20'!AF9 -> 265 | F137: ='Annex 3D-9 20'!AF9 -> 265 | G137: ='Annex 3D-9 20'!AF9 -> 265 | I137: 0 | J137: 0
B138: Horses | C138: Horses > 700 kg | D138: 265 | E138: ='Annex 3D-9 20'!AF9 -> 265 | F138: ='Annex 3D-9 20'!AF9 -> 265 | G138: ='Annex 3D-9 20'!AF9 -> 265 | I138: 0 | J138: 0
B139: Total | I139: NO | J139: NO
I140: NO | J140: NO
B141: Source: | D141: NIR Annex 3D-9 2022 (2020) | E141: NIR Annex 3D-9 2022 (2020) | F141: NIR Annex 3D-9 2022 (2020) | G141: NIR Annex 3D-9 2022 (2020) | I141: NO | J141: NO
I142: NO | J142: NO
B143: Form of cultivation | D143: Total area in DK mineral soil, cultivated (ha) | E143: Total area in DK mineral soil, cultivated (ha) | F143: Total area in DK mineral soil, cultivated (ha) | G143: Total area in DK mineral soil, cultivated (ha) | I143: NO | J143: NO
B144: Cultivated crops and permanent grass | D144: =IF($D$3=$E$3,E144,IF($D$3=$F$3,F144,IF($D$3=$G$3,G144,"-"))) -> 2690053.138 | E144: =Table4.B_2018!D10*1000 -> 2690053.138 | F144: =Table4.B_2019!D10*1000 -> 2711357.814 | G144: =Table4.B_2020!D10*1000 -> 2709548.676 | I144: 0.007919797606 | J144: 0.0006672442445
I145: NO | J145: NO
B146: Source: | D146: NIR CRF tabel 4B 2020 (2018) | E146: NIR CRF tabel 4B 2020 (2018) | F146: NIR CRF tabel 4B 2021 (2019) | G146: NIR CRF tabel 4B 2022 (2020) | I146: NO | J146: NO
I147: NO | J147: NO
B148: Form of cultivation | D148: Total mineralized N in Dk (kg) | E148: Total mineralized N in Dk (kg) | F148: Total mineralized N in Dk (kg) | G148: Total mineralized N in Dk (kg) | I148: NO | J148: NO
B149: Cultivated crops and permanent grass | D149: =IF($D$3=$E$3,E149,IF($D$3=$F$3,F149,IF($D$3=$G$3,G149,"-"))) -> 28857783.93 | E149: =Table3.D_2018!C16 -> 28857783.93 | F149: =Table3.D_2019!C16 -> 13365420.53 | G149: =Table3.D_2020!C16 -> 13610410.67 | I149: 0.5368521519 | J149: 0.01833014847
I150: NO | J150: NO
B151: Source: | D151: NIR CRF tabel 3D 2020 (2018) | E151: NIR CRF tabel 3D 2020 (2018) | F151: NIR CRF tabel 3D 2021 (2019) | G151: NIR CRF tabel 3D 2022 (2020) | I151: NO | J151: NO
I152: NO | J152: NO
B153: Fertilizer type | D153: Evaporated fraction (%) | E153: Evaporated fraction (%) | F153: Evaporated fraction (%) | G153: Evaporated fraction (%) | I153: NO | J153: NO
B154: Chemical fertilizer N Kg per year | D154: =IF($D$3=$E$3,E154,IF($D$3=$F$3,F154,IF($D$3=$G$3,G154,"-"))) -> 0.05183311593 | E154: =Table3.D_2018!C32 -> 0.05183311593 | F154: =Table3.D_2019!C32 -> 0.0606688307 | G154: =Table3.D_2020!C32 -> 0.0519257298 | I154: 0.1704646656 | J154: 0.1441119072
B155: Organic fertilizer + manure from grazing animals, N kg per year | D155: =IF($D$3=$E$3,E155,IF($D$3=$F$3,F155,IF($D$3=$G$3,G155,"-"))) -> 0.09287228705 | E155: =Table3.D_2018!C33 -> 0.09287228705 | F155: =Table3.D_2019!C33 -> 0.07535430977 | G155: =Table3.D_2020!C33 -> 0.08630225633 | I155: =IFERROR(ABS(F155-E155)/E155,"NO") -> 0.1886243769 | J155: 0.1452862695
B156: Crop residues N kg per year | D156: 0.0302263272 | E156: 0.0302263272 | F156: 0.0302263272 | G156: 0.0302263272 | I156: 0 | J156: 0
I157: NO | J157: NO
B158: Source: | D158: NIR CRF tabel 3D 2020 (2018) | E158: NIR CRF tabel 3D 2020 (2018) | F158: NIR CRF tabel 3D 2021 (2019) | G158: NIR CRF tabel 3D 2022 (2020) | I158: NO | J158: NO
I159: NO | J159: NO
B160: Fraction of N leached | D160: Frac Leach - share of N input which is leached (%) | E160: Frac Leach - share of N input which is leached (%) | F160: Frac Leach - share of N input which is leached (%) | G160: Frac Leach - share of N input which is leached (%) | I160: NO | J160: NO
B161: All soil types | D161: =IF($D$3=$E$3,E161,IF($D$3=$F$3,F161,IF($D$3=$G$3,G161,"-"))) -> 0.2547823245 | E161: =Table3.D_2018!C34 -> 0.2547823245 | F161: =Table3.D_2019!C34 -> 0.2548933042 | G161: =Table3.D_2020!C34 -> 0.2141201623 | I161: 0.0004355863473 | J161: 0.1599616043
I162: NO | J162: NO
B163: Source: | D163: NIR CRF tabel 3D 2020 (2018) | E163: NIR CRF tabel 3D 2020 (2018) | F163: NIR CRF tabel 3D 2021 (2019) | G163: NIR CRF tabel 3D 2022 (2020) | I163: NO | J163: NO
I164: NO | J164: NO
B165: Annex 5 | I165: NO | J165: NO
I166: NO | J166: NO
D167: Kg | E167: Kg | F167: Kg | G167: Kg | I167: NO | J167: NO
B168: Lime in Danish agriculture during the year (kg) CaCO3 | D168: =IF($D$3=$E$3,E168,IF($D$3=$F$3,F168,IF($D$3=$G$3,G168,"-"))) -> 545300000 | E168: =('Table3.G-I_2018'!B9*1000) -> 545300000 | F168: ='Table3.G-I_2019'!B9*1000 -> 412300000 | G168: =('Table3.G-I_2020'!B9)*1000 -> 567300000 | I168: 0.243902439 | J168: 0.3759398496
B169: Urea in Danish agriculture during the year (kg) | D169: =IF($D$3=$E$3,E169,IF($D$3=$F$3,F169,IF($D$3=$G$3,G169,"-"))) -> 1900000 | E169: ='Table3.G-I_2018'!B11*1000 -> 1900000 | F169: ='Table3.G-I_2019'!B11*1000 -> 981000 | G169: ='Table3.G-I_2020'!B11*1000 -> 1268000 | I169: 0.4836842105 | J169: 0.2925586137
B170: CAN in Danish agriculture during the year (kg) CAN | D170: 26100000 | E170: ='Table3.G-I_2018'!B12*1000 -> 26100000 | F170: ='Table3.G-I_2019'!B12*1000 -> 28100000 | G170: ='Table3.G-I_2020'!B12*1000 -> 40140000 | I170: 0.07662835249 | J170: 0.4284697509
D171: =""&IF($D$3=$E$3,E171,IF($D$3=$F$3,F171,IF($D$3=$G$3,G171,"-"))) ->  | I171: NO | J171: NO
B172: Source: | D172: NIR CRF tabel 3G-I 2020 (2018) | E172: NIR CRF tabel 3G-I 2020 (2018) | F172: NIR CRF tabel 3G-I 2021 (2019) | G172: NIR CRF tabel 3G-I 2022 (2020) | I172: NO | J172: NO
I173: NO | J173: NO
D174: Agriculture and horticulture in Denmark (ha) | E174: Agriculture and horticulture in Denmark (ha) | F174: Agriculture and horticulture in Denmark (ha) | G174: Agriculture and horticulture in Denmark (ha) | I174: NO | J174: NO
B175: Cultivated soil for agriculture and horticulture in Denmark (ha) | D175: =IF($D$3=$E$3,E175,IF($D$3=$F$3,F175,IF($D$3=$G$3,G175,"-"))) -> 2779014.769 | E175: =Table4.B_2018!C11*1000 -> 2779014.769 | F175: =Table4.B_2019!C11*1000 -> 2760872.562 | G175: =Table4.B_2020!C11*1000 -> 2750275.683 | I175: 0.006528287098 | J175: 0.003838235523
I176: NO | J176: NO
B177: Source: | D177: NIR tabel 4B 2020 (2018) | E177: NIR tabel 4B 2020 (2018) | F177: NIR tabel 4B 2021 (2019) | G177: NIR tabel 4B 2022 (2020) | I177: NO | J177: NO
I178: NO | J178: NO
D179: Emission factor (kg CO2 -C/ kg) | E179: Emission factor (kg CO2 -C/ kg) | F179: Emission factor (kg CO2 -C/ kg) | G179: Emission factor (kg CO2 -C/ kg) | I179: NO | J179: NO
B180: CO2 emission from liming CaCO3 | D180: =IF($D$3=$E$3,E180,IF($D$3=$F$3,F180,IF($D$3=$G$3,G180,"-"))) -> 0.1199920072 | E180: ='Table3.G-I_2018'!C9 -> 0.1199920072 | F180: ='Table3.G-I_2019'!C9 -> 0.1199920072 | G180: ='Table3.G-I_2020'!C9 -> 0.1199920072 | I180: 0 | J180: 0
B181: CO2 emission from urea | D181: =IF($D$3=$E$3,E181,IF($D$3=$F$3,F181,IF($D$3=$G$3,G181,"-"))) -> 0.2 | E181: ='Table3.G-I_2018'!C11 -> 0.2 | F181: ='Table3.G-I_2019'!C11 -> 0.2 | G181: ='Table3.G-I_2020'!C11 -> 0.2 | I181: 0 | J181: 0
B182: CO2 emission from Calcium ammonium nitrate (CAN) | D182: 0.03 | E182: ='Table3.G-I_2018'!C12 -> 0.03 | F182: ='Table3.G-I_2019'!C12 -> 0.03 | G182: ='Table3.G-I_2020'!C12 -> 0.026 | I182: 0 | J182: 0.1333333333
I183: NO | J183: NO
B184: Source: | D184: NIR CRF tabel 3G-I 2020 (2018) | E184: NIR CRF tabel 3G-I 2020 (2018) | F184: NIR CRF tabel 3G-I 2021 (2019) | G184: NIR CRF tabel 3G-I 2022 (2020) | I184: NO | J184: NO
I185: NO | J185: NO
B186: Annex 5a | I186: NO | J186: NO
I187: NO | J187: NO
B188: No NIR table factors | I188: NO | J188: NO
I189: NO | J189: NO
B190: Annex 6 | I190: NO | J190: NO
I191: NO | J191: NO
B192: Forest | D192: ton C / ha | E192: ton C / ha | F192: ton C / ha | G192: ton C / ha | I192: NO | J192: NO
B193: Increase in carbon stock (ton C/ha) | C193: Total forest land (2020) | I193: NO | J193: NO
C194: Forest which remains forest (1990-2020) | D194: =IF($D$3=$E$3,E194,IF($D$3=$F$3,F194,IF($D$3=$G$3,G194,"-"))) -> 1.255351757 | E194: =Table4.A_2018!F12 -> 1.255351757 | F194: =Table4.A_2019!F12 -> 0.1394152626 | G194: =Table4.A_2020!F12 -> 0.1535278771 | I194: 0.8889432688 | J194: 0.1012271846
C195: Afforestation (1990-2020) | I195: NO | J195: NO
C196: Agricultural land converted to forest | D196: =IF($D$3=$E$3,E196,IF($D$3=$F$3,F196,IF($D$3=$G$3,G196,"-"))) -> 0.8224763236 | E196: =Table4.A_2018!F15 -> 0.8224763236 | F196: =Table4.A_2019!F15 -> 3.087434642 | G196: =Table4.A_2020!F15 -> 2.810460891 | I196: 2.753827987 | J196: 0.08970999632
C197: Permanent grass converted to forest | D197: =IF($D$3=$E$3,E197,IF($D$3=$F$3,F197,IF($D$3=$G$3,G197,"-"))) -> 0.9521671182 | E197: =Table4.A_2018!F17 -> 0.9521671182 | F197: =Table4.A_2019!F17 -> 3.395212307 | G197: =Table4.A_2020!F17 -> 3.056016082 | I197: 2.565773531 | J197: 0.09990427535
C198: Wetland converted to forest | D198: =IF($D$3=$E$3,E198,IF($D$3=$F$3,F198,IF($D$3=$G$3,G198,"-"))) -> 0.7365019559 | E198: =Table4.A_2018!F19 -> 0.7365019559 | F198: =Table4.A_2019!F19 -> 3.621735025 | G198: =Table4.A_2020!F19 -> 3.287862311 | I198: 3.917481883 | J198: 0.09218584783
C199: Settlement area converted to forest | D199: NO | E199: =Table4.A_2018!F21 -> NO | F199: =Table4.A_2019!F21 -> NO | G199: =Table4.A_2020!F21 -> NA | I199: NO | J199: NO
C200: Other land converted to forest | D200: NO | E200: =Table4.A_2018!F23 -> NO | F200: =Table4.A_2019!F23 -> NO | G200: =Table4.A_2020!F23 -> NA | I200: NO | J200: NO
C201: Lakes, streams, etc. | D201: NO | E201: =Table4.A_2018!F23 -> NO | F201: =Table4.A_2019!F23 -> NO | G201: =Table4.A_2020!F23 -> NA | I201: NO | J201: NO
C202: Unclassified area converted to forest | D202: NO | E202: =Table4.A_2018!F23 -> NO | F202: =Table4.A_2019!F23 -> NO | G202: =Table4.A_2020!F23 -> NA | I202: NO | J202: NO
... 1265 more rows

Sheet Reduction Path Calc
C1: Reduction calculator
A3: and forward
A5: Agriculture (Plant Breeding, Animal Husbandry and Land Use) | D5: Reduction factor | F5: Potential Baseline | H5: BAU 2030 | J5: BAU 2050 | L5: STI 2030 | N5: STI 2050 | P5: Reductions in tonnes of CO2 eq. compared to baseline | T5: Comments on scenario proposals
A6: Category/sector accounts | B6: Nr. | C6: Activity | D6: Factor | E6: Unit | F6: Q-ty | G6: Unit | H6: BAU2030 share in % | I6: Q-ty BAU2030 | J6: BAU2050 share in % | K6: Q-ty BAU2050 | L6: 2030 share in % | M6: Q-ty2030 | N6: 2050 share in % | O6: Q-ty 2050 | P6: BAU2030 | Q6: BAU2050 | R6: STI 2030 | S6: STI 2050 | T6: Comments
A7: Landuse | B7: 1 | C7: Converting carbon-rich soil in rotation to periodically wet meadow (>12% OC) | D7: 39.9 | E7: ton CO2 eq./ha | F7: ='LULUCF W2018'!C29 -> 0 | G7: ha | H7: 0.3 | I7: ='Reduction Path Calc'!$F7*'Reduction Path Calc'!$H7 -> 0 | J7: 0.32 | K7: =J7*F7 -> 0 | L7: 0 | M7: ='Reduction Path Calc'!$L7*'Reduction Path Calc'!$F7 -> 0 | N7: 0 | O7: ='Reduction Path Calc'!$N7*F7 -> 0 | P7: =I7*D7 -> 0 | Q7: ='Reduction Path Calc'!$K7*'Reduction Path Calc'!$D7 -> 0 | R7: ='Reduction Path Calc'!$D7*'Reduction Path Calc'!$M7 -> 0 | S7: ='Reduction Path Calc'!$D7*'Reduction Path Calc'!$O7 -> 0
A8: Landuse | B8: =B7+1 -> 2 | C8: Converting carbon-rich soil in rotation to periodically wet meadow (6-12% OC) | D8: 17.77 | E8: ton CO2 eq./ha | F8: ='LULUCF W2018'!C28 -> 1230.65625 | G8: ha | H8: 0.16 | I8: ='Reduction Path Calc'!$F8*'Reduction Path Calc'!$H8 -> 196.905 | J8: 0.16 | K8: 196.905 | L8: 0 | M8: ='Reduction Path Calc'!$L8*'Reduction Path Calc'!$F8 -> 0 | N8: 0 | O8: ='Reduction Path Calc'!$N8*F8 -> 0 | P8: 3499.00185 | Q8: ='Reduction Path Calc'!$K8*'Reduction Path Calc'!$D8 -> 3499.00185 | R8: ='Reduction Path Calc'!$D8*'Reduction Path Calc'!$M8 -> 0 | S8: ='Reduction Path Calc'!$D8*'Reduction Path Calc'!$O8 -> 0
A9: Landuse | B9: 3 | C9: Converting carbon-rich permanent grass in rotation to periodically wet meadow (OC>12%) | D9: 27.1 | E9: ton CO2 eq./ha | F9: ='LULUCF W2018'!D29 -> 3146.375 | G9: ha | H9: 0.22 | I9: ='Reduction Path Calc'!$F9*'Reduction Path Calc'!$H9 -> 692.2025 | J9: 0.23 | K9: 723.66625 | L9: 0 | M9: ='Reduction Path Calc'!$L9*'Reduction Path Calc'!$F9 -> 0 | N9: 0 | O9: ='Reduction Path Calc'!$N9*F9 -> 0 | P9: 18758.68775 | Q9: ='Reduction Path Calc'!$K9*'Reduction Path Calc'!$D9 -> 19611.35537 | R9: ='Reduction Path Calc'!$D9*'Reduction Path Calc'!$M9 -> 0 | S9: ='Reduction Path Calc'!$D9*'Reduction Path Calc'!$O9 -> 0
A10: Landuse | B10: 4 | C10: Converting carbon-rich permanent grass in rotation to periodically wet meadow (OC6<12%) | D10: 16.69 | E10: ton CO2 eq./ha | F10: ='LULUCF W2018'!D28 -> 4139.6875 | G10: ha | H10: 0.25 | I10: ='Reduction Path Calc'!$F10*'Reduction Path Calc'!$H10 -> 1034.921875 | J10: 0.26 | K10: 1076.31875 | L10: 0 | M10: ='Reduction Path Calc'!$L10*'Reduction Path Calc'!$F10 -> 0 | N10: 0 | O10: ='Reduction Path Calc'!$N10*F10 -> 0 | P10: 17272.84609 | Q10: ='Reduction Path Calc'!$K10*'Reduction Path Calc'!$D10 -> 17963.75994 | R10: ='Reduction Path Calc'!$D10*'Reduction Path Calc'!$M10 -> 0 | S10: ='Reduction Path Calc'!$D10*'Reduction Path Calc'!$O10 -> 0
A11: Landuse | B11: 5 | C11: Converting carbon-rich soil in rotation to dry nature (still drained OC>6%) | D11: 12.65 | E11: ton CO2 eq./ha | F11: ='LULUCF W2018'!C29+'LULUCF W2018'!C28-M7-M8 -> 1230.65625 | G11: ha | H11: 0 | I11: ='Reduction Path Calc'!$F11*'Reduction Path Calc'!$H11 -> 0 | J11: 0 | K11: 0 | L11: 0 | M11: ='Reduction Path Calc'!$L11*'Reduction Path Calc'!$F11 -> 0 | N11: 0 | O11: ='Reduction Path Calc'!$N11*F11 -> 0 | P11: 0 | Q11: ='Reduction Path Calc'!$K11*'Reduction Path Calc'!$D11 -> 0 | R11: ='Reduction Path Calc'!$D11*'Reduction Path Calc'!$M11 -> 0 | S11: ='Reduction Path Calc'!$D11*'Reduction Path Calc'!$O11 -> 0
A12: Landuse | B12: 6 | C12: Adding biochar into soil | D12: 25 | E12: ton CO2 eq./ha | F12: =SUM('Plant Production W2018'!C10:Q10,'Plant Production W2018'!S10) -> 207430.98 | G12: ha | H12: 0 | I12: ='Reduction Path Calc'!$F12*'Reduction Path Calc'!$H12 -> 0 | J12: 0 | K12: 0 | L12: 0 | M12: ='Reduction Path Calc'!$L12*'Reduction Path Calc'!$F12 -> 0 | N12: 0 | O12: ='Reduction Path Calc'!$N12*F12 -> 0 | P12: 0 | Q12: ='Reduction Path Calc'!$K12*'Reduction Path Calc'!$D12 -> 0 | R12: ='Reduction Path Calc'!$D12*'Reduction Path Calc'!$M12 -> 0 | S12: ='Reduction Path Calc'!$D12*'Reduction Path Calc'!$O12 -> 0
A13: Landuse | B13: 7 | C13: Converting to grass (4-year mowing fallow) | D13: 2.5 | E13: ton CO2 eq./ha | F13: =SUM('Plant Production W2018'!C10:Q10,'Plant Production W2018'!S10) -> 207430.98 | G13: ha | H13: 0 | I13: ='Reduction Path Calc'!$F$13*'Reduction Path Calc'!H13 -> 0 | J13: 0 | K13: ='Reduction Path Calc'!$F$13*'Reduction Path Calc'!J13 -> 0 | L13: 0 | M13: ='Reduction Path Calc'!$F$13*'Reduction Path Calc'!L13 -> 0 | N13: 0 | O13: ='Reduction Path Calc'!$N13*F13 -> 0 | P13: 0 | Q13: ='Reduction Path Calc'!$K13*'Reduction Path Calc'!$D13 -> 0 | R13: ='Reduction Path Calc'!$D13*'Reduction Path Calc'!$M13 -> 0 | S13: ='Reduction Path Calc'!$D13*'Reduction Path Calc'!$O13 -> 0
A14: Landuse | B14: 8 | C14: Converting mineral soil in rotation to grass (solar cells and permanent fallow) | D14: 2.2 | E14: ton CO2 eq./ha | F14: =SUM('Plant Production W2018'!C10:Q10,'Plant Production W2018'!S10)-M13 -> 207430.98 | G14: ha | H14: 0.0073 | I14: ='Reduction Path Calc'!$F$14*'Reduction Path Calc'!H14 -> 1514.246154 | J14: 0.0073 | K14: ='Reduction Path Calc'!$F$14*'Reduction Path Calc'!J14 -> 1514.246154 | L14: 0 | M14: ='Reduction Path Calc'!F14*'Reduction Path Calc'!L14 -> 0 | N14: 0 | O14: ='Reduction Path Calc'!$N14*F14 -> 0 | P14: 3331.341539 | Q14: ='Reduction Path Calc'!$K14*'Reduction Path Calc'!$D14 -> 3331.341539 | R14: ='Reduction Path Calc'!$D14*'Reduction Path Calc'!$M14 -> 0 | S14: ='Reduction Path Calc'!$D14*'Reduction Path Calc'!$O14 -> 0
A15: Landuse | B15: 9 | C15: Converting 1-year crops to perennial protein grass (grass in the crop rotation) | D15: 1.5 | E15: ton CO2 eq./ha | F15: =SUM('Plant Production W2018'!C10:Q10,'Plant Production W2018'!S10)-M13-M14 -> 207430.98 | G15: ha | H15: 0 | I15: ='Reduction Path Calc'!$F$15*'Reduction Path Calc'!H15 -> 0 | J15: =H15 -> 0 | K15: ='Reduction Path Calc'!$F$15*'Reduction Path Calc'!J15 -> 0 | L15: 0 | M15: ='Reduction Path Calc'!F15*'Reduction Path Calc'!L15 -> 0 | N15: 0 | O15: ='Reduction Path Calc'!$N15*F15 -> 0 | P15: 0 | Q15: ='Reduction Path Calc'!$K15*'Reduction Path Calc'!$D15 -> 0 | R15: ='Reduction Path Calc'!$D15*'Reduction Path Calc'!$M15 -> 0 | S15: ='Reduction Path Calc'!$D15*'Reduction Path Calc'!$O15 -> 0
A16: Landuse | B16: 10 | C16: Converting agricultural land to forest (national target of 25% before 2090) | D16: 7.67 | E16: ton CO2 eq./ha | F16: =SUM('Plant Production W2018'!C10:Q10,'Plant Production W2018'!S10)-M13-M14-M15 -> 207430.98 | G16: ha | H16: 0.04 | I16: ='Reduction Path Calc'!$F16*'Reduction Path Calc'!$H16 -> 8297.2392 | J16: 0.04 | K16: ='Reduction Path Calc'!$F$16*'Reduction Path Calc'!J16 -> 8297.2392 | L16: 0 | M16: ='Reduction Path Calc'!F16*'Reduction Path Calc'!L16 -> 0 | N16: 0 | O16: ='Reduction Path Calc'!$N16*F16 -> 0 | P16: 63639.82466 | Q16: ='Reduction Path Calc'!$K16*'Reduction Path Calc'!$D16 -> 63639.82466 | R16: ='Reduction Path Calc'!$D16*'Reduction Path Calc'!$M16 -> 0 | S16: ='Reduction Path Calc'!$D16*'Reduction Path Calc'!$O16 -> 0
A17: Landuse | B17: 11 | C17: Converting permanent grass to forest (national target of 25% before 2090) | D17: 6.18 | E17: ton CO2 eq./ha | F17: =WK7_2018!D25 -> 16545.375 | G17: ha | H17: 0.04 | I17: ='Reduction Path Calc'!$F17*'Reduction Path Calc'!$H17 -> 661.815 | J17: =H17 -> 0.04 | K17: ='Reduction Path Calc'!$F$17*'Reduction Path Calc'!J17 -> 661.815 | L17: 0 | M17: ='Reduction Path Calc'!F17*'Reduction Path Calc'!L17 -> 0 | N17: 0 | O17: ='Reduction Path Calc'!$N17*F17 -> 0 | P17: 4090.0167 | Q17: ='Reduction Path Calc'!$K17*'Reduction Path Calc'!$D17 -> 4090.0167 | R17: ='Reduction Path Calc'!$D17*'Reduction Path Calc'!$M17 -> 0 | S17: ='Reduction Path Calc'!$D17*'Reduction Path Calc'!$O17 -> 0
A18: Landuse | B18: =B17&"a" -> 11a | C18: Land use - other activities | E18: ton CO2 eq./ | H18: 0 | I18: ='Reduction Path Calc'!$F18*'Reduction Path Calc'!$H18 -> 0 | J18: 0 | K18: ='Reduction Path Calc'!$F$17*'Reduction Path Calc'!J18 -> 0 | L18: 0 | M18: ='Reduction Path Calc'!F18*'Reduction Path Calc'!L18 -> 0 | N18: 0 | O18: ='Reduction Path Calc'!$N18*F18 -> 0 | P18: 0 | Q18: ='Reduction Path Calc'!$K18*'Reduction Path Calc'!$D18 -> 0 | R18: ='Reduction Path Calc'!$D18*'Reduction Path Calc'!$M18 -> 0 | S18: ='Reduction Path Calc'!$D18*'Reduction Path Calc'!$O18 -> 0
A19: Landuse | B19: =B17&"b" -> 11b | C19: Land use - other activities | E19: ton CO2 eq./ | H19: 0 | I19: ='Reduction Path Calc'!$F19*'Reduction Path Calc'!$H19 -> 0 | J19: 0 | K19: ='Reduction Path Calc'!$F$17*'Reduction Path Calc'!J19 -> 0 | L19: 0 | M19: ='Reduction Path Calc'!F19*'Reduction Path Calc'!L19 -> 0 | N19: 0 | O19: ='Reduction Path Calc'!$N19*F19 -> 0 | P19: 0 | Q19: ='Reduction Path Calc'!$K19*'Reduction Path Calc'!$D19 -> 0 | R19: ='Reduction Path Calc'!$D19*'Reduction Path Calc'!$M19 -> 0 | S19: ='Reduction Path Calc'!$D19*'Reduction Path Calc'!$O19 -> 0
A20: Landuse | B20: =B17&"c" -> 11c | C20: Land use - other activities | E20: ton CO2 eq./ | H20: 0 | I20: ='Reduction Path Calc'!$F20*'Reduction Path Calc'!$H20 -> 0 | J20: 0 | K20: ='Reduction Path Calc'!$F$17*'Reduction Path Calc'!J20 -> 0 | L20: 0 | M20: ='Reduction Path Calc'!F20*'Reduction Path Calc'!L20 -> 0 | N20: 0 | O20: ='Reduction Path Calc'!$N20*F20 -> 0 | P20: 0 | Q20: ='Reduction Path Calc'!$K20*'Reduction Path Calc'!$D20 -> 0 | R20: ='Reduction Path Calc'!$D20*'Reduction Path Calc'!$M20 -> 0 | S20: ='Reduction Path Calc'!$D20*'Reduction Path Calc'!$O20 -> 0
C21: Subtotal - Land use | P21: =SUBTOTAL(109,P7:P20) -> 110591.7186 | Q21: =SUBTOTAL(109,Q7:Q20) -> 112135.3001 | R21: =SUBTOTAL(109,R7:R20) -> 0 | S21: =SUBTOTAL(109,S7:S20) -> 0
A22: Plant breeding | B22: =B17+1 -> 12 | C22: Precise fertilization and mild soil treatment of soil with 1-year crops and grass | D22: 0.1 | E22: ton CO2 eq./ha | F22: =SUM('Plant Production W2018'!C10:Q10,'Plant Production W2018'!S10)-M13-M14-M15-M16-M17 -> 207430.98 | G22: ha | H22: 0 | I22: ='Reduction Path Calc'!$F$22*'Reduction Path Calc'!H22 -> 0 | J22: 0 | K22: ='Reduction Path Calc'!$F$22*'Reduction Path Calc'!J22 -> 0 | L22: 0 | M22: ='Reduction Path Calc'!$F$22*'Reduction Path Calc'!L22 -> 0 | N22: 0 | O22: ='Reduction Path Calc'!$F$12*'Reduction Path Calc'!N22 -> 0 | P22: =I22*D22 -> 0 | Q22: ='Reduction Path Calc'!$K22*'Reduction Path Calc'!$D22 -> 0 | R22: ='Reduction Path Calc'!$D22*'Reduction Path Calc'!$M22 -> 0 | S22: ='Reduction Path Calc'!$D22*'Reduction Path Calc'!$O22 -> 0
A23: Plant breeding | B23: =B22+1 -> 13 | C23: Adding nitrification inhibitor to fertilizer | D23: 1.9 | E23: ton CO2 eq./ton N | F23: =SUM('Plant Production W2018'!AA17:'Plant Production W2018'!AA18) -> 457.2280392 | G23: ton N | H23: 0 | I23: ='Reduction Path Calc'!$F23*'Reduction Path Calc'!$H23 -> 0 | J23: =H23 -> 0 | K23: =J23*F23 -> 0 | L23: 0 | M23: ='Reduction Path Calc'!$L23*'Reduction Path Calc'!$F23 -> 0 | N23: 0 | O23: ='Reduction Path Calc'!$N23*F23 -> 0 | P23: 0 | Q23: ='Reduction Path Calc'!$K23*'Reduction Path Calc'!$D23 -> 0 | R23: ='Reduction Path Calc'!$D23*'Reduction Path Calc'!$M23 -> 0 | S23: ='Reduction Path Calc'!$D23*'Reduction Path Calc'!$O23 -> 0
A24: Plant breeding | B24: =B23+1 -> 14 | C24: Cultivating catch crops | D24: 0.4 | E24: ton CO2 eq./ha | F24: =SUM('Plant Production W2018'!C10:I10,'Plant Production W2018'!S10)-M13-M14-M15-M16 -> 134777.46 | G24: ha | H24: 0 | I24: ='Reduction Path Calc'!$F24*'Reduction Path Calc'!$H24 -> 0 | J24: =H24 -> 0 | K24: =J24*F24 -> 0 | L24: 0 | M24: ='Reduction Path Calc'!$L24*'Reduction Path Calc'!$F24 -> 0 | N24: 0 | O24: ='Reduction Path Calc'!$N24*F24 -> 0 | P24: 0 | Q24: ='Reduction Path Calc'!$K24*'Reduction Path Calc'!$D24 -> 0 | R24: ='Reduction Path Calc'!$D24*'Reduction Path Calc'!$M24 -> 0 | S24: ='Reduction Path Calc'!$D24*'Reduction Path Calc'!$O24 -> 0
A25: Plant breeding | B25: =B24+1 -> 15 | C25: Grow follow-up crops (besides to current follow-up crops) | D25: 1 | E25: ton CO2 eq./ha | F25: =Planteavl_EA_W18!P26 -> 24236.86 | G25: ha | H25: 0.52 | I25: ='Reduction Path Calc'!$F25*'Reduction Path Calc'!$H25 -> 12603.1672 | J25: =H25 -> 0.52 | K25: =J25*F25 -> 12603.1672 | L25: 0 | M25: ='Reduction Path Calc'!$L25*'Reduction Path Calc'!$F25 -> 0 | N25: 0 | O25: ='Reduction Path Calc'!$N25*F25 -> 0 | P25: 12603.1672 | Q25: ='Reduction Path Calc'!$K25*'Reduction Path Calc'!$D25 -> 12603.1672 | R25: ='Reduction Path Calc'!$D25*'Reduction Path Calc'!$M25 -> 0 | S25: ='Reduction Path Calc'!$D25*'Reduction Path Calc'!$O25 -> 0
A26: Plant breeding | B26: =B25+1 -> 16 | C26: Converting to organic farmland | D26: 1.61 | E26: ton CO2 eq./ha | F26: =SUMIF(planteavl_W18!B2:B33,"K",planteavl_W18!G2:G33)-planteavl_W18!G30 -> 181334.9 | G26: ha | H26: 0 | I26: ='Reduction Path Calc'!$F26*'Reduction Path Calc'!$H26 -> 0 | J26: =H26 -> 0 | K26: =J26*F26 -> 0 | L26: 0 | M26: ='Reduction Path Calc'!$L26*'Reduction Path Calc'!$F26 -> 0 | N26: 0 | O26: ='Reduction Path Calc'!$N26*F26 -> 0 | P26: 0 | Q26: ='Reduction Path Calc'!$K26*'Reduction Path Calc'!$D26 -> 0 | R26: ='Reduction Path Calc'!$D26*'Reduction Path Calc'!$M26 -> 0 | S26: ='Reduction Path Calc'!$D26*'Reduction Path Calc'!$O26 -> 0
A27: Plant breeding | B27: =B26+1 -> 17 | C27: Reduced supply of commercial fertiliser | D27: 5.9 | E27: ton CO2 eq./ton N | F27: ='Plant Production W2018'!AA17 -> 168.9190998 | G27: ton N | H27: 0.22 | I27: ='Reduction Path Calc'!$F27*'Reduction Path Calc'!$H27 -> 37.16220196 | J27: 0.19 | K27: =J27*F27 -> 32.09462896 | L27: 0 | M27: ='Reduction Path Calc'!$L27*'Reduction Path Calc'!$F27 -> 0 | N27: 0 | O27: ='Reduction Path Calc'!$N27*F27 -> 0 | P27: 219.2569915 | Q27: ='Reduction Path Calc'!$K27*'Reduction Path Calc'!$D27 -> 189.3583109 | R27: ='Reduction Path Calc'!$D27*'Reduction Path Calc'!$M27 -> 0 | S27: ='Reduction Path Calc'!$D27*'Reduction Path Calc'!$O27 -> 0
A28: Plant breeding | B28: =B27&"a" -> 17a | C28: Plant breeding - other activities | E28: ton CO2 eq./ | H28: 0 | I28: ='Reduction Path Calc'!$F28*'Reduction Path Calc'!$H28 -> 0 | J28: 0 | L28: 0 | N28: 0
A29: Plant breeding | B29: =B27&"b" -> 17b | C29: Plant breeding - other activities | E29: ton CO2 eq./ | H29: 0 | I29: ='Reduction Path Calc'!$F29*'Reduction Path Calc'!$H29 -> 0 | J29: =H29 -> 0 | K29: =J29*F29 -> 0 | L29: 0 | M29: ='Reduction Path Calc'!$L29*'Reduction Path Calc'!$F29 -> 0 | N29: 0 | O29: ='Reduction Path Calc'!$N29*F29 -> 0 | P29: =I29*D29 -> 0 | Q29: ='Reduction Path Calc'!$K29*'Reduction Path Calc'!$D29 -> 0 | R29: ='Reduction Path Calc'!$D29*'Reduction Path Calc'!$M29 -> 0 | S29: ='Reduction Path Calc'!$D29*'Reduction Path Calc'!$O29 -> 0
A30: Plant breeding | B30: =B27&"c" -> 17c | C30: Plant breeding - other activities | E30: ton CO2 eq./ | H30: 0 | I30: ='Reduction Path Calc'!$F30*'Reduction Path Calc'!$H30 -> 0 | J30: =H30 -> 0 | K30: =J30*F30 -> 0 | L30: 0 | M30: ='Reduction Path Calc'!$L30*'Reduction Path Calc'!$F30 -> 0 | N30: 0 | O30: ='Reduction Path Calc'!$N30*F30 -> 0 | P30: =I30*D30 -> 0 | Q30: ='Reduction Path Calc'!$K30*'Reduction Path Calc'!$D30 -> 0 | R30: ='Reduction Path Calc'!$D30*'Reduction Path Calc'!$M30 -> 0 | S30: ='Reduction Path Calc'!$D30*'Reduction Path Calc'!$O30 -> 0
C31: Subtotal - Plant breeding | P31: =SUBTOTAL(109,P22:P30) -> 12822.42419 | Q31: =SUBTOTAL(109,Q22:Q30) -> 12792.52551 | R31: =SUBTOTAL(109,R22:R30) -> 0 | S31: =SUBTOTAL(109,S22:S30) -> 0
A32: livestock breeding | B32: =B27+1 -> 18 | C32: Biogasses from pig manure (degassing potential) | D32: 0.032 | E32: ton CO2 eq./ton slurry | F32: =(WK2a_2018!$C$9/$F$12*($F$12-$M$7-$M$8-$M$11-M$13-$M$14-M$15-M$16))-'Husbandry W2018'!$T$17 -> 123036.0689 | G32: ton of manure | H32: 0.46 | I32: ='Reduction Path Calc'!$F32*'Reduction Path Calc'!$H32 -> 56596.59171 | J32: 0.46 | K32: =J32*F32 -> 56596.59171 | L32: 0 | M32: ='Reduction Path Calc'!$L32*'Reduction Path Calc'!$F32 -> 0 | N32: 0 | O32: ='Reduction Path Calc'!$N32*F32 -> 0 | P32: =I32*D32 -> 1811.090935 | Q32: ='Reduction Path Calc'!$K32*'Reduction Path Calc'!$D32 -> 1811.090935 | R32: ='Reduction Path Calc'!$D32*'Reduction Path Calc'!$M32 -> 0 | S32: ='Reduction Path Calc'!$D32*'Reduction Path Calc'!$O32 -> 0
A33: livestock breeding | B33: =B32+1 -> 19 | C33: Biogasses from cattle manure (degassing potential) | D33: 0.037 | E33: ton CO2 eq./ton slurry | F33: =(WK2a_2018!C8/('Husbandry W2018'!D8+'Husbandry W2018'!K8+'Husbandry W2018'!R8))*((F$40*(1-L40)+F$41*(1-L41)))-'Husbandry W2018'!T16 -> 3232949.589 | G33: ton of manure | H33: 0.7 | I33: ='Reduction Path Calc'!$F33*'Reduction Path Calc'!$H33 -> 2263064.712 | J33: 0.6 | K33: 1939769.753 | L33: 0 | M33: ='Reduction Path Calc'!$L33*'Reduction Path Calc'!$F33 -> 0 | N33: 0 | O33: ='Reduction Path Calc'!$N33*F33 -> 0 | P33: 83733.39435 | Q33: ='Reduction Path Calc'!$K33*'Reduction Path Calc'!$D33 -> 71771.48087 | R33: ='Reduction Path Calc'!$D33*'Reduction Path Calc'!$M33 -> 0 | S33: ='Reduction Path Calc'!$D33*'Reduction Path Calc'!$O33 -> 0
A34: livestock breeding | B34: 20 | C34: Cooling pig manure in manure channels | D34: 0.0051 | E34: ton CO2 eq./ton slurry | F34: =(WK2a_2018!$C$9/F$12*(F$12-M$7-M$8-M$11-M$13-M$14-M$15-M$16))-M29 -> 123036.0689 | G34: ton of manure | H34: 0.38 | I34: ='Reduction Path Calc'!$F34*'Reduction Path Calc'!$H34 -> 46753.70619 | J34: =H34 -> 0.38 | K34: 46753.70619 | L34: 0 | M34: ='Reduction Path Calc'!$L34*'Reduction Path Calc'!$F34 -> 0 | N34: 0 | O34: ='Reduction Path Calc'!$N34*F34 -> 0 | P34: 238.4439016 | Q34: ='Reduction Path Calc'!$K34*'Reduction Path Calc'!$D34 -> 238.4439016 | R34: ='Reduction Path Calc'!$D34*'Reduction Path Calc'!$M34 -> 0 | S34: ='Reduction Path Calc'!$D34*'Reduction Path Calc'!$O34 -> 0
A35: livestock breeding | B35: 21 | C35: Frequent discharge of slaughter pig manure | D35: 0.0091 | E35: ton CO2 eq./ton slurry | F35: =SUMIFS(Dataark_til_bilag2_2020[Gødning (g) total (ton)],Dataark_til_bilag2_2020[Gødningstype],"Svinegylle",Dataark_til_bilag2_2020[Fordeling af dyretyper],"Sl. svin") -> 31676.5317 | G35: ton of manure | H35: 0.95 | I35: ='Reduction Path Calc'!$F35*'Reduction Path Calc'!$H35 -> 30092.70511 | J35: 0.95 | K35: 30092.70511 | L35: 0 | M35: ='Reduction Path Calc'!$L35*'Reduction Path Calc'!$F35 -> 0 | N35: 0 | O35: ='Reduction Path Calc'!$N35*F35 -> 0 | P35: 273.8436165 | Q35: ='Reduction Path Calc'!$K35*'Reduction Path Calc'!$D35 -> 273.8436165 | R35: ='Reduction Path Calc'!$D35*'Reduction Path Calc'!$M35 -> 0 | S35: ='Reduction Path Calc'!$D35*'Reduction Path Calc'!$O35 -> 0
A36: livestock breeding | B36: 22 | C36: Frequent dumping of manure in cattle sheds | D36: 0.001 | E36: ton CO2 eq./ton slurry | F36: =WK2a_2018!C8/('Husbandry W2018'!D8+'Husbandry W2018'!K8+'Husbandry W2018'!R8)*((F$40*(1-L40)+F$41*(1-L41))) -> 3232949.589 | G36: ton of manure | H36: 0 | I36: ='Reduction Path Calc'!$F36*'Reduction Path Calc'!$H36 -> 0 | J36: =H36 -> 0 | K36: 0 | L36: 0 | M36: ='Reduction Path Calc'!$L36*'Reduction Path Calc'!$F36 -> 0 | N36: 0 | O36: ='Reduction Path Calc'!$N36*F36 -> 0 | P36: 0 | Q36: ='Reduction Path Calc'!$K36*'Reduction Path Calc'!$D36 -> 0 | R36: ='Reduction Path Calc'!$D36*'Reduction Path Calc'!$M36 -> 0 | S36: ='Reduction Path Calc'!$D36*'Reduction Path Calc'!$O36 -> 0
A37: livestock breeding | B37: 23 | C37: Slurry acidification of pig manure (not for biogasification) | D37: 0.0389 | E37: ton CO2 eq./ton slurry | F37: =+F34-M32 -> 123036.0689 | G37: ton of manure | H37: 0 | I37: ='Reduction Path Calc'!$F37*'Reduction Path Calc'!$H37 -> 0 | J37: =H37 -> 0 | K37: 0 | L37: 0 | M37: ='Reduction Path Calc'!$L37*'Reduction Path Calc'!$F37 -> 0 | N37: 0 | O37: ='Reduction Path Calc'!$N37*F37 -> 0 | P37: 0 | Q37: ='Reduction Path Calc'!$K37*'Reduction Path Calc'!$D37 -> 0 | R37: ='Reduction Path Calc'!$D37*'Reduction Path Calc'!$M37 -> 0 | S37: ='Reduction Path Calc'!$D37*'Reduction Path Calc'!$O37 -> 0
A38: livestock breeding | B38: 24 | C38: Slurry acidification of cattle manure (not for biogasification) | D38: 0.0242 | E38: ton CO2 eq./ton slurry | F38: =+F36-M33 -> 3232949.589 | G38: ton of manure | H38: 0 | I38: ='Reduction Path Calc'!$F38*'Reduction Path Calc'!$H38 -> 0 | J38: =H38 -> 0 | K38: 0 | L38: 0 | M38: ='Reduction Path Calc'!$L38*'Reduction Path Calc'!$F38 -> 0 | N38: 0 | O38: ='Reduction Path Calc'!$N38*F38 -> 0 | P38: 0 | Q38: ='Reduction Path Calc'!$K38*'Reduction Path Calc'!$D38 -> 0 | R38: ='Reduction Path Calc'!$D38*'Reduction Path Calc'!$M38 -> 0 | S38: ='Reduction Path Calc'!$D38*'Reduction Path Calc'!$O38 -> 0
A39: livestock breeding | B39: 25 | C39: Fodder (forage) with methane-reducing feed additive (feed fat) | D39: 0.272 | E39: ton CO2 eq./year | F39: =F40-M40 -> 26599.95 | G39: Dairy cows | H39: 1 | I39: ='Reduction Path Calc'!$F39*'Reduction Path Calc'!$H39 -> 26599.95 | J39: 1 | K39: 26599.95 | L39: 0 | M39: ='Reduction Path Calc'!$L39*'Reduction Path Calc'!$F39 -> 0 | N39: 0 | O39: ='Reduction Path Calc'!$N39*F39 -> 0 | P39: 7235.1864 | Q39: ='Reduction Path Calc'!$K39*'Reduction Path Calc'!$D39 -> 7235.1864 | R39: ='Reduction Path Calc'!$D39*'Reduction Path Calc'!$M39 -> 0 | S39: ='Reduction Path Calc'!$D39*'Reduction Path Calc'!$O39 -> 0
A40: livestock breeding | B40: 26 | C40: Decrease of the number of dairy cows | D40: 5.55265233 | E40: ton CO2 eq./year | F40: ='Husbandry W2018'!R8-((M7+M8+M11+M13+M14+M16)*0.4) -> 26599.95 | G40: Dairy cows | H40: 0 | I40: ='Reduction Path Calc'!$F40*'Reduction Path Calc'!$H40 -> 0 | J40: 0 | K40: 0 | L40: 0 | M40: ='Reduction Path Calc'!$L40*'Reduction Path Calc'!$F40 -> 0 | N40: 0 | O40: ='Reduction Path Calc'!$N40*F40 -> 0 | P40: 0 | Q40: ='Reduction Path Calc'!$K40*'Reduction Path Calc'!$D40 -> 0 | R40: ='Reduction Path Calc'!$D40*'Reduction Path Calc'!$M40 -> 0 | S40: ='Reduction Path Calc'!$D40*'Reduction Path Calc'!$O40 -> 0
A41: livestock breeding | B41: 27 | C41: Decrease the number of heifers or suckler cows | D41: 2.647910141 | E41: ton CO2 eq./animal-year | F41: ='Husbandry W2018'!D8+'Husbandry W2018'!K8-(M7+M8+M11+M13+M14+M16)*0.1-(M9+M10+M17)*0.5 -> 25916.35 | G41: Heifers/lactating cows | H41: 0 | I41: ='Reduction Path Calc'!$F41*'Reduction Path Calc'!$H41 -> 0 | J41: 0 | K41: 0 | L41: 0 | M41: ='Reduction Path Calc'!$L41*'Reduction Path Calc'!$F41 -> 0 | N41: 0 | O41: ='Reduction Path Calc'!$N41*F41 -> 0 | P41: 0 | Q41: ='Reduction Path Calc'!$K41*'Reduction Path Calc'!$D41 -> 0 | R41: ='Reduction Path Calc'!$D41*'Reduction Path Calc'!$M41 -> 0 | S41: ='Reduction Path Calc'!$D41*'Reduction Path Calc'!$O41 -> 0
A42: livestock breeding | B42: 28 | C42: Remove all minks due to COVID-19 | D42: 0.089066718 | E42: ton CO2 eq./animal-year | F42: =+'Husbandry W2018'!L8 -> 57616.67 | G42: Mink | H42: 1 | I42: ='Reduction Path Calc'!$F42*'Reduction Path Calc'!$H42 -> 57616.67 | J42: 1 | K42: 57616.67 | L42: 0 | M42: ='Reduction Path Calc'!$L42*'Reduction Path Calc'!$F42 -> 0 | N42: 0 | O42: ='Reduction Path Calc'!$N42*F42 -> 0 | P42: 5131.727699 | Q42: ='Reduction Path Calc'!$K42*'Reduction Path Calc'!$D42 -> 5131.727699 | R42: ='Reduction Path Calc'!$D42*'Reduction Path Calc'!$M42 -> 0 | S42: ='Reduction Path Calc'!$D42*'Reduction Path Calc'!$O42 -> 0
A43: livestock breeding | B43: =B42&"a" -> 28a | C43: Animal husbandry - other activities | E43: ton CO2 eq./ | H43: 0 | I43: ='Reduction Path Calc'!$F43*'Reduction Path Calc'!$H43 -> 0 | J43: =H43 -> 0 | K43: 0 | L43: 0 | M43: ='Reduction Path Calc'!$L43*'Reduction Path Calc'!$F43 -> 0 | N43: 0 | O43: ='Reduction Path Calc'!$N43*F43 -> 0
A44: livestock breeding | B44: =B42&"b" -> 28b | C44: Animal husbandry - other activities | E44: ton CO2 eq./ | H44: 0 | I44: ='Reduction Path Calc'!$F44*'Reduction Path Calc'!$H44 -> 0 | J44: =H44 -> 0 | K44: 0 | L44: 0 | M44: ='Reduction Path Calc'!$L44*'Reduction Path Calc'!$F44 -> 0 | N44: 0 | O44: ='Reduction Path Calc'!$N44*F44 -> 0
A45: livestock breeding | B45: =B42&"c" -> 28c | C45: Animal husbandry - other activities | E45: ton CO2 eq./ | H45: 0 | I45: ='Reduction Path Calc'!$F45*'Reduction Path Calc'!$H45 -> 0 | J45: =H45 -> 0 | K45: 0 | L45: 0 | M45: ='Reduction Path Calc'!$L45*'Reduction Path Calc'!$F45 -> 0 | N45: 0 | O45: ='Reduction Path Calc'!$N45*F45 -> 0 | P45: =I45*D45 -> 0 | Q45: ='Reduction Path Calc'!$K45*'Reduction Path Calc'!$D45 -> 0 | R45: ='Reduction Path Calc'!$D45*'Reduction Path Calc'!$M45 -> 0 | S45: ='Reduction Path Calc'!$D45*'Reduction Path Calc'!$O45 -> 0
C46: Subtotal - livestock breeding | P46: =SUBTOTAL(109,P32:P45) -> 98423.6869 | Q46: =SUBTOTAL(109,Q32:Q45) -> 86461.77342 | R46: =SUBTOTAL(109,R32:R45) -> 0 | S46: =SUBTOTAL(109,S32:S45) -> 0
C47: Total - reduction in CO2 eq. Agriculture | P47: =P21+P31+P46 -> 221837.8297 | Q47: =Q21+Q31+Q46 -> 211389.599 | R47: =R21+R31+R46 -> 0 | S47: =S21+S31+S46 -> 0
A49: Waste and wastewater | D49: Reduction factor | F49: Potential Baseline | H49: BAU 2030 | J49: BAU 2050 | L49: 2030 | N49: 2050 | P49: Reductions in tonnes of CO2 eq. compared to baseline | T49: Comments on scenario proposals
A50: Category | B50: Nr. | C50: Activity | D50: Factor | E50: Unit | F50: Q-ty | G50: Unit | H50: BAU2030 share in % | I50: Q-ty BAU2030 | J50: BAU2050 share in % | K50: Q-ty BAU2050 | L50: 2030 share in % | M50: Q-ty2030 | N50: 2050 share in % | O50: Q-ty 2050 | P50: BAU2030 | Q50: BAU2050 | R50: 2030 | S50: 2050 | T50: Comments
A51: Waste | B51: =B42+1 -> 29 | C51: Reduction of emissions from waste disposal | D51: =('Waste and wastewater W2018'!L12+'Waste and wastewater W2018'!L13)/'Reduction Path Calc'!F51 -> 0.8961043097 | E51: ton CO2 eq./ton | F51: ='Waste and wastewater W2018'!G12 -> 24645.50105 | G51: tons of waste | H51: 0.25 | I51: ='Reduction Path Calc'!$F51*'Reduction Path Calc'!$H51 -> 6161.375263 | J51: 0.75 | K51: =J51*F51 -> 18484.12579 | L51: 0 | M51: ='Reduction Path Calc'!$L51*'Reduction Path Calc'!$F51 -> 0 | N51: 0 | O51: ='Reduction Path Calc'!$N51*F51 -> 0 | P51: =I51*D51 -> 5521.234927 | Q51: ='Reduction Path Calc'!$K51*'Reduction Path Calc'!$D51 -> 16563.70478 | R51: ='Reduction Path Calc'!$D51*'Reduction Path Calc'!$M51 -> 0 | S51: ='Reduction Path Calc'!$D51*'Reduction Path Calc'!$O51 -> 0
A52: Waste | B52: =B51+1 -> 30 | C52: Reduction of emissions from composting waste | D52: 1 | E52: ton CO2 eq./ton | F52: ='Waste and wastewater W2018'!L15 -> 6821.661435 | G52: ton CO2-eq. | H52: 0 | I52: ='Reduction Path Calc'!$F52*'Reduction Path Calc'!$H52 -> 0 | J52: =H52 -> 0 | K52: 0 | L52: 0 | M52: ='Reduction Path Calc'!$L52*'Reduction Path Calc'!$F52 -> 0 | N52: 0 | O52: ='Reduction Path Calc'!$N52*F52 -> 0 | P52: 0 | Q52: ='Reduction Path Calc'!$K52*'Reduction Path Calc'!$D52 -> 0 | R52: ='Reduction Path Calc'!$D52*'Reduction Path Calc'!$M52 -> 0 | S52: ='Reduction Path Calc'!$D52*'Reduction Path Calc'!$O52 -> 0
A53: Waste | B53: 31 | C53: Reduction of emissions from anaerobic turnover at biogas plants | D53: 1 | E53: ton CO2 eq./ton | F53: ='Waste and wastewater W2018'!L16 -> 9934.502167 | G53: ton CO2-eq. | H53: 0 | I53: ='Reduction Path Calc'!$F53*'Reduction Path Calc'!$H53 -> 0 | J53: 0 | K53: 0 | L53: 0 | M53: ='Reduction Path Calc'!$L53*'Reduction Path Calc'!$F53 -> 0 | N53: 0 | O53: ='Reduction Path Calc'!$N53*F53 -> 0 | P53: 0 | Q53: ='Reduction Path Calc'!$K53*'Reduction Path Calc'!$D53 -> 0 | R53: ='Reduction Path Calc'!$D53*'Reduction Path Calc'!$M53 -> 0 | S53: ='Reduction Path Calc'!$D53*'Reduction Path Calc'!$O53 -> 0 | T53: .
A54: Waste | B54: 32 | C54: Reduction of emissions from burning waste | D54: =('Waste and wastewater W2018'!L17+'Waste and wastewater W2018'!L18)/'Reduction Path Calc'!F54 -> 0.232469272 | E54: ton CO2 eq./ton | F54: ='Waste and wastewater W2018'!E17 -> 41.1340615 | G54: tons of waste | H54: 0 | I54: ='Reduction Path Calc'!$F54*'Reduction Path Calc'!$H54 -> 0 | J54: 0 | K54: 0 | L54: 0 | M54: ='Reduction Path Calc'!$L54*'Reduction Path Calc'!$F54 -> 0 | N54: 0 | O54: ='Reduction Path Calc'!$N54*F54 -> 0 | P54: 0 | Q54: ='Reduction Path Calc'!$K54*'Reduction Path Calc'!$D54 -> 0 | R54: ='Reduction Path Calc'!$D54*'Reduction Path Calc'!$M54 -> 0 | S54: ='Reduction Path Calc'!$D54*'Reduction Path Calc'!$O54 -> 0 | T54: .
A55: Wastewater | B55: 33 | C55: Reduction of emissions from domestic wastewater | D55: 1 | E55: ton CO2 eq./ton | F55: ='Waste and wastewater W2018'!L20 -> 3830.281337 | G55: ton CO2-eq. | H55: 0 | I55: ='Reduction Path Calc'!$F55*'Reduction Path Calc'!$H55 -> 0 | J55: 0 | K55: 0 | L55: 0 | M55: ='Reduction Path Calc'!$L55*'Reduction Path Calc'!$F55 -> 0 | N55: 0 | O55: ='Reduction Path Calc'!$N55*F55 -> 0 | P55: 0 | Q55: ='Reduction Path Calc'!$K55*'Reduction Path Calc'!$D55 -> 0 | R55: ='Reduction Path Calc'!$D55*'Reduction Path Calc'!$M55 -> 0 | S55: ='Reduction Path Calc'!$D55*'Reduction Path Calc'!$O55 -> 0
A56: Wastewater | B56: 34 | C56: Reduction of emissions from industrial wastewater | D56: 1 | E56: ton CO2 eq./ton | F56: ='Waste and wastewater W2018'!L21 -> 215.6966529 | G56: ton CO2-eq. | H56: 0 | I56: ='Reduction Path Calc'!$F56*'Reduction Path Calc'!$H56 -> 0 | J56: 0 | K56: 0 | L56: 0 | M56: ='Reduction Path Calc'!$L56*'Reduction Path Calc'!$F56 -> 0 | N56: 0 | O56: ='Reduction Path Calc'!$N56*F56 -> 0 | P56: 0 | Q56: ='Reduction Path Calc'!$K56*'Reduction Path Calc'!$D56 -> 0 | R56: ='Reduction Path Calc'!$D56*'Reduction Path Calc'!$M56 -> 0 | S56: ='Reduction Path Calc'!$D56*'Reduction Path Calc'!$O56 -> 0
A57: Accidental fires | B57: 35 | C57: Reduction of emissions from accidental (random) fires | D57: =('Waste and wastewater W2018'!L24+'Waste and wastewater W2018'!L25)/'Reduction Path Calc'!F57 -> 10.93091005 | E57: ton CO2 eq./piece | F57: ='Waste and wastewater W2018'!C24+'Waste and wastewater W2018'!C25 -> 357.47542 | G57: Accidental fires | H57: 0 | I57: ='Reduction Path Calc'!$F57*'Reduction Path Calc'!$H57 -> 0 | J57: 0 | K57: 0 | L57: 0 | M57: ='Reduction Path Calc'!$L57*'Reduction Path Calc'!$F57 -> 0 | N57: 0 | O57: ='Reduction Path Calc'!$N57*F57 -> 0 | P57: 0 | Q57: ='Reduction Path Calc'!$K57*'Reduction Path Calc'!$D57 -> 0 | R57: ='Reduction Path Calc'!$D57*'Reduction Path Calc'!$M57 -> 0 | S57: ='Reduction Path Calc'!$D57*'Reduction Path Calc'!$O57 -> 0
A58: Waste and wastewater | B58: =B57&"a" -> 35a | C58: Waste and wastewater - other activities | E58: ton CO2 eq./ | H58: 0 | I58: ='Reduction Path Calc'!$F58*'Reduction Path Calc'!$H58 -> 0 | J58: 0 | K58: 0 | L58: 0 | M58: ='Reduction Path Calc'!$L58*'Reduction Path Calc'!$F58 -> 0 | N58: 0 | O58: ='Reduction Path Calc'!$N58*F58 -> 0 | P58: 0 | Q58: ='Reduction Path Calc'!$K58*'Reduction Path Calc'!$D58 -> 0 | R58: ='Reduction Path Calc'!$D58*'Reduction Path Calc'!$M58 -> 0 | S58: ='Reduction Path Calc'!$D58*'Reduction Path Calc'!$O58 -> 0 | T58: .
A59: Waste and wastewater | B59: =B57&"b" -> 35b | C59: Waste and wastewater - other activities | E59: ton CO2 eq./ | H59: 0 | I59: ='Reduction Path Calc'!$F59*'Reduction Path Calc'!$H59 -> 0 | J59: 0 | K59: 0 | L59: 0 | M59: ='Reduction Path Calc'!$L59*'Reduction Path Calc'!$F59 -> 0 | N59: 0 | O59: ='Reduction Path Calc'!$N59*F59 -> 0
A60: Waste and wastewater | B60: =B57&"c" -> 35c | C60: Waste and wastewater - other activities | E60: ton CO2 eq./ | H60: 0 | I60: ='Reduction Path Calc'!$F60*'Reduction Path Calc'!$H60 -> 0 | J60: 0 | K60: 0 | L60: 0 | M60: ='Reduction Path Calc'!$L60*'Reduction Path Calc'!$F60 -> 0 | N60: 0 | O60: ='Reduction Path Calc'!$N60*F60 -> 0
C61: Total - reduction in CO2 eq. Waste and waste water | P61: =SUM(P51:P60) -> 5521.234927 | Q61: =SUM(Q51:Q60) -> 16563.70478 | R61: 0 | S61: 0
A63: Industrial processes | D63: Reduction factor | F63: Potential Baseline (100%) | H63: BAU 2030 | J63: BAU 2050 | L63: 2030 | N63: 2050 | P63: Reductions in tonnes of CO2 eq. compared to baseline | T63: Comments on scenario proposals
A64: Category | B64: Nr. | C64: Activity | D64: Factor | E64: Unit | F64: Q-ty | G64: Unit | H64: BAU2030 share in % | I64: Q-ty BAU2030 | J64: BAU2050 share in % | K64: Q-ty BAU2050 | L64: 2030 share in % | M64: Q-ty2030 | N64: 2050 share in % | O64: Q-ty 2050 | P64: BAU2030 | Q64: BAU2050 | R64: 2030 | S64: 2050 | T64: Comments
A65: Industrial processes | B65: =B57+1 -> 36 | C65: Reduction of emissions from the mineral industry | D65: ='Industrial processes W2018'!O15/'Reduction Path Calc'!F65 -> 0.41492 | E65: ton CO2 eq./tonne | F65: ='Industrial processes W2018'!C15 -> 1580.406534 | G65: ton (industri produktion) | H65: 0 | I65: ='Reduction Path Calc'!$F65*'Reduction Path Calc'!$H65 -> 0 | J65: =H65 -> 0 | K65: =J65*F65 -> 0 | L65: 0 | M65: ='Reduction Path Calc'!$L65*'Reduction Path Calc'!$F65 -> 0 | N65: 0 | O65: ='Reduction Path Calc'!$N65*F65 -> 0 | P65: =I65*D65 -> 0 | Q65: ='Reduction Path Calc'!$K65*'Reduction Path Calc'!$D65 -> 0 | R65: ='Reduction Path Calc'!$D65*'Reduction Path Calc'!$M65 -> 0 | S65: ='Reduction Path Calc'!$D65*'Reduction Path Calc'!$O65 -> 0
A66: Industrial processes | B66: =B65+1 -> 37 | C66: Point-source emission | D66: 1 | E66: CO2 eq./ton | F66: =WK15_2018!H10+WK15_2018!H12+WK15_2018!H13+WK15_2018!H15+WK15_2018!H19+WK15_2018!H20 -> 655.7422791 | G66: ton CO2-ækv. | H66: 0 | I66: ='Reduction Path Calc'!$F66*'Reduction Path Calc'!$H66 -> 0 | J66: 0 | K66: 0 | L66: 0 | M66: ='Reduction Path Calc'!$L66*'Reduction Path Calc'!$F66 -> 0 | N66: 0 | O66: ='Reduction Path Calc'!$N66*F66 -> 0 | P66: 0 | Q66: ='Reduction Path Calc'!$K66*'Reduction Path Calc'!$D66 -> 0 | R66: ='Reduction Path Calc'!$D66*'Reduction Path Calc'!$M66 -> 0 | S66: ='Reduction Path Calc'!$D66*'Reduction Path Calc'!$O66 -> 0
A67: Industrial processes | B67: 38 | C67: Reduction of emissions from the Chemical industry | D67: ='Industrial processes W2018'!O20/'Reduction Path Calc'!F67 -> 0.0241 | E67: CO2 eq./ton | F67: ='Industrial processes W2018'!D20 -> 2086.717921 | G67: ton (industri produktion) | H67: 0 | I67: ='Reduction Path Calc'!$F67*'Reduction Path Calc'!$H67 -> 0 | J67: 0 | K67: 0 | L67: 0 | M67: ='Reduction Path Calc'!$L67*'Reduction Path Calc'!$F67 -> 0 | N67: 0 | O67: ='Reduction Path Calc'!$N67*F67 -> 0 | P67: 0 | Q67: ='Reduction Path Calc'!$K67*'Reduction Path Calc'!$D67 -> 0 | R67: ='Reduction Path Calc'!$D67*'Reduction Path Calc'!$M67 -> 0 | S67: ='Reduction Path Calc'!$D67*'Reduction Path Calc'!$O67 -> 0
A68: Industrial processes | B68: 39 | C68: Reduction of emissions from the Metal industry | D68: ='Industrial processes W2018'!O24/'Reduction Path Calc'!F68 -> 0.2 | E68: CO2 eq./ton | F68: ='Industrial processes W2018'!E24 -> 21.04206054 | G68: ton (industri produktion) | H68: 0 | I68: ='Reduction Path Calc'!$F68*'Reduction Path Calc'!$H68 -> 0 | J68: 0 | K68: 0 | L68: 0 | M68: ='Reduction Path Calc'!$L68*'Reduction Path Calc'!$F68 -> 0 | N68: 0 | O68: ='Reduction Path Calc'!$N68*F68 -> 0 | P68: 0 | Q68: ='Reduction Path Calc'!$K68*'Reduction Path Calc'!$D68 -> 0 | R68: ='Reduction Path Calc'!$D68*'Reduction Path Calc'!$M68 -> 0 | S68: ='Reduction Path Calc'!$D68*'Reduction Path Calc'!$O68 -> 0
A69: Industrial processes | B69: 40 | C69: Reduction of emissions from non-energy related products | D69: =('Industrial processes W2018'!O25+'Industrial processes W2018'!O26+'Industrial processes W2018'!O27+'Industrial processes W2018'!O28+'Industrial processes W2018'!O29+'Industrial processes W2018'!O30)/'Reduction Path Calc'!F69 -> 0.03252191078 | E69: CO2 eq./ton | F69: =SUM('Industrial processes W2018'!F25:F30) -> 175444.8252 | G69: ton (industri produktion) | H69: 0 | I69: ='Reduction Path Calc'!$F69*'Reduction Path Calc'!$H69 -> 0 | J69: 0 | K69: 0 | L69: 0 | M69: ='Reduction Path Calc'!$L69*'Reduction Path Calc'!$F69 -> 0 | N69: 0 | O69: ='Reduction Path Calc'!$N69*F69 -> 0 | P69: 0 | Q69: ='Reduction Path Calc'!$K69*'Reduction Path Calc'!$D69 -> 0 | R69: ='Reduction Path Calc'!$D69*'Reduction Path Calc'!$M69 -> 0 | S69: ='Reduction Path Calc'!$D69*'Reduction Path Calc'!$O69 -> 0 | T69: .
A70: Industrial processes | B70: 41 | C70: Reduction of emissions from the Electronics industry | D70: 0 | E70: CO2 eq./ton | F70: 0 | G70: ton (industri produktion) | H70: 0 | I70: ='Reduction Path Calc'!$F70*'Reduction Path Calc'!$H70 -> 0 | J70: 0 | K70: 0 | L70: 0 | M70: ='Reduction Path Calc'!$L70*'Reduction Path Calc'!$F70 -> 0 | N70: 0 | O70: ='Reduction Path Calc'!$N70*F70 -> 0 | P70: 0 | Q70: ='Reduction Path Calc'!$K70*'Reduction Path Calc'!$D70 -> 0 | R70: ='Reduction Path Calc'!$D70*'Reduction Path Calc'!$M70 -> 0 | S70: ='Reduction Path Calc'!$D70*'Reduction Path Calc'!$O70 -> 0 | T70: .
A71: Industrial processes | B71: 42 | C71: Reduction of emissions from the use of products that replace ozone-depleting products | D71: 1 | E71: CO2 eq./ton | F71: ='Industrial processes W2018'!O33+'Industrial processes W2018'!O34+'Industrial processes W2018'!O35 -> 17148.44372 | G71: ton CO2-ækv. | H71: 0 | I71: ='Reduction Path Calc'!$F71*'Reduction Path Calc'!$H71 -> 0 | J71: 0 | K71: 0 | L71: 0 | M71: ='Reduction Path Calc'!$L71*'Reduction Path Calc'!$F71 -> 0 | N71: 0 | O71: ='Reduction Path Calc'!$N71*F71 -> 0 | P71: 0 | Q71: ='Reduction Path Calc'!$K71*'Reduction Path Calc'!$D71 -> 0 | R71: ='Reduction Path Calc'!$D71*'Reduction Path Calc'!$M71 -> 0 | S71: ='Reduction Path Calc'!$D71*'Reduction Path Calc'!$O71 -> 0
A72: Industrial processes | B72: =B71&"a" -> 42a | C72: Industrial processes - other activities | E72: ton CO2 eq./ | H72: 0 | J72: 0 | L72: 0 | N72: 0
A73: Industrial processes | B73: =B71&"b" -> 42b | C73: Industrial processes - other activities | E73: ton CO2 eq./ | H73: 0 | J73: 0 | L73: 0 | N73: 0
A74: Industrial processes | B74: =B71&"c" -> 42c | C74: Industrial processes - other activities | E74: ton CO2 eq./ | H74: 0 | J74: 0 | L74: 0 | N74: 0 | P74: =I74*D74 -> 0 | Q74: ='Reduction Path Calc'!$K74*'Reduction Path Calc'!$D74 -> 0 | R74: ='Reduction Path Calc'!$D74*'Reduction Path Calc'!$M74 -> 0 | S74: ='Reduction Path Calc'!$D74*'Reduction Path Calc'!$O74 -> 0 | T74: .
C75: Total - reduction in CO2 eq. Industrial processes | P75: =SUM(P65:P74) -> 0 | Q75: =SUM(Q65:Q74) -> 0 | R75: 0 | S75: 0
A77: Transport | D77: Reduction factor | F77: Potential Baseline | H77: BAU 2030 | J77: BAU 2050 | L77: 2030 | N77: 2050 | P77: Reductions in tonnes of CO2 eq. compared to baseline | T77: Comments on scenario proposals
A78: Category | B78: Nr. | C78: Activity | D78: Factor | E78: Unit | F78: Q-ty | G78: Unit | H78: BAU2030 share in % | I78: Q-ty BAU2030 | J78: BAU2050 share in % | K78: Q-ty BAU2050 | L78: 2030 share in % | M78: Q-ty2030 | N78: 2050 share in % | O78: Q-ty 2050 | P78: BAU2030 | Q78: BAU2050 | R78: 2030 | S78: 2050 | T78: Comments
A79: Transport | B79: =B71+1 -> 43 | C79: Alternative fuels in cars and vans: Share of pure electric vehicles (BEV) | F79: ='E-Tiltag'!$AE$32 -> 4523307 | G79: Cars and vans | H79: 0.22 | I79: ='Reduction Path Calc'!$H79*'Reduction Path Calc'!$F79 -> 995127.54 | J79: 0.42 | K79: =J79*F79 -> 1899788.94 | L79: 0 | M79: ='Reduction Path Calc'!$L79*'Reduction Path Calc'!$F79 -> 0 | N79: 0 | O79: ='Reduction Path Calc'!$N79*F79 -> 0
A80: Transport | B80: =B79+1 -> 44 | C80: Alternative fuels in cars and vans: Share of plug-in hybrid vehicles (PHEV) | F80: ='E-Tiltag'!$AE$32 -> 4523307 | G80: Cars and vans | H80: 0.07 | I80: ='Reduction Path Calc'!$H80*'Reduction Path Calc'!$F80 -> 316631.49 | J80: 0.07 | K80: =J80*F80 -> 316631.49 | L80: 0 | M80: ='Reduction Path Calc'!$L80*'Reduction Path Calc'!$F80 -> 0 | N80: 0 | O80: ='Reduction Path Calc'!$N80*F80 -> 0
C81: Cars and vans: CO2 savings of selected vehicle fleet: | P81: =('WE2018'!$H$62*'WE2018'!$H$90+'WE2018'!$F$63*'WE2018'!$F$90)-(EBAU2030!$H$61*'WE2018'!$H$90)-((EBAU2030!$F$62+EBAU2030!$K$62)*'WE2018'!$F$90) ->  | Q81: =('WE2018'!$H$62*'WE2018'!$H$90+'WE2018'!$F$63*'WE2018'!$F$90)-(EBAU2050!$H$61*'WE2018'!$H$90)-((EBAU2050!$F$62+EBAU2050!$K$62)*'WE2018'!$F$90) ->  | R81: =('WE2018'!$H$62*'WE2018'!$H$90+'WE2018'!$F$63*'WE2018'!$F$90)-(ESTI2030!$H$61*'WE2018'!$H$90)-((ESTI2030!$F$62+ESTI2030!$K$62)*'WE2018'!$F$90) -> -9229344.554 | S81: =('WE2018'!$H$62*'WE2018'!$H$90+'WE2018'!$F$63*'WE2018'!$F$90)-(ESTI2050!$H$61*'WE2018'!$H$90)-((ESTI2050!$F$62+ESTI2050!$K$62)*'WE2018'!$F$90) -> -8273487.034
A82: Transport | B82: =B80+1 -> 45 | C82: Alternative fuels in trucks: Share of electric vehicles (BEV) | F82: ='E-Tiltag'!$AE$53 -> 9130 | G82: Trucks | H82: 0.05 | I82: ='Reduction Path Calc'!$H82*'Reduction Path Calc'!$F82 -> 456.5 | J82: 0.17 | K82: =J82*F82 -> 1552.1 | L82: 0.05 | M82: ='Reduction Path Calc'!$L82*'Reduction Path Calc'!$F82 -> 456.5 | N82: 0 | O82: ='Reduction Path Calc'!$N82*F82 -> 0
A83: Transport | B83: =B82+1 -> 46 | C83: Alternative fuels in trucks: Share of gas-powered vehicles | F83: ='E-Tiltag'!$AE$53 -> 9130 | G83: Trucks | H83: 0.02 | I83: ='Reduction Path Calc'!$H83*'Reduction Path Calc'!$F83 -> 182.6 | J83: 0.03 | K83: =J83*F83 -> 273.9 | L83: 0.02 | M83: ='Reduction Path Calc'!$L83*'Reduction Path Calc'!$F83 -> 182.6 | N83: 0 | O83: ='Reduction Path Calc'!$N83*F83 -> 0
A84: Transport | B84: =B83+1 -> 47 | C84: Alternative fuels in trucks: Share of hydrogen-powered vehicles | F84: ='E-Tiltag'!$AE$53 -> 9130 | G84: Trucks | H84: 0.01 | I84: ='Reduction Path Calc'!$H84*'Reduction Path Calc'!$F84 -> 91.3 | J84: 0.01 | K84: =J84*F84 -> 91.3 | L84: 0.01 | M84: ='Reduction Path Calc'!$L84*'Reduction Path Calc'!$F84 -> 91.3 | N84: 0 | O84: ='Reduction Path Calc'!$N84*F84 -> 0
C85: Trucks: CO2 savings of selected vehicle fleet: | H85: =IF(SUM(H82:H84)>1,"OBS: PROCENTER OVERSTIGER 100%!","") ->  | J85: =IF(SUM(J82:J84)>1,"OBS: PROCENTER OVERSTIGER 100%!","") ->  | L85: =IF(SUM(L82:L84)>1,"OBS: PROCENTER OVERSTIGER 100%!","") ->  | N85: =IF(SUM(N82:N84)<>1,IF(SUM(N82:N84)<>0,"OBS: FORDELING SKAL SUMMERE TIL 0 ELLER 100%!",""),"") ->  | P85: =('WE2018'!$F$72*'WE2018'!$F$90)-((EBAU2030!$F$71+EBAU2030!$K$62)*'WE2018'!$F$90) ->  | Q85: =('WE2018'!$F$72*'WE2018'!$F$90)-((EBAU2050!$F$71+EBAU2050!$K$62)*'WE2018'!$F$90) ->  | R85: =('WE2018'!$F$72*'WE2018'!$F$90)-((ESTI2030!$F$71+ESTI2030!$K$62)*'WE2018'!$F$90) -> -330708.8761 | S85: =('WE2018'!$F$72*'WE2018'!$F$90)-((ESTI2050!$F$71+ESTI2050!$K$62)*'WE2018'!$F$90) -> -406120.0836
A86: Transport | B86: =B84+1 -> 48 | C86: Alternative fuels in buses: Share of electric vehicles (BEV) | F86: ='E-Tiltag'!$AE$74 -> 1746 | G86: Buses | H86: 0.29 | I86: ='Reduction Path Calc'!$H86*'Reduction Path Calc'!$F86 -> 506.34 | J86: 0.45 | K86: =J86*F86 -> 785.7 | L86: 0 | M86: ='Reduction Path Calc'!$L86*'Reduction Path Calc'!$F86 -> 0 | N86: 0 | O86: ='Reduction Path Calc'!$N86*F86 -> 0
A87: Transport | B87: =B86+1 -> 49 | C87: Alternative fuels in buses: Share of gas-powered | F87: ='E-Tiltag'!$AE$74 -> 1746 | G87: Buses | H87: 0.06 | I87: ='Reduction Path Calc'!$H87*'Reduction Path Calc'!$F87 -> 104.76 | J87: 0.06 | K87: =J87*F87 -> 104.76 | L87: 0 | M87: ='Reduction Path Calc'!$L87*'Reduction Path Calc'!$F87 -> 0 | N87: 0 | O87: ='Reduction Path Calc'!$N87*F87 -> 0
A88: Transport | B88: =B87+1 -> 50 | C88: Alternative fuels in buses: Share of powered by hydrogen | F88: ='E-Tiltag'!$AE$74 -> 1746 | G88: Buses | H88: 0 | I88: ='Reduction Path Calc'!$H88*'Reduction Path Calc'!$F88 -> 0 | J88: 0 | K88: =J88*F88 -> 0 | L88: 0 | M88: ='Reduction Path Calc'!$L88*'Reduction Path Calc'!$F88 -> 0 | N88: 0 | O88: ='Reduction Path Calc'!$N88*F88 -> 0
C89: Buses: CO2 savings of selected vehicle fleet: | H89: =IF(SUM(H86:H88)>1,"OBS: PROCENTER OVERSTIGER 100%!","") ->  | J89: =IF(SUM(J86:J88)>1,"OBS: PROCENTER OVERSTIGER 100%!","") ->  | L89: =IF(SUM(L86:L88)>1,"OBS: PROCENTER OVERSTIGER 100%!","") ->  | N89: =IF(SUM(N86:N88)<>1,IF(SUM(N86:N88)<>0,"OBS: FORDELING SKAL SUMMERE TIL 0 ELLER 100%!",""),"") ->  | P89: =('WE2018'!$F$68*'WE2018'!$F$90)-((EBAU2030!$F$67+EBAU2030!$K$62)*'WE2018'!$F$90) ->  | Q89: =('WE2018'!$F$68*'WE2018'!$F$90)-((EBAU2050!$F$67+EBAU2050!$K$62)*'WE2018'!$F$90) ->  | R89: =('WE2018'!$F$68*'WE2018'!$F$90)-((ESTI2030!$F$67+ESTI2030!$K$62)*'WE2018'!$F$90) -> -27373.26718 | S89: =('WE2018'!$F$68*'WE2018'!$F$90)-((ESTI2050!$F$67+ESTI2050!$K$62)*'WE2018'!$F$90) -> -27693.46208
A90: Transport | B90: =B88+1 -> 51 | C90: Aviation: Increase in transport and fuel demands | D90: =-'WE2018'!$G$90 -> -72 | E90: ton CO2/TJ JP1 | F90: ='WE2018'!$G$80 -> 1573.9 | G90: TJ JP1 | H90: 0.1 | I90: ='Reduction Path Calc'!$H90*'Reduction Path Calc'!$F90 -> 157.39 | J90: 0.1 | K90: =J90*F90 -> 157.39 | L90: 0 | M90: ='Reduction Path Calc'!$L90*'Reduction Path Calc'!$F90 -> 0 | N90: 0 | O90: ='Reduction Path Calc'!$N90*F90 -> 0 | P90: =I90*D90 -> -11332.08 | Q90: ='Reduction Path Calc'!$K90*'Reduction Path Calc'!$D90 -> -11332.08 | R90: ='Reduction Path Calc'!$D90*'Reduction Path Calc'!$M90 -> 0 | S90: ='Reduction Path Calc'!$D90*'Reduction Path Calc'!$O90 -> 0
A91: Transport | B91: =B90+1 -> 52 | C91: Other transport: Efficiency improvements, electrification of railways and ferries, etc. | P91: =(SUM('WE2018'!$D$62:$D$81)*'WE2018'!$D$90+SUM('WE2018'!$F$62:$F$81)*'WE2018'!$F$90+SUM('WE2018'!$G$62:$G$81)*'WE2018'!$G$90+SUM('WE2018'!$H$62:$H$81)*'WE2018'!$H$90)-(SUM(EBAU2030!$D$61:$D$80)*'WE2018'!$D$90+SUM(EBAU2030!$F$61:$F$80)*'WE2018'!$F$90+SUM(EBAU2030!$G$61:$G$80)*'WE2018'!$G$90+SUM(EBAU2030!$H$61:$H$80)*'WE2018'!$H$90)-P81-P85-P89-P90-P107-P109 ->  | Q91: =(SUM('WE2018'!$D$62:$D$81)*'WE2018'!$D$90+SUM('WE2018'!$F$62:$F$81)*'WE2018'!$F$90+SUM('WE2018'!$G$62:$G$81)*'WE2018'!$G$90+SUM('WE2018'!$H$62:$H$81)*'WE2018'!$H$90)-(SUM(EBAU2050!$D$61:$D$80)*'WE2018'!$D$90+SUM(EBAU2050!$F$61:$F$80)*'WE2018'!$F$90+SUM(EBAU2050!$G$61:$G$80)*'WE2018'!$G$90+SUM(EBAU2050!$H$61:$H$80)*'WE2018'!$H$90)-Q81-Q85-Q89-Q90-Q107-Q109 ->  | R91: =(SUM('WE2018'!$D$62:$D$81)*'WE2018'!$D$90+SUM('WE2018'!$F$62:$F$81)*'WE2018'!$F$90+SUM('WE2018'!$G$62:$G$81)*'WE2018'!$G$90+SUM('WE2018'!$H$62:$H$81)*'WE2018'!$H$90)-(SUM(ESTI2030!$D$61:$D$80)*'WE2018'!$D$90+SUM(ESTI2030!$F$61:$F$80)*'WE2018'!$F$90+SUM(ESTI2030!$G$61:$G$80)*'WE2018'!$G$90+SUM(ESTI2030!$H$61:$H$80)*'WE2018'!$H$90)-R81-R85-R89-R90-R107-R109 ->  | S91: =(SUM('WE2018'!$D$62:$D$81)*'WE2018'!$D$90+SUM('WE2018'!$F$62:$F$81)*'WE2018'!$F$90+SUM('WE2018'!$G$62:$G$81)*'WE2018'!$G$90+SUM('WE2018'!$H$62:$H$81)*'WE2018'!$H$90)-(SUM(ESTI2050!$D$61:$D$80)*'WE2018'!$D$90+SUM(ESTI2050!$F$61:$F$80)*'WE2018'!$F$90+SUM(ESTI2050!$G$61:$G$80)*'WE2018'!$G$90+SUM(ESTI2050!$H$61:$H$80)*'WE2018'!$H$90)-S81-S85-S89-S90-S107-S109 -> 
A92: Transport | B92: =B91&"a" -> 52a | C92: Transport - other activities | E92: ton CO2 eq./ | H92: 0 | I92: ='Reduction Path Calc'!$H92*'Reduction Path Calc'!$F92 -> 0 | J92: 0 | K92: =J92*F92 -> 0 | L92: 0 | M92: ='Reduction Path Calc'!$L92*'Reduction Path Calc'!$F92 -> 0 | N92: 0 | O92: ='Reduction Path Calc'!$N92*F92 -> 0 | P92: =I92*D92 -> 0 | Q92: ='Reduction Path Calc'!$K92*'Reduction Path Calc'!$D92 -> 0 | R92: ='Reduction Path Calc'!$D92*'Reduction Path Calc'!$M92 -> 0 | S92: ='Reduction Path Calc'!$D92*'Reduction Path Calc'!$O92 -> 0
A93: Transport | B93: =B91&"b" -> 52b | C93: Transport - other activities | E93: ton CO2 eq./ | H93: 0 | I93: ='Reduction Path Calc'!$H93*'Reduction Path Calc'!$F93 -> 0 | J93: 0 | K93: =J93*F93 -> 0 | L93: 0 | M93: ='Reduction Path Calc'!$L93*'Reduction Path Calc'!$F93 -> 0 | N93: 0 | O93: ='Reduction Path Calc'!$N93*F93 -> 0 | P93: =I93*D93 -> 0 | Q93: ='Reduction Path Calc'!$K93*'Reduction Path Calc'!$D93 -> 0 | R93: ='Reduction Path Calc'!$D93*'Reduction Path Calc'!$M93 -> 0 | S93: ='Reduction Path Calc'!$D93*'Reduction Path Calc'!$O93 -> 0
A94: Transport | B94: =B91&"c" -> 52c | C94: Transport - other activities | E94: ton CO2 eq./ | H94: 0 | I94: ='Reduction Path Calc'!$H94*'Reduction Path Calc'!$F94 -> 0 | J94: 0 | K94: =J94*F94 -> 0 | L94: 0 | M94: ='Reduction Path Calc'!$L94*'Reduction Path Calc'!$F94 -> 0 | N94: 0 | O94: ='Reduction Path Calc'!$N94*F94 -> 0 | P94: =I94*D94 -> 0 | Q94: ='Reduction Path Calc'!$K94*'Reduction Path Calc'!$D94 -> 0 | R94: ='Reduction Path Calc'!$D94*'Reduction Path Calc'!$M94 -> 0 | S94: ='Reduction Path Calc'!$D94*'Reduction Path Calc'!$O94 -> 0
C95: Total - reduction in CO2 eq. Transport | P95: =SUM(P79:P94) ->  | Q95: =SUM(Q79:Q94) ->  | R95: =SUM(R79:R94) ->  | S95: =SUM(S79:S94) -> 
A97: Energy | D97: Reduction factor | F97: Potential Baseline | H97: BAU 2030 | J97: BAU 2050 | L97: 2030 | N97: 2050 | P97: Reductions in tonnes of CO2 eq. compared to baseline | T97: Comments on scenario proposals
A98: Category | B98: Nr. | C98: Activity | D98: Factor | E98: Unit | F98: Q-ty | G98: Unit | H98: BAU2030 share in % | I98: Q-ty BAU2030 | J98: BAU2050 share in % | K98: Q-ty BAU2050 | L98: 2030 share in % | M98: Q-ty2030 | N98: 2050 share in % | O98: Q-ty 2050 | P98: BAU2030 | Q98: BAU2050 | R98: 2030 | S98: 2050 | T98: Comments
A99: Energy | B99: =B91+1 -> 53 | C99: Energy savings/additional insulation in existing space heating requirements | D99: 0 | E99: - | F99: 100 | G99: % | H99: 0.03 | I99: ='Reduction Path Calc'!$H99*'Reduction Path Calc'!$F99 -> 3 | J99: 0.05 | K99: =J99*F99 -> 5 | L99: 0 | M99: ='Reduction Path Calc'!$L99*'Reduction Path Calc'!$F99 -> 0 | N99: 0 | O99: ='Reduction Path Calc'!$N99*F99 -> 0 | P99: =I99*D99 -> 0 | Q99: ='Reduction Path Calc'!$K99*'Reduction Path Calc'!$D99 -> 0 | R99: ='Reduction Path Calc'!$D99*'Reduction Path Calc'!$M99 -> 0 | S99: ='Reduction Path Calc'!$D99*'Reduction Path Calc'!$O99 -> 0
A100: Energy | B100: =B99+1 -> 54 | C100: Reduction of fossil fuels in district heating | D100: =(SUM('WE2018'!$B$29:$B$51)*'WE2018'!$B$90+SUM('WE2018'!$C$29:$C$51)*'WE2018'!$C$90+SUM('WE2018'!$D$29:$D$51)*'WE2018'!$D$90+SUM('WE2018'!$E$29:$E$51)*'WE2018'!$E$90+SUM('WE2018'!$F$29:$F$51)*'WE2018'!$F$90+SUM('WE2018'!$G$29:$G$51)*'WE2018'!$G$90+SUM('WE2018'!$H$29:$H$51)*'WE2018'!$H$90+SUM('WE2018'!$I$29:$I$51)*'WE2018'!$I$90)/ (SUM('WE2018'!$B$29:$B$51)+SUM('WE2018'!$C$29:$C$51)+SUM('WE2018'!$D$29:$D$51)+SUM('WE2018'!$E$29:$E$51)+SUM('WE2018'!$F$29:$F$51)+SUM('WE2018'!$G$29:$G$51)+SUM('WE2018'!$H$29:$H$51)+SUM('WE2018'!$I$29:$I$51)) -> 57.13660595 | E100: ton CO2/TJ fuel | F100: =SUM('WE2018'!$B$29:$I$51) -> 1129.1016 | G100: TJ | H100: 1 | I100: ='Reduction Path Calc'!$H100*'Reduction Path Calc'!$F100 -> 1129.1016 | J100: 1 | K100: 1129.1016 | L100: 1 | M100: ='Reduction Path Calc'!$L100*'Reduction Path Calc'!$F100 -> 1129.1016 | N100: 1 | O100: ='Reduction Path Calc'!$N100*F100 -> 1129.1016 | P100: 64513.0332 | Q100: ='Reduction Path Calc'!$K100*'Reduction Path Calc'!$D100 -> 64513.0332 | R100: ='Reduction Path Calc'!$D100*'Reduction Path Calc'!$M100 -> 64513.0332 | S100: ='Reduction Path Calc'!$D100*'Reduction Path Calc'!$O100 -> 64513.0332
A101: Energy | B101: 55 | C101: Transition from heating using natural gas to other renewable energy sources | D101: ='WE2018'!$I$90 -> 57 | E101: ton CO2/TJ natural gas | F101: ='WE2018'!$I$15 -> 489.1 | G101: TJ natural gas | H101: 0.57 | I101: ='Reduction Path Calc'!$H101*'Reduction Path Calc'!$F101 -> 278.787 | J101: 0.9 | K101: 440.19 | L101: 0 | M101: ='Reduction Path Calc'!$L101*'Reduction Path Calc'!$F101 -> 0 | N101: 0 | O101: ='Reduction Path Calc'!$N101*F101 -> 0 | P101: 15890.859 | Q101: ='Reduction Path Calc'!$K101*'Reduction Path Calc'!$D101 -> 25090.83 | R101: ='Reduction Path Calc'!$D101*'Reduction Path Calc'!$M101 -> 0 | S101: ='Reduction Path Calc'!$D101*'Reduction Path Calc'!$O101 -> 0
A102: Energy | B102: 56 | C102: Transition from heating using oil to other renewable energy sources | D102: ='WE2018'!$E$90 -> 74.1 | E102: ton CO2/TJ oil | F102: ='WE2018'!$E$14 -> 559.8 | G102: TJ oil | H102: 0.83 | I102: ='Reduction Path Calc'!$H102*'Reduction Path Calc'!$F102 -> 464.634 | J102: 0.9 | K102: 503.82 | L102: 0 | M102: ='Reduction Path Calc'!$L102*'Reduction Path Calc'!$F102 -> 0 | N102: 0 | O102: ='Reduction Path Calc'!$N102*F102 -> 0 | P102: 34429.3794 | Q102: ='Reduction Path Calc'!$K102*'Reduction Path Calc'!$D102 -> 37333.062 | R102: ='Reduction Path Calc'!$D102*'Reduction Path Calc'!$M102 -> 0 | S102: ='Reduction Path Calc'!$D102*'Reduction Path Calc'!$O102 -> 0
A103: Energy | B103: 57 | C103: Transition from using piped gas in industry and business to other renewable energy sources | D103: ='WE2018'!$I$90 -> 57 | E103: ton CO2/TJ natural gas | F103: ='WE2018'!$I$21+'WE2018'!$I$22 ->  | G103: TJ natural gas | H103: 0 | I103: ='Reduction Path Calc'!$H103*'Reduction Path Calc'!$F103 ->  | J103: 0 | L103: 0 | M103: ='Reduction Path Calc'!$L103*'Reduction Path Calc'!$F103 ->  | N103: 0 | O103: ='Reduction Path Calc'!$N103*F103 ->  | Q103: ='Reduction Path Calc'!$K103*'Reduction Path Calc'!$D103 ->  | R103: ='Reduction Path Calc'!$D103*'Reduction Path Calc'!$M103 ->  | S103: ='Reduction Path Calc'!$D103*'Reduction Path Calc'!$O103 -> 
A104: Energy | B104: 58 | C104: Transition from using oil in industry and business to other renewable energy sources | D104: ='WE2018'!$E$90 -> 74.1 | E104: ton CO2/TJ oil | F104: ='WE2018'!$E$22 ->  | G104: TJ oil | H104: 0 | I104: ='Reduction Path Calc'!$H104*'Reduction Path Calc'!$F104 ->  | J104: 0 | L104: 0 | M104: ='Reduction Path Calc'!$L104*'Reduction Path Calc'!$F104 ->  | N104: 0 | O104: ='Reduction Path Calc'!$N104*F104 ->  | Q104: ='Reduction Path Calc'!$K104*'Reduction Path Calc'!$D104 ->  | R104: ='Reduction Path Calc'!$D104*'Reduction Path Calc'!$M104 ->  | S104: ='Reduction Path Calc'!$D104*'Reduction Path Calc'!$O104 -> 
A105: Energy | B105: 59 | C105: Transition from other fossil fuels in industry to renewable energy sources | D105: =SUMPRODUCT('WE2018'!$B$22:$I$22,'WE2018'!$B$90:$I$90)/SUM('WE2018'!$B$22:$I$22) -> 94.2 | E105: ton CO2/TJ | F105: =SUM('WE2018'!$B$22:$I$22) -> 558.1 | G105: TJ | H105: 0 | I105: ='Reduction Path Calc'!$H105*'Reduction Path Calc'!$F105 -> 0 | J105: 0 | K105: 0 | L105: 0 | M105: ='Reduction Path Calc'!$L105*'Reduction Path Calc'!$F105 -> 0 | N105: 0 | O105: ='Reduction Path Calc'!$N105*F105 -> 0 | P105: 0 | Q105: ='Reduction Path Calc'!$K105*'Reduction Path Calc'!$D105 -> 0 | R105: ='Reduction Path Calc'!$D105*'Reduction Path Calc'!$M105 -> 0 | S105: ='Reduction Path Calc'!$D105*'Reduction Path Calc'!$O105 -> 0
A106: Energy | B106: 60 | C106: Biogas & PtX: Biogas upgrade | D106: 0.079 | E106: ton CO2/tonne animal manure | F106: =F32+F33 -> 3355985.658 | G106: ton livestock manure residue | H106: 0 | I106: ='Reduction Path Calc'!$H106*'Reduction Path Calc'!$F106 -> 0 | J106: 0 | K106: 0 | L106: 0 | M106: ='Reduction Path Calc'!$L106*'Reduction Path Calc'!$F106 -> 0 | N106: 0 | O106: ='Reduction Path Calc'!$N106*F106 -> 0 | P106: 0 | Q106: ='Reduction Path Calc'!$K106*'Reduction Path Calc'!$D106 -> 0 | R106: ='Reduction Path Calc'!$D106*'Reduction Path Calc'!$M106 -> 0 | S106: ='Reduction Path Calc'!$D106*'Reduction Path Calc'!$O106 -> 0
A107: Energy | B107: 61 | C107: Biogas & PtX: Methanol (eSMR on (to) new biogas) | D107: 0.147 | E107: ton CO2/tonne animal manure | F107: =F106 -> 3355985.658 | G107: ton livestock manure residue | H107: 0 | I107: ='Reduction Path Calc'!$H107*'Reduction Path Calc'!$F107 -> 0 | J107: 0 | K107: 0 | L107: 0 | M107: ='Reduction Path Calc'!$L107*'Reduction Path Calc'!$F107 -> 0 | N107: 0 | O107: ='Reduction Path Calc'!$N107*F107 -> 0 | P107: 0 | Q107: ='Reduction Path Calc'!$K107*'Reduction Path Calc'!$D107 -> 0 | R107: ='Reduction Path Calc'!$D107*'Reduction Path Calc'!$M107 -> 0 | S107: ='Reduction Path Calc'!$D107*'Reduction Path Calc'!$O107 -> 0
A108: Energy | B108: 62 | C108: Biogas & PtX: Methanization (on (to) new biogas) | D108: 0.138 | E108: ton CO2/tonne animal manure | F108: =F107 -> 3355985.658 | G108: ton livestock manure residue | H108: =0 -> 0 | I108: ='Reduction Path Calc'!$H108*'Reduction Path Calc'!$F108 -> 0 | J108: 0 | K108: 0 | L108: 0 | M108: ='Reduction Path Calc'!$L108*'Reduction Path Calc'!$F108 -> 0 | N108: 0 | O108: ='Reduction Path Calc'!$N108*F108 -> 0 | P108: 0 | Q108: ='Reduction Path Calc'!$K108*'Reduction Path Calc'!$D108 -> 0 | R108: ='Reduction Path Calc'!$D108*'Reduction Path Calc'!$M108 -> 0 | S108: ='Reduction Path Calc'!$D108*'Reduction Path Calc'!$O108 -> 0
A109: Energy | B109: 63 | C109: CCU & PtX: Methanol (Power2Met on excess CO2) | D109: 1.082 | E109: ton CO2/ton CO2 utilized | G109: tons of collected CO2 | H109: 0 | I109: ='Reduction Path Calc'!$H109*'Reduction Path Calc'!$F109 -> 0 | J109: 0 | K109: 0 | L109: 0 | M109: ='Reduction Path Calc'!$L109*'Reduction Path Calc'!$F109 -> 0 | N109: 0 | O109: ='Reduction Path Calc'!$N109*F109 -> 0 | P109: 0 | Q109: ='Reduction Path Calc'!$K109*'Reduction Path Calc'!$D109 -> 0 | R109: ='Reduction Path Calc'!$D109*'Reduction Path Calc'!$M109 -> 0 | S109: ='Reduction Path Calc'!$D109*'Reduction Path Calc'!$O109 -> 0
A110: Energy | B110: 64 | C110: CCU & PtX: Methanization (Biomethanization on excess CO2) | D110: 1.049 | E110: ton CO2/ton CO2 utilized | F110: =F109 -> 0 | G110: tons of collected CO3 | H110: 0 | I110: ='Reduction Path Calc'!$H110*'Reduction Path Calc'!$F110 -> 0 | J110: 0 | K110: 0 | L110: 0 | M110: ='Reduction Path Calc'!$L110*'Reduction Path Calc'!$F110 -> 0 | N110: 0 | O110: ='Reduction Path Calc'!$N110*F110 -> 0 | P110: 0 | Q110: ='Reduction Path Calc'!$K110*'Reduction Path Calc'!$D110 -> 0 | R110: ='Reduction Path Calc'!$D110*'Reduction Path Calc'!$M110 -> 0 | S110: ='Reduction Path Calc'!$D110*'Reduction Path Calc'!$O110 -> 0
A111: Energy | B111: 65 | C111: CCS: Carbon Capture/CO2 storage in the underground | D111: 1 | E111: ton CO2/ton CO2 | F111: 0 | G111: ton CO2 | H111: 0 | I111: ='Reduction Path Calc'!$H111*'Reduction Path Calc'!$F111 -> 0 | J111: 0 | K111: 0 | L111: 0 | M111: ='Reduction Path Calc'!$L111*'Reduction Path Calc'!$F111 -> 0 | N111: 0 | O111: ='Reduction Path Calc'!$N111*F111 -> 0 | P111: 0 | Q111: ='Reduction Path Calc'!$K111*'Reduction Path Calc'!$D111 -> 0 | R111: ='Reduction Path Calc'!$D111*'Reduction Path Calc'!$M111 -> 0 | S111: ='Reduction Path Calc'!$D111*'Reduction Path Calc'!$O111 -> 0
A112: Energy | B112: 66 | C112: Reduction of emission factor for electricity imports | D112: ='WE2018'!$A$90 -> 124.12 | E112: ton CO2/TJ el | F112: ='WE2018'!$A$82 -> -2374.585216 | G112: TJ el | H112: 1 | I112: ='Reduction Path Calc'!$H112*'Reduction Path Calc'!$F112 -> -2374.585216 | J112: =H112 -> 1 | K112: -2374.585216 | L112: =J112 -> 1 | M112: ='Reduction Path Calc'!$L112*'Reduction Path Calc'!$F112 -> -2374.585216 | N112: =L112 -> 1 | O112: ='Reduction Path Calc'!$N112*F112 -> -2374.585216 | P112: -294733.517 | Q112: ='Reduction Path Calc'!$K112*'Reduction Path Calc'!$D112 -> -294733.517 | R112: ='Reduction Path Calc'!$D112*'Reduction Path Calc'!$M112 -> -294733.517 | S112: ='Reduction Path Calc'!$D112*'Reduction Path Calc'!$O112 -> -294733.517
A113: Energy | B113: 67 | C113: Installation of new wind turbines (150 m, 4.2 MW, 3,000 full load hours/year) | D113: ='E-Tiltag'!Q18 -> 45.36 | E113: TJ electricity / wind turbine | F113: 0 | G113: PCS. Wind turbines | H113: 0 | I113: ='Reduction Path Calc'!$H113*'Reduction Path Calc'!$F113 -> 0 | J113: 0 | K113: 0 | L113: 0 | M113: ='Reduction Path Calc'!$L113*'Reduction Path Calc'!$F113 -> 0 | N113: 0 | O113: ='Reduction Path Calc'!$N113*F113 -> 0 | P113: =I113*$D$113*($D$112-$D$112*$H$112) -> 0 | Q113: =K113*$D$113*($D$112-$D$112*$J$112) -> 0 | R113: =M113*$D$113*($D$112-$D$112*$L$112) -> 0 | S113: =O113*$D$113*($D$112-$D$112*$N$112) -> 0
A114: Energy | B114: 68 | C114: Installation of coastal wind turbines (180m, 4.6 MW, 3,800 full load hours/year) | D114: ='E-Tiltag'!Q26 -> 62.928 | E114: TJ electricity / wind turbine | F114: 0 | G114: PCS. Wind turbines | H114: 0 | I114: ='Reduction Path Calc'!$H114*'Reduction Path Calc'!$F114 -> 0 | J114: 0 | K114: 0 | L114: 0 | M114: ='Reduction Path Calc'!$L114*'Reduction Path Calc'!$F114 -> 0 | N114: 0 | O114: ='Reduction Path Calc'!$N114*F114 -> 0 | P114: =I114*$D$114*($D$112-$D$112*$H$112) -> 0 | Q114: =K114*$D$114*($D$112-$D$112*$J$112) -> 0 | R114: =M114*$D$114*($D$112-$D$112*$L$112) -> 0 | S114: =O114*$D$114*($D$112-$D$112*$N$112) -> 0
A115: Energy | B115: 69 | C115: Installation of solar cells (ground-based or on industrial roofs, etc.) | D115: ='E-Tiltag'!Q38 -> 3.9627 | E115: TJ electricity / ha solar cells | F115: 0 | G115: ha solar cells | H115: 0 | I115: ='Reduction Path Calc'!$H115*'Reduction Path Calc'!$F115 -> 0 | J115: 0 | K115: 0 | L115: 0 | M115: ='Reduction Path Calc'!$L115*'Reduction Path Calc'!$F115 -> 0 | N115: 0 | O115: ='Reduction Path Calc'!$N115*F115 -> 0 | P115: =I115*$D$115*($D$112-$D$112*$H$112) -> 0 | Q115: =K115*$D$115*($D$112-$D$112*$J$112) -> 0 | R115: =M115*$D$115*($D$112-$D$112*$L$112) -> 0 | S115: =O115*$D$115*($D$112-$D$112*$N$112) -> 0
A116: Energy | B116: =B115&"a" -> 69a | C116: Energy - other activities | E116: ton CO2 eq./ | H116: 0 | I116: ='Reduction Path Calc'!$H116*'Reduction Path Calc'!$F116 -> 0 | J116: 0 | K116: 0 | L116: 0 | M116: ='Reduction Path Calc'!$L116*'Reduction Path Calc'!$F116 -> 0 | N116: 0 | O116: ='Reduction Path Calc'!$N116*F116 -> 0 | P116: 0 | Q116: ='Reduction Path Calc'!$K116*'Reduction Path Calc'!$D116 -> 0 | R116: ='Reduction Path Calc'!$D116*'Reduction Path Calc'!$M116 -> 0 | S116: ='Reduction Path Calc'!$D116*'Reduction Path Calc'!$O116 -> 0
A117: Energy | B117: =B115&"b" -> 69b | C117: Energy - other activities | E117: ton CO2 eq./ | H117: 0 | I117: ='Reduction Path Calc'!$H117*'Reduction Path Calc'!$F117 -> 0 | J117: 0 | K117: 0 | L117: 0 | M117: ='Reduction Path Calc'!$L117*'Reduction Path Calc'!$F117 -> 0 | N117: 0 | O117: ='Reduction Path Calc'!$N117*F117 -> 0 | P117: 0 | Q117: ='Reduction Path Calc'!$K117*'Reduction Path Calc'!$D117 -> 0 | R117: ='Reduction Path Calc'!$D117*'Reduction Path Calc'!$M117 -> 0 | S117: ='Reduction Path Calc'!$D117*'Reduction Path Calc'!$O117 -> 0
A118: Energy | B118: =B115&"c" -> 69c | C118: Energy - other activities | E118: ton CO2 eq./ | H118: 0 | I118: ='Reduction Path Calc'!$H118*'Reduction Path Calc'!$F118 -> 0 | J118: =H118 -> 0 | K118: 0 | L118: 0 | M118: ='Reduction Path Calc'!$L118*'Reduction Path Calc'!$F118 -> 0 | N118: 0 | O118: ='Reduction Path Calc'!$N118*F118 -> 0 | P118: 0 | Q118: ='Reduction Path Calc'!$K118*'Reduction Path Calc'!$D118 -> 0 | R118: ='Reduction Path Calc'!$D118*'Reduction Path Calc'!$M118 -> 0 | S118: ='Reduction Path Calc'!$D118*'Reduction Path Calc'!$O118 -> 0
C119: Total - reduction in CO2 eq. Energy | P119: =SUM(P99:P118) ->  | Q119: =SUM(Q99:Q118) ->  | R119: =SUBTOTAL(109,'Reduction Path Calc'!$R$99:$R$118) ->  | S119: =SUBTOTAL(109,'Reduction Path Calc'!$S$99:$S$118) -> 
C121: Sum total | P121: =+P47+P95+P119+P61+P75 ->  | Q121: =+Q47+Q95+Q119+Q61+Q75 ->  | R121: =+R47+R95+R119+R61+R75 ->  | S121: =+S47+S95+S119+S61+S75 -> 
U123: 0
U124: 0.01
U125: 0.02
U126: 0.03
U127: 0.04
U128: 0.05
U129: 0.06
U130: 0.07
U131: 0.08
U132: 0.09
U133: 0.1
U134: 0.11
U135: 0.12
U136: 0.13
U137: 0.14
U138: 0.15
U139: 0.16
U140: 0.17
U141: 0.18
U142: 0.19
U143: 0.2
U144: 0.21
U145: 0.22
U146: 0.23
U147: 0.24
U148: 0.25
U149: 0.26
U150: 0.27
U151: 0.28
U152: 0.29
U153: 0.3
U154: 0.31
U155: 0.32
U156: 0.33
U157: 0.34
U158: 0.35
U159: 0.36
U160: 0.37
U161: 0.38
U162: 0.39
U163: 0.4
U164: 0.41
U165: 0.42
U166: 0.43
U167: 0.44
U168: 0.45
U169: 0.46
U170: 0.47
U171: 0.48
U172: 0.49
U173: 0.5
U174: 0.51
U175: 0.52
U176: 0.53
U177: 0.54
U178: 0.55
U179: 0.56
U180: 0.57
U181: 0.58
U182: 0.59
U183: 0.6
U184: 0.61
U185: 0.62
U186: 0.63
U187: 0.64
U188: 0.65
U189: 0.66
U190: 0.67
U191: 0.68
U192: 0.69
U193: 0.7
U194: 0.71
U195: 0.72
U196: 0.73
U197: 0.74
U198: 0.75
U199: 0.76
U200: 0.77
U201: 0.78
U202: 0.79
U203: 0.8
U204: 0.81
U205: 0.82
U206: 0.83
U207: 0.84
U208: 0.85
... 15 more rows

Sheet K-tiltag (hidden)
A1: BAU og Scenarieberegninger 2030 - Forudsætninger og mellemregninger (Klima)
A3: Forventningerne til reduktion af CO2-ækv. fra KF22
B5: Kilde: | C5: https://ens.dk/service/fremskrivninger-analyser-modeller/klimastatus-og-fremskrivning-2022
C6: Se endvidere notat om reduktionsstiværktøjet, der beskriver de dele af KF22, som er politisk vedtagne tiltag og som indgår i BAU
A7: 1. | B7: Kulstofrig landbrugsjord fordelt på jord- og dræningstype. | K7: Ændring i landbrugsjord (basisår 2018) | M7: Ændring i landbrugsjord (basisår 2020)
B8: Arealer (ha) med >12 % SOC | C8: 1990 | D8: 2018 | E8: 2019 | F8: 2020 | G8: 2030 | H8: 2035 | I8: 2050 | K8: 2030 | L8: 2050 | M8: 2030 | N8: 2050
B9: Dyrket mark, fuldt drænet | C9: =INDEX('Table LULUCF_arealer'!$B$25:$AU$27,MATCH('K-tiltag'!$B9,'Table LULUCF_arealer'!$A$25:$A$27,0),MATCH('K-tiltag'!C$8,'Table LULUCF_arealer'!$B$24:$AU$24,0)) -> 54082.30469 | D9: =INDEX('Table LULUCF_arealer'!$B$25:$AU$27,MATCH('K-tiltag'!$B9,'Table LULUCF_arealer'!$A$25:$A$27,0),MATCH('K-tiltag'!D$8,'Table LULUCF_arealer'!$B$24:$AU$24,0)) -> 31059.74942 | E9: =INDEX('Table LULUCF_arealer'!$B$25:$AU$27,MATCH('K-tiltag'!$B9,'Table LULUCF_arealer'!$A$25:$A$27,0),MATCH('K-tiltag'!E$8,'Table LULUCF_arealer'!$B$24:$AU$24,0)) -> 31339.0387 | F9: =INDEX('Table LULUCF_arealer'!$B$25:$AU$27,MATCH('K-tiltag'!$B9,'Table LULUCF_arealer'!$A$25:$A$27,0),MATCH('K-tiltag'!F$8,'Table LULUCF_arealer'!$B$24:$AU$24,0)) -> 30347.95526 | G9: =INDEX('Table LULUCF_arealer'!$B$25:$AU$27,MATCH('K-tiltag'!$B9,'Table LULUCF_arealer'!$A$25:$A$27,0),MATCH('K-tiltag'!G$8,'Table LULUCF_arealer'!$B$24:$AU$24,0)) -> 21112.56005 | H9: =INDEX('Table LULUCF_arealer'!$B$25:$AU$27,MATCH('K-tiltag'!$B9,'Table LULUCF_arealer'!$A$25:$A$27,0),MATCH('K-tiltag'!H$8,'Table LULUCF_arealer'!$B$24:$AU$24,0)) -> 20662.56005 | I9: =H9 -> 20662.56005 | K9: =-(D9-G9)/D9 -> -0.3202598074 | L9: =-(D9-I9)/D9 -> -0.3347480119 | M9: =-(F9-G9)/F9 -> -0.3043168849 | N9: =-(F9-I9)/F9 -> -0.319144902
B10: Græsareal, fuldt drænet | C10: =INDEX('Table LULUCF_arealer'!$B$25:$AU$27,MATCH('K-tiltag'!$B10,'Table LULUCF_arealer'!$A$25:$A$27,0),MATCH('K-tiltag'!C$8,'Table LULUCF_arealer'!$B$24:$AU$24,0)) -> 46668.33955 | D10: =INDEX('Table LULUCF_arealer'!$B$25:$AU$27,MATCH('K-tiltag'!$B10,'Table LULUCF_arealer'!$A$25:$A$27,0),MATCH('K-tiltag'!D$8,'Table LULUCF_arealer'!$B$24:$AU$24,0)) -> 41956.20321 | E10: =INDEX('Table LULUCF_arealer'!$B$25:$AU$27,MATCH('K-tiltag'!$B10,'Table LULUCF_arealer'!$A$25:$A$27,0),MATCH('K-tiltag'!E$8,'Table LULUCF_arealer'!$B$24:$AU$24,0)) -> 41657.85749 | F10: =INDEX('Table LULUCF_arealer'!$B$25:$AU$27,MATCH('K-tiltag'!$B10,'Table LULUCF_arealer'!$A$25:$A$27,0),MATCH('K-tiltag'!F$8,'Table LULUCF_arealer'!$B$24:$AU$24,0)) -> 42272.83329 | G10: =INDEX('Table LULUCF_arealer'!$B$25:$AU$27,MATCH('K-tiltag'!$B10,'Table LULUCF_arealer'!$A$25:$A$27,0),MATCH('K-tiltag'!G$8,'Table LULUCF_arealer'!$B$24:$AU$24,0)) -> 33037.43808 | H10: =INDEX('Table LULUCF_arealer'!$B$25:$AU$27,MATCH('K-tiltag'!$B10,'Table LULUCF_arealer'!$A$25:$A$27,0),MATCH('K-tiltag'!H$8,'Table LULUCF_arealer'!$B$24:$AU$24,0)) -> 32587.43808 | I10: =H10 -> 32587.43808 | K10: =-(D10-G10)/D10 -> -0.2125732179 | L10: =-(D10-I10)/D10 -> -0.223298688 | M10: =-(F10-G10)/F10 -> -0.2184711667 | N10: =-(F10-I10)/F10 -> -0.2291163013
B11: Udenfor Internet Markkort | C11: =INDEX('Table LULUCF_arealer'!$B$25:$AU$27,MATCH('K-tiltag'!$B11,'Table LULUCF_arealer'!$A$25:$A$27,0),MATCH('K-tiltag'!C$8,'Table LULUCF_arealer'!$B$24:$AU$24,0)) -> 0 | D11: =INDEX('Table LULUCF_arealer'!$B$25:$AU$27,MATCH('K-tiltag'!$B11,'Table LULUCF_arealer'!$A$25:$A$27,0),MATCH('K-tiltag'!D$8,'Table LULUCF_arealer'!$B$24:$AU$24,0)) -> 1437.756757 | E11: =INDEX('Table LULUCF_arealer'!$B$25:$AU$27,MATCH('K-tiltag'!$B11,'Table LULUCF_arealer'!$A$25:$A$27,0),MATCH('K-tiltag'!E$8,'Table LULUCF_arealer'!$B$24:$AU$24,0)) -> 1414.859198 | F11: =INDEX('Table LULUCF_arealer'!$B$25:$AU$27,MATCH('K-tiltag'!$B11,'Table LULUCF_arealer'!$A$25:$A$27,0),MATCH('K-tiltag'!F$8,'Table LULUCF_arealer'!$B$24:$AU$24,0)) -> 1442.001116 | G11: =INDEX('Table LULUCF_arealer'!$B$25:$AU$27,MATCH('K-tiltag'!$B11,'Table LULUCF_arealer'!$A$25:$A$27,0),MATCH('K-tiltag'!G$8,'Table LULUCF_arealer'!$B$24:$AU$24,0)) -> 1442.001116 | H11: =INDEX('Table LULUCF_arealer'!$B$25:$AU$27,MATCH('K-tiltag'!$B11,'Table LULUCF_arealer'!$A$25:$A$27,0),MATCH('K-tiltag'!H$8,'Table LULUCF_arealer'!$B$24:$AU$24,0)) -> 1442.001116 | I11: 1442.001116 | K11: =-(D11-G11)/D11 -> 0.002952070079 | L11: 0.002952070079 | M11: 0 | N11: 0
B12: Arealer (ha) med 6-12 % SOC | C12: 1990 | D12: 2018 | E12: 2019 | F12: 2020 | G12: 2030 | H12: 2035 | I12: 2050 | K12: 2030 | L12: 2050 | M12: 2030 | N12: 2050
B13: Dyrket mark, fuldt drænet | C13: =INDEX('Table LULUCF_arealer'!$B$29:$AU$31,MATCH('K-tiltag'!$B13,'Table LULUCF_arealer'!$A$29:$A$231,0),MATCH('K-tiltag'!C$12,'Table LULUCF_arealer'!$B$28:$AU$28,0)) -> 79617.76528 | D13: =INDEX('Table LULUCF_arealer'!$B$29:$AU$31,MATCH('K-tiltag'!$B13,'Table LULUCF_arealer'!$A$29:$A$231,0),MATCH('K-tiltag'!D$12,'Table LULUCF_arealer'!$B$28:$AU$28,0)) -> 59914.96681 | E13: =INDEX('Table LULUCF_arealer'!$B$29:$AU$31,MATCH('K-tiltag'!$B13,'Table LULUCF_arealer'!$A$29:$A$231,0),MATCH('K-tiltag'!E$12,'Table LULUCF_arealer'!$B$28:$AU$28,0)) -> 59870.71217 | F13: =INDEX('Table LULUCF_arealer'!$B$29:$AU$31,MATCH('K-tiltag'!$B13,'Table LULUCF_arealer'!$A$29:$A$231,0),MATCH('K-tiltag'!F$12,'Table LULUCF_arealer'!$B$28:$AU$28,0)) -> 58717.33514 | G13: =INDEX('Table LULUCF_arealer'!$B$29:$AU$31,MATCH('K-tiltag'!$B13,'Table LULUCF_arealer'!$A$29:$A$231,0),MATCH('K-tiltag'!G$12,'Table LULUCF_arealer'!$B$28:$AU$28,0)) -> 49481.93994 | H13: =INDEX('Table LULUCF_arealer'!$B$29:$AU$31,MATCH('K-tiltag'!$B13,'Table LULUCF_arealer'!$A$29:$A$231,0),MATCH('K-tiltag'!H$12,'Table LULUCF_arealer'!$B$28:$AU$28,0)) -> 49031.93994 | I13: =H13 -> 49031.93994 | K13: =-(D13-G13)/D13 -> -0.1741305625 | L13: =-(D13-I13)/D13 -> -0.1816412068 | M13: =-(F13-G13)/F13 -> -0.1572856667 | N13: =-(F13-I13)/F13 -> -0.1649495023
B14: Græsareal, fuldt drænet | C14: =INDEX('Table LULUCF_arealer'!$B$29:$AU$31,MATCH('K-tiltag'!$B14,'Table LULUCF_arealer'!$A$29:$A$231,0),MATCH('K-tiltag'!C$12,'Table LULUCF_arealer'!$B$28:$AU$28,0)) -> 34921.94074 | D14: =INDEX('Table LULUCF_arealer'!$B$29:$AU$31,MATCH('K-tiltag'!$B14,'Table LULUCF_arealer'!$A$29:$A$231,0),MATCH('K-tiltag'!D$12,'Table LULUCF_arealer'!$B$28:$AU$28,0)) -> 37106.30502 | E14: =INDEX('Table LULUCF_arealer'!$B$29:$AU$31,MATCH('K-tiltag'!$B14,'Table LULUCF_arealer'!$A$29:$A$231,0),MATCH('K-tiltag'!E$12,'Table LULUCF_arealer'!$B$28:$AU$28,0)) -> 36979.84152 | F14: =INDEX('Table LULUCF_arealer'!$B$29:$AU$31,MATCH('K-tiltag'!$B14,'Table LULUCF_arealer'!$A$29:$A$231,0),MATCH('K-tiltag'!F$12,'Table LULUCF_arealer'!$B$28:$AU$28,0)) -> 37648.97502 | G14: =INDEX('Table LULUCF_arealer'!$B$29:$AU$31,MATCH('K-tiltag'!$B14,'Table LULUCF_arealer'!$A$29:$A$231,0),MATCH('K-tiltag'!G$12,'Table LULUCF_arealer'!$B$28:$AU$28,0)) -> 28413.57981 | H14: =INDEX('Table LULUCF_arealer'!$B$29:$AU$31,MATCH('K-tiltag'!$B14,'Table LULUCF_arealer'!$A$29:$A$231,0),MATCH('K-tiltag'!H$12,'Table LULUCF_arealer'!$B$28:$AU$28,0)) -> 27963.57981 | I14: =H14 -> 27963.57981 | K14: =-(D14-G14)/D14 -> -0.2342654491 | L14: =-(D14-I14)/D14 -> -0.2463927682 | M14: =-(F14-G14)/F14 -> -0.2453026995 | N14: =-(F14-I14)/F14 -> -0.2572552162
A16: 2. | B16: Skov | K16: Ændring i skovareal (basisår 2018) | M16: Ændring i skovareal (basisår 2020)
B17: 1000 ha | C17: 1990 | D17: 2018 | E17: 2019 | F17: 2020 | G17: 2030 | H17: 2035 | I17: 2050 | K17: 2030 | L17: 2050 | M17: 2030 | N17: 2050
B18: Skov | C18: =INDEX('Table LULUCF_arealer'!$B$7:$AU$11,MATCH('K-tiltag'!$B18,'Table LULUCF_arealer'!$A$7:$A$11,0),MATCH('K-tiltag'!C$17,'Table LULUCF_arealer'!$B$6:$AU$6,0)) -> 548.7450583 | D18: =INDEX('Table LULUCF_arealer'!$B$7:$AU$11,MATCH('K-tiltag'!$B18,'Table LULUCF_arealer'!$A$7:$A$11,0),MATCH('K-tiltag'!D$17,'Table LULUCF_arealer'!$B$6:$AU$6,0)) -> 639.1061875 | E18: =INDEX('Table LULUCF_arealer'!$B$7:$AU$11,MATCH('K-tiltag'!$B18,'Table LULUCF_arealer'!$A$7:$A$11,0),MATCH('K-tiltag'!E$17,'Table LULUCF_arealer'!$B$6:$AU$6,0)) -> 640.1105 | F18: =INDEX('Table LULUCF_arealer'!$B$7:$AU$11,MATCH('K-tiltag'!$B18,'Table LULUCF_arealer'!$A$7:$A$11,0),MATCH('K-tiltag'!F$17,'Table LULUCF_arealer'!$B$6:$AU$6,0)) -> 641.3255 | G18: =INDEX('Table LULUCF_arealer'!$B$7:$AU$11,MATCH('K-tiltag'!$B18,'Table LULUCF_arealer'!$A$7:$A$11,0),MATCH('K-tiltag'!G$17,'Table LULUCF_arealer'!$B$6:$AU$6,0)) -> 668.0496562 | H18: =INDEX('Table LULUCF_arealer'!$B$7:$AU$11,MATCH('K-tiltag'!$B18,'Table LULUCF_arealer'!$A$7:$A$11,0),MATCH('K-tiltag'!H$17,'Table LULUCF_arealer'!$B$6:$AU$6,0)) -> 668.7847143 | I18: =H18 -> 668.7847143 | K18: =-(D18-G18)/D18 -> 0.04528741752 | L18: =-(D18-I18)/D18 -> 0.04643755196 | M18: =-(F18-G18)/F18 -> 0.04167019127 | N18: =-(F18-I18)/F18 -> 0.04281634566
A20: 3. | B20: Efterafgrøder | K20: Ændring i efterafgrødeareal (basisår 2018) | M20: Ændring i efterafgrødeareal (basisår 2020)
B21: Til C-tool-beregningen for mineral landbrugsjord (1000 ha) | C21: 1990 | D21: 2018 | E21: 2019 | F21: 2020 | G21: 2030 | H21: 2035 | I21: 2050 | K21: 2030 | L21: 2050 | M21: 2030 | N21: 2050
B22: Areal af efterafgrøder, | C22: =INDEX('Table LULUCF_arealer'!$B$47:$AU$47,MATCH('K-tiltag'!$B22,'Table LULUCF_arealer'!$A47:$A$47,0),MATCH('K-tiltag'!C$21,'Table LULUCF_arealer'!$B$46:$AU$46,0)) -> 0 | D22: =INDEX('Table LULUCF_arealer'!$B$47:$AU$47,MATCH('K-tiltag'!$B22,'Table LULUCF_arealer'!$A47:$A$47,0),MATCH('K-tiltag'!D$21,'Table LULUCF_arealer'!$B$46:$AU$46,0)) -> 384.95845 | E22: =INDEX('Table LULUCF_arealer'!$B$47:$AU$47,MATCH('K-tiltag'!$B22,'Table LULUCF_arealer'!$A47:$A$47,0),MATCH('K-tiltag'!E$21,'Table LULUCF_arealer'!$B$46:$AU$46,0)) -> 405.225 | F22: =INDEX('Table LULUCF_arealer'!$B$47:$AU$47,MATCH('K-tiltag'!$B22,'Table LULUCF_arealer'!$A47:$A$47,0),MATCH('K-tiltag'!F$21,'Table LULUCF_arealer'!$B$46:$AU$46,0)) -> 505 | G22: =INDEX('Table LULUCF_arealer'!$B$47:$AU$47,MATCH('K-tiltag'!$B22,'Table LULUCF_arealer'!$A47:$A$47,0),MATCH('K-tiltag'!G$21,'Table LULUCF_arealer'!$B$46:$AU$46,0)) -> 770 | H22: =INDEX('Table LULUCF_arealer'!$B$47:$AU$47,MATCH('K-tiltag'!$B22,'Table LULUCF_arealer'!$A47:$A$47,0),MATCH('K-tiltag'!H$21,'Table LULUCF_arealer'!$B$46:$AU$46,0)) -> 770 | I22: =H22 -> 770 | K22: =-(D22-G22)/D22 -> 1.000215867 | L22: =-(D22-I22)/D22 -> 1.000215867 | M22: =-(F22-G22)/F22 -> 0.5247524752 | N22: =-(F22-I22)/F22 -> 0.5247524752
A24: 4. | B24: Tildeling af foderfedt
D25: 2030 | E25: 2050
B26: Malkekøer | D26: 1 | E26: 1
A30: 5. | B30: Mængde N fra handelsgødning, kt N | K30: Reduktion tilført N (basisår 2018) | M30: Reduktion tilført N (basisår 2020)
C31: 1990 | D31: 2018 | E31: 2019 | F31: 2020 | G31: 2030 | H31: 2035 | I31: 2050 | K31: 2030 | L31: 2050 | M31: 2030 | N31: 2050
B32: N i handelsgødning | C32: =INDEX('Table 12 Handelsgødning'!$B$7:$AU$7,MATCH('K-tiltag'!$B32,'Table 12 Handelsgødning'!$A$7,0),MATCH('K-tiltag'!C31,'Table 12 Handelsgødning'!$B$6:$AU$6,0)) -> 400.4 | D32: =INDEX('Table 12 Handelsgødning'!$B$7:$AU$7,MATCH('K-tiltag'!$B32,'Table 12 Handelsgødning'!$A$7,0),MATCH('K-tiltag'!D31,'Table 12 Handelsgødning'!$B$6:$AU$6,0)) -> 224.18396 | E32: =INDEX('Table 12 Handelsgødning'!$B$7:$AU$7,MATCH('K-tiltag'!$B32,'Table 12 Handelsgødning'!$A$7,0),MATCH('K-tiltag'!E31,'Table 12 Handelsgødning'!$B$6:$AU$6,0)) -> 234.827 | F32: =INDEX('Table 12 Handelsgødning'!$B$7:$AU$7,MATCH('K-tiltag'!$B32,'Table 12 Handelsgødning'!$A$7,0),MATCH('K-tiltag'!F31,'Table 12 Handelsgødning'!$B$6:$AU$6,0)) -> 251.8668 | G32: =INDEX('Table 12 Handelsgødning'!$B$7:$AU$7,MATCH('K-tiltag'!$B32,'Table 12 Handelsgødning'!$A$7,0),MATCH('K-tiltag'!G31,'Table 12 Handelsgødning'!$B$6:$AU$6,0)) -> 197.3551131 | H32: =INDEX('Table 12 Handelsgødning'!$B$7:$AU$7,MATCH('K-tiltag'!$B32,'Table 12 Handelsgødning'!$A$7,0),MATCH('K-tiltag'!H31,'Table 12 Handelsgødning'!$B$6:$AU$6,0)) -> 204.130003 | I32: =H32 -> 204.130003 | K32: =+(D32-G32)/D32 -> 0.1196733562 | L32: =+(D32-I32)/D32 -> 0.08945313028 | M32: =+(F32-G32)/F32 -> 0.2164306169 | N32: =+(F32-I32)/F32 -> 0.1895319152
B35: Gyllekøling
A36: 6. | B36: Gyllekøling % af dyr/gødning | C36: 1990-2007 | D36: 2018 | E36: 2019 | F36: 2020 | G36: 2030 | H36: 2035 | I36: 2050
B37: Søer | C37: =INDEX('Table 7 Miljøteknologi'!$B$8:$AD$10,MATCH('K-tiltag'!$B37,'Table 7 Miljøteknologi'!$A$8:$A$10,0),MATCH('K-tiltag'!C$36,'Table 7 Miljøteknologi'!$B$7:$AD$7,0)) -> 0 | D37: =INDEX('Table 7 Miljøteknologi'!$B$8:$AD$10,MATCH('K-tiltag'!$B37,'Table 7 Miljøteknologi'!$A$8:$A$10,0),MATCH('K-tiltag'!D$36,'Table 7 Miljøteknologi'!$B$7:$AD$7,0)) -> 7.427875794 | E37: =INDEX('Table 7 Miljøteknologi'!$B$8:$AD$10,MATCH('K-tiltag'!$B37,'Table 7 Miljøteknologi'!$A$8:$A$10,0),MATCH('K-tiltag'!E$36,'Table 7 Miljøteknologi'!$B$7:$AD$7,0)) -> 7.427875794 | F37: =INDEX('Table 7 Miljøteknologi'!$B$8:$AD$10,MATCH('K-tiltag'!$B37,'Table 7 Miljøteknologi'!$A$8:$A$10,0),MATCH('K-tiltag'!F$36,'Table 7 Miljøteknologi'!$B$7:$AD$7,0)) -> 7.427875794 | G37: =INDEX('Table 7 Miljøteknologi'!$B$8:$AD$10,MATCH('K-tiltag'!$B37,'Table 7 Miljøteknologi'!$A$8:$A$10,0),MATCH('K-tiltag'!G$36,'Table 7 Miljøteknologi'!$B$7:$AD$7,0)) -> 40 | H37: =INDEX('Table 7 Miljøteknologi'!$B$8:$AD$10,MATCH('K-tiltag'!$B37,'Table 7 Miljøteknologi'!$A$8:$A$10,0),MATCH('K-tiltag'!H$36,'Table 7 Miljøteknologi'!$B$7:$AD$7,0)) -> 55 | I37: =H37 -> 55
B38: Smågrise | C38: =INDEX('Table 7 Miljøteknologi'!$B$8:$AD$10,MATCH('K-tiltag'!$B38,'Table 7 Miljøteknologi'!$A$8:$A$10,0),MATCH('K-tiltag'!C$36,'Table 7 Miljøteknologi'!$B$7:$AD$7,0)) -> 0 | D38: =INDEX('Table 7 Miljøteknologi'!$B$8:$AD$10,MATCH('K-tiltag'!$B38,'Table 7 Miljøteknologi'!$A$8:$A$10,0),MATCH('K-tiltag'!D$36,'Table 7 Miljøteknologi'!$B$7:$AD$7,0)) -> 5.309325622 | E38: =INDEX('Table 7 Miljøteknologi'!$B$8:$AD$10,MATCH('K-tiltag'!$B38,'Table 7 Miljøteknologi'!$A$8:$A$10,0),MATCH('K-tiltag'!E$36,'Table 7 Miljøteknologi'!$B$7:$AD$7,0)) -> 5.309325622 | F38: =INDEX('Table 7 Miljøteknologi'!$B$8:$AD$10,MATCH('K-tiltag'!$B38,'Table 7 Miljøteknologi'!$A$8:$A$10,0),MATCH('K-tiltag'!F$36,'Table 7 Miljøteknologi'!$B$7:$AD$7,0)) -> 5.309325622 | G38: =INDEX('Table 7 Miljøteknologi'!$B$8:$AD$10,MATCH('K-tiltag'!$B38,'Table 7 Miljøteknologi'!$A$8:$A$10,0),MATCH('K-tiltag'!G$36,'Table 7 Miljøteknologi'!$B$7:$AD$7,0)) -> 30 | H38: =INDEX('Table 7 Miljøteknologi'!$B$8:$AD$10,MATCH('K-tiltag'!$B38,'Table 7 Miljøteknologi'!$A$8:$A$10,0),MATCH('K-tiltag'!H$36,'Table 7 Miljøteknologi'!$B$7:$AD$7,0)) -> 42.5 | I38: =H38 -> 42.5
B39: Slagtesvin | C39: =INDEX('Table 7 Miljøteknologi'!$B$8:$AD$10,MATCH('K-tiltag'!$B39,'Table 7 Miljøteknologi'!$A$8:$A$10,0),MATCH('K-tiltag'!C$36,'Table 7 Miljøteknologi'!$B$7:$AD$7,0)) -> 0 | D39: =INDEX('Table 7 Miljøteknologi'!$B$8:$AD$10,MATCH('K-tiltag'!$B39,'Table 7 Miljøteknologi'!$A$8:$A$10,0),MATCH('K-tiltag'!D$36,'Table 7 Miljøteknologi'!$B$7:$AD$7,0)) -> 3.446500984 | E39: =INDEX('Table 7 Miljøteknologi'!$B$8:$AD$10,MATCH('K-tiltag'!$B39,'Table 7 Miljøteknologi'!$A$8:$A$10,0),MATCH('K-tiltag'!E$36,'Table 7 Miljøteknologi'!$B$7:$AD$7,0)) -> 3.446500984 | F39: =INDEX('Table 7 Miljøteknologi'!$B$8:$AD$10,MATCH('K-tiltag'!$B39,'Table 7 Miljøteknologi'!$A$8:$A$10,0),MATCH('K-tiltag'!F$36,'Table 7 Miljøteknologi'!$B$7:$AD$7,0)) -> 3.446500984 | G39: =INDEX('Table 7 Miljøteknologi'!$B$8:$AD$10,MATCH('K-tiltag'!$B39,'Table 7 Miljøteknologi'!$A$8:$A$10,0),MATCH('K-tiltag'!G$36,'Table 7 Miljøteknologi'!$B$7:$AD$7,0)) -> 20 | H39: =INDEX('Table 7 Miljøteknologi'!$B$8:$AD$10,MATCH('K-tiltag'!$B39,'Table 7 Miljøteknologi'!$A$8:$A$10,0),MATCH('K-tiltag'!H$36,'Table 7 Miljøteknologi'!$B$7:$AD$7,0)) -> 27.5 | I39: 27.5
B40: Vægtet % | D40: 0.05 | E40: 0.05 | F40: 0.05 | G40: 0.28 | H40: 0.38 | I40: 0.38
B43: Hyppig udslusning
A44: 7. | C44: ton i kommune
B45: 95% af slagtesvinegylle* | C45: =SUMIFS(Dataark_til_bilag2_2020[Gødning (g) total (ton)],Dataark_til_bilag2_2020[Gødningstype],"Svinegylle",Dataark_til_bilag2_2020[Fordeling af dyretyper],"Sl. svin") -> 31676.5317
B47: *Se beskrivelse i notat om scenarieværktøjets opbygning eller KF22: https://ens.dk/service/fremskrivninger-analyser-modeller/klimastatus-og-fremskrivning-2022
A51: 8. | B51: Gylle til biogas
B52: Mængde gylle afsat til biogas fordelt på kvæg og svingylle, kt
B54: kt | C54: 1990 | D54: 2018 | E54: 2019 | F54: 2020 | G54: 2030 | H54: 2035 | I54: 2050 | M54: 2030 | N54: 2050
B55: Kvæggylle | C55: =INDEX('Table 9 Gylle afsat til biogas'!$B$7:$AU$8,MATCH('K-tiltag'!$B55,'Table 9 Gylle afsat til biogas'!$A$7:$A$8,0),MATCH('K-tiltag'!C$54,'Table 9 Gylle afsat til biogas'!$B$6:$AU$6,0)) -> 129.1618142 | D55: =INDEX('Table 9 Gylle afsat til biogas'!$B$7:$AU$8,MATCH('K-tiltag'!$B55,'Table 9 Gylle afsat til biogas'!$A$7:$A$8,0),MATCH('K-tiltag'!D$54,'Table 9 Gylle afsat til biogas'!$B$6:$AU$6,0)) -> 3543.349519 | E55: =INDEX('Table 9 Gylle afsat til biogas'!$B$7:$AU$8,MATCH('K-tiltag'!$B55,'Table 9 Gylle afsat til biogas'!$A$7:$A$8,0),MATCH('K-tiltag'!E$54,'Table 9 Gylle afsat til biogas'!$B$6:$AU$6,0)) -> 4431.850455 | F55: =INDEX('Table 9 Gylle afsat til biogas'!$B$7:$AU$8,MATCH('K-tiltag'!$B55,'Table 9 Gylle afsat til biogas'!$A$7:$A$8,0),MATCH('K-tiltag'!F$54,'Table 9 Gylle afsat til biogas'!$B$6:$AU$6,0)) -> 5166.158215 | G55: =INDEX('Table 9 Gylle afsat til biogas'!$B$7:$AU$8,MATCH('K-tiltag'!$B55,'Table 9 Gylle afsat til biogas'!$A$7:$A$8,0),MATCH('K-tiltag'!G$54,'Table 9 Gylle afsat til biogas'!$B$6:$AU$6,0)) -> 14587.61975 | H55: =INDEX('Table 9 Gylle afsat til biogas'!$B$7:$AU$8,MATCH('K-tiltag'!$B55,'Table 9 Gylle afsat til biogas'!$A$7:$A$8,0),MATCH('K-tiltag'!H$54,'Table 9 Gylle afsat til biogas'!$B$6:$AU$6,0)) -> 12627.06261 | I55: =H55 -> 12627.06261 | K55: Forgasningsprocent kvæggylle | M55: =+G55/(G61/1000) -> 0.6965277272 | N55: =+H55/(H61/1000) -> 0.6047112194
B56: Svinegylle | C56: =INDEX('Table 9 Gylle afsat til biogas'!$B$7:$AU$8,MATCH('K-tiltag'!$B56,'Table 9 Gylle afsat til biogas'!$A$7:$A$8,0),MATCH('K-tiltag'!C$54,'Table 9 Gylle afsat til biogas'!$B$6:$AU$6,0)) -> 91.07882923 | D56: =INDEX('Table 9 Gylle afsat til biogas'!$B$7:$AU$8,MATCH('K-tiltag'!$B56,'Table 9 Gylle afsat til biogas'!$A$7:$A$8,0),MATCH('K-tiltag'!D$54,'Table 9 Gylle afsat til biogas'!$B$6:$AU$6,0)) -> 2197.998239 | E56: =INDEX('Table 9 Gylle afsat til biogas'!$B$7:$AU$8,MATCH('K-tiltag'!$B56,'Table 9 Gylle afsat til biogas'!$A$7:$A$8,0),MATCH('K-tiltag'!E$54,'Table 9 Gylle afsat til biogas'!$B$6:$AU$6,0)) -> 2640.816325 | F56: =INDEX('Table 9 Gylle afsat til biogas'!$B$7:$AU$8,MATCH('K-tiltag'!$B56,'Table 9 Gylle afsat til biogas'!$A$7:$A$8,0),MATCH('K-tiltag'!F$54,'Table 9 Gylle afsat til biogas'!$B$6:$AU$6,0)) -> 3136.51355 | G56: =INDEX('Table 9 Gylle afsat til biogas'!$B$7:$AU$8,MATCH('K-tiltag'!$B56,'Table 9 Gylle afsat til biogas'!$A$7:$A$8,0),MATCH('K-tiltag'!G$54,'Table 9 Gylle afsat til biogas'!$B$6:$AU$6,0)) -> 8856.536152 | H56: =INDEX('Table 9 Gylle afsat til biogas'!$B$7:$AU$8,MATCH('K-tiltag'!$B56,'Table 9 Gylle afsat til biogas'!$A$7:$A$8,0),MATCH('K-tiltag'!H$54,'Table 9 Gylle afsat til biogas'!$B$6:$AU$6,0)) -> 7666.229203 | I56: =H56 -> 7666.229203 | K56: Forgasningsprocent svinegylle | M56: =+G56/(G67/1000) -> 0.4621725758 | N56: =+H56/(H67/1000) -> 0.463232335
B58: ton | C58: 1990 | D58: 2018 | E58: 2019 | F58: 2020 | G58: 2030 | H58: 2035 | I58: 2050
B59: Malkekvæg | C59: =INDEX('Table 6 Gødningsmængder'!$B$8:$AU$19,MATCH('K-tiltag'!$B59,'Table 6 Gødningsmængder'!$A$8:$A$19,0),MATCH('K-tiltag'!C$58,'Table 6 Gødningsmængder'!$B$7:$AU$7,0)) -> 11250260.45 | D59: =INDEX('Table 6 Gødningsmængder'!$B$8:$AU$19,MATCH('K-tiltag'!$B59,'Table 6 Gødningsmængder'!$A$8:$A$19,0),MATCH('K-tiltag'!D$58,'Table 6 Gødningsmængder'!$B$7:$AU$7,0)) -> 16256350.35 | E59: =INDEX('Table 6 Gødningsmængder'!$B$8:$AU$19,MATCH('K-tiltag'!$B59,'Table 6 Gødningsmængder'!$A$8:$A$19,0),MATCH('K-tiltag'!E$58,'Table 6 Gødningsmængder'!$B$7:$AU$7,0)) -> 16135578.32 | F59: =INDEX('Table 6 Gødningsmængder'!$B$8:$AU$19,MATCH('K-tiltag'!$B59,'Table 6 Gødningsmængder'!$A$8:$A$19,0),MATCH('K-tiltag'!F$58,'Table 6 Gødningsmængder'!$B$7:$AU$7,0)) -> 16157839.88 | G59: =INDEX('Table 6 Gødningsmængder'!$B$8:$AU$19,MATCH('K-tiltag'!$B59,'Table 6 Gødningsmængder'!$A$8:$A$19,0),MATCH('K-tiltag'!G$58,'Table 6 Gødningsmængder'!$B$7:$AU$7,0)) -> 18439041.05 | H59: =INDEX('Table 6 Gødningsmængder'!$B$8:$AU$19,MATCH('K-tiltag'!$B59,'Table 6 Gødningsmængder'!$A$8:$A$19,0),MATCH('K-tiltag'!H$58,'Table 6 Gødningsmængder'!$B$7:$AU$7,0)) -> 18435376.69 | I59: =H59 -> 18435376.69
B60: Øvrige kvæg | C60: =INDEX('Table 6 Gødningsmængder'!$B$8:$AU$19,MATCH('K-tiltag'!$B60,'Table 6 Gødningsmængder'!$A$8:$A$19,0),MATCH('K-tiltag'!C$58,'Table 6 Gødningsmængder'!$B$7:$AU$7,0)) -> 3993459.467 | D60: =INDEX('Table 6 Gødningsmængder'!$B$8:$AU$19,MATCH('K-tiltag'!$B60,'Table 6 Gødningsmængder'!$A$8:$A$19,0),MATCH('K-tiltag'!D$58,'Table 6 Gødningsmængder'!$B$7:$AU$7,0)) -> 2392833.914 | E60: =INDEX('Table 6 Gødningsmængder'!$B$8:$AU$19,MATCH('K-tiltag'!$B60,'Table 6 Gødningsmængder'!$A$8:$A$19,0),MATCH('K-tiltag'!E$58,'Table 6 Gødningsmængder'!$B$7:$AU$7,0)) -> 2335092.323 | F60: =INDEX('Table 6 Gødningsmængder'!$B$8:$AU$19,MATCH('K-tiltag'!$B60,'Table 6 Gødningsmængder'!$A$8:$A$19,0),MATCH('K-tiltag'!F$58,'Table 6 Gødningsmængder'!$B$7:$AU$7,0)) -> 2317599.229 | G60: =INDEX('Table 6 Gødningsmængder'!$B$8:$AU$19,MATCH('K-tiltag'!$B60,'Table 6 Gødningsmængder'!$A$8:$A$19,0),MATCH('K-tiltag'!G$58,'Table 6 Gødningsmængder'!$B$7:$AU$7,0)) -> 2504302.879 | H60: =INDEX('Table 6 Gødningsmængder'!$B$8:$AU$19,MATCH('K-tiltag'!$B60,'Table 6 Gødningsmængder'!$A$8:$A$19,0),MATCH('K-tiltag'!H$58,'Table 6 Gødningsmængder'!$B$7:$AU$7,0)) -> 2445768.24 | I60: =H60 -> 2445768.24
B61: Kvæggylle | C61: =SUM(C59:C60) -> 15243719.91 | D61: =SUM(D59:D60) -> 18649184.27 | E61: =SUM(E59:E60) -> 18470670.64 | F61: 18475439.11 | G61: 20943343.93 | H61: 20881144.93 | I61: 20881144.93
B63: kt | C63: 1990 | D63: 2018 | E63: 2019 | F63: 2020 | G63: 2030 | H63: 2035 | I63: 2050
B64: Søer | C64: =INDEX('Table 6 Gødningsmængder'!$B$8:$AU$19,MATCH('K-tiltag'!$B64,'Table 6 Gødningsmængder'!$A$8:$A$19,0),MATCH('K-tiltag'!C$58,'Table 6 Gødningsmængder'!$B$7:$AU$7,0)) -> 3497931.941 | D64: =INDEX('Table 6 Gødningsmængder'!$B$8:$AU$19,MATCH('K-tiltag'!$B64,'Table 6 Gødningsmængder'!$A$8:$A$19,0),MATCH('K-tiltag'!D$58,'Table 6 Gødningsmængder'!$B$7:$AU$7,0)) -> 5843612.168 | E64: =INDEX('Table 6 Gødningsmængder'!$B$8:$AU$19,MATCH('K-tiltag'!$B64,'Table 6 Gødningsmængder'!$A$8:$A$19,0),MATCH('K-tiltag'!E$58,'Table 6 Gødningsmængder'!$B$7:$AU$7,0)) -> 5679007.048 | F64: =INDEX('Table 6 Gødningsmængder'!$B$8:$AU$19,MATCH('K-tiltag'!$B64,'Table 6 Gødningsmængder'!$A$8:$A$19,0),MATCH('K-tiltag'!F$58,'Table 6 Gødningsmængder'!$B$7:$AU$7,0)) -> 6138540.91 | G64: =INDEX('Table 6 Gødningsmængder'!$B$8:$AU$19,MATCH('K-tiltag'!$B64,'Table 6 Gødningsmængder'!$A$8:$A$19,0),MATCH('K-tiltag'!G$58,'Table 6 Gødningsmængder'!$B$7:$AU$7,0)) -> 5478378.437 | H64: =INDEX('Table 6 Gødningsmængder'!$B$8:$AU$19,MATCH('K-tiltag'!$B64,'Table 6 Gødningsmængder'!$A$8:$A$19,0),MATCH('K-tiltag'!H$58,'Table 6 Gødningsmængder'!$B$7:$AU$7,0)) -> 4756005.349 | I64: =H64 -> 4756005.349
B65: Smågrise | C65: =INDEX('Table 6 Gødningsmængder'!$B$8:$AU$19,MATCH('K-tiltag'!$B65,'Table 6 Gødningsmængder'!$A$8:$A$19,0),MATCH('K-tiltag'!C$58,'Table 6 Gødningsmængder'!$B$7:$AU$7,0)) -> 1742195.465 | D65: =INDEX('Table 6 Gødningsmængder'!$B$8:$AU$19,MATCH('K-tiltag'!$B65,'Table 6 Gødningsmængder'!$A$8:$A$19,0),MATCH('K-tiltag'!D$58,'Table 6 Gødningsmængder'!$B$7:$AU$7,0)) -> 4224532.909 | E65: =INDEX('Table 6 Gødningsmængder'!$B$8:$AU$19,MATCH('K-tiltag'!$B65,'Table 6 Gødningsmængder'!$A$8:$A$19,0),MATCH('K-tiltag'!E$58,'Table 6 Gødningsmængder'!$B$7:$AU$7,0)) -> 4151468.991 | F65: =INDEX('Table 6 Gødningsmængder'!$B$8:$AU$19,MATCH('K-tiltag'!$B65,'Table 6 Gødningsmængder'!$A$8:$A$19,0),MATCH('K-tiltag'!F$58,'Table 6 Gødningsmængder'!$B$7:$AU$7,0)) -> 4240094.846 | G65: =INDEX('Table 6 Gødningsmængder'!$B$8:$AU$19,MATCH('K-tiltag'!$B65,'Table 6 Gødningsmængder'!$A$8:$A$19,0),MATCH('K-tiltag'!G$58,'Table 6 Gødningsmængder'!$B$7:$AU$7,0)) -> 3871682.044 | H65: =INDEX('Table 6 Gødningsmængder'!$B$8:$AU$19,MATCH('K-tiltag'!$B65,'Table 6 Gødningsmængder'!$A$8:$A$19,0),MATCH('K-tiltag'!H$58,'Table 6 Gødningsmængder'!$B$7:$AU$7,0)) -> 3275524.041 | I65: =H65 -> 3275524.041
B66: Slagtesvin | C66: =INDEX('Table 6 Gødningsmængder'!$B$8:$AU$19,MATCH('K-tiltag'!$B66,'Table 6 Gødningsmængder'!$A$8:$A$19,0),MATCH('K-tiltag'!C$58,'Table 6 Gødningsmængder'!$B$7:$AU$7,0)) -> 7022557.583 | D66: =INDEX('Table 6 Gødningsmængder'!$B$8:$AU$19,MATCH('K-tiltag'!$B66,'Table 6 Gødningsmængder'!$A$8:$A$19,0),MATCH('K-tiltag'!D$58,'Table 6 Gødningsmængder'!$B$7:$AU$7,0)) -> 10535016.62 | E66: =INDEX('Table 6 Gødningsmængder'!$B$8:$AU$19,MATCH('K-tiltag'!$B66,'Table 6 Gødningsmængder'!$A$8:$A$19,0),MATCH('K-tiltag'!E$58,'Table 6 Gødningsmængder'!$B$7:$AU$7,0)) -> 9961940.832 | F66: =INDEX('Table 6 Gødningsmængder'!$B$8:$AU$19,MATCH('K-tiltag'!$B66,'Table 6 Gødningsmængder'!$A$8:$A$19,0),MATCH('K-tiltag'!F$58,'Table 6 Gødningsmængder'!$B$7:$AU$7,0)) -> 10689828.74 | G66: =INDEX('Table 6 Gødningsmængder'!$B$8:$AU$19,MATCH('K-tiltag'!$B66,'Table 6 Gødningsmængder'!$A$8:$A$19,0),MATCH('K-tiltag'!G$58,'Table 6 Gødningsmængder'!$B$7:$AU$7,0)) -> 9812773.092 | H66: =INDEX('Table 6 Gødningsmængder'!$B$8:$AU$19,MATCH('K-tiltag'!$B66,'Table 6 Gødningsmængder'!$A$8:$A$19,0),MATCH('K-tiltag'!H$58,'Table 6 Gødningsmængder'!$B$7:$AU$7,0)) -> 8517896.509 | I66: 8517896.509
B67: Svinegylle | C67: =SUM(C64:C66) -> 12262684.99 | D67: =SUM(D64:D66) -> 20603161.7 | E67: 19792416.87 | F67: 21068464.5 | G67: 19162833.57 | H67: 16549425.9 | I67: 16549425.9
A69: 9. | B69: Mineralsk jord vådlagt som følge af vådlægning af tilstødende kulstofrig jord | K69: Vådlagt mineralsk jord (hektar)
B70: 1000 ha | C70: 1990 | D70: 2018 | E70: 2019 | F70: 2020 | G70: 2030 | H70: 2035 | N70: 2030
B71: Skov | C71: =INDEX('Table LULUCF_arealer'!$B$7:$AU$11,MATCH('K-tiltag'!$B71,'Table LULUCF_arealer'!$A$7:$A$11,0),MATCH('K-tiltag'!C$70,'Table LULUCF_arealer'!$B$6:$AU$6,0)) -> 548.7450583 | D71: =INDEX('Table LULUCF_arealer'!$B$7:$AU$11,MATCH('K-tiltag'!$B71,'Table LULUCF_arealer'!$A$7:$A$11,0),MATCH('K-tiltag'!D$70,'Table LULUCF_arealer'!$B$6:$AU$6,0)) -> 639.1061875 | E71: =INDEX('Table LULUCF_arealer'!$B$7:$AU$11,MATCH('K-tiltag'!$B71,'Table LULUCF_arealer'!$A$7:$A$11,0),MATCH('K-tiltag'!E$70,'Table LULUCF_arealer'!$B$6:$AU$6,0)) -> 640.1105 | F71: =INDEX('Table LULUCF_arealer'!$B$7:$AU$11,MATCH('K-tiltag'!$B71,'Table LULUCF_arealer'!$A$7:$A$11,0),MATCH('K-tiltag'!F$70,'Table LULUCF_arealer'!$B$6:$AU$6,0)) -> 641.3255 | G71: =INDEX('Table LULUCF_arealer'!$B$7:$AU$11,MATCH('K-tiltag'!$B71,'Table LULUCF_arealer'!$A$7:$A$11,0),MATCH('K-tiltag'!G$70,'Table LULUCF_arealer'!$B$6:$AU$6,0)) -> 668.0496562 | H71: =INDEX('Table LULUCF_arealer'!$B$7:$AU$11,MATCH('K-tiltag'!$B71,'Table LULUCF_arealer'!$A$7:$A$11,0),MATCH('K-tiltag'!H$70,'Table LULUCF_arealer'!$B$6:$AU$6,0)) -> 668.7847143 | K71: Ændret dyrket mark | N71: =+F76-G76 -> 58.8598355
B72: Dyrket mark | C72: =INDEX('Table LULUCF_arealer'!$B$7:$AU$11,MATCH('K-tiltag'!$B72,'Table LULUCF_arealer'!$A$7:$A$11,0),MATCH('K-tiltag'!C$70,'Table LULUCF_arealer'!$B$6:$AU$6,0)) -> 2993.168644 | D72: =INDEX('Table LULUCF_arealer'!$B$7:$AU$11,MATCH('K-tiltag'!$B72,'Table LULUCF_arealer'!$A$7:$A$11,0),MATCH('K-tiltag'!D$70,'Table LULUCF_arealer'!$B$6:$AU$6,0)) -> 2810.745312 | E72: =INDEX('Table LULUCF_arealer'!$B$7:$AU$11,MATCH('K-tiltag'!$B72,'Table LULUCF_arealer'!$A$7:$A$11,0),MATCH('K-tiltag'!E$70,'Table LULUCF_arealer'!$B$6:$AU$6,0)) -> 2805.791562 | F72: =INDEX('Table LULUCF_arealer'!$B$7:$AU$11,MATCH('K-tiltag'!$B72,'Table LULUCF_arealer'!$A$7:$A$11,0),MATCH('K-tiltag'!F$70,'Table LULUCF_arealer'!$B$6:$AU$6,0)) -> 2801.920375 | G72: =INDEX('Table LULUCF_arealer'!$B$7:$AU$11,MATCH('K-tiltag'!$B72,'Table LULUCF_arealer'!$A$7:$A$11,0),MATCH('K-tiltag'!G$70,'Table LULUCF_arealer'!$B$6:$AU$6,0)) -> 2724.589749 | H72: =INDEX('Table LULUCF_arealer'!$B$7:$AU$11,MATCH('K-tiltag'!$B72,'Table LULUCF_arealer'!$A$7:$A$11,0),MATCH('K-tiltag'!H$70,'Table LULUCF_arealer'!$B$6:$AU$6,0)) -> 2710.573104 | K72: Ændring græsareal | N72: =+F77-G77 -> 15.34202647
B73: Græsarealer | C73: =INDEX('Table LULUCF_arealer'!$B$7:$AU$11,MATCH('K-tiltag'!$B73,'Table LULUCF_arealer'!$A$7:$A$11,0),MATCH('K-tiltag'!C$70,'Table LULUCF_arealer'!$B$6:$AU$6,0)) -> 146.3881479 | D73: =INDEX('Table LULUCF_arealer'!$B$7:$AU$11,MATCH('K-tiltag'!$B73,'Table LULUCF_arealer'!$A$7:$A$11,0),MATCH('K-tiltag'!D$70,'Table LULUCF_arealer'!$B$6:$AU$6,0)) -> 170.0308125 | E73: =INDEX('Table LULUCF_arealer'!$B$7:$AU$11,MATCH('K-tiltag'!$B73,'Table LULUCF_arealer'!$A$7:$A$11,0),MATCH('K-tiltag'!E$70,'Table LULUCF_arealer'!$B$6:$AU$6,0)) -> 170.7555 | F73: =INDEX('Table LULUCF_arealer'!$B$7:$AU$11,MATCH('K-tiltag'!$B73,'Table LULUCF_arealer'!$A$7:$A$11,0),MATCH('K-tiltag'!F$70,'Table LULUCF_arealer'!$B$6:$AU$6,0)) -> 168.9169375 | G73: =INDEX('Table LULUCF_arealer'!$B$7:$AU$11,MATCH('K-tiltag'!$B73,'Table LULUCF_arealer'!$A$7:$A$11,0),MATCH('K-tiltag'!G$70,'Table LULUCF_arealer'!$B$6:$AU$6,0)) -> 135.1041206 | H73: =INDEX('Table LULUCF_arealer'!$B$7:$AU$11,MATCH('K-tiltag'!$B73,'Table LULUCF_arealer'!$A$7:$A$11,0),MATCH('K-tiltag'!H$70,'Table LULUCF_arealer'!$B$6:$AU$6,0)) -> 131.8309852 | K73: Sum | N73: =SUM(N71:N72) -> 74.20186197
B74: Bebyggelse | C74: =INDEX('Table LULUCF_arealer'!$B$7:$AU$11,MATCH('K-tiltag'!$B74,'Table LULUCF_arealer'!$A$7:$A$11,0),MATCH('K-tiltag'!C$70,'Table LULUCF_arealer'!$B$6:$AU$6,0)) -> 487.5502667 | D74: =INDEX('Table LULUCF_arealer'!$B$7:$AU$11,MATCH('K-tiltag'!$B74,'Table LULUCF_arealer'!$A$7:$A$11,0),MATCH('K-tiltag'!D$70,'Table LULUCF_arealer'!$B$6:$AU$6,0)) -> 535.39 | E74: =INDEX('Table LULUCF_arealer'!$B$7:$AU$11,MATCH('K-tiltag'!$B74,'Table LULUCF_arealer'!$A$7:$A$11,0),MATCH('K-tiltag'!E$70,'Table LULUCF_arealer'!$B$6:$AU$6,0)) -> 536.5326875 | F74: =INDEX('Table LULUCF_arealer'!$B$7:$AU$11,MATCH('K-tiltag'!$B74,'Table LULUCF_arealer'!$A$7:$A$11,0),MATCH('K-tiltag'!F$70,'Table LULUCF_arealer'!$B$6:$AU$6,0)) -> 539.1013125 | G74: =INDEX('Table LULUCF_arealer'!$B$7:$AU$11,MATCH('K-tiltag'!$B74,'Table LULUCF_arealer'!$A$7:$A$11,0),MATCH('K-tiltag'!G$70,'Table LULUCF_arealer'!$B$6:$AU$6,0)) -> 566.2814514 | H74: =INDEX('Table LULUCF_arealer'!$B$7:$AU$11,MATCH('K-tiltag'!$B74,'Table LULUCF_arealer'!$A$7:$A$11,0),MATCH('K-tiltag'!H$70,'Table LULUCF_arealer'!$B$6:$AU$6,0)) -> 579.8715208 | K74: -heraf ændring til skov | N74: =-F71+G71 -> 26.72415625
K75: - heraf ændring til bebyggelse | N75: =-F74+G74 -> 27.18013889
B76: - heraf dyrket mineralsk jord | C76: =C72-(C9+C13)/1000 -> 2859.468574 | D76: =D72-(D9+D13)/1000 -> 2719.770596 | E76: 2714.581812 | F76: 2712.855085 | G76: 2653.995249 | H76: 2640.878604 | K76: Mineralsk jord vådlagt | N76: =+N73-N74-N75 -> 20.29756683
B77: - heraf græsareal på mineralsk jord | C77: =C73-(C10+C14)/1000 -> 64.79786762 | D77: =D73-(D10+D14)/1000 -> 90.96830427 | E77: 92.11780098 | F77: 88.99512919 | G77: 73.65310272 | H77: 71.27996731 | K77: Andel mineralsk jord vådlagt | N77: =+N76/F72 -> 0.007244162616
A82: Forventningerne til reduktion af CO2-ækv. fra input fra kommunen (dvs. andet end KF22)
B84: Skovrejsning
B86: Input (total skovdække lokalt) | F86: Lokale arealer | G86: ha
B87: År | C87: ha | D87: % | F87: År | G87: 2018 | H87: 2020*
B88: 2018 | C88: ='K6 2018'!B10 -> 43879.1875 | D88: =C88/G88 -> 0.01022012515 | F88: Totalt areal lokalt | G88: ='ARE207'!M4*100 -> 4293410 | H88: ='ARE207'!O4*100 -> 4294390
B89: 2020 | C89: =WK6_2018!B10 -> 43879.1875 | D89: =C89/H88 -> 0.01021779286 | F89: Areal af landbrugjord lokalt | G89: =SUM('Plant Production 2018'!C10:Q10,'Plant Production 2018'!S10) -> 207430.98 | H89: ='Reduction Path Calc'!F16 -> 207430.98
B90: 2090 | D90: 0.25 | F90: Areal af permanent græs lokalt | G90: ='K7 2018'!D25 -> 16545.375 | H90: ='Reduction Path Calc'!F17 -> 16545.375
F91: *inkl. reduktionssti
B92: Totalt areal nødvendigt dækket med skov for at nå mål | K92: Regressionslinje (x): | L92: 0.0029 | M92: (hent i diagram)
B93: År | C93: ha | D93: % | K93: (y): | L93: -5.8073 | M93: (hent i diagram)
B94: 2030 | C94: =G88*D94 -> 386063.9645 | D94: =$L$92*B94+$L$93+D88 -> 0.08992012515
B95: 2050 | C95: =G88*D95 -> 635081.7445 | D95: =$L$92*B95+$L$93+D88 -> 0.1479201251
B97: Stigning i areal der skal udtages til skov
B98: År | C98: ha | D98: %
B99: fra 2018 til 2030 | C99: =D99*G88 -> 342184.777 | D99: =D94-D88 -> 0.0797
B100: fra 2018 til 2050 | C100: =D100*G88+C99 -> 591202.557 | D100: =D95-D94 -> 0.058
B102: Procent i reduktionssti, hvis landbrugsjord skal dække behovet | D102: %
B103: fra 2018 til 2030 | D103: =C99/'Reduction Path Calc'!F16 -> 1.649631974
B104: fra 2018 til 2050 | D104: =C100/'Reduction Path Calc'!F16 -> 2.850116974
A107: Forventningerne til reduktion af CO2-ækv. fra ”Aftale om grøn omstilling af dansk landbrug” (fra 4. oktober 2021)
A109: 1. | B109: Udtagning af lavbundsjord | D109: 2030
B111: Forventet vådlægning nationalt | D111: 50500 | E111: ha
B112: Omlægning til natur (forberedelse til udtagning) | D112: 38000 | E112: ha
B114: Sum | D114: =+D111+D112 -> 88500 | E114: ha
B116: Samlet lavbundsareal nationalt | D116: 171000 | E116: ha
B118: Andel udtaget i alt: | D118: =+D114/D116*100 -> 51.75438596 | E118: %
B119: Heraf til natur frem til 2030 | D119: =+D112/D116*100 -> 22.22222222 | E119: %
B122: Hyppig udslusning, national forventning | D122: 170000 | E122: ton CO2-ækv.
A124: 2. | B124: Samlet gyllemængde nationalt | D124: 19 | E124: mio ton (2019)
B126: Reduktionsfaktor | D126: 0.023 | E126: ton CO2-ækv./ton gylle
B127: Samlet reduktionspotentiale | D127: =+D124*D126*1000000 -> 437000 | E127: ton CO2-ækv.
B128: Andel der skal udsluses hurtigt | D128: =+D122/D127*100 -> 38.90160183 | E128: %
B131: Husdyrs fordøjelse, national forventning | D131: 170000 | E131: ton i 2025
B132: Husdyrs fordøjelse | D132: 160000 | E132: ton i 2030
A133: 3.
B134: Antal køer 2018*(approksimerede årskøer) | D134: 570000 | E134: stk
B135: Antal årskøer lokalt | D135: =+'Husbandry W2018'!Q8 -> 103344.9 | E135: stk
B136: Reduktionspotentiale ved ændret fodring | D136: =+D132/D134 -> 0.2807017544 | E136: ton CO2-ækv./årsko
B137: Reduktionspotentiale lokalt | D137: =+D136*D135 -> 29009.09474 | E137: ton CO2-ækv.
B138: *Kilde Danmarks Statistik
B140: Skovrejsning
B141: Forventet effekt af skovrejsning nationalt | D141: 480000 | E141: ton CO2-ækv.
A142: 4. | B142: Omdriftsareal lokalt | D142: =+'Reduction Path Calc'!F12 -> 207430.98 | E142: ha
B143: Omdriftsareal nationalt | D143: 2283702 | E143: ha
B144: Lokal andel af areal | D144: =+D142/D143*D141 -> 43598.88917 | E144: ton CO2-ækv.
B147: Ecoschemes | D147: 380000 | E147: ton CO2-ækv.
A149: 5. | B149: Omdriftsareal lokalt | D149: =+D142 -> 207430.98 | E149: ha
B150: Omdriftsareal nationalt | D150: 2283702 | E150: ha
B152: Reduktion pr. ha i gennemsnit | D152: =+D147/D150 -> 0.1663964913 | E152: ton CO2-ækv.
B154: Reduktion lokalt** | D154: =+D149*D152 -> 34515.78726 | E154: ton CO2-ækv.
B156: **kan fordeles på brak, nitrifikationshæmmere, omlægning til græs inkl. solceller samt reduceret jordbearbejdning
B159: Kvælstofindsats (efterafgrøder, bræmmer etc.) | D159: 640000 | E159: ton CO2-ækv.
A161: 6. | B161: Muligt skønnet efterafgrødeareal på landsplan | D161: 776406 | E161: ha
B163: Beregnet skønnet CO2-effekt i gnst. | D163: =+D159/D161 -> 0.8243109919 | E163: ton CO2-ækv./ha
B166: CO2-ækv. faktor efterafgrøder | D166: 1
B167: Muligt skønnet efterafgrødeareal lokalt | D167: =+'Reduction Path Calc'!F25 -> 24236.86 | E167: ha
B169: Nødvendig udnyttelse af efterafgrødepotentiale | D169: =+D167*D166*D163 -> 19978.71011 | E169: ton CO2-ækv.
B173: Fordobling af økologisk areal
B174: Forventet effekt af fordoblet økologisk areal | D174: 500000 | E174: ton CO2-ækv.
B176: Nuværende økologisk areal | D176: 310000 | E176: ha
B178: Forventet effekt pr. ha omlagt (national) | D178: =+D174/D176 -> 1.612903226 | E178: ton CO2-ækv.
B180: Gnst. Forbrug af handelsgødning pr. ha | D180: 89.49321022 | E180: kg
B181: Gnst. Udvasket heraf | D181: =+D180*0.25 -> 22.37330255 | E181: kg
B182: Gødning lokalt | D182: ='Reduction Path Calc'!F23 -> 457.2280392 | E182: ton N
B184: Reduceret kvælstof - direkte emission af N2O | D184: =0.01*D180*44/28*298/1000 -> 0.4190839187 | E184: ton CO2-ækv./ha
B185: Reduceret kvælstof - indirekte emission af N2O | D185: =+D180*0.05*0.01/1000*44/28 -> 7.031609374e-05 | E185: ton CO2-ækv./ha
B186: Udvaskning | D186: =+D181*0.0075*298/1000*44/28 -> 0.07857823476 | E186: ton CO2-ækv./ha
B187: Effekt af omlægning til græs v. 20% græs i økosædskifte | D187: =1.54*0.2 -> 0.308 | E187: ton CO2-ækv./ha
B189: Direkte effekt af omlægning med 20% græs i økosædskifte | D189: =+D184+D185+D186+D187 -> 0.8057324696 | E189: ton CO2-ækv./ha
B190: Ved samtidig yderligere brug af efterafgrøder | D190: =+D163 -> 0.8243109919 | E190: ton CO2-ækv./ha
B191: Samlet effekt af omlægning, beregnet | D191: =+D189+D190 -> 1.630043461 | E191: ton CO2-ækv./ha
B193: Ny økologi i kommunen | D193: =+D176/D150*D149 -> 28157.61592 | E193: ha
B194: Ha omlagt til proteingræs (kløvergræs) | D194: =+D193*0.2 -> 5631.523185 | E194: ha
B195: Klimaeffekt*** | D195: =+D193*D191 -> 45898.13773 | E195: ton CO2-ækv.
B196: ***Baggrundsdata hentet i klimaregnskabets bilag 4.
B198: Biokul | D198: 2000000 | E198: ton CO2-ækv.
B199: Forventet faktor - alt dyrkningsareal | D199: =+D198/D150 -> 0.8757710069 | E199: ton CO2-ækv./ha
B200: Estimeret effekt ved maks. tildeling pr. ha (20ton) | D200: 25 | E200: ton CO2-ækv./ha
B201: Faktor pr. ha halmpotentiale | D201: =+D200/20 -> 1.25 | E201: ton CO2-ækv./ha
B202: Halm fra antal ha til opfyldning af 1 ha | D202: =+D200/D201 -> 20 | E202: ha
B203: Maksimalt årligt potentiale for opfyldte ha | D203: =+D149/D202 -> 10371.549 | E203: ha
B204: Forventet areal til opfyldelse af mål | D204: =+D199/D201*D203 -> 7266.481529 | E204: ha

Sheet E-Tiltag (hidden)
A1: Scenarieberegninger 2030 - Forudsætninger og mellemregninger | Z1: Ja | AA1: Nej
A3: Indtastning af data fra KE/Bilag | M3: Residual-el | S3: =$G$25 -> BAU2030 | T3: =$H$25 -> BAU2050 | U3: =$I$25 -> STI2030 | V3: =$J$25 -> STI2050 | Y3: Transport - bio-andele, 2030 | AE3: =$G$25 -> BAU2030 | AF3: =$H$25 -> BAU2050 | AG3: =$I$25 -> STI2030 | AH3: =$J$25 -> STI2050 | AK3: Resultater - KPI
A4: Data | D4: Kilde | E4: Fane, Celle (KE2020) | I4: Enhed | J4: Værdi | M4: VE-andel, 2030 | Q4: % | S4: ='Reduction Path Calc'!H112*100 -> 100 | T4: ='Reduction Path Calc'!J112*100 -> 100 | U4: ='Reduction Path Calc'!L112*100 -> 100 | V4: ='Reduction Path Calc'!N112*100 -> 100 | Y4: Benzin | AE4: 0.067 | AF4: 0.067 | AG4: 0.067 | AH4: 0.067 | AK4: Behov | AQ4: 1990 | AR4: 2018 | AS4: 2020 | AT4: =$G$25 -> BAU2030 | AU4: =$H$25 -> BAU2050 | AV4: =$I$25 -> STI2030 | AW4: =$J$25 -> STI2050
A5: Person- og varebiler, 2020 | D5: E-Bilag 12 | E5: Motorstyrelsen & DST 2020 | I5: stk. | J5: 693754 | M5: CO2-intensitet, 2030 | Q5: ton/TJ | S5: =IFERROR('WE2018'!$A$90-'WE2018'!$A$90*S4%,'WE2018'!$A$90) -> 0 | T5: =IFERROR('WE2018'!$A$90-'WE2018'!$A$90*T4%,'WE2018'!$A$90) -> 0 | U5: =IFERROR('WE2018'!$A$90-'WE2018'!$A$90*U4%,'WE2018'!$A$90) -> 0 | V5: =IFERROR('WE2018'!$A$90-'WE2018'!$A$90*V4%,'WE2018'!$A$90) -> 0 | Y5: Diesel | AE5: 0.107 | AF5: 0.107 | AG5: 0.107 | AH5: 0.107 | AK5: Nettovarmebehov | AP5: TJ/år | AQ5: ='E1990'!$AL$11+'E1990'!$AK$14+'E1990'!$AK$15+'E1990'!$AK$16+'E1990'!$AK$17+'E1990'!$AK$18+'E1990'!$AK$19+'E1990'!$AK$20+'E1990'!$AK$21+'E1990'!$AK$22+'E1990'!$AK$43+'E1990'!$AK$51 -> 38441.67398 | AR5: ='E2018'!$AL$11+'E2018'!$AK$14+'E2018'!$AK$15+'E2018'!$AK$16+'E2018'!$AK$17+'E2018'!$AK$18+'E2018'!$AK$19+'E2018'!$AK$20+'E2018'!$AK$21+'E2018'!$AK$22+'E2018'!$AK$43+'E2018'!$AK$51 -> 9273.166576 | AS5: ='WE2018'!$AL$11+'WE2018'!$AK$14+'WE2018'!$AK$15+'WE2018'!$AK$16+'WE2018'!$AK$17+'WE2018'!$AK$18+'WE2018'!$AK$19+'WE2018'!$AK$20+'WE2018'!$AK$21+'WE2018'!$AK$22+'WE2018'!$AK$43+'WE2018'!$AK$51 -> 9273.166576 | AT5: =EBAU2030!$AL$11+EBAU2030!$AK$14+EBAU2030!$AK$15+EBAU2030!$AK$16+EBAU2030!$AK$17+EBAU2030!$AK$18+EBAU2030!$AK$19+EBAU2030!$AK$20+EBAU2030!$AK$21+EBAU2030!$AK$22+EBAU2030!$AK$43+EBAU2030!$AK$51 ->  | AU5: =EBAU2050!$AL$11+EBAU2050!$AK$14+EBAU2050!$AK$15+EBAU2050!$AK$16+EBAU2050!$AK$17+EBAU2050!$AK$18+EBAU2050!$AK$19+EBAU2050!$AK$20+EBAU2050!$AK$21+EBAU2050!$AK$22+EBAU2050!$AK$43+EBAU2050!$AK$51 ->  | AV5: =ESTI2030!$AL$11+ESTI2030!$AK$14+ESTI2030!$AK$15+ESTI2030!$AK$16+ESTI2030!$AK$17+ESTI2030!$AK$18+ESTI2030!$AK$19+ESTI2030!$AK$20+ESTI2030!$AK$21+ESTI2030!$AK$22+ESTI2030!$AK$43+ESTI2030!$AK$51 ->  | AW5: =ESTI2050!$AL$11+ESTI2050!$AK$14+ESTI2050!$AK$15+ESTI2050!$AK$16+ESTI2050!$AK$17+ESTI2050!$AK$18+ESTI2050!$AK$19+ESTI2050!$AK$20+ESTI2050!$AK$21+ESTI2050!$AK$22+ESTI2050!$AK$43+ESTI2050!$AK$51 -> 
A6: Person- og varebiler, benzin, 2020 | D6: E-Bilag 12 | E6: Motorstyrelsen & DST 2020 | I6: stk. | J6: 411107 | AK6: El-forbrug an forbruger, heraf: | AP6: TJ/år | AQ6: ='E1990'!$AH$81 -> 25476.97945 | AR6: ='E2018'!$AH$82 -> 7924.540056 | AS6: ='WE2018'!$AH$82 -> 7924.540056 | AT6: =EBAU2030!$AH$81 -> 15807.20203 | AU6: =EBAU2050!$AH$81 -> 7557.592936 | AV6: =ESTI2030!$AH$81 ->  | AW6: =ESTI2050!$AH$81 -> 
A7: Person- og varebiler, diesel, 2020 | D7: E-Bilag 12 | E7: Motorstyrelsen & DST 2020 | I7: stk. | J7: 274519 | M7: VE på land | Y7: Person- og varebiler | AK7: - Klassisk el-forbrug, private | AP7: TJ/år | AQ7: ='E1990'!$AL$8/'E1990'!$AD$8% -> 5911.370724 | AR7: ='E2018'!$AL$8/'E2018'!$AD$8% -> 1404.006697 | AS7: ='WE2018'!$AL$8/'WE2018'!$AD$8% -> 1404.006697 | AT7: =EBAU2030!$AL$8/EBAU2030!$AD$8% -> 9154.185782 | AU7: =EBAU2050!$AL$8/EBAU2050!$AD$8% -> 338.0728035 | AV7: =ESTI2030!$AL$8/ESTI2030!$AD$8% -> 9263.504789 | AW7: =ESTI2050!$AL$8/ESTI2050!$AD$8% -> 9263.504789
A8: Enhedsforbrug, benzinbil, 2019 | D8: E-Bilag 12 | E8: Forbrug transport, 2020, beregnet | I8: GJ/køretøj | J8: 28.47951303 | M8: Vindmøller - eksisterende i 2020 | Y8: Fordelinger | AE8: =$G$25 -> BAU2030 | AF8: =$H$25 -> BAU2050 | AG8: =$I$25 -> STI2030 | AH8: =$J$25 -> STI2050 | AK8: - Klassisk el-forbrug, erhverv | AP8: TJ/år | AQ8: =('E1990'!$AN$8+'E1990'!$AO$8+'E1990'!$AP$8+'E1990'!$AQ$8+'E1990'!$AR$8+'E1990'!$AS$8)/'E1990'!$AD$8% -> 15188.70942 | AR8: =('E2018'!$AN$8+'E2018'!$AO$8+'E2018'!$AP$8+'E2018'!$AQ$8+'E2018'!$AR$8+'E2018'!$AS$8)/'E2018'!$AD$8% -> 4834.16745 | AS8: =('WE2018'!$AN$8+'WE2018'!$AO$8+'WE2018'!$AP$8+'WE2018'!$AQ$8+'WE2018'!$AR$8+'WE2018'!$AS$8)/'WE2018'!$AD$8% -> 4834.16745 | AT8: =(EBAU2030!$AN$8+EBAU2030!$AO$8+EBAU2030!$AP$8+EBAU2030!$AQ$8+EBAU2030!$AR$8+EBAU2030!$AS$8)/EBAU2030!$AD$8% -> 4834.16745 | AU8: =(EBAU2050!$AN$8+EBAU2050!$AO$8+EBAU2050!$AP$8+EBAU2050!$AQ$8+EBAU2050!$AR$8+EBAU2050!$AS$8)/EBAU2050!$AD$8% -> 4834.16745 | AV8: =(ESTI2030!$AN$8+ESTI2030!$AO$8+ESTI2030!$AP$8+ESTI2030!$AQ$8+ESTI2030!$AR$8+ESTI2030!$AS$8)/ESTI2030!$AD$8% -> 4891.89693 | AW8: =(ESTI2050!$AN$8+ESTI2050!$AO$8+ESTI2050!$AP$8+ESTI2050!$AQ$8+ESTI2050!$AR$8+ESTI2050!$AS$8)/ESTI2050!$AD$8% -> 4891.89693
A9: Enhedsforbrug, dieselbil, 2020 | D9: E-Bilag 12 | E9: Forbrug transport, 2020, beregnet | I9: GJ/køretøj | J9: 43.43632974 | M9: El produktion fra vindmøller 2020 | Q9: TJ | S9: ='WE2018'!$M$24 -> 8841.3 | T9: ='WE2018'!$M$24 -> 8841.3 | U9: ='WE2018'!$M$24 -> 8841.3 | V9: ='WE2018'!$M$24 -> 8841.3 | Y9: Person og varebiler 2020, eksisterende indbyggere | AC9: stk. | AE9: =+$J$5 -> 693754 | AF9: =+$J$5 -> 693754 | AG9: =+$J$5 -> 693754 | AH9: =+$J$5 -> 693754 | AK9: - El til varmepumper | AP9: TJ/år | AQ9: ='E1990'!$AH$11 -> 0 | AR9: ='E2018'!$AH$11 -> 18.5 | AS9: ='WE2018'!$AH$11 -> 18.5 | AT9: =EBAU2030!$AH$11 -> -260.3061916 | AU9: =EBAU2050!$AH$11 -> -227.0992977 | AV9: =ESTI2030!$AH$11 -> 18.5 | AW9: =ESTI2050!$AH$11 -> 18.5
A10: Lastbiler, 2020 | D10: E-Bilag 12 | E10: Motorstyrelsen & DST 2020 | I10: stk. | J10: 8194 | M10: El produktion fra vindmøller <30 år 2030 | Q10: TJ | S10: =$J$17 -> 0 | T10: =$J$18 -> 0 | U10: =$J$17 -> 0 | V10: =$J$18 -> 0 | Y10: Person og varebiler 2030, eksisterende indbyggere | AC10: stk. | AE10: =ROUND(AE9*(1+G38),0) -> 693754 | AF10: =ROUND(AF9*(1+H38),0) -> 693754 | AG10: =ROUND(AG9*(1+I38),0) -> 693754 | AH10: =ROUND(AH9*(1+J38),0) -> 693754 | AK10: - El til fjernvarmen | AP10: TJ/år | AQ10: ='E1990'!$AH$39+'E1990'!$AH$40+'E1990'!$AH$46+'E1990'!$AH$47 -> 0 | AR10: ='E2018'!$AH$39+'E2018'!$AH$40+'E2018'!$AH$46+'E2018'!$AH$47 -> 391.1 | AS10: ='WE2018'!$AH$39+'WE2018'!$AH$40+'WE2018'!$AH$46+'WE2018'!$AH$47 -> 391.1 | AT10: =EBAU2030!$AH$39+EBAU2030!$AH$40+EBAU2030!$AH$46+EBAU2030!$AH$47 -> 475.7738835 | AU10: =EBAU2050!$AH$39+EBAU2050!$AH$40+EBAU2050!$AH$46+EBAU2050!$AH$47 -> 475.7738835 | AV10: =ESTI2030!$AH$39+ESTI2030!$AH$40+ESTI2030!$AH$46+ESTI2030!$AH$47 ->  | AW10: =ESTI2050!$AH$39+ESTI2050!$AH$40+ESTI2050!$AH$46+ESTI2050!$AH$47 -> 
A11: Enhedsforbrug, lastbil, 2020 | D11: E-Bilag 12 | E11: Motorstyrelsen & DST 2020, beregnet | I11: GJ/køretøj | J11: 938.6065904 | M11: Vind - Repowering 1:1? | S11: Nej | T11: Nej | U11: Nej | V11: Nej | Y11: Benzinbiler, 2020 | AC11: stk. | AE11: =$J$6 -> 411107 | AF11: =$J$6 -> 411107 | AG11: =$J$6 -> 411107 | AH11: =$J$6 -> 411107 | AK11: - El til transport | AP11: TJ/år | AQ11: =SUM('E1990'!$AH$61:$AH$80) -> 0 | AR11: =SUM('E2018'!$AH$62:$AH$81) -> 20.50393799 | AS11: =SUM('WE2018'!$AH$62:$AH$81) -> 20.50393799 | AT11: =SUM(EBAU2030!$AH$61:$AH$80) -> 352.2831401 | AU11: =SUM(EBAU2050!$AH$61:$AH$80) -> 893.3261252 | AV11: =SUM(ESTI2030!$AH$61:$AH$80) -> 261.1074494 | AW11: =SUM(ESTI2050!$AH$61:$AH$80) -> 71.7300705
A12: Busser, 2019 | D12: E-Bilag 12 | E12: Motorstyrelsen & DST 2019 | I12: stk. | J12: 2098 | M12: Elproduktion fra vindmøller 2030 | Q12: TJ | S12: =IF(S11="Ja",S9,S10) -> 0 | T12: =IF(T11="Ja",T9,T10) -> 0 | U12: =IF(U11="Ja",U9,U10) -> 0 | V12: =IF(V11="Ja",V9,V10) -> 0 | Y12: Dieselbiler, 2020 | AC12: stk. | AE12: =$J$7 -> 274519 | AF12: =$J$7 -> 274519 | AG12: =$J$7 -> 274519 | AH12: =$J$7 -> 274519 | AK12: - PtX | AP12: TJ/år | AQ12: ='E1990'!$AH$57+'E1990'!$AH$58+'E1990'!$AH$59 -> 0 | AR12: ='E2018'!$AH$57+'E2018'!$AH$58+'E2018'!$AH$59 -> 0 | AS12: ='WE2018'!$AH$57+'WE2018'!$AH$58+'WE2018'!$AH$59 -> 0 | AT12: =EBAU2030!$AH$57+EBAU2030!$AH$58+EBAU2030!$AH$59 -> 0 | AU12: =EBAU2050!$AH$57+EBAU2050!$AH$58+EBAU2050!$AH$59 -> 0 | AV12: =ESTI2030!$AH$57+ESTI2030!$AH$58+ESTI2030!$AH$59 -> 0 | AW12: =ESTI2050!$AH$57+ESTI2050!$AH$58+ESTI2050!$AH$59 -> 0
A13: Enhedsforbrug, bus, 2020 | D13: E-Bilag 12 | E13: Motorstyrelsen & DST 2020, beregnet | I13: GJ/køretøj | J13: 568.9689752 | Y13: Andel benzin af forbrænding, 2030: | AE13: =AE11/(AE$11+AE$12) -> 0.5996082412 | AF13: 0.5996082412 | AG13: 0.5996082412 | AH13: 0.5996082412 | AK13: - Øvrigt | AP13: TJ/år | AQ13: =AQ6-SUM(AQ7:AQ12) -> 4376.899311 | AR13: 1256.261971 | AS13: 1256.261971 | AT13: 1251.097971 | AU13: 1243.351971
A14: Husdyrgødning, restpotentiale | D14: K-Bilag, 2a | E14: -, Sum af total, fratrukket allerede sendt til biogas | I14: ton/år | J14: ='Reduction Path Calc'!F106 -> 3355985.658 | M14: Landvindmøller - Udbygning | Q14: pr. mølle (TJ/stk.) | Y14: Andel diesel af forbrænding, 2030: | AE14: 0.4003917588 | AF14: 0.4003917588 | AG14: 0.4003917588 | AH14: 0.4003917588
A15: Antal gasfyr, individuel | D15: E-Bilag 9 | E15: 2020, Tabel for kommuner | I15: stk. | J15: 41682 | M15: 125 m mølle (2,3 MW, 2.800 FLH) | Q15: =(2.3*3000*3.6/1000) -> 24.84 | R15: stk. | Y15: BEV | AK15: Stigning i elforbruget | AP15: TJ/år | AT15: =AT6-$AS6 -> 7882.661978 | AU15: =AU6-$AS6 -> -366.9471206 | AV15: =AV6-$AS6 ->  | AW15: =AW6-$AS6 -> 
A16: Antal oliefyr, individuel | D16: E-Bilag 7 | E16: Kommunenavn, tabel for år | I16: stk. | J16: 25247 | M16: 138 m mølle (3,5 MW, 3.000 FLH) | Q16: =(3.5*3000*3.6/1000) -> 37.8 | R16: stk. | Y16: Andel BEV person- og varebiler, 2030 Kommunalt: | AE16: ='Reduction Path Calc'!H79 -> 0.22 | AF16: ='Reduction Path Calc'!J79 -> 0.42 | AG16: ='Reduction Path Calc'!L79 -> 0 | AH16: ='Reduction Path Calc'!N79 -> 0 | AK16: Stigning i elforbruget | AP16: GWh/år | AT16: =AT15/3.6 -> 2189.628327 | AU16: =AU15/3.6 -> -101.9297557 | AV16: =AV15/3.6 ->  | AW16: =AW15/3.6 -> 
A17: Forventet produktion fra møller i 2030 | D17: E-Bilag 2 | E17: Tilpasset Pivot med ændret år for nettilslutning | I17: TJ | M17: 150 m mølle (3,5 MW, 3.400 FLH) | Q17: =(3.5*3400*3.6/1000) -> 42.84 | R17: stk. | Y17: Årskørsel | AC17: km/år | AE17: 16800 | AF17: 16800 | AG17: 16800 | AH17: 16800 | AK17: Stigning i elforbruget | AP17: husstande | AT17: =MROUND(AT16/0.0033,-100) ->  | AU17: =MROUND(AU16/0.0033,-100) -> -30900 | AV17: =MROUND(AV16/0.0033,100) ->  | AW17: =MROUND(AW16/0.0033,100) -> 
A18: Forventet produktion fra møller i 2050 | D18: E-Bilag 2 | E18: Tilpasset Pivot med ændret år for nettilslutning | I18: TJ | M18: 150 m mølle (4,2 MW, 3.000 FLH) | Q18: =(4.2*3000*3.6/1000) -> 45.36 | R18: stk. | S18: ='Reduction Path Calc'!I113 -> 0 | T18: ='Reduction Path Calc'!K113 -> 0 | U18: ='Reduction Path Calc'!M113 -> 0 | V18: ='Reduction Path Calc'!M113 -> 0 | Y18: Specifik effektivitet | AC18: km/kWh | AE18: 7.4 | AF18: =AE18*(1+10%) -> 8.14 | AG18: 7.4 | AH18: =AG18*(1+10%) -> 8.14
A19: Nettab, fjernvarmenet | D19: E-Bilag 6 | E19: Kommunenavn, pågældende fane | I19: % | J19: 0.1894940852 | M19: 180 m mølle (4,2 MW, 3.700 FLH) | Q19: =(4.2*3700*3.6/1000) -> 55.944 | R19: stk. | Y19: Enhedsforbrug - BEV, 2030 | AC19: GJ/køretøj | AE19: =AE17/AE18*3.6/1000 -> 8.172972973 | AF19: =AF17/AF18*3.6/1000 -> 7.42997543 | AG19: =AG17/AG18*3.6/1000 -> 8.172972973 | AH19: =AH17/AH18*3.6/1000 -> 7.42997543 | AK19: Forsyning
A20: Overskuds-CO2 | D20: Estimat | E20: Estimeres på baggrund af eksisterende biogas o.lign. | I20: ton/år | M20: Total, nye landvindmøller | R20: stk. | S20: =SUM(S15:S18) -> 0 | T20: =SUM(T15:T18) -> 0 | U20: =SUM(U15:U18) -> 0 | V20: =SUM(V15:V18) -> 0 | Y20: PHEV | AK20: Lokal el-produktion, heraf: | AP20: TJ/år | AQ20: =SUM('E1990'!$AG$23:$AG$29,'E1990'!$AG$34,'E1990'!$AG$37,'E1990'!$AG$44,'E1990'!$AG$52) -> 6479.76548 | AR20: =SUM('E2018'!$AG$23:$AG$29,'E2018'!$AG$34,'E2018'!$AG$37,'E2018'!$AG$44,'E2018'!$AG$52) -> 10966.88756 | AS20: =SUM('WE2018'!$AG$23:$AG$29,'WE2018'!$AG$34,'WE2018'!$AG$37,'WE2018'!$AG$44,'WE2018'!$AG$52) -> 10966.88756 | AT20: =SUM(EBAU2030!$AG$23:$AG$29,EBAU2030!$AG$34,EBAU2030!$AG$37,EBAU2030!$AG$44,EBAU2030!$AG$52) ->  | AU20: =SUM(EBAU2050!$AG$23:$AG$29,EBAU2050!$AG$34,EBAU2050!$AG$37,EBAU2050!$AG$44,EBAU2050!$AG$52) ->  | AV20: =SUM(ESTI2030!$AG$23:$AG$29,ESTI2030!$AG$34,ESTI2030!$AG$37,ESTI2030!$AG$44,ESTI2030!$AG$52) -> 631.9216437 | AW20: =SUM(ESTI2050!$AG$23:$AG$29,ESTI2050!$AG$34,ESTI2050!$AG$37,ESTI2050!$AG$44,ESTI2050!$AG$52) -> 631.9216437
M21: Nye landvindmøller, produktion | R21: TJ | S21: =SUMPRODUCT($Q$15:$Q$19,S15:S19) -> 0 | T21: =SUMPRODUCT($Q$15:$Q$19,T15:T19) -> 0 | U21: =SUMPRODUCT($Q$15:$Q$19,U15:U19) -> 0 | V21: =SUMPRODUCT($Q$15:$Q$19,V15:V19) -> 0 | Y21: Andel PHEV (benzin) person- og varebiler, 2030 Kommunalt: | AE21: ='Reduction Path Calc'!H80 -> 0.07 | AF21: ='Reduction Path Calc'!J80 -> 0.07 | AG21: ='Reduction Path Calc'!L80 -> 0 | AH21: ='Reduction Path Calc'!N80 -> 0 | AK21: - Vindmøller | AP21: TJ/år | AQ21: ='E1990'!$AG$24+'E1990'!$AG$25 -> 663.22 | AR21: ='E2018'!$AG$24+'E2018'!$AG$25 -> 9127.65 | AS21: ='WE2018'!$AG$24+'WE2018'!$AG$25 -> 9127.65 | AT21: =EBAU2030!$AG$24+EBAU2030!$AG$25 -> 9127.65 | AU21: =EBAU2050!$AG$24+EBAU2050!$AG$25 -> 9127.65 | AV21: =ESTI2030!$AG$24+ESTI2030!$AG$25 -> 0 | AW21: =ESTI2050!$AG$24+ESTI2050!$AG$25 -> 0
Y22: Årskørsel | AC22: km/år | AE22: 16800 | AF22: 16800 | AG22: 16800 | AH22: 16800 | AK22: - Solceller | AP22: TJ/år | AQ22: =+'E1990'!$AG$23 -> 0 | AR22: =+'E2018'!$AG$23 -> 356.1 | AS22: =+'WE2018'!$AG$23 -> 356.1 | AT22: =+EBAU2030!$AG$23 -> 356.1 | AU22: =+EBAU2050!$AG$23 -> 356.1 | AV22: =+ESTI2030!$AG$23 -> 356.1 | AW22: =+ESTI2050!$AG$23 -> 356.1
M23: Kystnære vindmøller - Udbygning | Q23: pr. mølle (TJ/stk.) | Y23: Andel af årskørsel, el | AC23: % | AE23: 0.5 | AF23: 0.5 | AG23: 0.5 | AH23: 0.5 | AK23: - Kraftvarme | AP23: TJ/år | AQ23: =SUM('E1990'!$AG$28,'E1990'!$AG$34,'E1990'!$AG$37,'E1990'!$AG$44,'E1990'!$AG$52) -> 768.117 | AR23: =SUM('E2018'!$AG$28,'E2018'!$AG$34,'E2018'!$AG$37,'E2018'!$AG$44,'E2018'!$AG$52) -> 1483.137563 | AS23: =SUM('WE2018'!$AG$28,'WE2018'!$AG$34,'WE2018'!$AG$37,'WE2018'!$AG$44,'WE2018'!$AG$52) -> 1483.137563 | AT23: =SUM(EBAU2030!$AG$28,EBAU2030!$AG$34,EBAU2030!$AG$37,EBAU2030!$AG$44,EBAU2030!$AG$52) ->  | AU23: =SUM(EBAU2050!$AG$28,EBAU2050!$AG$34,EBAU2050!$AG$37,EBAU2050!$AG$44,EBAU2050!$AG$52) ->  | AV23: =SUM(ESTI2030!$AG$28,ESTI2030!$AG$34,ESTI2030!$AG$37,ESTI2030!$AG$44,ESTI2030!$AG$52) -> 275.8216437 | AW23: =SUM(ESTI2050!$AG$28,ESTI2050!$AG$34,ESTI2050!$AG$37,ESTI2050!$AG$44,ESTI2050!$AG$52) -> 275.8216437
M24: 150 m mølle (3,5 MW, 3.800 FLH) | Q24: =(3.5*3800*3.6/1000) -> 47.88 | R24: stk. | Y24: Specifik effektivitet, el | AC24: km/kWh | AE24: 5 | AF24: =AE24*(1+10%) -> 5.5 | AG24: 5 | AH24: =AG24*(1+10%) -> 5.5 | AK24: - Øvrige | AP24: TJ/år | AQ24: =AQ20-SUM(AQ21:AQ23) -> 5048.42848 | AR24: 0 | AS24: 0 | AV24: 0 | AW24: 0
A25: Udviklinger, herunder befolkning | G25: BAU2030 | H25: BAU2050 | I25: STI2030 | J25: STI2050 | M25: 180 m mølle (3,7 MW, 3.800 FLH) | Q25: =(3.7*3800*3.6/1000) -> 50.616 | R25: stk. | Y25: Specifik effektivitet, forbrænding | AC25: km/l | AE25: 18 | AF25: =AE25*(1+10%) -> 19.8 | AG25: 18 | AH25: =AG25*(1+10%) -> 19.8 | AK25: El-import | AP25: TJ/år | AQ25: ='E1990'!$A$12 -> 21030.20046 | AR25: ='E2018'!$A$12 -> -2374.585216 | AS25: ='WE2018'!$A$12 -> -2374.585216 | AT25: =EBAU2030!$A$12 ->  | AU25: =EBAU2050!$A$12 ->  | AV25: =ESTI2030!$A$12 ->  | AW25: =ESTI2050!$A$12 -> 
A26: Indbyggere, 2020 | G26: ='WE2018'!$D$1 -> 203425 | H26: ='WE2018'!$D$1 -> 203425 | I26: ='WE2018'!$D$1 -> 203425 | J26: ='WE2018'!$D$1 -> 203425 | M26: 180 m mølle (4,6 MW, 3.800 FLH) | Q26: =(4.6*3800*3.6/1000) -> 62.928 | R26: stk. | S26: ='Reduction Path Calc'!I114 -> 0 | T26: ='Reduction Path Calc'!K114 -> 0 | U26: ='Reduction Path Calc'!M114 -> 0 | V26: ='Reduction Path Calc'!O114 -> 0 | Y26: Enhedsforbrug, el, PHEV, 2030 | AC26: GJ/køretøj | AE26: =AE$22*AE$23/AE$24*3.6/1000 -> 6.048 | AF26: =AF$22*AF$23/AF$24*3.6/1000 -> 5.498181818 | AG26: =AG$22*AG$23/AG$24*3.6/1000 -> 6.048 | AH26: =AH$22*AH$23/AH$24*3.6/1000 -> 5.498181818
A27: Befolkningstilvækst 2020-målår | G27: =(G28-G26)/G26 -> 5.520044242 | H27: =(H28-H26)/H26 -> 5.520044242 | I27: =(I28-I26)/I26 -> 5.520044242 | J27: =(J28-J26)/J26 -> 5.520044242 | M27: 190 m mølle (8,4 MW, 3.800 FLH) | Q27: =(8.4*3800*3.6/1000) -> 114.912 | R27: stk. | Y27: Enhedsforbrug, benzin, PHEV, 2030 | AC27: GJ/køretøj | AE27: =AE$22*(1-AE$23)/AE$25*9.125*3.6/1000 -> 15.33 | AF27: =AF$22*(1-AF$23)/AF$25*9.125*3.6/1000 -> 13.93636364 | AG27: =AG$22*(1-AG$23)/AG$25*9.125*3.6/1000 -> 15.33 | AH27: =AH$22*(1-AH$23)/AH$25*9.125*3.6/1000 -> 13.93636364
A28: Indbyggere, målår | G28: 1326340 | H28: 1326340 | I28: 1326340 | J28: 1326340 | M28: Nye kystnære vindmøller, produktion | R28: TJ | S28: =SUMPRODUCT($Q$24:$Q$27,S24:S27) -> 0 | T28: =SUMPRODUCT($Q$24:$Q$27,T24:T27) -> 0 | U28: =SUMPRODUCT($Q$24:$Q$27,U24:U27) -> 0 | V28: =SUMPRODUCT($Q$24:$Q$27,V24:V27) -> 0 | Y28: Forbrændingsmotorer
A29: Varme | Y29: Enhedsforbrug - benzinlbil, 2030 | AC29: GJ/køretøj | AE29: =$J8*(28.5/32) -> 25.36456629 | AF29: =AE29*(1-10%) -> 22.82810966 | AG29: =$J8*(28.5/32) -> 25.36456629 | AH29: =AG29*(1-10%) -> 22.82810966 | AK29: Oversigt - Forudsætninger
A30: Bebore pr. ny bolig | F30: indb./bolig | G30: 2.05 | H30: 2.05 | I30: 2.05 | J30: 2.05 | M30: Solceller - Forudsætninger (jf. minianalyse Silkeborg) | Y30: Enhedsforbrug - diesellbil, 2030 | AC30: GJ/køretøj | AE30: =$J9*(60.1/64.2) -> 40.66235852 | AF30: =AE30*(1-10%) -> 36.59612267 | AG30: =$J9*(60.1/64.2) -> 40.66235852 | AH30: =AG30*(1-10%) -> 36.59612267 | AK30: Emissioner fra energisektoren | AP30: =$AT$4 -> BAU2030 | AQ30: =$AU$4 -> BAU2050 | AR30: =$AV$4 -> STI2030 | AS30: =$AW$4 -> STI2050
A31: Enhedsvarmebehov (netto) pr. ny bolig | F31: MWh/år | G31: =130*45/1000 -> 5.85 | H31: =130*45/1000 -> 5.85 | I31: =130*45/1000 -> 5.85 | J31: =130*45/1000 -> 5.85 | M31: Arealbehov | Q31: MWp/ha | R31: 1.295 | Y31: 2030 Fordeling af køretøjer, let transport | AK31: Tilflytning (til ca. 105.000 indbyggere) | AP31: =G27 -> 5.520044242 | AQ31: =H27 -> 5.520044242 | AR31: =I27 -> 5.520044242 | AS31: =J27 -> 5.520044242
A32: Til regnskab: Varmebehov, nye boliger (lægges til ny fjernvarme eller trækkes fra mellemstore net) | F32: TJ/år | G32: =(G28-G26)/G30*(G31*3.6/1000) -> 11535.89751 | H32: =(H28-H26)/H30*(H31*3.6/1000) -> 11535.89751 | I32: =(I28-I26)/I30*(I31*3.6/1000) -> 11535.89751 | J32: =(J28-J26)/J30*(J31*3.6/1000) -> 11535.89751 | M32: Anslået produktion på årsbasis | Q32: kWh/kWp | R32: 850 | Y32: Person og varebiler 2030, kommune | AC32: stk. | AE32: =AE10+G40 -> 4523307 | AF32: =AF10+H40 -> 4523307 | AG32: =AG10+I40 -> 4523307 | AH32: =AH10+J40 -> 4523307
A33: Klassisk el-forbrug | Y33: Heraf: El (BEV) | AC33: stk. | AE33: =MROUND(AE32*AE16,1) -> 995128 | AF33: =MROUND(AF32*AF16,1) -> 1899789 | AG33: =MROUND(AG32*AG16,1) -> 0 | AH33: =MROUND(AH32*AH16,1) -> 0 | AK33: Varmeforsyning
A34: Klassisk el-forbrug pr. 2020-indbygger | E34: kWh/indbygger/år | G34: ='WE2018'!$AL$8/G$26/3.6*1000000 -> 1647.121562 | H34: ='WE2018'!$AL$8/H$26/3.6*1000000 -> 1647.121562 | I34: ='WE2018'!$AL$8/I$26/3.6*1000000 -> 1647.121562 | J34: ='WE2018'!$AL$8/J$26/3.6*1000000 -> 1647.121562 | M34: Solceller - Udbygning | Q34: pr. enhed (TJ) | Y34: Heraf: Benzin-Plugin (PHEV) | AC34: stk. | AE34: =MROUND(AE32*AE21,1) -> 316631 | AF34: =MROUND(AF32*AF21,1) -> 316631 | AG34: =MROUND(AG32*AG21,1) -> 0 | AH34: =MROUND(AH32*AH21,1) -> 0 | AK34: Energibesparelser (varme) | AP34: =-G47 -> 0.03 | AQ34: =-H47 -> 0.05 | AR34: =-I47 -> 0 | AS34: =-J47 -> 0
A35: Klassisk el-forbrug pr. ny indbygger | E35: kWh/indbygger/år | G35: =G34 -> 1647.121562 | H35: =H34 -> 1647.121562 | I35: =I34 -> 1647.121562 | J35: =J34 -> 1647.121562 | M35: Villatage (4,5 kWp-anlæg) | Q35: =(4.5*$R$32*3.6/1000000) -> 0.01377 | R35: stk. | Y35: Heraf: Benzin | AC35: stk. | AE35: =MROUND((AE32-AE33-AE34)*AE13,1) -> 1925671 | AF35: =MROUND((AF32-AF33-AF34)*AF13,1) -> 1383228 | AG35: =MROUND((AG32-AG33-AG34)*AG13,1) -> 2712212 | AH35: =MROUND((AH32-AH33-AH34)*AH13,1) -> 2712212 | AK35: Reduktion af oliefyr | AP35: =-G50 -> 0.83 | AQ35: =-H50 -> 0.9 | AR35: =-I50 -> 0 | AS35: =-J50 -> 0
A36: Til regnskab: Klassisk elforbrug, nye indbyggere | E36: TJ/år | G36: =G35*3.6/1000000*(G28-G26) -> 6658.479032 | H36: =H35*3.6/1000000*(H28-H26) -> 6658.479032 | I36: =I35*3.6/1000000*(I28-I26) -> 6658.479032 | J36: =J35*3.6/1000000*(J28-J26) -> 6658.479032 | M36: Etageejendomme (25 kWp-anlæg) | Q36: =(25*$R$32*3.6/1000000) -> 0.0765 | R36: stk. | Y36: Heraf: Diesel | AC36: stk. | AE36: =MROUND((AE32-AE33-AE34)*AE14,1) -> 1285877 | AF36: =MROUND((AF32-AF33-AF34)*AF14,1) -> 923659 | AG36: =MROUND((AG32-AG33-AG34)*AG14,1) -> 1811095 | AH36: =MROUND((AH32-AH33-AH34)*AH14,1) -> 1811095 | AK36: Reduktion af gasfyr | AP36: =-G64 -> 0.57 | AQ36: =-H64 -> 0.9 | AR36: =-I64 -> 0 | AS36: =-J64 -> 0
A37: Let transport | M37: Erhvervstage | Q37: =$R$31*$R$32*3.6/1000 -> 3.9627 | R37: ha | Y37: ="Til energiregnskabet - "&Y7 -> Til energiregnskabet - Person- og varebiler
A38: Stigning antal personbiler (fast årskørsel!), nuværende indbyggere | F38: % | G38: 0 | H38: 0 | I38: 0 | J38: 0 | M38: Markbaserede anlæg | Q38: =$R$31*$R$32*3.6/1000 -> 3.9627 | R38: ha | S38: ='Reduction Path Calc'!I115 -> 0 | T38: ='Reduction Path Calc'!K115 -> 0 | U38: ='Reduction Path Calc'!M115 -> 0 | V38: ='Reduction Path Calc'!O115 -> 0 | Y38: Elforbrug BEV & PHEV, 2030 | AC38: TJ | AE38: =(AE33*AE19+AE26*AE34)/1000 -> 10048.13854 | AF38: =(AF33*AF19+AF26*AF34)/1000 -> 15856.2804 | AG38: =(AG33*AG19+AG26*AG34)/1000 -> 0 | AH38: =(AH33*AH19+AH26*AH34)/1000 -> 0 | AK38: Erhvervets energiforbrug
A39: Nye personbiler, nye indbyggere, sammenlignet med eksisterende | F39: Indeks | G39: 1 | H39: 1 | I39: 1 | J39: 1 | M39: Oplyst i ansøgninger (indtastes) | Y39: Benzinforbrug person og varebiler 2030 | AC39: TJ | AE39: =(AE34*AE27+AE35*AE29)/1000 -> 53697.76297 | AF39: =(AF34*AF27+AF35*AF29)/1000 -> 35989.16523 | AG39: =(AG34*AG27+AG35*AG29)/1000 -> 68794.08108 | AH39: =(AH34*AH27+AH35*AH29)/1000 -> 61914.67297 | AK39: Konvertering af gasforbrug | AP39: =-G87 -> 0 | AQ39: =-H87 -> 0 | AR39: =-I87 -> 0 | AS39: =-J87 -> 0
A40: Personbiler, nye indbyggere | E40: stk. | G40: =ROUND((AE9/G26*(G28-G26))*G39,0) -> 3829553 | H40: =ROUND((AF9/H26*(H28-H26))*H39,0) -> 3829553 | I40: =ROUND((AG9/I26*(I28-I26))*I39,0) -> 3829553 | J40: =ROUND((AH9/J26*(J28-J26))*J39,0) -> 3829553 | M40: Nye solceller, produktion | S40: =SUMPRODUCT($Q$35:$Q$38,S35:S38)+S39 -> 0 | T40: =SUMPRODUCT($Q$35:$Q$38,T35:T38)+T39 -> 0 | U40: =SUMPRODUCT('E-Tiltag'!$Q$35:$Q$38,U35:U38)+U39 -> 0 | V40: =SUMPRODUCT('E-Tiltag'!$Q$35:$Q$38,V35:V38)+V39 -> 0 | Y40: Dieselforbrug person og varebiler 2030 | AC40: TJ | AE40: =AE36*AE30/1000 -> 52286.79159 | AF40: =AF36*AF30/1000 -> 33802.33807 | AG40: =AG36*AG30/1000 -> 73643.39421 | AH40: =AH36*AH30/1000 -> 66279.05479 | AK40: Konvertering af brændselsolie | AP40: =G112 -> 0 | AQ40: 0 | AR40: 0 | AS40: 0
A41: Tung transport | AK41: Konvertering af øvrige fossile brændsler | AP41: 0 | AQ41: 0 | AR41: 0 | AS41: 0
A42: Udvikling antal lastbiler (fast årskørsel!) | F42: % | G42: 0.1142 | H42: 0.2 | I42: 0.1142 | J42: 0.2 | M42: KF22-forudsætninger (DK1, MW) | P42: 2021 | Q42: 2025 | R42: Indeks | S42: 2030 | T42: Indeks | U42: 2035 | V42: Indeks | Y42: Tung transport
A43: Udvikling antal busser (fast årskørsel!) | F43: % | G43: -0.1678 | H43: -0.162 | I43: -0.1678 | J43: -0.162 | M43: Havvind | P43: 1256 | Q43: 2171 | R43: =Q43/$P43 -> 1.728503185 | S43: 3596 | T43: =S43/$P43 -> 2.863057325 | U43: 3387 | V43: =U43/$P43 -> 2.696656051 | Y43: Lastbiler | AK43: Transport
M44: Vind på land | P44: 3913 | Q44: 4165 | R44: =Q44/$P44 -> 1.064400716 | S44: 4601 | T44: =S44/$P44 -> 1.175824176 | U44: 4433 | V44: =U44/$P44 -> 1.132890365 | Y44: Lastbiler 2020, eksisterende | AD44: stk. | AE44: =+$J$10 -> 8194 | AF44: =AE44 -> 8194 | AG44: =AF44 -> 8194 | AH44: =AG44 -> 8194 | AK44: Andel af elbiler | AP44: =AE16 -> 0.22 | AQ44: =AF16 -> 0.42 | AR44: =AG16 -> 0 | AS44: =AH16 -> 0
M45: Solceller | P45: 953 | Q45: 3092 | R45: =Q45/$P45 -> 3.244491081 | S45: 5205 | T45: =S45/$P45 -> 5.461699895 | U45: 6745 | V45: =U45/$P45 -> 7.077649528 | Y45: Fordeling lastbiler, 2030 | AK45: VE-andel, benzin, jf. Energistyrelsen | AP45: =AE4 -> 0.067 | AQ45: 0.067 | AR45: 0.067 | AS45: 0.067
A46: Varmeforsyningen - Rumvarmebehov | G46: =$G$25 -> BAU2030 | H46: =$H$25 -> BAU2050 | I46: =$I$25 -> STI2030 | J46: =$J$25 -> STI2050 | Y46: Heraf: Diesel | AE46: =1-SUM(AE47:AE49) -> 0.92 | AF46: =1-SUM(AF47:AF49) -> 0.79 | AG46: =1-SUM(AG47:AG49) -> 0.92 | AH46: =1-SUM(AH47:AH49) -> 1 | AK46: VE-andel, diesel, jf. Energistyrelsen | AP46: 0.107 | AQ46: 0.107 | AR46: 0.107 | AS46: 0.107
A47: Energibesparelser (varme), eksisterende byggeri | G47: =-'Reduction Path Calc'!H99 -> -0.03 | H47: =-'Reduction Path Calc'!J99 -> -0.05 | I47: =-'Reduction Path Calc'!L99 -> 0 | J47: =-'Reduction Path Calc'!N99 -> 0 | M47: Power-To-X og biogas | Y47: Heraf: BEV | AE47: ='Reduction Path Calc'!H82 -> 0.05 | AF47: ='Reduction Path Calc'!J82 -> 0.17 | AG47: ='Reduction Path Calc'!L82 -> 0.05 | AH47: ='Reduction Path Calc'!N82 -> 0 | AK47: Desuden lastbiler, busser, tog, fly og skibstrafik jf. Energistyrelsen.
Y48: Heraf: Gas | AE48: ='Reduction Path Calc'!H83 -> 0.02 | AF48: ='Reduction Path Calc'!J83 -> 0.03 | AG48: ='Reduction Path Calc'!L83 -> 0.02 | AH48: ='Reduction Path Calc'!N83 -> 0
A49: Olie individuel | G49: =$G$25 -> BAU2030 | H49: =$H$25 -> BAU2050 | I49: =$I$25 -> STI2030 | J49: =$J$25 -> STI2050 | M49: ="Til energiregnskabet - "&M47 -> Til energiregnskabet - Power-To-X og biogas | Y49: Heraf: Brint | AE49: ='Reduction Path Calc'!H84 -> 0.01 | AF49: ='Reduction Path Calc'!J84 -> 0.01 | AG49: ='Reduction Path Calc'!L84 -> 0.01 | AH49: ='Reduction Path Calc'!N84 -> 0 | AK49: Residual-el i 2030 | AP49: =$AT$4 -> BAU2030 | AQ49: =$AU$4 -> BAU2050 | AR49: =$AV$4 -> STI2030 | AS49: =$AW$4 -> STI2050
A50: Reduktion i periode | G50: =-'Reduction Path Calc'!H102 -> -0.83 | H50: =-'Reduction Path Calc'!J102 -> -0.9 | I50: =-'Reduction Path Calc'!L102 -> 0 | J50: =-'Reduction Path Calc'!N102 -> 0 | M50: El-forbrug til elektrolyse mv. | Q50: TJ/år | S50: =S66+S82+S93+S109+S120+S128 -> 0 | T50: =T66+T82+T93+T109+T120+T128 -> 0 | U50: =U66+U82+U93+U109+U120+U128 -> 0 | V50: =V66+V82+V93+V109+V120+V128 -> 0 | Y50: Enhedsforbrug & antal | AK50: VE-andel, 2030 | AN50: % | AP50: =S4/100 -> 1 | AQ50: =T4/100 -> 1 | AR50: =U4/100 -> 1 | AS50: =V4/100 -> 1
A51: 2020 | D51: ='WE2018'!$E$14 -> 559.8 | M51: Opgraderet biogas / biometan | Q51: TJ/år | S51: =+S58+S67+S110+S121 -> 0 | T51: =+T58+T67+T110+T121 -> 0 | U51: =+U58+U67+U110+U121 -> 0 | V51: =+V58+V67+V110+V121 -> 0 | Y51: Enhedsforbrug - diesellastbil, 2030 | AC51: GJ/køretøj | AE51: =$J11*(482.2/569.5) -> 794.7253694 | AF51: =$J11*(482.2/569.5) -> 794.7253694 | AG51: =$J11*(482.2/569.5) -> 794.7253694 | AH51: =$J11*(482.2/569.5) -> 794.7253694 | AK51: CO2-intensitet, 2030 | AN51: ton/TJ | AP51: =S5 -> 0 | AQ51: =T5 -> 0 | AR51: =U5 -> 0 | AS51: =V5 -> 0
A52: 2030 | G52: =$D$51*(1+G50)*(1+G$47) -> 92.31102 | H52: =$D$51*(1+H50)*(1+H$47) -> 53.181 | I52: =$D$51*(1+I50)*(1+I$47) -> 559.8 | J52: =$D$51*(1+J50)*(1+J$47) -> 559.8 | M52: Metanol | Q52: TJ/år | S52: =+S83+S94 -> 0 | T52: =+T83+T94 -> 0 | U52: =+U83+U94 -> 0 | V52: =+V83+V94 -> 0 | Y52: Enhedsforbrug - diesellastbil, 2030, netto | AC52: GJ/køretøj | AE52: =AE51*'WE2018'!$AD$72% -> 290.0747598 | AF52: =AF51*'WE2018'!$AD$72% -> 290.0747598 | AG52: =AG51*'WE2018'!$AD$72% -> 290.0747598 | AH52: =AH51*'WE2018'!$AD$72% -> 290.0747598
A53: Virkningsgrad, 2020 (%) | D53: ='WE2018'!$AE$14% -> 0.8 | M53: Brint til øvrige formål | Q53: TJ/år | S53: =S127 -> 0 | T53: =T127 -> 0 | U53: =U127 -> 0 | V53: =V127 -> 0 | Y53: Lastbiler 2030, samt fordeling. | AD53: stk. | AE53: =ROUND(AE44*(1+G42),0) -> 9130 | AF53: =ROUND(AF44*(1+H42),0) -> 9833 | AG53: =ROUND(AG44*(1+I42),0) -> 9130 | AH53: =ROUND(AH44*(1+J42),0) -> 9833 | AK53: PtX og biogas
A54: NVB, konverteret | G54: =($D$51*$D$53)-(G52*$D$53)/(1+G47) -> 371.7072 | H54: =($D$51*$D$53)-(H52*$D$53)/(1+H47) -> 403.056 | I54: =($D$51*$D$53)-(I52*$D$53)/(1+I47) -> 0 | J54: =($D$51*$D$53)-(J52*$D$53)/(1+J47) -> 0 | M54: Overskudsvarme | Q54: TJ/år | S54: =+S84+S95+S111+S122+S129 -> 0 | T54: =+T84+T95+T111+T122+T129 -> 0 | U54: =+U84+U95+U111+U122+U129 -> 0 | V54: =+V84+V95+V111+V122+V129 -> 0 | Y54: Heraf: Diesel | AD54: stk. | AE54: =AE53-SUM(AE55:AE57) -> 8399 | AF54: =AF53-SUM(AF55:AF57) -> 7768 | AG54: =AG53-SUM(AG55:AG57) -> 8399 | AH54: =AH53-SUM(AH55:AH57) -> 9833 | AK54: El-optag, PtX, samlet | AO54: MW | AP54: =S55 -> 0 | AQ54: =T55 -> 0 | AR54: =U55 -> 0 | AS54: =V55 -> 0
A55: NVB, konverteret, efter energibesparelser | G55: =G54*(1+G$47) -> 360.555984 | H55: =H54*(1+H$47) -> 382.9032 | I55: =I54*(1+I$47) -> 0 | J55: =J54*(1+J$47) -> 0 | M55: El-optag samlet (ekskl. aminskrubbere) | Q55: MW | S55: =S76+S91+S104+S118+S125 -> 0 | T55: =T76+T91+T104+T118+T125 -> 0 | U55: =U76+U91+U104+U118+U125 -> 0 | V55: =V76+V91+V104+V118+V125 -> 0 | Y55: Heraf: BEV | AD55: stk. | AE55: =ROUND(AE$53*AE47,0) -> 457 | AF55: 1672 | AG55: 457 | AH55: 0 | AK55: Elforbrug, PtX, samlet | AO55: TJ/år | AP55: =BC12 -> 0 | AQ55: =BD12 -> 0 | AR55: =BE12 -> 0 | AS55: =BF12 -> 0
A56: Konverteres | Y56: Heraf: Gas | AD56: stk. | AE56: 183 | AF56: 295 | AG56: 183 | AH56: 0
A57: Til indviduelle varmepumper (%) | G57: 0.8 | H57: 0.8 | I57: 0.8 | J57: 0.8 | M57: Opgraderet biogas | Q57: Skala | Y57: Heraf: Brint | AD57: stk. | AE57: 91 | AF57: 98 | AG57: 91 | AH57: 0 | AK57: Produktion af opgraderet biogas | AO57: TJ/år | AP57: =S51 -> 0 | AQ57: 0 | AR57: 0 | AS57: 0
A58: Til træpiller (%) | G58: 0.2 | H58: 0.2 | I58: 0.2 | J58: 0.2 | M58: Øvrige planlagte | P58: TJ/år | Q58: Indtastes | S58: 0 | T58: 0 | U58: 0 | V58: 0 | Y58: ="Til energiregnskabet - "&Y43 -> Til energiregnskabet - Lastbiler | AK58: Produktion af metanol | AO58: TJ/år | AP58: 0 | AQ58: 0 | AR58: 0 | AS58: 0
A59: Til varmepumper, NVB (TJ) | G59: =G55*G57 -> 288.4447872 | H59: =H55*H57 -> 306.32256 | I59: =I55*I57 -> 0 | J59: =J55*J57 -> 0 | Y59: Dieselforbrug, lastbiler 2030 | AC59: TJ | AE59: =AE54*AE51/1000 -> 6674.898377 | AF59: =AF54*AF51/1000 -> 6173.426669 | AG59: =AG54*AG51/1000 -> 6674.898377 | AH59: =AH54*AH51/1000 -> 7814.534557
A60: Til træpiller, NVB (TJ) | G60: =G55*G58 -> 72.1111968 | H60: =H55*H58 -> 76.58064 | I60: =I55*I58 -> 0 | J60: =J55*J58 -> 0 | M60: Husdyrgødning, restpotentiale | P60: ton/år | Q60: =$J$14 -> 3355985.658 | S60: =IF(SUM(S61,S71,S99)>1,"OBS - SUM > 100%!","") ->  | T60: =IF(SUM(T61,T71,T99)>1,"OBS - SUM > 100%!","") ->  | U60: =IF(SUM(U61,U71,U99)>1,"OBS - SUM > 100%!","") ->  | V60: =IF(SUM(V61,V71,V99)>1,"OBS - SUM > 100%!","") ->  | Y60: Elforbrug, lastbiler 2030 | AC60: TJ | AE60: =AE52/'WE2018'!$AC$75%/1000*AE55 -> 189.3773789 | AF60: =AF52/'WE2018'!$AC$75%/1000*AF55 -> 692.8642835 | AG60: =AG52/'WE2018'!$AC$75%/1000*AG55 -> 189.3773789 | AH60: =AH52/'WE2018'!$AC$75%/1000*AH55 -> 0 | AK60: Restpotentiale af gylle anvendt | AO60: % | AP60: =S61+S71+S99 -> 0 | AQ60: =T61+T71+T99 -> 0 | AR60: =U61+U71+U99 -> 0 | AS60: =V61+V71+V99 -> 0
M61: Husdyrgødning, anvendt | P61: % | S61: ='Reduction Path Calc'!H106 -> 0 | T61: ='Reduction Path Calc'!J106 -> 0 | U61: ='Reduction Path Calc'!L106 -> 0 | V61: ='Reduction Path Calc'!N106 -> 0 | Y61: Gasforbrug, lastbiler 2030 | AC61: TJ | AE61: =AE52/'WE2018'!$AD$73%/1000*AE56 -> 164.8561523 | AF61: =AF52/'WE2018'!$AD$73%/1000*AF56 -> 265.751721 | AG61: =AG52/'WE2018'!$AD$73%/1000*AG56 -> 164.8561523 | AH61: =AH52/'WE2018'!$AD$73%/1000*AH56 -> 0 | AK61: Restpotentiale af overskuds-CO2 anvendt | AO61: % | AP61: =+S88+S115 -> 0 | AQ61: =+T88+T115 -> 0 | AR61: =+U88+U115 -> 0 | AS61: =+V88+V115 -> 0
M62: Husdyrgødning, anvendt | P62: ton/år | Q62: 131000 | S62: =S61*$Q$60 -> 0 | T62: =T61*$Q$60 -> 0 | U62: =U61*$Q$60 -> 0 | V62: =V61*$Q$60 -> 0 | Y62: Brintforbrug, lastbiler 2030 | AC62: TJ | AE62: =AE52/'WE2018'!$AD$74%/1000*AE57 -> 65.99200786 | AF62: =AF52/'WE2018'!$AD$74%/1000*AF57 -> 71.06831616 | AG62: =AG52/'WE2018'!$AD$74%/1000*AG57 -> 65.99200786 | AH62: =AH52/'WE2018'!$AD$74%/1000*AH57 -> 0
A63: Gas individuel | G63: =$G$25 -> BAU2030 | H63: =$H$25 -> BAU2050 | I63: =$I$25 -> STI2030 | J63: =$J$25 -> STI2050 | M63: Øvrige produkter | P63: ton/år | Q63: 38000 | S63: =ROUND(S62/$Q$62*$Q$63,-3) -> 0 | T63: =ROUND(T62/$Q$62*$Q$63,-3) -> 0 | U63: =ROUND(U62/$Q$62*$Q$63,-3) -> 0 | V63: =ROUND(V62/$Q$62*$Q$63,-3) -> 0 | AK63: El-optag (MW) til PtX svarende til:
A64: Reduktion i periode | G64: =-'Reduction Path Calc'!H101 -> -0.57 | H64: =-'Reduction Path Calc'!J101 -> -0.9 | I64: =-'Reduction Path Calc'!L101 -> 0 | J64: =-'Reduction Path Calc'!N101 -> 0 | M64: Biogas | P64: Nm3/time | Q64: 1141.553 | S64: =ROUND(S62/$Q$62*$Q$64,0) -> 0 | T64: =ROUND(T62/$Q$62*$Q$64,0) -> 0 | U64: =ROUND(U62/$Q$62*$Q$64,0) -> 0 | V64: =ROUND(V62/$Q$62*$Q$64,0) -> 0 | Y64: Busser | AK64: ="Solceller ("&ROUND(R31,2)&" "&Q31&")" -> Solceller (1,3 MWp/ha) | AO64: ha | AP64: =AP54/$R$31 -> 0 | AQ64: =AQ54/$R$31 -> 0 | AR64: =AR54/$R$31 -> 0 | AS64: =AS54/$R$31 -> 0
A65: 2020 | D65: ='WE2018'!$I$15 -> 489.1 | M65: ="Output - "&M57 -> Output - Opgraderet biogas | Y65: Busser 2020, eksisterende | AD65: stk. | AE65: =+$J$12 -> 2098 | AF65: =+$J$12 -> 2098 | AG65: =+$J$12 -> 2098 | AH65: =+$J$12 -> 2098 | AK65: 150m-vindmøller (landvind, 4,2 MW/vindmølle) | AO65: stk. | AP65: =AP54/4.2 -> 0 | AQ65: =AQ54/4.2 -> 0 | AR65: =AR54/4.2 -> 0 | AS65: =AS54/4.2 -> 0
A66: 2030 | G66: =$D$65*(1+G64)*(1+G$47) -> 204.00361 | H66: =$D$65*(1+H64)*(1+H$47) -> 46.4645 | I66: =$D$65*(1+I64)*(1+I$47) -> 489.1 | J66: =$D$65*(1+J64)*(1+J$47) -> 489.1 | M66: El-forbrug, opgraderingsanlæg | P66: TJ/år | Q66: 3.485 | S66: =S62/$Q$62*$Q$66 -> 0 | T66: =T62/$Q$62*$Q$66 -> 0 | U66: =U62/$Q$62*$Q$66 -> 0 | V66: =V62/$Q$62*$Q$66 -> 0 | Y66: Fordeling Busser, 2030 | AK66: Havvindmøller (8 MW/vindmølle) | AO66: stk. | AP66: =AP54/8 -> 0 | AQ66: =AQ54/8 -> 0 | AR66: =AR54/8 -> 0 | AS66: =AS54/8 -> 0
A67: Virkningsgrad, 2020 (%) | D67: ='WE2018'!$AE$15% -> 0.85 | M67: Biometanproduktion | P67: TJ/år | Q67: 208.479 | S67: =+$Q67*S62/$Q62 -> 0 | T67: =+$Q67*T62/$Q62 -> 0 | U67: =+$Q67*U62/$Q62 -> 0 | V67: =+$Q67*V62/$Q62 -> 0 | Y67: Heraf: Diesel | AE67: =1-SUM(AE68:AE70) -> 0.65 | AF67: =1-SUM(AF68:AF70) -> 0.49 | AG67: =1-SUM(AG68:AG70) -> 1 | AH67: =1-SUM(AH68:AH70) -> 1 | AK67: Andel af 12,9 GW havvind | AO67: % | AP67: =AP54/12900 -> 0 | AQ67: =AQ54/12900 -> 0 | AR67: =AR54/12900 -> 0 | AS67: =AS54/12900 -> 0
A68: NVB, konverteret | G68: =($D$65*$D$67)-(G66*$D$67)/(1+G47) -> 236.96895 | H68: =($D$65*$D$67)-(H66*$D$67)/(1+H47) -> 374.1615 | I68: =($D$65*$D$67)-(I66*$D$67)/(1+I47) -> 0 | J68: =($D$65*$D$67)-(J66*$D$67)/(1+J47) -> 0 | Y68: Heraf: BEV | AE68: ='Reduction Path Calc'!H86 -> 0.29 | AF68: ='Reduction Path Calc'!J86 -> 0.45 | AG68: ='Reduction Path Calc'!L86 -> 0 | AH68: ='Reduction Path Calc'!N86 -> 0
A69: NVB, konverteret, efter energibesparelser | G69: =G68*(1+G$47) -> 229.8598815 | H69: =H68*(1+H$47) -> 355.453425 | I69: =I68*(1+I$47) -> 0 | J69: =J68*(1+J$47) -> 0 | M69: PtX - Metanol (eSMR på biogas) | Q69: Skala | Y69: Heraf: Gas | AE69: ='Reduction Path Calc'!H87 -> 0.06 | AF69: ='Reduction Path Calc'!J87 -> 0.06 | AG69: ='Reduction Path Calc'!L87 -> 0 | AH69: ='Reduction Path Calc'!N87 -> 0 | AK69: El-forbrug (TJ) til PtX svarende til:
A70: Konverteres (%) | M70: Husdyrgødning, restpotentiale | P70: ton/år | Q70: =$J$14 -> 3355985.658 | Y70: Heraf: Brint | AE70: ='Reduction Path Calc'!H88 -> 0 | AF70: ='Reduction Path Calc'!J88 -> 0 | AG70: ='Reduction Path Calc'!L88 -> 0 | AH70: ='Reduction Path Calc'!N88 -> 0 | AK70: ="Solceller ("&ROUND(Q38,2)&" TJ/"&R38&")" -> Solceller (3,96 TJ/ha) | AO70: ha | AP70: =AP55/$Q$38 -> 0 | AQ70: =AQ55/$Q$38 -> 0 | AR70: =AR55/$Q$38 -> 0 | AS70: =AS55/$Q$38 -> 0
A71: Til indviduelle varmepumper | G71: 0.15 | H71: 0.15 | I71: 0.15 | J71: 0.15 | M71: Husdyrgødning, anvendt | P71: % | S71: ='Reduction Path Calc'!H107 -> 0 | T71: ='Reduction Path Calc'!J107 -> 0 | U71: ='Reduction Path Calc'!L107 -> 0 | V71: ='Reduction Path Calc'!N107 -> 0 | Y71: Enhedsforbrug & antal | AK71: 4,2 MW-vindmøller (landvind) | AO71: stk. | AP71: =AP55/$Q$18 -> 0 | AQ71: =AQ55/$Q$18 -> 0 | AR71: =AR55/$Q$18 -> 0 | AS71: =AS55/$Q$18 -> 0
A72: Til store fjernvarmenet | G72: 0 | H72: 0 | I72: 0 | J72: 0 | M72: Husdyrgødning, anvendt | P72: ton/år | Q72: 131000 | S72: =S71*$Q$70 -> 0 | T72: =T71*$Q$70 -> 0 | U72: =U71*'E-Tiltag'!$Q$70 -> 0 | V72: =V71*'E-Tiltag'!$Q$70 -> 0 | Y72: Enhedsforbrug - dieselbus, 2030 | AC72: GJ/køretøj | AE72: =$J13*(511.2/721.3) -> 403.2399004 | AF72: =$J13*(511.2/721.3) -> 403.2399004 | AG72: =$J13*(511.2/721.3) -> 403.2399004 | AH72: =$J13*(511.2/721.3) -> 403.2399004 | AK72: 8 MW vindmøller (havvind) | AO72: stk. | AP72: =AP55/$Q$27 -> 0 | AQ72: =AQ55/$Q$27 -> 0 | AR72: =AR55/$Q$27 -> 0 | AS72: =AS55/$Q$27 -> 0
A73: Til mellemstore fjernvarmenet | G73: 0.65 | H73: 0.65 | I73: 0.65 | J73: 0.65 | M73: Øvrige produkter | P73: ton/år | Q73: 38000 | S73: =ROUND(S72/$Q$72*$Q$73,-3) -> 0 | T73: =ROUND(T72/$Q$72*$Q$73,-3) -> 0 | U73: =ROUND(U72/'E-Tiltag'!$Q$72*'E-Tiltag'!$Q$73,-3) -> 0 | V73: =ROUND(V72/'E-Tiltag'!$Q$72*'E-Tiltag'!$Q$73,-3) -> 0 | Y73: Enhedsforbrug - dieselbus, 2030, netto | AC73: GJ/køretøj | AE73: =AE72*'WE2018'!$AD$68% -> 119.3590105 | AF73: =AF72*'WE2018'!$AD$68% -> 119.3590105 | AG73: =AG72*'WE2018'!$AD$68% -> 119.3590105 | AH73: =AH72*'WE2018'!$AD$68% -> 119.3590105 | AK73: Andel af 12,9 GW i Vesterhavet | AO73: % | AP73: =AP55/(12.9*4000*3.6) -> 0 | AQ73: =AQ55/(12.9*4000*3.6) -> 0 | AR73: =AR55/(12.9*4000*3.6) -> 0 | AS73: =AS55/(12.9*4000*3.6) -> 0
A74: Til mindre fjernvarmevarmenet | G74: 0 | H74: 0 | I74: 0 | J74: 0 | M74: Anlægsparametre mv. | Y74: Busser 2030, samt fordeling. | AD74: stk. | AE74: =ROUND(AE65*(1+G43),0) -> 1746 | AF74: =ROUND(AF65*(1+H43),0) -> 1758 | AG74: =ROUND(AG65*(1+I43),0) -> 1746 | AH74: =ROUND(AH65*(1+J43),0) -> 1758
A75: Til ny fjernvarme | G75: =1-SUM(G71:G74,G76) -> 0.2 | H75: =1-SUM(H71:H74,H76) -> 0.2 | I75: =1-SUM(I71:I74,I76) -> 0.2 | J75: =1-SUM(J71:J74,J76) -> 0.2 | M75: Biogas | P75: Nm3/time | Q75: 1141.553 | S75: =ROUND(S72/$Q$72*$Q$75,0) -> 0 | T75: =ROUND(T72/$Q$72*$Q$75,0) -> 0 | U75: =ROUND(U72/'E-Tiltag'!$Q$72*'E-Tiltag'!$Q$75,0) -> 0 | V75: =ROUND(V72/'E-Tiltag'!$Q$72*'E-Tiltag'!$Q$75,0) -> 0 | Y75: Heraf: Diesel | AD75: stk. | AE75: =AE74-SUM(AE76:AE78) -> 1135 | AF75: =AF74-SUM(AF76:AF78) -> 862 | AG75: =AG74-SUM(AG76:AG78) -> 1746 | AH75: =AH74-SUM(AH76:AH78) -> 1758
A76: Til sammenhængende fjernvarmenet | G76: 0 | H76: 0 | I76: 0 | J76: 0 | M76: El-optag (SOEC+eSMR) | P76: MW | Q76: 6.37 | S76: =ROUND(S72/$Q$72*$Q$76,1) -> 0 | T76: =ROUND(T72/$Q$72*$Q$76,1) -> 0 | U76: =ROUND(U72/'E-Tiltag'!$Q$72*'E-Tiltag'!$Q$76,1) -> 0 | V76: =ROUND(V72/'E-Tiltag'!$Q$72*'E-Tiltag'!$Q$76,1) -> 0 | Y76: Heraf: BEV | AD76: stk. | AE76: =ROUND(AE$74*AE68,0) -> 506 | AF76: 791 | AG76: 0 | AH76: 0
A77: Konverteres (TJ NVB) | M77: Metanolproduktion, eSMR out | P77: MW | Q77: 8.63 | S77: =ROUND(S72/$Q$72*$Q$77,1) -> 0 | T77: =ROUND(T72/$Q$72*$Q$77,1) -> 0 | U77: =ROUND(U72/'E-Tiltag'!$Q$72*'E-Tiltag'!$Q$77,1) -> 0 | V77: =ROUND(V72/'E-Tiltag'!$Q$72*'E-Tiltag'!$Q$77,1) -> 0 | Y77: Heraf: Gas | AD77: stk. | AE77: 105 | AF77: 105 | AG77: 0 | AH77: 0
A78: =A71 -> Til indviduelle varmepumper | G78: =G71*G$69 -> 34.47898222 | H78: =H71*H69 -> 53.31801375 | I78: =I71*I$69 -> 0 | J78: =J71*J69 -> 0 | M78: Behov for installeret el, total | P78: MW | Q78: =Q76*2 -> 12.74 | S78: =ROUND(S72/$Q$72*$Q$78,1) -> 0 | T78: =ROUND(T72/$Q$72*$Q$78,1) -> 0 | U78: =ROUND(U72/'E-Tiltag'!$Q$72*'E-Tiltag'!$Q$78,1) -> 0 | V78: =ROUND(V72/'E-Tiltag'!$Q$72*'E-Tiltag'!$Q$78,1) -> 0 | Y78: Heraf: Brint | AD78: stk. | AE78: 0 | AF78: 0 | AG78: 0 | AH78: 0
A79: Til store fjernvarmenet | G79: 0 | H79: =H72*H$69 -> 0 | I79: 0 | J79: =J72*J$69 -> 0 | M79: 150 m-vindmøller på land | P79: stk. | Q79: =ROUNDUP(Q78/2/3.5,0) -> 2 | S79: =ROUNDUP(S72/$Q$72*$Q$79,0) -> 0 | T79: =ROUNDUP(T72/$Q$72*$Q$79,0) -> 0 | U79: =ROUNDUP(U72/'E-Tiltag'!$Q$72*'E-Tiltag'!$Q$79,0) -> 0 | V79: =ROUNDUP(V72/'E-Tiltag'!$Q$72*'E-Tiltag'!$Q$79,0) -> 0 | Y79: ="Til energiregnskabet - "&Y64 -> Til energiregnskabet - Busser
A80: Til mellemstore fjernvarmenet | G80: 149.408923 | H80: =H73*H$69 -> 231.0447263 | I80: 0 | J80: =J73*J$69 -> 0 | M80: Solceller | P80: ha | Q80: 9.8 | S80: =ROUND(S72/$Q$72*$Q$80,1) -> 0 | T80: =ROUND(T72/$Q$72*$Q$80,1) -> 0 | U80: =ROUND(U72/'E-Tiltag'!$Q$72*'E-Tiltag'!$Q$80,1) -> 0 | V80: =ROUND(V72/'E-Tiltag'!$Q$72*'E-Tiltag'!$Q$80,1) -> 0 | Y80: Dieselforbrug, busser 2030 | AC80: TJ | AE80: =AE75*AE72/1000 -> 457.6772869 | AF80: =AF75*AF72/1000 -> 347.5927941 | AG80: =AG75*AG72/1000 -> 704.0568661 | AH80: =AH75*AH72/1000 -> 708.8957449
A81: Til mindre fjernvarmevarmenet | G81: 0 | H81: =H74*H$69 -> 0 | I81: 0 | J81: =J74*J$69 -> 0 | M81: ="Output - "&M69 -> Output - PtX - Metanol (eSMR på biogas) | Y81: Elforbrug, busser 2030 | AC81: TJ | AE81: =AE73/'WE2018'!$AC$71%/1000*AE76 -> 86.27951331 | AF81: =AF73/'WE2018'!$AC$71%/1000*AF76 -> 134.8756819 | AG81: =AG73/'WE2018'!$AC$71%/1000*AG76 -> 0 | AH81: =AH73/'WE2018'!$AC$71%/1000*AH76 -> 0
A82: Til ny fjernvarme | G82: 45.9719763 | H82: =H75*H$69 -> 71.090685 | I82: 0 | J82: =J75*J$69 -> 0 | M82: El-forbrug til elektrolyse mv. | P82: TJ/år | Q82: 194.918 | S82: =ROUND(S$72/$Q$72*$Q$82,1) -> 0 | T82: =ROUND(T$72/$Q$72*$Q$82,1) -> 0 | U82: =ROUND(U$72/$Q$72*$Q$82,1) -> 0 | V82: =ROUND(V$72/$Q$72*$Q$82,1) -> 0 | Y82: Gasforbrug, busser 2030 | AC82: TJ | AE82: =AE73/'WE2018'!$AD$69%/1000*AE77 -> 48.01799274 | AF82: =AF73/'WE2018'!$AD$69%/1000*AF77 -> 48.01799274 | AG82: =AG73/'WE2018'!$AD$69%/1000*AG77 -> 0 | AH82: =AH73/'WE2018'!$AD$69%/1000*AH77 -> 0
A83: Til sammenhængende fjernvarmenet | D83: =IF(1-SUM(H71:H76)<>0,1-SUM(H71:H76),"") ->  | G83: 0 | H83: =H76*H$69 -> 0 | I83: 0 | J83: =J76*J$69 -> 0 | M83: Metanol | P83: TJ/år | Q83: 264.082 | S83: =ROUND(S$72/$Q$72*$Q$83,1) -> 0 | T83: =ROUND(T$72/$Q$72*$Q$83,1) -> 0 | U83: =ROUND(U$72/$Q$72*$Q$83,1) -> 0 | V83: =ROUND(V$72/$Q$72*$Q$83,1) -> 0 | Y83: Brintforbrug, busser 2030 | AC83: TJ | AE83: =AE73/'WE2018'!$AD$70%/1000*AE78 -> 0 | AF83: =AF73/'WE2018'!$AD$70%/1000*AF78 -> 0 | AG83: =AG73/'WE2018'!$AD$70%/1000*AG78 -> 0 | AH83: =AH73/'WE2018'!$AD$70%/1000*AH78 -> 0
M84: Overskudsvarme | P84: TJ/år | Q84: 31.438 | S84: =ROUND(S$72/$Q$72*$Q$84,1) -> 0 | T84: =ROUND(T$72/$Q$72*$Q$84,1) -> 0 | U84: =ROUND(U$72/$Q$72*$Q$84,1) -> 0 | V84: =ROUND(V$72/$Q$72*$Q$84,1) -> 0
A85: Procesbehov / Industrien | Y85: Øvrig transport
A86: Gas erhverv | M86: PtX - Metanol (syntese, på overskuds-CO2) | Q86: Skala | Y86: Banetransport
A87: Reduktion i periode | G87: =-'Reduction Path Calc'!H103 -> 0 | H87: =-'Reduction Path Calc'!J103 -> 0 | I87: =-'Reduction Path Calc'!L103 -> 0 | J87: =-'Reduction Path Calc'!N103 -> 0 | M87: Overskuds-CO2 | P87: ton/år | Q87: =$J$20 -> 0 | S87: =IF(SUM(S88,S115)>1,"OBS - SUM > 100%!","") ->  | T87: =IF(SUM(T88,T115)>1,"OBS - SUM > 100%!","") ->  | U87: =IF(SUM(U88,U115)>1,"OBS - SUM > 100%!","") ->  | V87: =IF(SUM(V88,V115)>1,"OBS - SUM > 100%!","") ->  | Y87: Dieselforbrug 2020 | AB87: TJ | AE87: ='WE2018'!$AA$77+'WE2018'!$AA$78 -> 106.5 | AF87: ='WE2018'!$AA$77+'WE2018'!$AA$78 -> 106.5 | AG87: ='WE2018'!$AA$77+'WE2018'!$AA$78 -> 106.5 | AH87: ='WE2018'!$AA$77+'WE2018'!$AA$78 -> 106.5
A88: 2020 | D88: ='WE2018'!$I$21 -> 2941.7 | M88: Nyttiggjort overskuds-CO2 | P88: % | S88: ='Reduction Path Calc'!H109 -> 0 | T88: ='Reduction Path Calc'!J109 -> 0 | U88: ='Reduction Path Calc'!L109 -> 0 | V88: ='Reduction Path Calc'!N109 -> 0 | Y88: Udvikling 2020-30 | AB88: -0.0889 | AC88: TJ | AE88: =AE87*(1+$AB$88) -> 97.03215 | AF88: =AF87*(1+AB88) -> 97.03215 | AG88: =AG87*(1+'E-Tiltag'!$AB$88) -> 97.03215 | AH88: =AH87*(1+'E-Tiltag'!AB88) -> 97.03215
A89: 2030 | G89: =$D$88*(1+G87)*(1+G$47) -> 2853.449 | H89: =$D$88*(1+H87)*(1+H$47) -> 2794.615 | I89: =$D$88*(1+I87)*(1+I$47) -> 2941.7 | J89: =$D$88*(1+J87)*(1+J$47) -> 2941.7 | M89: Nyttiggjort overskuds-CO2 | P89: ton/år | Q89: 91324 | S89: =S88*$Q87 -> 0 | T89: =T88*$Q87 -> 0 | U89: =U88*$Q87 -> 0 | V89: =V88*$Q87 -> 0 | Y89: Heraf diesel | AB89: 0.2195 | AC89: TJ | AE89: =$AB$89*$AE$88 -> 21.29855692 | AF89: =AB89*$AE$88 -> 21.29855692 | AG89: ='E-Tiltag'!$AB$89*$AG$88 -> 21.29855692 | AH89: ='E-Tiltag'!AB89*$AG$88 -> 21.29855692
A90: Virkningsgrad | D90: ='WE2018'!$AD$21% -> 0.9 | M90: Brint-forbrug | P90: ton/år | Q90: 12420 | S90: =ROUND(S$89/$Q$89*$Q$90,1) -> 0 | T90: =ROUND(T$89/$Q$89*$Q$90,1) -> 0 | U90: =ROUND(U$89/$Q$89*$Q$90,1) -> 0 | V90: =ROUND(V$89/$Q$89*$Q$90,1) -> 0 | Y90: Tog, lokaltog (diesel/gas) | AC90: TJ | AE90: =AE89/AE87*'WE2018'!$F$77 -> 19.87155361 | AF90: =AF89/AF87*'WE2018'!$F$77 -> 19.87155361 | AG90: =AG89/AG87*'WE2018'!$F$77 -> 19.87155361 | AH90: =AH89/AH87*'WE2018'!$F$77 -> 19.87155361
A91: NVB, konverteret | G91: =($D$88*$D$90)-(G89*$D$90)/(1+G47) -> 0 | H91: =($D$88*$D$90)-(H89*$D$90)/(1+H47) -> 0 | I91: =($D$88*$D$90)-(I89*$D$90)/(1+I47) -> 0 | J91: =($D$88*$D$90)-(J89*$D$90)/(1+J47) -> 0 | M91: Elektrolyse-kapacitet | P91: MW | Q91: 100 | S91: =ROUND(S$89/$Q$89*$Q$91,1) -> 0 | T91: =ROUND(T$89/$Q$89*$Q$91,1) -> 0 | U91: =ROUND(U$89/$Q$89*$Q$91,1) -> 0 | V91: =ROUND(V$89/$Q$89*$Q$91,1) -> 0 | Y91: Tog, dieselelektrisk | AC91: TJ | AE91: =AE89/AE87*'WE2018'!$F$78 -> 19.87155361 | AF91: =AF89/AF87*'WE2018'!$F$78 -> 19.87155361 | AG91: =AG89/AG87*'WE2018'!$F$78 -> 19.87155361 | AH91: =AH89/AH87*'WE2018'!$F$78 -> 19.87155361
A92: NVB, konverteret, efter energibesparelser | G92: =G91*(1+G$47) -> 0 | H92: =H91*(1+H$47) -> 0 | I92: =I91*(1+I$47) -> 0 | J92: =J91*(1+J$47) -> 0 | M92: ="Output - "&M86 -> Output - PtX - Metanol (syntese, på overskuds-CO2) | Y92: Heraf el | AB92: =EBAU2030!AC78% -> 0.67 | AC92: TJ | AE92: =$AB$92*AE88 -> 65.0115405 | AF92: =AB92*AF88 -> 65.0115405 | AG92: ='E-Tiltag'!$AB$92*AG88 -> 65.0115405 | AH92: ='E-Tiltag'!AB92*AH88 -> 65.0115405
M93: El-forbrug til elektrolyse mv. | P93: TJ/år | Q93: 2494.1 | S93: =ROUND(S$89/$Q$89*$Q$93,1) -> 0 | T93: =ROUND(T$89/$Q$89*$Q$93,1) -> 0 | U93: =ROUND(U$89/$Q$89*$Q$93,1) -> 0 | V93: =ROUND(V$89/$Q$89*$Q$93,1) -> 0
A94: Konverteres (%) | G94: =$G$25 -> BAU2030 | H94: =$H$25 -> BAU2050 | I94: =$I$25 -> STI2030 | J94: =$J$25 -> STI2050 | M94: Metanol | P94: TJ/år | Q94: 1333.3 | S94: =ROUND(S$89/$Q$89*$Q$94,1) -> 0 | T94: =ROUND(T$89/$Q$89*$Q$94,1) -> 0 | U94: =ROUND(U$89/$Q$89*$Q$94,1) -> 0 | V94: =ROUND(V$89/$Q$89*$Q$94,1) -> 0 | Y94: Udvikling af brændstofforbrug
A95: Til indviduelle varmepumper | G95: =G71 -> 0.15 | H95: =H71 -> 0.15 | I95: =I71 -> 0.15 | J95: =J71 -> 0.15 | M95: Overskudsvarme | P95: TJ/år | Q95: 368.9 | S95: =ROUND(S$89/$Q$89*$Q$95,1) -> 0 | T95: =ROUND(T$89/$Q$89*$Q$95,1) -> 0 | U95: =ROUND(U$89/$Q$89*$Q$95,1) -> 0 | V95: =ROUND(V$89/$Q$89*$Q$95,1) -> 0 | Y95: Søfart | AE95: -0.0152 | AF95: -0.0152 | AG95: -0.0152 | AH95: -0.0152
A96: Til store fjernvarmenet | G96: 0 | H96: 0 | I96: 0 | J96: 0 | Y96: Luftfart | AE96: ='Reduction Path Calc'!H90 -> 0.1 | AF96: ='Reduction Path Calc'!J90 -> 0.1 | AG96: ='Reduction Path Calc'!L90 -> 0 | AH96: ='Reduction Path Calc'!N90 -> 0
A97: Til mellemstore fjernvarmenet | G97: 0.65 | H97: 0.65 | I97: 0.65 | J97: 0.65 | M97: PtX - Metanisering (på biogas) | Q97: Skala | Y97: *Se beskrivelse i baggrundsnotatet.
A98: Til mindre fjernvarmevarmenet | G98: 0 | H98: 0 | I98: 0 | J98: 0 | M98: Husdyrgødning, restpotentiale | P98: ton/år | Q98: =$J$14 -> 3355985.658
A99: Til ny fjernvarme | G99: =1-SUM(G95:G98)-G100 -> 0.2 | H99: =1-SUM(H95:H98)-H100 -> 0.2 | I99: =1-SUM(I95:I98)-I100 -> 0.2 | J99: =1-SUM(J95:J98)-J100 -> 0.2 | M99: Husdyrgødning, anvendt | P99: % | S99: ='Reduction Path Calc'!H108 -> 0 | T99: ='Reduction Path Calc'!J108 -> 0 | U99: ='Reduction Path Calc'!L108 -> 0 | V99: ='Reduction Path Calc'!N108 -> 0 | Y99: Stigning el-forbrug jf. KF22 (som % af brændstofforbrug 2020)
A100: Til sammenhængende fjernvarmenet | G100: 0 | H100: 0 | I100: 0 | J100: 0 | M100: Husdyrgødning, anvendt | P100: ton/år | Q100: 131000 | S100: =S99*$Q$70 -> 0 | T100: =T99*$Q$70 -> 0 | U100: =U99*'E-Tiltag'!$Q$70 -> 0 | V100: =V99*'E-Tiltag'!$Q$70 -> 0 | Y100: Søfart | AE100: 0.0299 | AF100: 0.0299 | AG100: 0.0299 | AH100: 0.0299
A101: Konverteres (TJ NVB) | M101: Øvrige produkter | P101: ton/år | Q101: 38000 | S101: =ROUND(S100/$Q$72*$Q$73,-3) -> 0 | T101: =ROUND(T100/$Q$72*$Q$73,-3) -> 0 | U101: =ROUND(U100/'E-Tiltag'!$Q$72*'E-Tiltag'!$Q$73,-3) -> 0 | V101: =ROUND(V100/'E-Tiltag'!$Q$72*'E-Tiltag'!$Q$73,-3) -> 0
A102: =A95 -> Til indviduelle varmepumper | G102: =G95*G$92 -> 0 | H102: 0 | I102: 0 | J102: 0 | M102: Anlægsparametre mv.
A103: Til store fjernvarmenet | G103: 0 | H103: 0 | I103: 0 | J103: 0 | M103: Biogas | P103: Nm3/time | Q103: 1141.553 | S103: =ROUND(S100/$Q$72*$Q$75,0) -> 0 | T103: =ROUND(T100/$Q$72*$Q$75,0) -> 0 | U103: =ROUND(U100/'E-Tiltag'!$Q$72*'E-Tiltag'!$Q$75,0) -> 0 | V103: =ROUND(V100/'E-Tiltag'!$Q$72*'E-Tiltag'!$Q$75,0) -> 0
A104: Til mellemstore fjernvarmenet | G104: 0 | H104: 0 | I104: 0 | J104: 0 | M104: El-optag (elektrolyse) | P104: MW | Q104: 6.71 | S104: =ROUND(S100/$Q$72*$Q$76,1) -> 0 | T104: =ROUND(T100/$Q$72*$Q$76,1) -> 0 | U104: =ROUND(U100/'E-Tiltag'!$Q$72*'E-Tiltag'!$Q$76,1) -> 0 | V104: =ROUND(V100/'E-Tiltag'!$Q$72*'E-Tiltag'!$Q$76,1) -> 0
A105: Til mindre fjernvarmevarmenet | G105: 0 | H105: 0 | I105: 0 | J105: 0 | M105: Behov for installeret el, total | P105: MW | Q105: =Q104*2 -> 13.42 | S105: =ROUND(S100/$Q$72*$Q$78,1) -> 0 | T105: =ROUND(T100/$Q$72*$Q$78,1) -> 0 | U105: =ROUND(U100/'E-Tiltag'!$Q$72*'E-Tiltag'!$Q$78,1) -> 0 | V105: =ROUND(V100/'E-Tiltag'!$Q$72*'E-Tiltag'!$Q$78,1) -> 0
A106: Til ny fjernvarme | G106: 0 | H106: 0 | I106: 0 | J106: 0 | M106: 150 m-vindmøller på land | P106: stk. | Q106: =ROUNDUP(Q105/2/3.5,0) -> 2 | S106: =ROUNDUP(S100/$Q$72*$Q$79,0) -> 0 | T106: =ROUNDUP(T100/$Q$72*$Q$79,0) -> 0 | U106: =ROUNDUP(U100/'E-Tiltag'!$Q$72*'E-Tiltag'!$Q$79,0) -> 0 | V106: =ROUNDUP(V100/'E-Tiltag'!$Q$72*'E-Tiltag'!$Q$79,0) -> 0
A107: Til sammenhængende fjernvarmenet | G107: 0 | H107: 0 | I107: 0 | J107: 0 | M107: Solceller | P107: ha | Q107: 9.8 | S107: =ROUND(S100/$Q$72*$Q$80,1) -> 0 | T107: =ROUND(T100/$Q$72*$Q$80,1) -> 0 | U107: =ROUND(U100/'E-Tiltag'!$Q$72*'E-Tiltag'!$Q$80,1) -> 0 | V107: =ROUND(V100/'E-Tiltag'!$Q$72*'E-Tiltag'!$Q$80,1) -> 0
M108: ="Output - "&M97 -> Output - PtX - Metanisering (på biogas)
A109: Øvrige brændsler, erhverv | D109: TJ, 2020 | E109: Virkningsgrad | M109: El-forbrug til elektrolyse mv. | P109: TJ/år | Q109: 246.05 | S109: =ROUND(S$100/$Q$100*$Q$109,1) -> 0 | T109: =ROUND(T$100/$Q$100*$Q$109,1) -> 0 | U109: =ROUND(U$100/$Q$100*$Q$109,1) -> 0 | V109: =ROUND(V$100/$Q$100*$Q$109,1) -> 0
A110: Brændselsolie | D110: ='WE2018'!$E$20 -> 104.8 | E110: ='WE2018'!$AD$20% -> 0.9 | M110: Biometan | P110: TJ/år | Q110: 328.8 | S110: =ROUND(S$100/$Q$100*$Q$110,1) -> 0 | T110: =ROUND(T$100/$Q$100*$Q$110,1) -> 0 | U110: =ROUND(U$100/$Q$100*$Q$110,1) -> 0 | V110: =ROUND(V$100/$Q$100*$Q$110,1) -> 0
A111: Øvrige fossile | D111: =SUM('WE2018'!$B$22:$I$22) -> 558.1 | E111: ='WE2018'!$AD$22% -> 0.9 | M111: Overskudsvarme | P111: TJ/år | Q111: 72.58 | S111: =ROUND(S$100/$Q$100*$Q$111,1) -> 0 | T111: =ROUND(T$100/$Q$100*$Q$111,1) -> 0 | U111: =ROUND(U$100/$Q$100*$Q$111,1) -> 0 | V111: =ROUND(V$100/$Q$100*$Q$111,1) -> 0
A112: Konvertering af brændelsolie (%) | G112: =-'Reduction Path Calc'!H104 -> 0 | H112: =-'Reduction Path Calc'!J104 -> 0 | I112: =-'Reduction Path Calc'!L104 -> 0 | J112: =-'Reduction Path Calc'!N104 -> 0
A113: Konvertering af øvrige fossile brændsler (%) | G113: =-'Reduction Path Calc'!H105 -> 0 | H113: =-'Reduction Path Calc'!J105 -> 0 | I113: =-'Reduction Path Calc'!L105 -> 0 | J113: =-'Reduction Path Calc'!N105 -> 0 | M113: PtX - Metanisering (på overskuds-CO2) | Q113: Skala
A114: Konvertering af brændelsolie (TJ) | G114: =D110*E110*G112 -> 0 | H114: =$D$110*$E$110*H112 -> 0 | I114: =D110*E110*I112 -> 0 | J114: =D110*E110*J112 -> 0 | M114: Overskuds-CO2 | P114: ton/år | Q114: =$J$20 -> 0
A115: Konvertering af øvrige fossile brændsler (TJ) | G115: =D111*E111*G113 -> 0 | H115: =$D$111*$E$111*H113 -> 0 | I115: =D111*E111*I113 -> 0 | J115: =D111*E111*J113 -> 0 | M115: Nyttiggjort overskuds-CO2 | P115: % | S115: ='Reduction Path Calc'!H110 -> 0 | T115: ='Reduction Path Calc'!J110 -> 0 | U115: ='Reduction Path Calc'!L110 -> 0 | V115: ='Reduction Path Calc'!N110 -> 0
A116: Konverteres (%) | G116: =IF(SUM(G117:G119)<>1,"OBS - SUMMERER IKKE TIL 100%!","") ->  | H116: =IF(SUM(H117:H119)<>1,"OBS - SUMMERER IKKE TIL 100%!","") ->  | I116: =IF(SUM(I117:I119)<>1,"OBS - SUMMERER IKKE TIL 100%!","") ->  | J116: =IF(SUM(J117:J119)<>1,"OBS - SUMMERER IKKE TIL 100%!","") ->  | M116: Nyttiggjort overskuds-CO2 | P116: ton/år | Q116: 67275 | S116: =S115*$Q114 -> 0 | T116: =T115*$Q114 -> 0 | U116: =U115*$Q114 -> 0 | V116: =V115*$Q114 -> 0
A117: Til el/varmepumper | G117: 0.5 | H117: 0.3 | I117: 0.3 | J117: 0.3 | M117: Brint-forbrug | P117: ton/år | Q117: 12420 | S117: =ROUND(S116/$Q$116*$Q$117,0) -> 0 | T117: =ROUND(T116/$Q$116*$Q$117,0) -> 0 | U117: =ROUND(U116/$Q$116*$Q$117,0) -> 0 | V117: =ROUND(V116/$Q$116*$Q$117,0) -> 0
A118: Til biomasse | G118: 0.25 | H118: 0.25 | I118: 0.25 | J118: 0.25 | M118: Elektrolyse-kapacitet | P118: MW | Q118: 100 | S118: =ROUND(S116/$Q$116*$Q$118,0) -> 0 | T118: =ROUND(T116/$Q$116*$Q$118,0) -> 0 | U118: =ROUND(U116/$Q$116*$Q$118,0) -> 0 | V118: =ROUND(V116/$Q$116*$Q$118,0) -> 0
A119: Til gas | G119: 0.25 | H119: =1-H117-H118 -> 0.45 | I119: 0.45 | J119: 0.45 | M119: ="Output - "&M113 -> Output - PtX - Metanisering (på overskuds-CO2)
A120: SCOP, HT varmepumper industri | G120: 2.5 | H120: 2.5 | I120: 2.5 | J120: 2.5 | M120: El-forbrug til elektrolyse mv. | P120: TJ/år | Q120: 2489.5 | S120: =ROUND(S$116/$Q$116*$Q$120,1) -> 0 | T120: =ROUND(T$116/$Q$116*$Q$120,1) -> 0 | U120: =ROUND(U$116/$Q$116*$Q$120,1) -> 0 | V120: =ROUND(V$116/$Q$116*$Q$120,1) -> 0
A121: Stigning i el-forbrug | G121: =SUM(G$114:G$115)*G117/G120 -> 0 | H121: =SUM(H$114:H$115)*H117/H120 -> 0 | I121: =SUM(I$114:I$115)*I117/I120 -> 0 | J121: =SUM(J$114:J$115)*J117/J120 -> 0 | M121: Biometan | P121: TJ/år | Q121: 1238.3 | S121: =ROUND(S$116/$Q$116*$Q$121,1) -> 0 | T121: =ROUND(T$116/$Q$116*$Q$121,1) -> 0 | U121: =ROUND(U$116/$Q$116*$Q$121,1) -> 0 | V121: =ROUND(V$116/$Q$116*$Q$121,1) -> 0
A122: Stigning i flis-forbrug | G122: =SUM(G$114:G$115)*G118/$E111 -> 0 | H122: =SUM(H$114:H$115)*H118/$E111 -> 0 | I122: =SUM(I$114:I$115)*I118/$E111 -> 0 | J122: =SUM(J$114:J$115)*J118/$E111 -> 0 | M122: Overskudsvarme | P122: TJ/år | Q122: 745.2 | S122: =ROUND(S$116/$Q$116*$Q$122,1) -> 0 | T122: =ROUND(T$116/$Q$116*$Q$122,1) -> 0 | U122: =ROUND(U$116/$Q$116*$Q$122,1) -> 0 | V122: =ROUND(V$116/$Q$116*$Q$122,1) -> 0
A123: Stigning i gas-forbrug | G123: =SUM(G$114:G$115)*G119/$D90 -> 0 | H123: =SUM(H$114:H$115)*H119/$D90 -> 0 | I123: =SUM(I$114:I$115)*I119/$D90 -> 0 | J123: =SUM(J$114:J$115)*J119/$D90 -> 0
M124: PtX - Brint til øvrige formål | Q124: Skala
A125: Samlet udvidelse fjernvarme, an forbruger (TJ) | G125: =SUM(G79:G83)+SUM(G103:G107) -> 195.3808993 | H125: =SUM(H79:H83)+SUM(H103:H107) -> 302.1354113 | I125: =SUM(I79:I83)+SUM(I103:I107) -> 0 | J125: =SUM(J79:J83)+SUM(J103:J107) -> 0 | M125: Elektrolyse-kapacitet | P125: MW | Q125: 100 | S125: 0 | T125: 0 | U125: 0 | V125: 0
M126: Fuldlasttimer | P126: FLH | Q126: 5500 | S126: =$Q126 -> 5500 | T126: =$Q126 -> 5500 | U126: =$Q126 -> 5500 | V126: =$Q126 -> 5500
A127: Varmeproduktion ab værk (TJ) | M127: Årlig produktion | P127: TJ | Q127: =1080*Q126/5000 -> 1188 | S127: =S$125/$Q$125*$Q127 -> 0 | T127: 0 | U127: 0 | V127: 0
F128: 2020 (EPT) | G128: =$G$25 -> BAU2030 | H128: =$H$25 -> BAU2050 | I128: =$I$25 -> STI2030 | J128: =$J$25 -> STI2050 | M128: El-forbrug til alkalisk elektrolyse | P128: TJ | Q128: =1810.1*Q126/5000 -> 1991.11 | S128: 0 | T128: 0 | U128: 0 | V128: 0
A129: Store fjernvarmenet (>500TJ), 4 stk. | F129: 0 | G129: =$F129*(1+G$47)+(G79+G103)/(1-$J$19) -> 0 | H129: =$F129*(1+H$47)+(H79+H103)/(1-$J$19) -> 0 | I129: =$F129*(1+I$47)+(I79+I103)/(1-$J$19) -> 0 | J129: =$F129*(1+J$47)+(J79+J103)/(1-$J$19) -> 0 | M129: Overskudsvarme fra elektrolyse | P129: TJ | Q129: =Q128*15% -> 298.6665 | S129: 0 | T129: 0 | U129: 0 | V129: 0
A130: Mellemstore fjernvarmenet (150-500 TJ), 15 stk. | F130: =-'WE2018'!AI33-'WE2018'!AI36-'WE2018'!AI43-'WE2018'!AI51-'WE2018'!AI61 -> 4818.068874 | G130: =$F130*(1+G$47)+(G80+G104)/(1-$J$19)+IF(G32<0,G32,0)/(1-$J$19) -> 4857.867132 | H130: =$F130*(1+H$47)+(H80+H104)/(1-$J$19)+IF(H32<0,H32,0)/(1-$J$19) -> 4862.227788 | I130: =$F130*(1+I$47)+(I80+I104)/(1-$J$19)+IF(I32<0,I32,0)/(1-$J$19) -> 4818.068874 | J130: =$F130*(1+J$47)+(J80+J104)/(1-$J$19)+IF(J32<0,J32,0)/(1-$J$19) -> 4818.068874
A131: Mindre fjernvarmenet, 83 stk. | F131: 0 | G131: =$F131*(1+G$47)+(G81+G105)/(1-$J$19) -> 0 | H131: =$F131*(1+H$47)+(H81+H105)/(1-$J$19) -> 0 | I131: =$F131*(1+I$47)+(I81+I105)/(1-$J$19) -> 0 | J131: =$F131*(1+J$47)+(J81+J105)/(1-$J$19) -> 0
A132: Ny fjernvarme | G132: =(G82+G106)/(1-$J$19)+IF(G32>0,G32,0)/(1-$J$19) -> 14289.67917 | H132: =(H82+H106)/(1-$J$19)+IF(H32>0,H32,0)/(1-$J$19) -> 14320.67057 | I132: =(I82+I106)/(1-$J$19)+IF(I32>0,I32,0)/(1-$J$19) -> 14232.95907 | J132: =(J82+J106)/(1-$J$19)+IF(J32>0,J32,0)/(1-$J$19) -> 14232.95907
A133: Sammenhængende fjernvarmenet | F133: 0 | G133: =$F133*(1+G$47)+G83+G107 -> 0 | H133: =$F133*(1+H$47)+H83+H107 -> 0 | I133: =$F133*(1+I$47)+I83+I107 -> 0 | J133: =$F133*(1+J$47)+J83+J107 -> 0
A135: Øvrige forudsætninger fjernvarme | F135: 2020 | G135: =$G$25 -> BAU2030 | H135: =$H$25 -> BAU2050 | I135: =$I$25 -> STI2030 | J135: =$J$25 -> STI2050
A136: Virkninsgrad: Varmepumper | E136: % | F136: ='WE2018'!AE39 -> 393.6983806 | G136: 300 | H136: 333 | I136: 333 | J136: 333
A137: Virkningsgrad: Varmepumper, overskudsvarme | E137: % | F137: 0 | G137: 600 | H137: 600 | I137: 600 | J137: 600
A138: Virkningsgrad: Biomasse- & affaldskedler | E138: % | F138: =(('WE2018'!AA35+'WE2018'!AA38+'WE2018'!AA45)/('WE2018'!AI35+'WE2018'!AI38+'WE2018'!AI45)*100) -> 100.9151249 | G138: 102 | H138: 102 | I138: 102 | J138: 102
A139: Virkningsgrad: Gaskedler | E139: % | F139: =(('WE2018'!AA35+'WE2018'!AA38+'WE2018'!AA45)/('WE2018'!AI35+'WE2018'!AI38+'WE2018'!AI45)*100) -> 100.9151249 | G139: 107 | H139: 107 | I139: 107 | J139: 107
A140: Affald: Ikke-bionedbrydelig fraktion | E140: % | F140: =IFERROR('WE2018'!Z34/('WE2018'!X34+'WE2018'!Z34),0) -> 0.55 | G140: 0.26 | H140: 0.26 | I140: 0.26 | J140: 0.26
A144: Sammensætning Fjernvarme 2030 | E144: Varmepumper | F144: Varmepumper, overskudsvarme | G144: Elkedler | H144: Biomassekedler (inkl. HPA) | I144: Affaldskedler (husholdningsaffald mv.) | J144: Solvarme | K144: Ledningsgas-KV | L144: Ledningsgas-kedler | M144: Overskudsvarme | N144: Geotermi | R144: Varmeproduktion ab værk | S144: Varmepumper | T144: Varmepumper, overskudsvarme | U144: Elkedler | V144: Biomassekedler (inkl. HPA) | W144: Affaldskedler (husholdningsaffald mv.) | X144: Solvarme | Y144: Ledningsgas-KV | Z144: Ledningsgas-kedler | AA144: Overskudsvarme | AB144: Andet I (OBS IKKE integreret i regnskabet)
A145: =A129 -> Store fjernvarmenet (>500TJ), 4 stk. | D145: =G129 -> 0 | O145: =SUM(E145:N145) -> 0 | R145: =SUM(D145:D149) -> 19147.5463 | S145: =SUMPRODUCT($D145:$D149,E145:E149) ->  | T145: =SUMPRODUCT($D145:$D149,F145:F149) -> 1214.466783 | U145: =SUMPRODUCT($D145:$D149,G145:G149) -> 1914.75463 | V145: =SUMPRODUCT($D145:$D149,H145:H149) -> 242.8933566 | W145: =SUMPRODUCT($D145:$D149,I145:I149) -> 1457.36014 | X145: ='WE2018'!$O$41+'WE2018'!$O$48 ->  | Y145: =SUMPRODUCT($D145:$D149,K145:K149) -> 242.8933566 | Z145: =SUMPRODUCT($D145:$D149,L145:L149) -> 714.4839586 | AA145: =SUMPRODUCT($D145:$D149,M145:M149) -> 242.8933566 | AB145: =SUMPRODUCT($D145:$D149,N145:N149) -> 194.3146853 | AD145: VP | AE145: =T145+S145 -> 
A146: =A130 -> Mellemstore fjernvarmenet (150-500 TJ), 15 stk. | D146: =G130 -> 4857.867132 | E146: =1-SUM(F146:N146) ->  | F146: 0.25 | G146: 0.1 | H146: 0.05 | I146: 0.3 | J146: =X145/R145 ->  | K146: 0.05 | M146: 0.05 | N146: 0.04 | O146: =SUM(E146:N146) ->  | AD146: Kedler | AE146: =V145+W145+Z145 -> 2414.737455
A147: =A131 -> Mindre fjernvarmenet, 83 stk. | D147: =G131 -> 0 | O147: =SUM(E147:N147) -> 0 | R147: Kedler
A148: =A132 -> Ny fjernvarme | D148: =G132 -> 14289.67917 | E148: 0.8 | G148: 0.1 | J148: 0.05 | L148: 0.05 | O148: =SUM(E148:N148) -> 1 | R148: Brændsler | S148: =(SUMPRODUCT(D145:D149,H145:H149)+SUMPRODUCT(D145:D149,I145:I149))/$G$138%+SUMPRODUCT(D145:D149,L145:L149)/$G$139% -> 2334.65721
A149: =$A$133 -> Sammenhængende fjernvarmenet | D149: =G133 -> 0 | O149: =SUM(E149:N149) -> 0 | R149: VV-vægtet | S149: =((V145+W145+Z145)/S148)*100 -> 103.4300644
A153: Sammensætning Fjernvarme 2040 | E153: Varmepumper | F153: Varmepumper, overskudsvarme | G153: Elkedler | H153: Biomassekedler (inkl. HPA) | I153: Affaldskedler (husholdningsaffald mv.) | J153: Solvarme | K153: Ledningsgas-KV | L153: Ledningsgas-kedler | M153: Overskudsvarme | N153: Geotermi | R153: Varmeproduktion ab værk | S153: Varmepumper | T153: Varmepumper, overskudsvarme | U153: Elkedler | V153: Biomassekedler (inkl. HPA) | W153: Affaldskedler (husholdningsaffald mv.) | X153: Solvarme | Y153: Ledningsgas-KV | Z153: Ledningsgas-kedler | AA153: Overskudsvarme | AB153: Andet I (OBS IKKE integreret i regnskabet)
A154: =$A$129 -> Store fjernvarmenet (>500TJ), 4 stk. | D154: =H129 -> 0 | O154: =SUM(E154:N154) -> 0 | R154: =SUM(D154:D158) -> 19182.89835 | S154: =SUMPRODUCT($D154:$D158,E154:E158) ->  | T154: =SUMPRODUCT($D154:$D158,F154:F158) -> 1215.556947 | U154: =SUMPRODUCT($D154:$D158,G154:G158) -> 1918.289835 | V154: =SUMPRODUCT($D154:$D158,H154:H158) -> 243.1113894 | W154: =SUMPRODUCT($D154:$D158,I154:I158) -> 1458.668336 | X154: ='WE2018'!$O$41+'WE2018'!$O$48 ->  | Y154: =SUMPRODUCT($D154:$D158,K154:K158) -> 243.1113894 | Z154: =SUMPRODUCT($D154:$D158,L154:L158) -> 716.0335283 | AA154: =SUMPRODUCT($D154:$D158,M154:M158) -> 243.1113894 | AB154: =SUMPRODUCT($D154:$D158,N154:N158) -> 194.4891115 | AE154: VP | AF154: =T154+S154 -> 
A155: =$A$130 -> Mellemstore fjernvarmenet (150-500 TJ), 15 stk. | D155: =H130 -> 4862.227788 | E155: =1-SUM(F155:N155) ->  | F155: 0.25 | G155: 0.1 | H155: 0.05 | I155: 0.3 | J155: =X154/R154 ->  | K155: 0.05 | M155: 0.05 | N155: 0.04 | O155: =SUM(E155:N155) ->  | AE155: Kedler | AF155: =V154+W154+Z154 -> 2417.813254
A156: =$A$131 -> Mindre fjernvarmenet, 83 stk. | D156: =H131 -> 0 | O156: =SUM(E156:N156) -> 0 | R156: Kedler
A157: =$A$132 -> Ny fjernvarme | D157: =H132 -> 14320.67057 | E157: 0.8 | G157: 0.1 | J157: 0.05 | L157: 0.05 | O157: =SUM(E157:N157) -> 1 | R157: Brændsler | S157: =(SUMPRODUCT(D154:D158,H154:H158)+SUMPRODUCT(D154:D158,I154:I158))/$H$138%+SUMPRODUCT(D154:D158,L154:L158)/$H$139% -> 2337.601709
A158: =$A$133 -> Sammenhængende fjernvarmenet | D158: =H133 -> 0 | O158: =SUM(E158:N158) -> 0 | R158: VV-vægtet | S158: =((V154+W154+Z154)/S157)*100 -> 103.4313606
A162: Sammensætning Fjernvarme 2030 | E162: Varmepumper | F162: Varmepumper, overskudsvarme | G162: Elkedler | H162: Biomassekedler (inkl. HPA) | I162: Affaldskedler (husholdningsaffald mv.) | J162: Solvarme | K162: Ledningsgas-KV | L162: Ledningsgas-kedler | M162: Overskudsvarme | N162: Geotermi | R162: Varmeproduktion ab værk | S162: Varmepumper | T162: Varmepumper, overskudsvarme | U162: Elkedler | V162: Biomassekedler (inkl. HPA) | W162: Affaldskedler (husholdningsaffald mv.) | X162: Solvarme | Y162: Ledningsgas-KV | Z162: Ledningsgas-kedler | AA162: Overskudsvarme | AB162: Andet I (OBS IKKE integreret i regnskabet)
A163: =$A$129 -> Store fjernvarmenet (>500TJ), 4 stk. | D163: =I129 -> 0 | O163: =SUM(E163:N163) -> 0 | R163: =SUM(D163:D167) -> 19051.02795 | S163: =SUMPRODUCT($D163:$D167,E163:E167) ->  | T163: =SUMPRODUCT($D163:$D167,F163:F167) -> 1204.517219 | U163: =SUMPRODUCT($D163:$D167,G163:G167) -> 1905.102795 | V163: =SUMPRODUCT($D163:$D167,H163:H167) -> 240.9034437 | W163: =SUMPRODUCT($D163:$D167,I163:I167) -> 1445.420662 | X163: ='WE2018'!$O$41+'WE2018'!$O$48 ->  | Y163: =SUMPRODUCT($D163:$D167,K163:K167) -> 240.9034437 | Z163: =SUMPRODUCT($D163:$D167,L163:L167) -> 711.6479536 | AA163: =SUMPRODUCT($D163:$D167,M163:M167) -> 240.9034437 | AB163: =SUMPRODUCT($D163:$D167,N163:N167) -> 192.722755 | AE163: VP | AF163: =T163+S163 -> 
A164: =$A$130 -> Mellemstore fjernvarmenet (150-500 TJ), 15 stk. | D164: =I130 -> 4818.068874 | E164: =1-SUM(F164:N164) ->  | F164: 0.25 | G164: 0.1 | H164: 0.05 | I164: 0.3 | J164: =X163/R163 ->  | K164: 0.05 | M164: 0.05 | N164: 0.04 | O164: =SUM(E164:N164) ->  | AE164: Kedler | AF164: =V163+W163+Z163 -> 2397.97206
A165: =$A$131 -> Mindre fjernvarmenet, 83 stk. | D165: =I131 -> 0 | O165: =SUM(E165:N165) -> 0 | R165: Kedler
A166: =$A$132 -> Ny fjernvarme | D166: =I132 -> 14232.95907 | E166: 0.8 | G166: 0.1 | J166: 0.05 | L166: 0.05 | O166: =SUM(E166:N166) -> 1 | R166: Brændsler | S166: =(SUMPRODUCT(D163:D167,H163:H167)+SUMPRODUCT(D163:D167,I163:I167))/$I$138%+SUMPRODUCT(D163:D167,L163:L167)/$I$139% -> 2318.350473
A167: =$A$133 -> Sammenhængende fjernvarmenet | D167: =I133 -> 0 | O167: =SUM(E167:N167) -> 0 | R167: VV-vægtet | S167: =((V163+W163+Z163)/S166)*100 -> 103.4344068
A171: Sammensætning Fjernvarme 2040 | E171: Varmepumper | F171: Varmepumper, overskudsvarme | G171: Elkedler | H171: Biomassekedler (inkl. HPA) | I171: Affaldskedler (husholdningsaffald mv.) | J171: Solvarme | K171: Ledningsgas-KV | L171: Ledningsgas-kedler | M171: Overskudsvarme | N171: Geotermi | R171: Varmeproduktion ab værk | S171: Varmepumper | T171: Varmepumper, overskudsvarme | U171: Elkedler | V171: Biomassekedler (inkl. HPA) | W171: Affaldskedler (husholdningsaffald mv.) | X171: Solvarme | Y171: Ledningsgas-KV | Z171: Ledningsgas-kedler | AA171: Overskudsvarme | AB171: Andet I (OBS IKKE integreret i regnskabet)
A172: =$A$129 -> Store fjernvarmenet (>500TJ), 4 stk. | D172: =J129 -> 0 | O172: =SUM(E172:N172) -> 0 | R172: =SUM(D172:D176) -> 19051.02795 | S172: =SUMPRODUCT($D172:$D176,E172:E176) ->  | T172: =SUMPRODUCT($D172:$D176,F172:F176) -> 1204.517219 | U172: =SUMPRODUCT($D172:$D176,G172:G176) -> 1905.102795 | V172: =SUMPRODUCT($D172:$D176,H172:H176) -> 240.9034437 | W172: =SUMPRODUCT($D172:$D176,I172:I176) -> 1445.420662 | X172: ='WE2018'!$O$41+'WE2018'!$O$48 ->  | Y172: =SUMPRODUCT($D172:$D176,K172:K176) -> 240.9034437 | Z172: =SUMPRODUCT($D172:$D176,L172:L176) -> 711.6479536 | AA172: =SUMPRODUCT($D172:$D176,M172:M176) -> 240.9034437 | AB172: =SUMPRODUCT($D172:$D176,N172:N176) -> 192.722755 | AE172: VP | AF172: =T172+S172 -> 
A173: =$A$130 -> Mellemstore fjernvarmenet (150-500 TJ), 15 stk. | D173: =J130 -> 4818.068874 | E173: =1-SUM(F173:N173) ->  | F173: 0.25 | G173: 0.1 | H173: 0.05 | I173: 0.3 | J173: =X172/R172 ->  | K173: 0.05 | M173: 0.05 | N173: 0.04 | O173: =SUM(E173:N173) ->  | AE173: Kedler | AF173: =V172+W172+Z172 -> 2397.97206
A174: =$A$131 -> Mindre fjernvarmenet, 83 stk. | D174: =J131 -> 0 | O174: =SUM(E174:N174) -> 0 | R174: Kedler
A175: =$A$132 -> Ny fjernvarme | D175: =J132 -> 14232.95907 | E175: 0.8 | G175: 0.1 | J175: 0.05 | L175: 0.05 | O175: =SUM(E175:N175) -> 1 | R175: Brændsler | S175: =(SUMPRODUCT(D172:D176,H172:H176)+SUMPRODUCT(D172:D176,I172:I176))/$J$138%+SUMPRODUCT(D172:D176,L172:L176)/$J$139% -> 2318.350473
A176: =$A$133 -> Sammenhængende fjernvarmenet | D176: =J133 -> 0 | O176: =SUM(E176:N176) -> 0 | R176: VV-vægtet | S176: =((V172+W172+Z172)/S175)*100 -> 103.4344068

Sheet BAU tiltag (hidden)
A1: Scenarieberegninger 2030 (BAU)
A2: Til index
A4: Varmeforsyningen | J4: Transport* | Q4: Vindmøller | X4: Dyrehold
A5: Gas i kollektiv varmeforsyning | D5: -1 | F5: Ab værk | G5: -4% | J5: Personbiler, udvikling af forbrug 2019-30 | Q5: El produktion fra vindmøller 2019 | U5: TJ | V5: ='WE2018'!$M$24 -> 8841.3 | X5: Reduktion af Mink 2019-2030
A6: 2019 | E6: =SUM('WE2018'!$I$37,'WE2018'!$I$57) -> 492.67 | J6: Person-/varebiler, mm., benzin | O6: -0.0817 | Q6: El produktion fra vindmøller >30 år 2030 | U6: TJ | V6: 162.1 | X6: Antal Mink 2019 | AB6: 4232
A7: 2030 | E7: =E6*(1+D5) -> 0 | J7: Person-/varebiler, mm., diesel | O7: -0.1354 | Q7: Elproduktion fra vindmøller 2030 | U7: TJ | V7: =V5 -> 8841.3 | X7: Antal Mink 2030 | AB7: 0
A8: gns Virkningsgrad | D8: =IFERROR(SUMPRODUCT('WE2018'!$I$37:$I$51,'WE2018'!$AE$37:$AE$51)/SUM('WE2018'!$I$37:$I$51),0) -> 73.65743237 | F8: =(E6-E7)*D8% -> 362.8880721 | G8: =F8*(1+G$95) -> 362.8880721 | J8: Personbil, el/"grøn" - SE SÆRSKILT OPGØRELSE | Q8: Se beregning fra stamdataregister | X8: Emissions reduktion | AA8: ton CO2-ækv. | AB8: 376.9303506
A9: til VP | F9: =70%*F8 -> 254.0216504 | G9: =F9*(1+G5) -> 243.8607844 | J9: Lastbiler (total) | O9: -0.0708
A10: til Sol | F10: =30%*F8 -> 108.8664216 | G10: =F10*(1+G5) -> 104.5117648 | J10: Busser (total) | O10: -0.1728 | X10: Arealanvendelse
J11: Søfart | O11: -0.02409638554 | X11: Omlægning af kulstofrig drænet landbrugsjord 2019-2030
A12: Olie individuel | C12: -0.76 | F12: NVB | G12: =G5 -> -4% | J12: Luftfart | O12: 0.1 | X12: Antal ha udtaget i 2030 | AA12: 0.08 | AC12: =('Reduction Path Calc'!F7+'Reduction Path Calc'!F8)*'BAU tiltag'!AA12 -> 98.4525
A13: 2019 | E13: ='WE2018'!E14 -> 559.8 | J13: *Se beskrivelse i baggrundsnotatet. | X13: Reduktion i emission 2030 | AB13: ton CO2-ækv. | AC13: ='Reduction Path Calc'!P7+'Reduction Path Calc'!P8 -> 3499.00185
A14: 2030 | E14: =E13*(1+C12) -> 134.352
A15: Virkningsgrad | D15: ='WE2018'!$AE$14 -> 80 | F15: =(E13-E14)*D15% -> 340.3584 | G15: =F15*(1+G$95) -> 340.3584
A16: 75 % til el (varmepumpe) | F16: =F15*75% -> 255.2688 | G16: =F16*(1+G12) -> 245.058048 | J16: Bio-andele, 2030 | X16: Affaldsdeponi
A17: 25 % til træpiller | F17: =F15*25% -> 85.0896 | G17: =F17*(1+G12) -> 81.686016 | J17: Benzin | O17: 0 | X17: Reduktion i udledning fra affaldsdeponi 2019-2030
J18: Diesel | O18: 0 | X18: Udledning i forbindelse med affaldsdeponi 2019 | AC18: ='Waste and wastewater W2018'!G12+'Waste and wastewater W2018'!G13 -> 
A19: Gas individuel | C19: -0.79 | F19: NVB | G19: =G12 -> -4% | X19: 25 % reduktion, 2030 | AC19: =AC18*25% -> 
A20: 2019 | E20: ='WE2018'!I15 -> 489.1 | J20: Person og varebiler - el | X20: Reduktion af emission fra affaldsdeponi 2030 | AC20: =AC19*'Reduction Path Calc'!D44 -> 
A21: 2030 | E21: =E20*(1+C19) -> 102.711 | J21: Antal el-person og varebiler, 2030 Landsplan: | O21: 819000
A22: Virkningsgrad | D22: ='WE2018'!$AE$15 -> 85 | F22: =(E20-E21)*D22% -> 328.43065 | G22: =F22*(1+G$95) -> 328.43065 | J22: Enhedsforbrug - elbil, 2030 | N22: GJ/køretøj | O22: 8.669108669
A23: 75 % til el (varmepumpe) | F23: =F22*75% -> 246.3229875 | G23: =F23*(1+G$19) -> 236.470068 | J23: Enhedsforbrug - fossilbil, 2019 | N23: GJ/køretøj | O23: 44.83
A24: 25 % til træpiller | F24: =F22*25% -> 82.1076625 | G24: =F24*(1+G19) -> 78.823356 | J24: Person- og varebiler 2030, landsplan | N24: stk. | O24: 3718300 | X24: Kommunespecifikke tiltag
J25: Person og varebiler 2019, kommune | N25: stk. | O25: =MROUND(('WE2018'!$H$62+'WE2018'!$F$63)*1000/'BAU tiltag'!O23,1) -> 99745
J26: El-person og varebiler 2030, kommune | N26: stk. | O26: =MROUND(O25/$O$24*O21,1) -> 21970 | X26: Befolkningsudvikling | AB26: 48799 | AC26: personer
J27: Elforbrug, elbiler 2030 | N27: TJ | O27: =O26*O22/1000 -> 190.4603175 | X27: - Udvikling varmeforbrug (varmepumpe) | AB27: =(AB26-'WE2018'!$D$1)/2.2*(5.2*0.0036) -> -1315.726691 | AC27: TJ
X28: - Udvikling klassisk el-forbrug | AB28: ='WE2018'!$AL$8/'WE2018'!$D$1*(AB26-'WE2018'!$D$1) -> -916.8761472 | AC28: TJ
J29: Banetransport
J30: Dieselforbrug 2019 | M30: TJ | O30: ='WE2018'!F77+'WE2018'!F78 -> 198.729 | X30: Omstilling af Asnæsværket fra kul til træflis | AC30: 1
J31: Udvikling 2019-30 | M31: -0.0889 | N31: TJ | O31: =O30*(1+M31) -> 181.0619919
J32: Heraf diesel | M32: 0.2195 | N32: TJ | O32: =M32*$O$31 -> 39.74310722
J33: Tog, lokaltog (diesel/gas) | N33: TJ | O33: =O32/O30*'WE2018'!F77 -> 19.87155361
J34: Tog, dieselelektrisk | N34: TJ | O34: =O32/O30*'WE2018'!F78 -> 19.87155361
J35: Heraf el | M35: 0.7805 | N35: TJ | O35: =M35*$O$31 -> 141.3188847
A37: Scenarieberegninger 2050 (BAU)
A40: Varmeforsyningen | J40: Transport* | Q40: Vindmøller | X40: Dyrehold
A41: Gas i kollektiv varmeforsyning | D41: -1 | F41: Ab værk | G41: -10% | J41: Personbiler, udvikling af forbrug 2019-50 | Q41: El produktion fra vindmøller 2019 | U41: TJ | V41: ='WE2018'!$M$24 -> 8841.3 | X41: Reduktion af Mink 2019-2050
A42: 2019 | E42: =SUM('WE2018'!$I$37,'WE2018'!$I$57) -> 492.67 | J42: Person-/varebiler, mm., benzin | O42: -0.688 | Q42: El produktion fra vindmøller >30 år, 2050 | U42: TJ | V42: 162.1 | X42: Antal Mink 2019 | AB42: =AB6 -> 4232
A43: 2050 | E43: =E42*(1+D41) -> 0 | J43: Person-/varebiler, mm., diesel | O43: -0.718 | Q43: Elproduktion fra vindmøller 2050 | U43: TJ | V43: =V41 -> 8841.3 | X43: Antal Mink 2050 | AB43: =AB7 -> 0
A44: gns Virkningsgrad | D44: =IFERROR(SUMPRODUCT('WE2018'!$I$37:$I$51,'WE2018'!$AE$37:$AE$51)/SUM('WE2018'!$I$37:$I$51),0) -> 73.65743237 | F44: =(E42-E43)*D44% -> 362.8880721 | G44: =F44*(1+G$95) -> 362.8880721 | J44: Personbil, el/"grøn" - SE SÆRSKILT OPGØRELSE | Q44: Se beregning fra stamdataregister | X44: Emissions reduktion | AA44: ton CO2-ækv. | AB44: ='Reduction Path Calc'!P70 -> 0
A45: til VP | F45: =70%*F44 -> 254.0216504 | G45: =F45*(1+G41) -> 228.6194854 | J45: Lastbiler (total) | O45: =O9 -> -0.0708
A46: til Sol | F46: =30%*F44 -> 108.8664216 | G46: =F46*(1+G41) -> 97.97977946 | J46: Busser (total) | O46: =O10 -> -0.1728 | X46: Arealanvendelse
J47: Søfart | O47: =O11 -> -0.02409638554 | X47: Omlægning af kulstofrig drænet landbrugsjord 2019-2050
A48: Olie individuel | C48: -1 | F48: NVB | G48: =G41 -> -10% | J48: Luftfart | O48: =O12 -> 0.1 | X48: Antal ha udtaget i 2050 | AA48: 0.12 | AC48: =('Reduction Path Calc'!F7+'Reduction Path Calc'!F8)*'BAU tiltag'!AA48 -> 147.67875
A49: 2019 | E49: ='WE2018'!E14 -> 559.8 | J49: *Se beskrivelse i baggrundsnotatet. | X49: Reduktion i emission 2050 | AB49: ton CO2-ækv. | AC49: ='Reduction Path Calc'!Q7+'Reduction Path Calc'!Q8 -> 3499.00185
A50: 2050 | E50: =E49*(1+C48) -> 0
A51: Virkningsgrad | D51: ='WE2018'!$AE$14 -> 80 | F51: =(E49-E50)*D51% -> 447.84 | G51: =F51*(1+G$95) -> 447.84 | X51: Affaldsdeponi
A52: 75 % til el (varmepumpe) | F52: =F51*75% -> 335.88 | G52: =F52*(1+G48) -> 302.292 | J52: Bio-andele, 2050 | X52: Reduktion i udledning fra affaldsdeponi 2019-2050
A53: 25 % til træpiller | F53: =F51*25% -> 111.96 | G53: =F53*(1+G48) -> 100.764 | J53: Benzin | O53: 0 | X53: ton Affald til affaldsdeponi 2019 | AC53: ='Waste and wastewater W2018'!G12+'Waste and wastewater W2018'!G13 -> 
J54: Diesel | O54: 0 | X54: 75 % reduktion, 2050 | AC54: =AC53*75% -> 
A55: Gas individuel | C55: -1 | F55: NVB | G55: =G48 -> -10% | X55: Reduktion af emission fra affaldsdeponi 2050 | AC55: =AC54*'Reduction Path Calc'!D44 -> 
A56: 2019 | E56: ='WE2018'!I15 -> 489.1 | J56: Person og varebiler - el
A57: 2050 | E57: =E56*(1+C55) -> 0 | J57: Antal el-person og varebiler, 2050 Landsplan: | O57: =O60*80% -> 2974640
A58: Virkningsgrad | D58: ='WE2018'!$AE$15 -> 85 | F58: =(E56-E57)*D58% -> 415.735 | G58: =F58*(1+G$95) -> 415.735 | J58: Enhedsforbrug elbil, 2050 | N58: GJ/køretøj | O58: =O22 -> 8.669108669
A59: 75 % til el (varmepumpe) | F59: =F58*75% -> 311.80125 | G59: =F59*(1+G55) -> 280.621125 | J59: Enhedsforbrug fossilbil, 2019 | N59: GJ/køretøj | O59: 44.83 | X59: Kommunespecifikke tiltag
A60: 25 % til træpiller | F60: =F58*25% -> 103.93375 | G60: =F60*(1+G55) -> 93.540375 | J60: Person- og varebiler 2050, landsplan | N60: stk. | O60: 3718300
J61: Person og varebiler 2019, kommune | N61: stk. | O61: =MROUND(('WE2018'!$H$62+'WE2018'!$F$63)*1000/'BAU tiltag'!O59,1) -> 99745 | X61: Befolkningsudvikling | AB61: 48983 | AC61: personer
J62: El-person og varebiler 2050, kommune | N62: stk. | O62: =MROUND(O61/O60*O57,1) -> 79796 | X62: - Udvikling varmeforbrug (varmepumpe) | AB62: =(AB61-'WE2018'!$D$1)/2.2*(5.2*0.0036) -> -1314.161018 | AC62: TJ
J63: Elforbrug, elbiler 2050 | N63: TJ | O63: =O62*O58/1000 -> 691.7601954 | X63: - Udvikling klassisk el-forbrug | AB63: ='WE2018'!$AL$8/'WE2018'!$D$1*(AB61-'WE2018'!$D$1) -> -915.7850938 | AC63: TJ
J65: Banetransport | X65: Omstilling af Asnæsværket fra kul til træflis | AC65: 1
J66: Dieselforbrug 2019 | M66: TJ | O66: =O30 -> 198.729
J67: Udvikling 2019-50 | M67: -0.0889 | N67: TJ | O67: =O66*(1+M67) -> 181.0619919
J68: Heraf diesel | M68: 0 | N68: TJ | O68: =M68*O67 -> 0
J69: Heraf el | M69: 1 | N69: TJ | O69: =M69*$O$67 -> 181.0619919

Sheet ESTI2050 (hidden)
A1: Antal indbyggere: | D1: ='E-Tiltag'!I28 -> 1326340 | AB1: Geografisk energibalance for
A2: Elnetvirkningsgrad: | D2: 92.09 | E2: %
A3: Enheder: | D3: TJ, tons | AB3: ='E-Tiltag'!J25 -> STI2050
A6: Brændsel | AB6: Anlægstype | AC6: Virkningsgrad | AG6: Elnet | AI6: Fjernvarmenet | AL6: Nettoenergiforbrug
A7: Elimport | B7: LPG og petroleum | C7: Kul | D7: Fuelolie | E7: Brændselsolie | F7: Dieselolie | G7: JP1 | H7: Benzin | I7: Naturgas | J7: Brint | K7: Metanol | L7: Ammoniak | M7: Vindenergi | N7: Vandenergi | O7: Solenergi | P7: Geotermi | Q7: Varmekilder til varmepumper | R7: Husdyrsgødning | S7: Biobrændstof og energiafgrøder | T7: Halm | U7: Brænde og træflis | V7: Træpiller og træaffald | W7: Organisk affald, industri | X7: Organisk affald, husholdninger | Y7: Deponi, slam, renseanlæg | Z7: Affald, ikke bionedbrydeligt | AA7: Faktisk energiforbrug | AC7: El | AD7: Proces | AE7: Varme | AF7: Fjernvarmenet | AG7: Ab værk | AH7: An forbruger | AI7: Ab værk | AJ7: An forbruger | AK7: Samlet | AL7: Boliger og fritidshuse | AM7: Offentlig service | AN7: Privat service | AO7: Detail- og engroshandel | AP7: Bygge- og anlægsvirksomhed | AQ7: Fremstillingsvirksomhed | AR7: Gartneri | AS7: Landbrug | AT7: Transport
AA8: =SUM(A8:Z8) -> 0 | AB8: Klassisk el-forbrug (belysning, apparater mv.) | AD8: 84.9 | AG8: =-AH8/$D$2% -> -16138.07423 | AH8: =AK8/AD8% -> 14861.55256 | AK8: =SUM(AL8:AT8) -> 12617.45812 | AL8: ='WE2018'!AL8*(1+'E-Tiltag'!J27) -> 7864.715566 | AM8: ='WE2018'!AM8 -> 590.1220649 | AN8: ='WE2018'!AN8 -> 345.5490475 | AO8: ='WE2018'!AO8 -> 543.4024936 | AP8: ='WE2018'!AP8+'E-Tiltag'!J121/AD8% -> 55.82410475 | AQ8: ='WE2018'!AQ8 -> 2278.787326 | AR8: ='WE2018'!AR8 -> 115.4359959 | AS8: ='WE2018'!AS8 -> 814.2215263 | AT8: ='WE2018'!AT8 -> 9.4
AA9: 0 | AB9: Elvandvarmer | AE9: 90 | AG9: =-AH9/$D$2% -> -33.05944668 | AH9: =AK9/AE9% -> 30.44444444 | AK9: 27.4 | AL9: ='WE2018'!AL9 -> 27.4
AA10: 0 | AB10: Elradiator | AE10: 100 | AG10: =-AH10/$D$2% -> -140.1889456 | AH10: =AK10/AE10% -> 129.1 | AK10: 129.1 | AL10: ='WE2018'!AL10 -> 129.1
Q11: =AK11-AH11 -> 37 | AA11: 37 | AB11: Varmepumper, individuel | AE11: 300 | AG11: =-AH11/$D$2% -> -20.08904333 | AH11: ='WE2018'!AH11*(1+'E-Tiltag'!$J$47)+(('E-Tiltag'!J59+'E-Tiltag'!J78)/AE11%) -> 18.5 | AK11: 55.5 | AL11: =AH11*AE11% -> 55.5
A12: =AC12%*AG12 ->  | AB12: Elimport | AC12: 100 | AG12: =-SUM(AG13:AG80,AG8:AG11) ->  | AK12: 0
B13: ='WE2018'!B13 -> 88.9 | AA13: 88.9 | AB13: Gaskomfur, proces, m.m. | AE13: 38 | AK13: 33.782 | AL13: =AA13*AE13%*20% -> 6.7564 | AQ13: =AA13*AE13%*60% -> 20.2692 | AT13: =AA13*AE13%*20% -> 6.7564
E14: ='E-Tiltag'!J52*(1+'E-Tiltag'!$J$47) -> 559.8 | AA14: 559.8 | AB14: Individuel opvarmning: Gasoliekedel | AE14: 80 | AK14: 447.84 | AL14: =AA14*AE14% -> 447.84
I15: ='E-Tiltag'!J66*(1+'E-Tiltag'!$J$47) -> 489.1 | AA15: 489.1 | AB15: Individuel opvarmning: Naturgaskedel | AE15: 85 | AK15: 415.735 | AL15: 415.735
V16: ='WE2018'!V16*(1+'E-Tiltag'!$J$47)+('E-Tiltag'!$J$60)/AE16% -> 1526.2 | AA16: 1526.2 | AB16: Individuel opvarmning: Træpillekedel | AE16: 75 | AK16: 1144.65 | AL16: 1144.65
U17: ='WE2018'!U17*(1+'E-Tiltag'!$J$47) -> 1337.9 | AA17: 1337.9 | AB17: Individuel opvarmning: Brændekedel og -ovn | AE17: 65 | AK17: 869.635 | AL17: 869.635
T18: ='WE2018'!T18*(1+'E-Tiltag'!$J$47) -> 326.4 | AA18: 326.4 | AB18: Individuel opvarmning: Halmfyr | AE18: 65 | AK18: 212.16 | AL18: 212.16
O19: ='WE2018'!O19*(1+'E-Tiltag'!$J$47) -> 28.2 | AA19: 28.2 | AB19: Individuel opvarmning: Solvarmeanlæg | AE19: 100 | AK19: 28.2 | AL19: 28.2
E20: ='WE2018'!E20*(1-'E-Tiltag'!$J$112) -> 104.8 | AA20: 104.8 | AB20: Gasoliekedel, erhverv | AD20: 90 | AK20: 94.32 | AQ20: =AA20*AD20% -> 94.32
I21: ='E-Tiltag'!J89 -> 2941.7 | AA21: 2941.7 | AB21: Naturgaskedel, erhverv | AD21: 90 | AK21: 2647.53 | AQ21: =AA21*AD21% -> 2647.53
B22: ='WE2018'!B22*(1-'E-Tiltag'!$J$113) ->  | C22: ='WE2018'!C22*(1-'E-Tiltag'!$J$113) -> 558.1 | D22: ='WE2018'!D22*(1-'E-Tiltag'!$J$113) ->  | E22: ='WE2018'!E22*(1-'E-Tiltag'!$J$113) ->  | F22: ='WE2018'!F22*(1-'E-Tiltag'!$J$113) ->  | G22: ='WE2018'!G22*(1-'E-Tiltag'!$J$113) ->  | H22: ='WE2018'!H22*(1-'E-Tiltag'!$J$113) ->  | I22: ='WE2018'!I22*(1-'E-Tiltag'!$J$113)+'E-Tiltag'!$J$123 ->  | R22: 0 | S22: 0 | T22: 0 | U22: ='WE2018'!U22+'E-Tiltag'!$J$122 ->  | V22: ='WE2018'!V22 -> 53 | W22: 0 | X22: 0 | Y22: 0 | Z22: 0 | AB22: Industrikedel, erhverv | AD22: 90 | AQ22: =AA22*AD22% -> 
O23: ='WE2018'!O23+'E-Tiltag'!V40 -> 356.1 | AA23: 356.1 | AB23: Solcelleanlæg | AC23: 100 | AG23: =AA23*AC23/100 -> 356.1 | AK23: 0
M24: ='E-Tiltag'!V12+'E-Tiltag'!V21 -> 0 | AA24: 0 | AB24: Vindkraftanlæg, land | AC24: 100 | AG24: =AC24*AA24/100 -> 0 | AK24: 0
M25: =+'E-Tiltag'!V28*50% -> 0 | AA25: 0 | AB25: Vindkraftanlæg, kystnære (50 %) | AC25: 100 | AG25: =AC25*AA25/100 -> 0 | AK25: 0
N26: ='WE2018'!N26 ->  | AA26: 0 | AB26: Vandkraft | AC26: 100 | AG26: =AC26*AA26/100 -> 0 | AK26: 0
I27: ='WE2018'!I27-'E-Tiltag'!V51 -> -904.6 | R27: =-(I27*33.3%)/AD27% -> 301.2318 | S27: =-(I27*10.5%)/AD27% -> 94.983 | T27: =-(I27*6.6%)/AD27% -> 59.7036 | W27: =-(I27*49.6%)/AD27% -> 448.6816 | AA27: 0 | AB27: Biogasanlæg, opgradering | AD27: 100 | AK27: 0
R28: =AA28*33.3% -> 33.9993 | S28: =AA28*10.5% -> 10.7205 | T28: =AA28*6.6% -> 6.7386 | W28: =AA28*49.6% -> 50.6416 | AA28: ='WE2018'!AA28 -> 102.1 | AB28: Biogasanlæg, motor | AC28: 34.2 | AG28: =AA28*AC28/100 -> 34.9182 | AI28: =AA28*AE28/100 -> 0 | AK28: 0
B29: 0 | C29: 0 | D29: 0 | E29: 0 | F29: 0 | G29: 0 | H29: 0 | I29: 0 | M29: 0 | N29: 0 | O29: 0 | P29: 0 | Q29: 0 | R29: 0 | S29: 0 | T29: 0 | U29: 0 | V29: 0 | W29: 0 | X29: 0 | Y29: 0 | Z29: 0 | AA29: =SUM(A29:Z29) -> 0 | AB29: Centrale kraftværker, kraftvarme | AC29: 0 | AE29: 0 | AG29: =AA29*AC29/100 -> 0 | AI29: =AA29*AE29/100 -> 0 | AK29: 0
B30: 0 | C30: 0 | D30: 0 | E30: 0 | F30: 0 | G30: 0 | H30: 0 | I30: 0 | M30: 0 | N30: 0 | O30: 0 | P30: 0 | Q30: 0 | R30: 0 | S30: 0 | T30: 0 | U30: 0 | V30: 0 | W30: 0 | X30: 0 | Y30: 0 | Z30: 0 | AA30: 0 | AB30: Centrale kraftværker, kedel | AE30: 0 | AI30: =AA30*AE30/100 -> 0 | AK30: 0
Q31: =AI31-AH31 -> 0 | AA31: 0 | AB31: Centrale kraftværker, varmepumpe | AE31: ='E-Tiltag'!J137 -> 600 | AG31: =-AH31/$D$2% -> 0 | AH31: 0 | AI31: =AH31*AE31% -> 0 | AK31: 0
AA32: 0 | AB32: Centrale kraftværker, elpatron | AE32: 100 | AG32: =-AH32/$D$2% -> 0 | AH32: 0 | AI32: =AH32*AE32% -> 0 | AK32: 0
AA33: 0 | AB33: Centrale kraftværker, fjernvarmeproduktion | AF33: =100-'E-Tiltag'!$J$19 -> 99.81050591 | AI33: =-SUM(AI29:AI32) -> 0 | AJ33: =-AI33*AF33% -> 0 | AK33: 0 | AL33: =AJ33*64.9% -> 0 | AM33: =AJ33*9.8% -> 0 | AN33: =AJ33*13.2% -> 0 | AO33: =AJ33*7% -> 0 | AQ33: =AJ33*3.6% -> 0 | AR33: =AJ33*1.5% -> 0
B34: 0 | C34: 0 | D34: 0 | E34: 0 | F34: 0 | G34: 0 | H34: 0 | I34: 0 | M34: 0 | N34: 0 | O34: 0 | P34: 0 | Q34: 0 | R34: 0 | S34: 0 | T34: 0 | U34: 0 | V34: 0 | W34: 0 | X34: 0 | Y34: 0 | Z34: 0 | AA34: 0 | AB34: Affaldsforbrændingsanlæg, kraftvarme | AC34: 0 | AE34: 0 | AG34: =AA34*AC34/100 -> 0 | AI34: =AA34*AE34/100 -> 0 | AK34: 0
B35: 0 | C35: 0 | D35: 0 | E35: 0 | F35: 0 | G35: 0 | H35: 0 | I35: 0 | M35: 0 | N35: 0 | O35: 0 | P35: 0 | Q35: 0 | R35: 0 | S35: 0 | T35: 0 | U35: 0 | V35: 0 | W35: 0 | X35: 0 | Y35: 0 | Z35: 0 | AA35: 0 | AB35: Affaldsforbrændingsanlæg, kedel | AE35: 0 | AG35: =AA35*AC35/100 -> 0 | AI35: =AA35*AE35/100 -> 0 | AK35: 0
AA36: 0 | AB36: Affaldsforbrændingsanlæg, fjernvarmeproduktion | AF36: =100-'E-Tiltag'!$J$19 -> 99.81050591 | AI36: =-SUM(AI34:AI35) -> 0 | AJ36: =-AI36*AF36% -> 0 | AK36: 0 | AL36: =AJ36*64.9% -> 0 | AM36: =AJ36*9.8% -> 0 | AN36: =AJ36*13.2% -> 0 | AO36: =AJ36*7% -> 0 | AQ36: =AJ36*3.6% -> 0 | AR36: =AJ36*1.5% -> 0
B37: 0 | C37: 0 | D37: 0 | F37: 0 | G37: 0 | H37: 0 | I37: =AI37/AC37% -> 534.1539772 | M37: 0 | N37: 0 | O37: 0 | P37: 0 | Q37: 0 | R37: 0 | S37: 0 | T37: 0 | U37: 0 | V37: 0 | W37: 0 | X37: 0 | Y37: 0 | Z37: 0 | AA37: 534.1539772 | AB37: Fjernvarme- og KV-værker, kraftvarme | AC37: 45.1 | AE37: 50.9 | AG37: =AA37*AC37/100 -> 240.9034437 | AI37: =SUMPRODUCT('E-Tiltag'!$D$172:$D$176,'E-Tiltag'!$K$172:$K$176) -> 240.9034437 | AK37: 0
B38: 0 | C38: 0 | D38: 0 | E38: 0 | F38: 0 | G38: 0 | H38: 0 | I38: =SUMPRODUCT('E-Tiltag'!$D$172:$D$176,'E-Tiltag'!$L$172:$L$176)/$AE$38% -> 688.018596 | M38: 0 | N38: 0 | O38: 0 | P38: 0 | Q38: 0 | R38: 0 | S38: 0 | T38: 0 | U38: =SUMPRODUCT('E-Tiltag'!$D$172:$D$176,'E-Tiltag'!$H$172:$H$176)/$AE$38% -> 232.9045538 | V38: 0 | W38: 0 | X38: =SUMPRODUCT('E-Tiltag'!$D$172:$D$176,'E-Tiltag'!$I$172:$I$176)/$AE$38%*(1-'E-Tiltag'!$I$140) -> 1034.096219 | Y38: 0 | Z38: =SUMPRODUCT('E-Tiltag'!$D$172:$D$176,'E-Tiltag'!$I$172:$I$176)/$AE$38%*'E-Tiltag'!$I$140 -> 363.331104 | AA38: 2318.350473 | AB38: Fjernvarme- og KV-værker, kedel | AE38: ='E-Tiltag'!S176 -> 103.4344068 | AG38: =AA38*AC38/100 -> 0 | AI38: =AA38*AE38/100 -> 2397.97206 | AK38: 0
I39: 0 | Q39: =AI39-AH39 ->  | AB39: Fjernvarme- og KV-værker, varmepumpe | AE39: ='E-Tiltag'!J136 -> 333 | AG39: =-AH39/$D$2% ->  | AH39: =SUMPRODUCT('E-Tiltag'!$D$172:$D$176,'E-Tiltag'!$E$172:$E$176)/AE39%+SUMPRODUCT('E-Tiltag'!$D$172:$D$176,'E-Tiltag'!$F$172:$F$176)/AE31% ->  | AI39: =SUMPRODUCT('E-Tiltag'!$D$172:$D$176,'E-Tiltag'!$E$172:$E$176)+SUMPRODUCT('E-Tiltag'!$D$172:$D$176,'E-Tiltag'!$F$172:$F$176) ->  | AK39: 0
AA40: 0 | AB40: Fjernvarme- og KV-værker, elpatron | AE40: 99.69082969 | AG40: =-AH40/$D$2% -> -2075.155905 | AH40: =AI40/AE40% -> 1911.011073 | AI40: =SUMPRODUCT('E-Tiltag'!$D$172:$D$176,'E-Tiltag'!$G$172:$G$176) -> 1905.102795 | AK40: =SUM(AL40:AT40) -> 0
O41: =AI41 ->  | AB41: Fjernvarme- og KV-værker, solvarme | AE41: 100 | AI41: =SUMPRODUCT('E-Tiltag'!$D$172:$D$176,'E-Tiltag'!$J$172:$J$176) ->  | AK41: 0
P42: 0 | AA42: 0 | AB42: Fjernvarme- og KV-værker, overskudsvarme & geotermi | AE42: 100 | AG42: =AA42*AC42/100 -> 0 | AI42: =SUMPRODUCT('E-Tiltag'!$D$172:$D$176,'E-Tiltag'!$M$172:$M$176)+SUMPRODUCT('E-Tiltag'!$D$172:$D$176,'E-Tiltag'!$N$172:$N$176) -> 433.6261987 | AK42: 0
AA43: 0 | AB43: Fjernvarme- og KV-værker, fjernvarmeproduktion | AF43: =100-'E-Tiltag'!$J$19 -> 99.81050591 | AI43: =-SUM(AI37:AI42) ->  | AJ43: =-AI43*AF43% ->  | AL43: =AJ43*64.9% ->  | AM43: =AJ43*9.8% ->  | AN43: =AJ43*13.2% ->  | AO43: =AJ43*7% ->  | AQ43: =AJ43*3.6% ->  | AR43: =AJ43*1.5% -> 
B44: 0 | C44: 0 | D44: 0 | E44: 0 | F44: 0 | G44: 0 | H44: 0 | M44: 0 | N44: 0 | O44: 0 | P44: 0 | Q44: 0 | R44: 0 | S44: 0 | T44: 0 | U44: 0 | V44: 0 | W44: 0 | X44: 0 | Y44: 0 | Z44: 0 | AA44: 0 | AB44: Tværkommunal fjernvarme, kraftvarme | AC44: 21.3 | AE44: 60.1 | AG44: =AA44*AC44/100 -> 0 | AI44: =AA44*AE44/100 -> 0 | AK44: 0
B45: 0 | C45: 0 | D45: 0 | E45: 0 | F45: 0 | G45: 0 | H45: 0 | M45: 0 | N45: 0 | O45: 0 | P45: 0 | Q45: 0 | R45: 0 | S45: 0 | T45: 0 | U45: 0 | V45: 0 | W45: 0 | X45: 0 | Y45: 0 | Z45: 0 | AA45: 0 | AB45: Tværkommunal fjernvarme, kedel | AE45: 109.6 | AG45: =-AH45/$D$2% -> 0 | AI45: =AA45*AE45/100 -> 0 | AK45: 0
I46: 0 | Q46: =AI46-AH46 -> 0 | AA46: 0 | AB46: Tværkommunal fjernvarme, varmepumpe | AE46: 332.5 | AG46: =-AH46/$D$2% -> 0 | AI46: =AH46*AE46% -> 0 | AK46: 0
AA47: 0 | AB47: Tværkommunal fjernvarme, elpatron | AE47: 100 | AG47: =-AH47/$D$2% -> 0 | AI47: =AA47*AE47/100 -> 0 | AK47: 0
O48: 0 | AA48: 0 | AB48: Tværkommunal fjernvarme, solvarme | AE48: 100 | AI48: 0 | AK48: 0
P49: 0 | AA49: 0 | AB49: Tværkommunal fjernvarme, geotermi | AE49: 100 | AG49: =AA49*AC49% -> 0 | AI49: 0 | AK49: 0
AA50: 0 | AB50: Tværkommunal fjernvarme, overskudsvarme | AE50: 100 | AI50: 0 | AK50: 0
AA51: 0 | AB51: Tværkommunal fjernvarme, fjernvarmeproduktion | AF51: =100-'E-Tiltag'!$J$19 -> 99.81050591 | AI51: 0 | AJ51: =-AI51*AF51/100 -> 0 | AK51: 0 | AL51: =AJ51*64.9% -> 0 | AM51: =AJ51*9.8% -> 0 | AN51: =AJ51*13.2% -> 0 | AO51: =AJ51*7% -> 0 | AQ51: =AJ51*3.6% -> 0 | AR51: =AJ51*1.5% -> 0
B52: 0 | C52: 0 | D52: 0 | E52: 0 | F52: 0 | G52: 0 | H52: 0 | I52: 0 | M52: 0 | N52: 0 | O52: 0 | P52: 0 | Q52: 0 | R52: 0 | S52: 0 | T52: 0 | U52: 0 | V52: 0 | W52: 0 | X52: 0 | Y52: 0 | Z52: 0 | AA52: 0 | AB52: Industrielle anlæg, kraftvarme | AC52: 0 | AE52: 0 | AG52: =AC52/100*AA52 -> 0 | AI52: 0 | AK52: 0
B53: 0 | C53: 0 | D53: 0 | E53: 0 | F53: 0 | G53: 0 | H53: 0 | I53: 0 | M53: 0 | N53: 0 | O53: 0 | P53: 0 | Q53: 0 | R53: 0 | S53: 0 | T53: 0 | U53: 0 | V53: 0 | W53: 0 | X53: 0 | Y53: 0 | Z53: 0 | AA53: 0 | AB53: Industrielle anlæg, kedel | AE53: 0 | AG53: =AC53/100*AA53 -> 0 | AI53: 0 | AK53: 0
AA54: 0 | AB54: Industrielle anlæg, overskudsvarme | AE54: 100 | AG54: =AC54/100*AA54 -> 0 | AI54: 0 | AK54: 0
AA55: 0 | AB55: Industrielle anlæg, eget forbrug af el ved kraftvarme | AG55: =-AH55 -> 0 | AH55: 0 | AK55: 0 | AQ55: =AH55 -> 0
AA56: 0 | AB56: Industrielle anlæg, eget forbrug af varme | AI56: 0 | AK56: 0 | AQ56: =-AI56 -> 0
J57: =-'E-Tiltag'!V53 -> 0 | AA57: 0 | AB57: Industrielle anlæg, PtX - elektrolyse (brint) | AC57: 65 | AE57: 15 | AG57: =-AH57/$D$2% -> 0 | AI57: =AH57*AE57% -> 0 | AJ57: =AI57*AF60% -> 0 | AK57: 0
AA58: 0 | AB58: Industrielle anlæg, PtX - metanol | AC58: 630 | AG58: =-AH58/$D$2% -> 0 | AH58: ='E-Tiltag'!$V$50 -> 0 | AI58: =AH58*AE58% -> 0 | AJ58: =AI58*AF61% -> 0 | AK58: 0
AA59: 0 | AB59: Industrielle anlæg, PtX - ammoniak | AG59: =-AH59/$D$2% -> 0 | AI59: =AH59*AE59% -> 0 | AJ59: =AI59*AF62% -> 0 | AK59: 0
AA60: 0 | AB60: Industrielle anlæg, fjernvarmeproduktion | AF60: =100-'E-Tiltag'!$J$19 -> 99.81050591 | AI60: =-SUM(AI52:AI59) -> 0 | AJ60: =-AI60*AF60/100 -> 0 | AK60: 0 | AL60: =AJ60*64.9% -> 0 | AM60: =AJ60*9.8% -> 0 | AN60: =AJ60*13.2% -> 0 | AO60: =AJ60*7% -> 0 | AQ60: =AJ60*3.6% -> 0 | AR60: =AJ60*1.5% -> 0
H61: =AA61-S61 -> 57766.38988 | S61: =AA61*'E-Tiltag'!$AG$4 -> 4148.283089 | AA61: ='E-Tiltag'!AH39 -> 61914.67297 | AB61: Person-/varebiler, mm., benzin | AD61: 19 | AK61: 11763.78786 | AT61: =AA61*AD61/100 -> 11763.78786
F62: =AA62-S62-K62 -> 59187.19593 | K62: ='E-Tiltag'!$V$52*('WE2018'!F63/SUM('WE2018'!$F$63:$F$76)) -> 0 | S62: =AA62*'E-Tiltag'!$AG$5 -> 7091.858862 | AA62: ='E-Tiltag'!AH40 -> 66279.05479 | AB62: Person-/varebiler, mm., diesel | AD62: 24.3 | AK62: 16105.81031 | AT62: =AA62*AD62/100 -> 16105.81031
I63: ='WE2018'!I64 -> 0.8254045005 | AA63: =SUM(A63:Z63) -> 0.8254045005 | AB63: Person-/varebiler, mm., gas (CNG) | AD63: 22.6 | AK63: 0.1865414171 | AT63: =AA63*AD63/100 -> 0.1865414171
AA64: =SUM(A64:Z64) -> 0 | AB64: Person-/varebiler, mm., el (BEV) | AC64: 70 | AG64: =-AH64/$D$2% -> 0 | AH64: ='E-Tiltag'!AH38 -> 0 | AK64: 0 | AT64: =AH64*AC64% -> 0
H65: =AA65-S65 -> 0 | S65: =AA65*'E-Tiltag'!$AH$4 -> 0 | AA65: 0 | AB65: Person-/varebiler, mm., plug-in hybrid (PHEV) | AC65: 70 | AD65: 19 | AG65: =-AH65/$D$2% -> 0 | AH65: =AA65*AD65%/AC65% -> 0 | AK65: 0 | AT65: =AH65*AC65%+AA65*AD65% -> 0
AA66: =SUM(A66:Z66) -> 0 | AB66: Person-/varebiler, mm., brint (FCEV) | AD66: 40 | AK66: 0 | AT66: =AA66*AD66% -> 0
F67: =AA67-S67-K67 -> 633.0439002 | K67: ='E-Tiltag'!$V$52*('WE2018'!F68/SUM('WE2018'!$F$63:$F$76)) -> 0 | S67: =AA67*'E-Tiltag'!$AH$5 -> 75.8518447 | AA67: =+'E-Tiltag'!$AH$80 -> 708.8957449 | AB67: Busser, diesel | AD67: 29.6 | AG67: =-AH67/$D$2% -> 0 | AK67: 209.8331405 | AT67: =AA67*AD67% -> 209.8331405
I68: =+'E-Tiltag'!$AH$82 -> 0 | AA68: =SUM(A68:Z68) -> 0 | AB68: Busser, gas (CNG, LNG) | AD68: 26.1 | AK68: 0 | AT68: =AA68*AD68% -> 0
J69: =+'E-Tiltag'!$AH$83 -> 0 | AA69: =SUM(A69:Z69) -> 0 | AB69: Busser, brint (FCEV) | AD69: 40 | AK69: 0 | AT69: =AA69*AD69% -> 0
AA70: =SUM(A70:Z70) -> 0 | AB70: Busser, el (BEV) | AC70: 70 | AG70: =-AH70/$D$2% -> 0 | AH70: =+'E-Tiltag'!$AH$81 -> 0 | AK70: 0 | AT70: =AH70*AC70% -> 0
F71: =AA71-S71-K71 -> 6978.37936 | K71: ='E-Tiltag'!$V$52*('WE2018'!F72/SUM('WE2018'!$F$63:$F$76)) -> 0 | S71: =AA71*'E-Tiltag'!$AH$5 -> 836.1551976 | AA71: =+'E-Tiltag'!$AH$59 -> 7814.534557 | AB71: Lastbiler, diesel | AD71: 36.5 | AK71: 2852.305113 | AT71: =AA71*AD71% -> 2852.305113
I72: =+'E-Tiltag'!$AH$61 -> 0 | AA72: =SUM(A72:Z72) -> 0 | AB72: Lastbiler, gas (CNG, LNG) | AD72: 32.2 | AK72: =SUM(AL72:AT72) -> 0 | AT72: =AA72*AD72% -> 0
J73: =+'E-Tiltag'!$AH$62 -> 0 | AA73: =SUM(A73:Z73) -> 0 | AB73: Lastbiler, brint (FCEV) | AD73: 40 | AK73: 0 | AT73: =AA73*AD73% -> 0
AA74: =SUM(A74:Z74) -> 0 | AB74: Lastbiler, el (BEV) | AC74: 70 | AG74: =-AH74/$D$2% -> 0 | AH74: =+'E-Tiltag'!$AH$60 -> 0 | AK74: 0 | AT74: =AH74*AC74% -> 0
F75: =AA75-S75-K75 -> 1089.787052 | K75: ='E-Tiltag'!$V$52*('WE2018'!F76/SUM('WE2018'!$F$63:$F$76)) -> 0 | AA75: ='WE2018'!AA76 -> 1089.787052 | AB75: Traktorer/entreprenørmaskiner, diesel | AD75: 36.5 | AK75: 397.7722738 | AS75: =AA75*AD75% -> 397.7722738
F76: =AA76-S76 -> 0 | S76: =AA76*'E-Tiltag'!$AH$5 -> 0 | AB76: Tog, lokaltog, diesel/gas | AD76: 12 | AK76: 0 | AT76: =AA76*AD76% -> 0
F77: =AA77-S77 -> 17.74529737 | S77: =AA77*'E-Tiltag'!$AH$5 -> 2.126256236 | AA77: ='E-Tiltag'!AH91 -> 19.87155361 | AB77: Tog, fjerntog, diesel | AD77: 25 | AK77: 4.967888403 | AT77: =AA77*AD77% -> 4.967888403
AA78: =SUM(A78:Z78) -> 0 | AB78: Tog, fjerntog, el | AC78: 67 | AG78: =-AH78/$D$2% -> -70.59565697 | AH78: ='E-Tiltag'!AH92 -> 65.0115405 | AK78: 43.55773214 | AT78: =AC78*AH78% -> 43.55773214
G79: ='WE2018'!G80*(1+'E-Tiltag'!$AH$96) -> 1573.9 | H79: ='WE2018'!H80*(1+'E-Tiltag'!$AH$96) -> 1.8 | AA79: =SUM(A79:Z79) -> 1575.7 | AB79: Fly | AD79: 13.5 | AK79: 212.7195 | AT79: =AD79*AA79% -> 212.7195
D80: ='WE2018'!D81*(1+'E-Tiltag'!$AH$95) ->  | F80: ='WE2018'!F81*(1+'E-Tiltag'!$AH$95) -> 221.28456 | AA80: =SUM(A80:Z80) ->  | AB80: Skibe | AD80: 20 | AH80: ='WE2018'!AA81*'E-Tiltag'!$AH$100 -> 6.71853 | AT80: =AA80*AD80% -> 
A81: =SUM(A8:A80) ->  | C81: 558.1 | J81: 0 | K81: 0 | L81: 0 | M81: 0 | N81: 0 | P81: 0 | R81: 335.2311 | S81: 12259.97875 | T81: 392.8422 | V81: 1579.2 | W81: 499.3232 | X81: 1034.096219 | Y81: 0 | Z81: 363.331104 | AB81: Samlet | AG81: =SUM(AG8:AG80) ->  | AP81: 55.82410475 | AS81: 1211.9938
A82: =A81*A89/1000 ->  | C82: 52.57302 | M82: =M81*M89/1000 -> 0 | N82: =N81*N89/1000 -> 0 | O82: =O81*O89/1000 ->  | P82: =P81*P89/1000 -> 0 | Q82: 0 | R82: =R81*R89/1000 -> 0 | S82: 0 | T82: 0 | V82: 0 | W82: 0 | X82: 0 | Y82: 0 | Z82: 34.31298946 | AA82: =SUM(A82:Z82) ->  | AB82: CO2-emissioner (1.000 tons) | AC82: =AA82*1000/D1 ->  | AD82: tons/indbygger
